Workbook

Sheet Concentrado (hidden)
A1: 0 | C1: MS % | D1: MNT | E1: EE | F1: EE | G1: FB | H1: NDF | I1: ADF | J1: EE | K1: FB | L1: NDF | M1: ADF | N1: Lignina | O1: Li | P1: cenizas | Q1: Almidón | R1: % MO | S1: MO s/total | T1: MNTO | U1: EEO | V1: FBO | W1: NDFO | X1: ADFO | Y1: LigninaO | Z1: dCs | AA1: Ecuación regresión dMO | AB1: dMO (pepsina-celulasa) | AC1: dMO final | AD1: dE tablas | AE1: dE | AF1: MOD | AG1: Degradabilidad DT_N (proteínas) teórica | AH1: Digestibilidad dr_N (proteínas) real | AI1: Degradabilidad DE1 (proteínas) enzimática | AJ1: DT6_N | AK1: Degradabilidad DT_N (proteínas) | AL1: MOF | AM1: PDIM | AN1: c constante para EB | AO1: EB | AP1: ED | AQ1: Emetano | AR1: Eorina | AS1: EM | AT1: q | AU1: km | AV1: kf | AW1: kmf | AX1: kls | AY1: ENl | AZ1: ENmant y carne | BA1: DT_MS | BB1: Nombre | BC1: MS | BD1: UFL | BE1: UFV | BF1: MNT_PB | BG1: PDIA | BH1: PDI | BI1: BPR | BJ1: UEL | BK1: UEB | BL1: UEM | BM1: NI ref | BN1: dMO | BO1: MOD_TDN | BP1: EE | BQ1: FB | BR1: NDF | BS1: ADF | BT1: Lignina | BU1: cenizas | BV1: Ca | BW1: P | BX1: Mg | BY1: Cl | BZ1: K | CA1: Na | CB1: S | CC1: Co | CD1: Cu | CE1: Mo | CF1: Yodo | CG1: Fe | CH1: Mn | CI1: Se | CJ1: Zn | CK1: Vit A | CL1: Vit D | CM1: Vit E | CN1: AG | CO1: DT_N | CP1: dr | CQ1: MOF | CR1: Euros/kg
A2: =A1+1 -> 1 | B2: --
A3: 2 | B3: Trigo | C3: =IF(Valoración!$A$9=$A3,IF(Valoración!C$9>0,Valoración!C$9,""),"") ->  | D3: =IF(Valoración!$A$9=$A3,IF(Valoración!D$9>0,Valoración!D$9,""),"") ->  | E3: =IF(Valoración!$A$9=$A3,IF(Valoración!E$9>0,Valoración!E$9,""),"") ->  | F3: 2 | G3: =IF(Valoración!$A$9=$A3,IF(Valoración!F$9>0,Valoración!F$9,""),"") ->  | H3: =IF(Valoración!$A$9=$A3,IF(Valoración!G$9>0,Valoración!G$9,""),"") ->  | I3: =IF(Valoración!$A$9=$A3,IF(Valoración!H$9>0,Valoración!H$9,""),"") ->  | J3: =IF(E3="",IF(F3="","Falta valor EE",F3*10),E3*10) -> 20 | K3: =IF(G3="",IF(H3="","Falta valor fibra",0.4793*H3*10-20.98),G3*10) -> Falta valor fibra | L3: =IF(H3="",IF(G3="","Falta valor fibra",1.4419*G3*10+131.71),H3*10) -> Falta valor fibra | M3: =IF(I3="",IF(G3="","Falta valor fibra",1.2552*G3*10+10.808),I3*10) -> Falta valor fibra | N3: =IF(Valoración!$A$9=$A3,IF(Valoración!I$9>0,Valoración!I$9,""),"") ->  | O3: =IF(N3="",IF(K3="Falta valor fibra",K3,0.1649*K3^1.1136),N3*10) -> Falta valor fibra | P3: =IF(Valoración!$A$9=$A3,IF(Valoración!J$9>0,Valoración!J$9,""),"") ->  | Q3: =IF(Valoración!$A$9=$A3,IF(Valoración!K$9>0,Valoración!K$9,""),"") ->  | R3: =IF(P3="","Falta valor cenizas",100-P3) -> Falta valor cenizas | S3: =IF(R3="Falta valor cenizas",R3,R3*C3/100) -> Falta valor cenizas | T3: =IF(D3="","Falta valor MNT",IF(P3="","Falta valor cenizas",C3*D3*10/S3)) -> Falta valor MNT | U3: =IF(J3="Falta valor EE",J3,IF(P3="","Falta valor cenizas",J3*C3/S3)) -> Falta valor cenizas | V3: =IF(K3="Falta valor fibra",K3,IF(P3="","Falta valor cenizas",K3*C3/S3)) -> Falta valor fibra | W3: =IF(L3="Falta valor fibra",L3,IF(P3="","Falta valor cenizas",L3*C3/S3)) -> Falta valor fibra | X3: =IF(M3="Falta valor fibra",M3,IF(P3="","Falta valor cenizas",M3*C3/S3)) -> Falta valor fibra | Y3: =IF(O3="Falta valor fibra",O3,IF(P3="","Falta valor cenizas",O3*C3/S3)) -> Falta valor fibra | Z3: =IF(Valoración!$A$9=$A3,IF(Valoración!M$9>0,Valoración!M$9,""),"") ->  | AA3: =IF(K3="Falta valor fibra",K3,(94.4-0.225*K3)/100) -> Falta valor fibra | AB3: =IF(Z3="",Z3,IF(P3="","Falta valor cenizas",(21.23+0.699*Z3*10000/R3)/100)) ->  | AC3: =IF(Z3="",IF(K3="Falta valor fibra",K3,AA3),AB3) -> Falta valor fibra | AD3: 0.84 | AE3: =IF(AD3="",IF(AC3="Falta valor fibra", AC3,IF(D3="","Falta valor MNT",IF(J3="Falta valor EE",J3,IF(P3="","Falta valor cenizas",(-3.94+AC3*100+0.0104*D3*10+0.0149*J3+0.0022*L3-0.0244*P3*10)/100)))),AD3) -> 0.84 | AF3: =IF(S3="Falta valor cenizas",S3,IF($AC3="Falta valor fibra",AC3,IF(AC3="Falta valor MNT", AC3,$R3*AC3*10))) -> Falta valor cenizas | AG3: 0.76 | AH3: =IF(D3="","Falta valor MNT",IF(O3="Falta valor fibra",O3,IF(AF3="Falta valor fibra",AF3,IF(P3="","Falta valor cenizas",(88.3+0.0371*D3*10-3.7*(10^-5)*(D3*10)^2-0.107*O3-0.0313*(1000-AF3))/100)))) -> Falta valor MNT | AI3: =IF(Valoración!$A$9=$A3,IF(Valoración!L$9>0,Valoración!L$9,""),"") ->  | AJ3: =IF(AI3="",AI3,(47.9+0.36*AI3*100+11)/100) ->  | AK3: =IF(AJ3="",IF(AG3="","Falta degradabilidad proteínas",AG3),(6.92+0.945*AJ3*100-0.000811*(AJ3^2))/100) -> 0.76 | AL3: =IF(AF3="Falta valor cenizas",AF3,IF(D3="","Falta valor MNT",IF(AK3="Falta degradabilidad proteínas",AK3,IF(J3="Falta valor EE",J3,(AF3-D3*10*(1-AK3)-J3))))) -> Falta valor cenizas | AM3: =IF(AL3="Falta valor cenizas",AL3,IF(AL3="Falta valor MNT",AL3,IF(AL3="Falta degradabilidad proteínas",AL3,IF(AL3="Falta valor EE",AL3,(41.67+AL3*71.9*10^-3)*0.8*0.8)))) -> Falta valor cenizas | AO3: =IF(D3="","Falta valor MNT",IF(J3="Falta valor EE",J3,IF(K3="Falta valor fibra",K3,IF(P3="","Falta valor cenizas",4134+1.473*D3*10+5.239*J3+0.925*K3-4.46*P3*10+AN3)))) -> Falta valor MNT | AP3: =IF(AO3="Falta valor MNT",AO3,IF(AO3="Falta valor fibra",AO3,IF(AO3="Falta valor cenizas",AO3,IF(AO3="Falta valor EE",AO3,AO3*AE3)))) -> Falta valor MNT | AQ3: =IF(AF3="Falta valor fibra",AF3,IF(AF3="Falta valor cenizas",AF3,IF(AF3="Falta valor MNT",AF3,((45.42-6.66*2+0.75*2^2)*AF3*12.5*(10^-3))))) -> Falta valor cenizas | AR3: =IF(AO3="Falta valor MNT",AO3,IF(AO3="Falta valor EE",AO3,IF(AO3="Falta valor fibra",AO3,IF(AO3="Falta valor cenizas",AO3,(2.9+0.017*D3*10-0.47*2)*AO3*0.01)))) -> Falta valor MNT | AS3: =IF(AP3="Falta valor MNT",AP3,IF(AP3="Falta valor fibra",AP3,IF(AP3="Falta valor cenizas",AP3,IF(AP3="Falta valor EE",AP3,AP3-AQ3-AR3)))) -> Falta valor MNT | AT3: =IF(AS3="Falta valor MNT",AS3,IF(AS3="Falta valor fibra",AS3,IF(AS3="Falta valor cenizas",AS3,IF(AS3="Falta valor EE",AS3,AS3/AO3)))) -> Falta valor MNT | AU3: =IF(AT3="Falta valor MNT",AT3,IF(AT3="Falta valor fibra",AT3,IF(AT3="Falta valor cenizas",AT3,IF(AT3="Falta valor EE",AT3,0.287*AT3+0.554)))) -> Falta valor MNT | AV3: =IF(AT3="Falta valor MNT",AT3,IF(AT3="Falta valor fibra",AT3,IF(AT3="Falta valor cenizas",AT3,IF(AT3="Falta valor EE",AT3,0.78*AT3+0.006)))) -> Falta valor MNT | AW3: =IF(AU3="Falta valor MNT",AU3,IF(AU3="Falta valor fibra",AU3,IF(AU3="Falta valor cenizas",AU3,IF(AU3="Falta valor EE",AU3,(AU3*AV3*1.5)/(AV3+0.5*AU3))))) -> Falta valor MNT | AX3: =IF(AT3="Falta valor MNT",AT3,IF(AT3="Falta valor fibra",AT3,IF(AT3="Falta valor cenizas",AT3,IF(AT3="Falta valor EE",AT3,0.65+0.247*(AT3-0.63))))) -> Falta valor MNT | AY3: =IF(AS3="Falta valor MNT",AS3,IF(AS3="Falta valor fibra",AS3,IF(AS3="Falta valor cenizas",AS3,IF(AS3="Falta valor EE",AS3,AS3*AX3)))) -> Falta valor MNT | AZ3: =IF(AS3="Falta valor MNT",AS3,IF(AS3="Falta valor fibra",AS3,IF(AS3="Falta valor cenizas",AS3,IF(AS3="Falta valor EE",AS3,AS3*AW3)))) -> Falta valor MNT | BA3: 0.77 | BC3: =IF(C3="","",C3) ->  | BD3: =IF(AY3="Falta valor MNT",AY3,IF(AY3="Falta valor fibra",AY3,IF(AY3="Falta valor cenizas",AY3,IF(AY3="Falta valor EE",AY3,AY3/1760)))) -> Falta valor MNT | BE3: =IF(AZ3="Falta valor MNT",AZ3,IF(AZ3="Falta valor fibra",AZ3,IF(AZ3="Falta valor cenizas",AZ3,IF(AZ3="Falta valor EE",AZ3,AZ3/1760)))) -> Falta valor MNT | BF3: =IF(D3="","Falta valor MNT",D3*10) -> Falta valor MNT | BG3: =IF(BF3="Falta valor MNT",BF3,IF(AK3="Falta degradabilidad proteínas",AK3,IF(AH3="Falta valor fibra",AH3,IF(AH3="Falta valor cenizas",AH3,BF3*(1-AK3)*AH3)))) -> Falta valor MNT | BH3: =IF(BG3="Falta valor MNT",BG3,IF(BG3="Falta degradabilidad proteínas",BG3,IF(BG3="Falta valor fibra",BG3,IF(BG3="Falta valor cenizas",BG3,BG3+AM3)))) -> Falta valor MNT | BI3: =IF(D3="","Falta valor MNT",IF(J3="Falta valor EE",J3,IF(P3="","Falta valor cenizas",IF(AK3="Falta degradabilidad proteínas",AK3,IF(AK3="Revisar componentes",AK3,BF3*AK3-(41.67+AL3*71.9*(10^-3))-14.2))))) -> Falta valor MNT | BJ3: =IF(BA3="",IF(Q3="",IF(M3="Falta valor fibra",M3,0.2127+0.0006289*M3),0.222-0.000082*Q3*10+0.000236*M3+0.328*(1-AC3)),0.8105-0.0083*BA3*100) -> 0.1714 | BM3: 2 | BN3: =AC3 -> Falta valor fibra | BO3: =AF3 -> Falta valor cenizas | BP3: =J3 -> 20 | BQ3: =K3 -> Falta valor fibra | BR3: =L3 -> Falta valor fibra | BS3: =M3 -> Falta valor fibra | BT3: =O3 -> Falta valor fibra | BU3: =IF(P3="","Falta valor cenizas",P3*10) -> Falta valor cenizas | CN3: =BP3*0.75 -> 15 | CO3: =AK3 -> 0.76 | CP3: =AH3 -> Falta valor MNT | CQ3: =AL3 -> Falta valor cenizas
A4: 3 | B4: Trigo gluten | C4: =IF(Valoración!$A$9=$A4,IF(Valoración!C$9>0,Valoración!C$9,""),"") ->  | D4: =IF(Valoración!$A$9=$A4,IF(Valoración!D$9>0,Valoración!D$9,""),"") ->  | E4: =IF(Valoración!$A$9=$A4,IF(Valoración!E$9>0,Valoración!E$9,""),"") ->  | F4: 1.6 | G4: =IF(Valoración!$A$9=$A4,IF(Valoración!F$9>0,Valoración!F$9,""),"") ->  | H4: =IF(Valoración!$A$9=$A4,IF(Valoración!G$9>0,Valoración!G$9,""),"") ->  | I4: =IF(Valoración!$A$9=$A4,IF(Valoración!H$9>0,Valoración!H$9,""),"") ->  | J4: =IF(E4="",IF(F4="","Falta valor EE",F4*10),E4*10) -> 16 | K4: =IF(G4="",IF(H4="","Falta valor fibra",0.4793*H4*10-20.98),G4*10) -> Falta valor fibra | L4: =IF(H4="",IF(G4="","Falta valor fibra",1.4419*G4*10+131.71),H4*10) -> Falta valor fibra | M4: =IF(I4="",IF(G4="","Falta valor fibra",1.2552*G4*10+10.808),I4*10) -> Falta valor fibra | N4: =IF(Valoración!$A$9=$A4,IF(Valoración!I$9>0,Valoración!I$9,""),"") ->  | O4: =IF(N4="",IF(K4="Falta valor fibra",K4,0.1649*K4^1.1136),N4*10) -> Falta valor fibra | P4: =IF(Valoración!$A$9=$A4,IF(Valoración!J$9>0,Valoración!J$9,""),"") ->  | Q4: =IF(Valoración!$A$9=$A4,IF(Valoración!K$9>0,Valoración!K$9,""),"") ->  | R4: Falta valor cenizas | S4: Falta valor cenizas | T4: Falta valor MNT | U4: Falta valor cenizas | V4: Falta valor fibra | W4: Falta valor fibra | X4: Falta valor fibra | Y4: Falta valor fibra | Z4: =IF(Valoración!$A$9=$A4,IF(Valoración!M$9>0,Valoración!M$9,""),"") ->  | AA4: =IF(K4="Falta valor fibra",K4,(94.4-0.225*K4)/100) -> Falta valor fibra | AC4: =IF(Z4="",IF(K4="Falta valor fibra",K4,AA4),AB4) -> Falta valor fibra | AD4: 1 | AE4: 1 | AF4: Falta valor cenizas | AG4: 0.34 | AH4: Falta valor MNT | AI4: =IF(Valoración!$A$9=$A4,IF(Valoración!L$9>0,Valoración!L$9,""),"") ->  | AJ4: =IF(AI4="",AI4,(47.9+0.36*AI4*100+11)/100) ->  | AK4: 0.34 | AL4: Falta valor cenizas | AM4: Falta valor cenizas | AN4: 138 | AO4: Falta valor MNT | AP4: Falta valor MNT | AQ4: Falta valor cenizas | AR4: Falta valor MNT | AS4: Falta valor MNT | AT4: Falta valor MNT | AU4: Falta valor MNT | AV4: Falta valor MNT | AW4: Falta valor MNT | AX4: Falta valor MNT | AY4: Falta valor MNT | AZ4: Falta valor MNT | BA4: 0.29 | BB4: =B4 -> Trigo gluten | BD4: Falta valor MNT | BE4: Falta valor MNT | BF4: =IF(D4="","Falta valor MNT",D4*10) -> Falta valor MNT | BG4: Falta valor MNT | BH4: Falta valor MNT | BI4: Falta valor MNT | BJ4: 0.5698 | BM4: 2 | BN4: =AC4 -> Falta valor fibra | BO4: =AF4 -> Falta valor cenizas | BP4: =J4 -> 16 | BQ4: =K4 -> Falta valor fibra | BR4: =L4 -> Falta valor fibra | BS4: =M4 -> Falta valor fibra | BT4: =O4 -> Falta valor fibra | BU4: Falta valor cenizas | CN4: =BP4*0.65 -> 10.4 | CO4: =AK4 -> 0.34 | CP4: =AH4 -> Falta valor MNT | CQ4: =AL4 -> Falta valor cenizas
A5: 4 | B5: Trigo otros derivados | C5: =IF(Valoración!$A$9=$A5,IF(Valoración!C$9>0,Valoración!C$9,""),"") ->  | D5: =IF(Valoración!$A$9=$A5,IF(Valoración!D$9>0,Valoración!D$9,""),"") ->  | E5: =IF(Valoración!$A$9=$A5,IF(Valoración!E$9>0,Valoración!E$9,""),"") ->  | G5: =IF(Valoración!$A$9=$A5,IF(Valoración!F$9>0,Valoración!F$9,""),"") ->  | H5: =IF(Valoración!$A$9=$A5,IF(Valoración!G$9>0,Valoración!G$9,""),"") ->  | I5: =IF(Valoración!$A$9=$A5,IF(Valoración!H$9>0,Valoración!H$9,""),"") ->  | J5: Falta valor EE | K5: Falta valor fibra | L5: Falta valor fibra | M5: Falta valor fibra | N5: =IF(Valoración!$A$9=$A5,IF(Valoración!I$9>0,Valoración!I$9,""),"") ->  | O5: Falta valor fibra | P5: =IF(Valoración!$A$9=$A5,IF(Valoración!J$9>0,Valoración!J$9,""),"") ->  | Q5: =IF(Valoración!$A$9=$A5,IF(Valoración!K$9>0,Valoración!K$9,""),"") ->  | R5: Falta valor cenizas | S5: Falta valor cenizas | T5: Falta valor MNT | U5: Falta valor EE | V5: Falta valor fibra | W5: Falta valor fibra | X5: Falta valor fibra | Y5: Falta valor fibra | Z5: =IF(Valoración!$A$9=$A5,IF(Valoración!M$9>0,Valoración!M$9,""),"") ->  | AA5: =IF(K5="Falta valor fibra",K5,IF(D5="","Falta valor MNT",IF(P5="","Falta valor cenizas",(92.2-0.149*K5+0.0074*D5*10-0.05*P5*10)/100))) -> Falta valor fibra | AC5: Falta valor fibra | AE5: Falta valor fibra | AF5: Falta valor cenizas | AG5: 0.74 | AH5: Falta valor MNT | AI5: =IF(Valoración!$A$9=$A5,IF(Valoración!L$9>0,Valoración!L$9,""),"") ->  | AJ5: =IF(AI5="",AI5,(47.9+0.36*AI5*100+11)/100) ->  | AK5: 0.74 | AL5: Falta valor cenizas | AM5: Falta valor cenizas | AN5: 75 | AO5: Falta valor MNT | AP5: Falta valor MNT | AQ5: Falta valor cenizas | AR5: Falta valor MNT | AS5: Falta valor MNT | AT5: Falta valor MNT | AU5: Falta valor MNT | AV5: Falta valor MNT | AW5: Falta valor MNT | AX5: Falta valor MNT | AY5: Falta valor MNT | AZ5: Falta valor MNT | BB5: Trigo otros derivados | BD5: Falta valor MNT | BE5: Falta valor MNT | BF5: Falta valor MNT | BG5: Falta valor MNT | BH5: Falta valor MNT | BI5: Falta valor MNT | BJ5: Falta valor fibra | BM5: 2 | BN5: Falta valor fibra | BO5: Falta valor cenizas | BP5: Falta valor EE | BQ5: Falta valor fibra | BR5: Falta valor fibra | BS5: Falta valor fibra | BT5: Falta valor fibra | BU5: Falta valor cenizas | CO5: 0.74 | CP5: Falta valor MNT | CQ5: Falta valor cenizas
A6: 5 | B6: Maíz | C6: =IF(Valoración!$A$9=$A6,IF(Valoración!C$9>0,Valoración!C$9,""),"") ->  | D6: =IF(Valoración!$A$9=$A6,IF(Valoración!D$9>0,Valoración!D$9,""),"") ->  | E6: =IF(Valoración!$A$9=$A6,IF(Valoración!E$9>0,Valoración!E$9,""),"") ->  | F6: 4.1 | G6: =IF(Valoración!$A$9=$A6,IF(Valoración!F$9>0,Valoración!F$9,""),"") ->  | H6: =IF(Valoración!$A$9=$A6,IF(Valoración!G$9>0,Valoración!G$9,""),"") ->  | I6: =IF(Valoración!$A$9=$A6,IF(Valoración!H$9>0,Valoración!H$9,""),"") ->  | J6: 41 | K6: Falta valor fibra | L6: Falta valor fibra | M6: Falta valor fibra | N6: =IF(Valoración!$A$9=$A6,IF(Valoración!I$9>0,Valoración!I$9,""),"") ->  | O6: Falta valor fibra | P6: =IF(Valoración!$A$9=$A6,IF(Valoración!J$9>0,Valoración!J$9,""),"") ->  | Q6: =IF(Valoración!$A$9=$A6,IF(Valoración!K$9>0,Valoración!K$9,""),"") ->  | R6: Falta valor cenizas | S6: Falta valor cenizas | T6: Falta valor MNT | U6: Falta valor cenizas | V6: Falta valor fibra | W6: Falta valor fibra | X6: Falta valor fibra | Y6: Falta valor fibra | Z6: =IF(Valoración!$A$9=$A6,IF(Valoración!M$9>0,Valoración!M$9,""),"") ->  | AA6: =IF(K6="Falta valor fibra",K6,IF(D6="","Falta valor MNT",IF(P6="","Falta valor cenizas",(92.2-0.149*K6+0.0074*D6*10-0.05*P6*10)/100))) -> Falta valor fibra | AC6: Falta valor fibra | AD6: 0.85 | AE6: 0.85 | AF6: Falta valor cenizas | AG6: 0.47 | AH6: Falta valor MNT | AI6: =IF(Valoración!$A$9=$A6,IF(Valoración!L$9>0,Valoración!L$9,""),"") ->  | AJ6: =IF(AI6="",AI6,(21.1+1.48*AI6*100-0.0076*(AI6*100)^2/100)) ->  | AK6: 0.47 | AL6: Falta valor cenizas | AM6: Falta valor cenizas | AO6: Falta valor MNT | AP6: Falta valor MNT | AQ6: Falta valor cenizas | AR6: Falta valor MNT | AS6: Falta valor MNT | AT6: Falta valor MNT | AU6: Falta valor MNT | AV6: Falta valor MNT | AW6: Falta valor MNT | AX6: Falta valor MNT | AY6: Falta valor MNT | AZ6: Falta valor MNT | BA6: 0.58 | BB6: Maíz | BD6: Falta valor MNT | BE6: Falta valor MNT | BF6: Falta valor MNT | BG6: Falta valor MNT | BH6: Falta valor MNT | BI6: Falta valor MNT | BJ6: 0.3291 | BM6: 2 | BN6: Falta valor fibra | BO6: Falta valor cenizas | BP6: 41 | BQ6: Falta valor fibra | BR6: Falta valor fibra | BS6: Falta valor fibra | BT6: Falta valor fibra | BU6: Falta valor cenizas | CN6: =BP6*0.85 -> 34.85 | CO6: 0.47 | CP6: Falta valor MNT | CQ6: Falta valor cenizas
A7: 6 | B7: Maíz gluten meal | C7: =IF(Valoración!$A$9=$A7,IF(Valoración!C$9>0,Valoración!C$9,""),"") ->  | D7: =IF(Valoración!$A$9=$A7,IF(Valoración!D$9>0,Valoración!D$9,""),"") ->  | E7: =IF(Valoración!$A$9=$A7,IF(Valoración!E$9>0,Valoración!E$9,""),"") ->  | F7: 6.6 | G7: =IF(Valoración!$A$9=$A7,IF(Valoración!F$9>0,Valoración!F$9,""),"") ->  | H7: =IF(Valoración!$A$9=$A7,IF(Valoración!G$9>0,Valoración!G$9,""),"") ->  | I7: =IF(Valoración!$A$9=$A7,IF(Valoración!H$9>0,Valoración!H$9,""),"") ->  | J7: 66 | K7: Falta valor fibra | L7: Falta valor fibra | M7: Falta valor fibra | N7: =IF(Valoración!$A$9=$A7,IF(Valoración!I$9>0,Valoración!I$9,""),"") ->  | O7: Falta valor fibra | P7: =IF(Valoración!$A$9=$A7,IF(Valoración!J$9>0,Valoración!J$9,""),"") ->  | Q7: =IF(Valoración!$A$9=$A7,IF(Valoración!K$9>0,Valoración!K$9,""),"") ->  | R7: Falta valor cenizas | S7: Falta valor cenizas | T7: Falta valor MNT | U7: Falta valor cenizas | V7: Falta valor fibra | W7: Falta valor fibra | X7: Falta valor fibra | Y7: Falta valor fibra | Z7: =IF(Valoración!$A$9=$A7,IF(Valoración!M$9>0,Valoración!M$9,""),"") ->  | AA7: =IF(K7="Falta valor fibra",K7,IF(D7="","Falta valor MNT",(91.5-0.132*K7+0.0052*D7*10+2.2)/100)) -> Falta valor fibra | AC7: Falta valor fibra | AD7: 0.97 | AE7: 0.97 | AF7: Falta valor cenizas | AG7: 0.31 | AH7: Falta valor MNT | AI7: =IF(Valoración!$A$9=$A7,IF(Valoración!L$9>0,Valoración!L$9,""),"") ->  | AJ7: =IF(AI7="",AI7,(47.9+0.36*AI7*100-18.5)/100) ->  | AK7: 0.31 | AL7: Falta valor cenizas | AM7: Falta valor cenizas | AN7: 308 | AO7: Falta valor MNT | AP7: Falta valor MNT | AQ7: Falta valor cenizas | AR7: Falta valor MNT | AS7: Falta valor MNT | AT7: Falta valor MNT | AU7: Falta valor MNT | AV7: Falta valor MNT | AW7: Falta valor MNT | AX7: Falta valor MNT | AY7: Falta valor MNT | AZ7: Falta valor MNT | BA7: 0.39 | BB7: Maíz gluten meal | BD7: Falta valor MNT | BE7: Falta valor MNT | BF7: Falta valor MNT | BG7: Falta valor MNT | BH7: Falta valor MNT | BI7: Falta valor MNT | BJ7: 0.4868 | BM7: 2 | BN7: Falta valor fibra | BO7: Falta valor cenizas | BP7: 66 | BQ7: Falta valor fibra | BR7: Falta valor fibra | BS7: Falta valor fibra | BT7: Falta valor fibra | BU7: Falta valor cenizas | CN7: =BP7*0.8 -> 52.8 | CO7: 0.31 | CP7: Falta valor MNT | CQ7: Falta valor cenizas
A8: 7 | B8: Maíz bagazo | C8: =IF(Valoración!$A$9=$A8,IF(Valoración!C$9>0,Valoración!C$9,""),"") ->  | D8: =IF(Valoración!$A$9=$A8,IF(Valoración!D$9>0,Valoración!D$9,""),"") ->  | E8: =IF(Valoración!$A$9=$A8,IF(Valoración!E$9>0,Valoración!E$9,""),"") ->  | F8: 5.1 | G8: =IF(Valoración!$A$9=$A8,IF(Valoración!F$9>0,Valoración!F$9,""),"") ->  | H8: =IF(Valoración!$A$9=$A8,IF(Valoración!G$9>0,Valoración!G$9,""),"") ->  | I8: =IF(Valoración!$A$9=$A8,IF(Valoración!H$9>0,Valoración!H$9,""),"") ->  | J8: 51 | K8: Falta valor fibra | L8: Falta valor fibra | M8: Falta valor fibra | N8: =IF(Valoración!$A$9=$A8,IF(Valoración!I$9>0,Valoración!I$9,""),"") ->  | O8: Falta valor fibra | P8: =IF(Valoración!$A$9=$A8,IF(Valoración!J$9>0,Valoración!J$9,""),"") ->  | Q8: =IF(Valoración!$A$9=$A8,IF(Valoración!K$9>0,Valoración!K$9,""),"") ->  | R8: Falta valor cenizas | S8: Falta valor cenizas | T8: Falta valor MNT | U8: Falta valor cenizas | V8: Falta valor fibra | W8: Falta valor fibra | X8: Falta valor fibra | Y8: Falta valor fibra | Z8: =IF(Valoración!$A$9=$A8,IF(Valoración!M$9>0,Valoración!M$9,""),"") ->  | AA8: =IF(K8="Falta valor fibra",K8,IF(D8="","Falta valor MNT",(91.5-0.132*K8+0.0052*D8*10+1.7)/100)) -> Falta valor fibra | AC8: Falta valor fibra | AD8: 0.81 | AE8: 0.81 | AF8: Falta valor cenizas | AG8: 0.57 | AH8: Falta valor MNT | AI8: =IF(Valoración!$A$9=$A8,IF(Valoración!L$9>0,Valoración!L$9,""),"") ->  | AJ8: =IF(AI8="",AI8,(47.9+0.36*AI8*100)/100) ->  | AK8: 0.57 | AL8: Falta valor cenizas | AM8: Falta valor cenizas | AN8: 138 | AO8: Falta valor MNT | AP8: Falta valor MNT | AQ8: Falta valor cenizas | AR8: Falta valor MNT | AS8: Falta valor MNT | AT8: Falta valor MNT | AU8: Falta valor MNT | AV8: Falta valor MNT | AW8: Falta valor MNT | AX8: Falta valor MNT | AY8: Falta valor MNT | AZ8: Falta valor MNT | BA8: 0.63 | BB8: Maíz bagazo | BD8: Falta valor MNT | BE8: Falta valor MNT | BF8: Falta valor MNT | BG8: Falta valor MNT | BH8: Falta valor MNT | BI8: Falta valor MNT | BJ8: 0.2876 | BM8: 2 | BN8: Falta valor fibra | BO8: Falta valor cenizas | BP8: 51 | BQ8: Falta valor fibra | BR8: Falta valor fibra | BS8: Falta valor fibra | BT8: Falta valor fibra | BU8: Falta valor cenizas | CN8: =BP8*0.75 -> 38.25 | CO8: 0.57 | CP8: Falta valor MNT | CQ8: Falta valor cenizas
A9: 8 | B9: Maíz gluten feed | C9: =IF(Valoración!$A$9=$A9,IF(Valoración!C$9>0,Valoración!C$9,""),"") ->  | D9: =IF(Valoración!$A$9=$A9,IF(Valoración!D$9>0,Valoración!D$9,""),"") ->  | E9: =IF(Valoración!$A$9=$A9,IF(Valoración!E$9>0,Valoración!E$9,""),"") ->  | F9: 2.8 | G9: =IF(Valoración!$A$9=$A9,IF(Valoración!F$9>0,Valoración!F$9,""),"") ->  | H9: =IF(Valoración!$A$9=$A9,IF(Valoración!G$9>0,Valoración!G$9,""),"") ->  | I9: =IF(Valoración!$A$9=$A9,IF(Valoración!H$9>0,Valoración!H$9,""),"") ->  | J9: 28 | K9: Falta valor fibra | L9: Falta valor fibra | M9: Falta valor fibra | N9: =IF(Valoración!$A$9=$A9,IF(Valoración!I$9>0,Valoración!I$9,""),"") ->  | O9: Falta valor fibra | P9: =IF(Valoración!$A$9=$A9,IF(Valoración!J$9>0,Valoración!J$9,""),"") ->  | Q9: =IF(Valoración!$A$9=$A9,IF(Valoración!K$9>0,Valoración!K$9,""),"") ->  | R9: Falta valor cenizas | S9: Falta valor cenizas | T9: Falta valor MNT | U9: Falta valor cenizas | V9: Falta valor fibra | W9: Falta valor fibra | X9: Falta valor fibra | Y9: Falta valor fibra | Z9: =IF(Valoración!$A$9=$A9,IF(Valoración!M$9>0,Valoración!M$9,""),"") ->  | AA9: =IF(K9="Falta valor fibra",K9,IF(D9="","Falta valor MNT",(91.5-0.132*K9+0.0052*D9*10+1.5)/100)) -> Falta valor fibra | AC9: Falta valor fibra | AD9: 0.76 | AE9: 0.76 | AF9: Falta valor cenizas | AG9: 0.71 | AH9: Falta valor MNT | AI9: =IF(Valoración!$A$9=$A9,IF(Valoración!L$9>0,Valoración!L$9,""),"") ->  | AJ9: =IF(AI9="",AI9,(47.9+0.36*AI9*100+11)/100) ->  | AK9: 0.71 | AL9: Falta valor cenizas | AM9: Falta valor cenizas | AN9: 75 | AO9: Falta valor MNT | AP9: Falta valor MNT | AQ9: Falta valor cenizas | AR9: Falta valor MNT | AS9: Falta valor MNT | AT9: Falta valor MNT | AU9: Falta valor MNT | AV9: Falta valor MNT | AW9: Falta valor MNT | AX9: Falta valor MNT | AY9: Falta valor MNT | AZ9: Falta valor MNT | BA9: 0.6 | BB9: Maíz gluten feed | BD9: Falta valor MNT | BE9: Falta valor MNT | BF9: Falta valor MNT | BG9: Falta valor MNT | BH9: Falta valor MNT | BI9: Falta valor MNT | BJ9: 0.3125 | BM9: 2 | BN9: Falta valor fibra | BO9: Falta valor cenizas | BP9: 28 | BQ9: Falta valor fibra | BR9: Falta valor fibra | BS9: Falta valor fibra | BT9: Falta valor fibra | BU9: Falta valor cenizas | CN9: =BP9*0.9 -> 25.2 | CO9: 0.71 | CP9: Falta valor MNT | CQ9: Falta valor cenizas
A10: 9 | B10: Maíz salvado | C10: =IF(Valoración!$A$9=$A10,IF(Valoración!C$9>0,Valoración!C$9,""),"") ->  | D10: =IF(Valoración!$A$9=$A10,IF(Valoración!D$9>0,Valoración!D$9,""),"") ->  | E10: =IF(Valoración!$A$9=$A10,IF(Valoración!E$9>0,Valoración!E$9,""),"") ->  | F10: 4.5 | G10: =IF(Valoración!$A$9=$A10,IF(Valoración!F$9>0,Valoración!F$9,""),"") ->  | H10: =IF(Valoración!$A$9=$A10,IF(Valoración!G$9>0,Valoración!G$9,""),"") ->  | I10: =IF(Valoración!$A$9=$A10,IF(Valoración!H$9>0,Valoración!H$9,""),"") ->  | J10: 45 | K10: Falta valor fibra | L10: Falta valor fibra | M10: Falta valor fibra | N10: =IF(Valoración!$A$9=$A10,IF(Valoración!I$9>0,Valoración!I$9,""),"") ->  | O10: Falta valor fibra | P10: =IF(Valoración!$A$9=$A10,IF(Valoración!J$9>0,Valoración!J$9,""),"") ->  | Q10: =IF(Valoración!$A$9=$A10,IF(Valoración!K$9>0,Valoración!K$9,""),"") ->  | R10: Falta valor cenizas | S10: Falta valor cenizas | T10: Falta valor MNT | U10: Falta valor cenizas | V10: Falta valor fibra | W10: Falta valor fibra | X10: Falta valor fibra | Y10: Falta valor fibra | Z10: =IF(Valoración!$A$9=$A10,IF(Valoración!M$9>0,Valoración!M$9,""),"") ->  | AA10: =IF(K10="Falta valor fibra",K10,IF(D10="","Falta valor MNT",(91.5-0.132*K10+0.0052*D10*10-1.5)/100)) -> Falta valor fibra | AC10: Falta valor fibra | AD10: 0.76 | AE10: 0.76 | AF10: Falta valor cenizas | AG10: 0.46 | AH10: Falta valor MNT | AI10: =IF(Valoración!$A$9=$A10,IF(Valoración!L$9>0,Valoración!L$9,""),"") ->  | AJ10: =IF(AI10="",AI10,(21.1+1.48*AI10*100-0.0076*(AI10*100)^2/100)) ->  | AK10: 0.46 | AL10: Falta valor cenizas | AM10: Falta valor cenizas | AN10: 138 | AO10: Falta valor MNT | AP10: Falta valor MNT | AQ10: Falta valor cenizas | AR10: Falta valor MNT | AS10: Falta valor MNT | AT10: Falta valor MNT | AU10: Falta valor MNT | AV10: Falta valor MNT | AW10: Falta valor MNT | AX10: Falta valor MNT | AY10: Falta valor MNT | AZ10: Falta valor MNT | BA10: 0.53 | BB10: Maíz salvado | BD10: Falta valor MNT | BE10: Falta valor MNT | BF10: Falta valor MNT | BG10: Falta valor MNT | BH10: Falta valor MNT | BI10: Falta valor MNT | BJ10: 0.3706 | BM10: 2 | BN10: Falta valor fibra | BO10: Falta valor cenizas | BP10: 45 | BQ10: Falta valor fibra | BR10: Falta valor fibra | BS10: Falta valor fibra | BT10: Falta valor fibra | BU10: Falta valor cenizas | CN10: =BP10*0.85 -> 38.25 | CO10: 0.46 | CP10: Falta valor MNT | CQ10: Falta valor cenizas
A11: 10 | B11: Maíz otros derivados | C11: =IF(Valoración!$A$9=$A11,IF(Valoración!C$9>0,Valoración!C$9,""),"") ->  | D11: =IF(Valoración!$A$9=$A11,IF(Valoración!D$9>0,Valoración!D$9,""),"") ->  | E11: =IF(Valoración!$A$9=$A11,IF(Valoración!E$9>0,Valoración!E$9,""),"") ->  | G11: =IF(Valoración!$A$9=$A11,IF(Valoración!F$9>0,Valoración!F$9,""),"") ->  | H11: =IF(Valoración!$A$9=$A11,IF(Valoración!G$9>0,Valoración!G$9,""),"") ->  | I11: =IF(Valoración!$A$9=$A11,IF(Valoración!H$9>0,Valoración!H$9,""),"") ->  | J11: Falta valor EE | K11: Falta valor fibra | L11: Falta valor fibra | M11: Falta valor fibra | N11: =IF(Valoración!$A$9=$A11,IF(Valoración!I$9>0,Valoración!I$9,""),"") ->  | O11: Falta valor fibra | P11: =IF(Valoración!$A$9=$A11,IF(Valoración!J$9>0,Valoración!J$9,""),"") ->  | Q11: =IF(Valoración!$A$9=$A11,IF(Valoración!K$9>0,Valoración!K$9,""),"") ->  | R11: Falta valor cenizas | S11: Falta valor cenizas | T11: Falta valor MNT | U11: Falta valor EE | V11: Falta valor fibra | W11: Falta valor fibra | X11: Falta valor fibra | Y11: Falta valor fibra | Z11: =IF(Valoración!$A$9=$A11,IF(Valoración!M$9>0,Valoración!M$9,""),"") ->  | AA11: =IF(K11="Falta valor fibra",K11,IF(D11="","Falta valor MNT",IF(P11="","Falta valor cenizas",(92.2-0.149*K11+0.0074*D11*10-0.05*P11*10)/100))) -> Falta valor fibra | AC11: Falta valor fibra | AE11: Falta valor fibra | AF11: Falta valor cenizas | AG11: 0.35 | AH11: Falta valor MNT | AI11: =IF(Valoración!$A$9=$A11,IF(Valoración!L$9>0,Valoración!L$9,""),"") ->  | AJ11: =IF(AI11="",AI11,(21.1+1.48*AI11*100-0.0076*(AI11*100)^2/100)) ->  | AK11: 0.35 | AL11: Falta valor cenizas | AM11: Falta valor cenizas | AN11: 75 | AO11: Falta valor MNT | AP11: Falta valor MNT | AQ11: Falta valor cenizas | AR11: Falta valor MNT | AS11: Falta valor MNT | AT11: Falta valor MNT | AU11: Falta valor MNT | AV11: Falta valor MNT | AW11: Falta valor MNT | AX11: Falta valor MNT | AY11: Falta valor MNT | AZ11: Falta valor MNT | BB11: Maíz otros derivados | BD11: Falta valor MNT | BE11: Falta valor MNT | BF11: Falta valor MNT | BG11: Falta valor MNT | BH11: Falta valor MNT | BI11: Falta valor MNT | BJ11: Falta valor fibra | BM11: 2 | BN11: Falta valor fibra | BO11: Falta valor cenizas | BP11: Falta valor EE | BQ11: Falta valor fibra | BR11: Falta valor fibra | BS11: Falta valor fibra | BT11: Falta valor fibra | BU11: Falta valor cenizas | CO11: 0.35 | CP11: Falta valor MNT | CQ11: Falta valor cenizas
A12: 11 | B12: Avena | C12: =IF(Valoración!$A$9=$A12,IF(Valoración!C$9>0,Valoración!C$9,""),"") ->  | D12: =IF(Valoración!$A$9=$A12,IF(Valoración!D$9>0,Valoración!D$9,""),"") ->  | E12: =IF(Valoración!$A$9=$A12,IF(Valoración!E$9>0,Valoración!E$9,""),"") ->  | F12: 5.4 | G12: =IF(Valoración!$A$9=$A12,IF(Valoración!F$9>0,Valoración!F$9,""),"") ->  | H12: =IF(Valoración!$A$9=$A12,IF(Valoración!G$9>0,Valoración!G$9,""),"") ->  | I12: =IF(Valoración!$A$9=$A12,IF(Valoración!H$9>0,Valoración!H$9,""),"") ->  | J12: 54 | K12: Falta valor fibra | L12: Falta valor fibra | M12: Falta valor fibra | N12: =IF(Valoración!$A$9=$A12,IF(Valoración!I$9>0,Valoración!I$9,""),"") ->  | O12: Falta valor fibra | P12: =IF(Valoración!$A$9=$A12,IF(Valoración!J$9>0,Valoración!J$9,""),"") ->  | Q12: =IF(Valoración!$A$9=$A12,IF(Valoración!K$9>0,Valoración!K$9,""),"") ->  | R12: Falta valor cenizas | S12: Falta valor cenizas | T12: Falta valor MNT | U12: Falta valor cenizas | V12: Falta valor fibra | W12: Falta valor fibra | X12: Falta valor fibra | Y12: Falta valor fibra | Z12: =IF(Valoración!$A$9=$A12,IF(Valoración!M$9>0,Valoración!M$9,""),"") ->  | AA12: =IF(K12="Falta valor fibra",K12,IF(D12="","Falta valor MNT",(79.5-0.133*K12+0.102*D12*10)/100)) -> Falta valor fibra | AC12: Falta valor fibra | AD12: 0.69 | AE12: 0.69 | AF12: Falta valor cenizas | AG12: 0.77 | AH12: Falta valor MNT | AI12: =IF(Valoración!$A$9=$A12,IF(Valoración!L$9>0,Valoración!L$9,""),"") ->  | AJ12: =IF(AI12="",AI12,(47.9+0.36*AI12*100+11)/100) ->  | AK12: 0.77 | AL12: Falta valor cenizas | AM12: Falta valor cenizas | AN12: 75 | AO12: Falta valor MNT | AP12: Falta valor MNT | AQ12: Falta valor cenizas | AR12: Falta valor MNT | AS12: Falta valor MNT | AT12: Falta valor MNT | AU12: Falta valor MNT | AV12: Falta valor MNT | AW12: Falta valor MNT | AX12: Falta valor MNT | AY12: Falta valor MNT | AZ12: Falta valor MNT | BA12: 0.59 | BB12: Avena | BD12: Falta valor MNT | BE12: Falta valor MNT | BF12: Falta valor MNT | BG12: Falta valor MNT | BH12: Falta valor MNT | BI12: Falta valor MNT | BJ12: 0.3208 | BM12: 2 | BN12: Falta valor fibra | BO12: Falta valor cenizas | BP12: 54 | BQ12: Falta valor fibra | BR12: Falta valor fibra | BS12: Falta valor fibra | BT12: Falta valor fibra | BU12: Falta valor cenizas | CN12: =BP12*0.9 -> 48.6 | CO12: 0.77 | CP12: Falta valor MNT | CQ12: Falta valor cenizas
A13: 12 | B13: Avena derivados | C13: =IF(Valoración!$A$9=$A13,IF(Valoración!C$9>0,Valoración!C$9,""),"") ->  | D13: =IF(Valoración!$A$9=$A13,IF(Valoración!D$9>0,Valoración!D$9,""),"") ->  | E13: =IF(Valoración!$A$9=$A13,IF(Valoración!E$9>0,Valoración!E$9,""),"") ->  | G13: =IF(Valoración!$A$9=$A13,IF(Valoración!F$9>0,Valoración!F$9,""),"") ->  | H13: =IF(Valoración!$A$9=$A13,IF(Valoración!G$9>0,Valoración!G$9,""),"") ->  | I13: =IF(Valoración!$A$9=$A13,IF(Valoración!H$9>0,Valoración!H$9,""),"") ->  | J13: Falta valor EE | K13: Falta valor fibra | L13: Falta valor fibra | M13: Falta valor fibra | N13: =IF(Valoración!$A$9=$A13,IF(Valoración!I$9>0,Valoración!I$9,""),"") ->  | O13: Falta valor fibra | P13: =IF(Valoración!$A$9=$A13,IF(Valoración!J$9>0,Valoración!J$9,""),"") ->  | Q13: =IF(Valoración!$A$9=$A13,IF(Valoración!K$9>0,Valoración!K$9,""),"") ->  | R13: Falta valor cenizas | S13: Falta valor cenizas | T13: Falta valor MNT | U13: Falta valor EE | V13: Falta valor fibra | W13: Falta valor fibra | X13: Falta valor fibra | Y13: Falta valor fibra | Z13: =IF(Valoración!$A$9=$A13,IF(Valoración!M$9>0,Valoración!M$9,""),"") ->  | AA13: =IF(K13="Falta valor fibra",K13,IF(D13="","Falta valor MNT",IF(P13="","Falta valor cenizas",(92.2-0.149*K13+0.0074*D13*10-0.05*P13*10)/100))) -> Falta valor fibra | AC13: Falta valor fibra | AE13: Falta valor fibra | AF13: Falta valor cenizas | AG13: 0.77 | AH13: Falta valor MNT | AI13: =IF(Valoración!$A$9=$A13,IF(Valoración!L$9>0,Valoración!L$9,""),"") ->  | AJ13: =IF(AI13="",AI13,(47.9+0.36*AI13*100+11)/100) ->  | AK13: 0.77 | AL13: Falta valor cenizas | AM13: Falta valor cenizas | AO13: Falta valor MNT | AP13: Falta valor MNT | AQ13: Falta valor cenizas | AR13: Falta valor MNT | AS13: Falta valor MNT | AT13: Falta valor MNT | AU13: Falta valor MNT | AV13: Falta valor MNT | AW13: Falta valor MNT | AX13: Falta valor MNT | AY13: Falta valor MNT | AZ13: Falta valor MNT | BB13: Avena derivados | BD13: Falta valor MNT | BE13: Falta valor MNT | BF13: Falta valor MNT | BG13: Falta valor MNT | BH13: Falta valor MNT | BI13: Falta valor MNT | BJ13: Falta valor fibra | BM13: 2 | BN13: Falta valor fibra | BO13: Falta valor cenizas | BP13: Falta valor EE | BQ13: Falta valor fibra | BR13: Falta valor fibra | BS13: Falta valor fibra | BT13: Falta valor fibra | BU13: Falta valor cenizas | CO13: 0.77 | CP13: Falta valor MNT | CQ13: Falta valor cenizas
A14: 13 | B14: Cebada | C14: =IF(Valoración!$A$9=$A14,IF(Valoración!C$9>0,Valoración!C$9,""),"") ->  | D14: =IF(Valoración!$A$9=$A14,IF(Valoración!D$9>0,Valoración!D$9,""),"") ->  | E14: =IF(Valoración!$A$9=$A14,IF(Valoración!E$9>0,Valoración!E$9,""),"") ->  | F14: 1.9 | G14: =IF(Valoración!$A$9=$A14,IF(Valoración!F$9>0,Valoración!F$9,""),"") ->  | H14: =IF(Valoración!$A$9=$A14,IF(Valoración!G$9>0,Valoración!G$9,""),"") ->  | I14: =IF(Valoración!$A$9=$A14,IF(Valoración!H$9>0,Valoración!H$9,""),"") ->  | J14: 19 | K14: Falta valor fibra | L14: Falta valor fibra | M14: Falta valor fibra | N14: =IF(Valoración!$A$9=$A14,IF(Valoración!I$9>0,Valoración!I$9,""),"") ->  | O14: Falta valor fibra | P14: =IF(Valoración!$A$9=$A14,IF(Valoración!J$9>0,Valoración!J$9,""),"") ->  | Q14: =IF(Valoración!$A$9=$A14,IF(Valoración!K$9>0,Valoración!K$9,""),"") ->  | R14: Falta valor cenizas | S14: Falta valor cenizas | T14: Falta valor MNT | U14: Falta valor cenizas | V14: Falta valor fibra | W14: Falta valor fibra | X14: Falta valor fibra | Y14: Falta valor fibra | Z14: =IF(Valoración!$A$9=$A14,IF(Valoración!M$9>0,Valoración!M$9,""),"") ->  | AA14: =IF(K14="Falta valor fibra",K14,IF(D14="","Falta valor MNT",IF(P14="","Falta valor cenizas",(92.2-0.149*K14+0.0074*D14*10-0.05*P14*10)/100))) -> Falta valor fibra | AC14: Falta valor fibra | AD14: 0.78 | AE14: 0.78 | AF14: Falta valor cenizas | AG14: 0.71 | AH14: Falta valor MNT | AI14: =IF(Valoración!$A$9=$A14,IF(Valoración!L$9>0,Valoración!L$9,""),"") ->  | AJ14: =IF(AI14="",AI14,(47.9+0.36*AI14*100+11)/100) ->  | AK14: 0.71 | AL14: Falta valor cenizas | AM14: Falta valor cenizas | AN14: 36 | AO14: =IF(D14="","Falta valor MNT",IF(J14="Falta valor EE",J14,IF(K14="Falta valor fibra",K14,IF(P14="","Falta valor cenizas",(4134+1.473*T14+5.239*U14+0.925*V14-4.46*P14/R14+AN14)*R14/100)))) -> Falta valor MNT | AP14: Falta valor MNT | AQ14: Falta valor cenizas | AR14: Falta valor MNT | AS14: Falta valor MNT | AT14: Falta valor MNT | AU14: Falta valor MNT | AV14: Falta valor MNT | AW14: Falta valor MNT | AX14: Falta valor MNT | AY14: Falta valor MNT | AZ14: Falta valor MNT | BA14: 0.73 | BB14: Cebada | BD14: Falta valor MNT | BE14: Falta valor MNT | BF14: Falta valor MNT | BG14: Falta valor MNT | BH14: Falta valor MNT | BI14: Falta valor MNT | BJ14: 0.2046 | BM14: 2 | BN14: Falta valor fibra | BO14: Falta valor cenizas | BP14: 19 | BQ14: Falta valor fibra | BR14: Falta valor fibra | BS14: Falta valor fibra | BT14: Falta valor fibra | BU14: Falta valor cenizas | CN14: =BP14*0.75 -> 14.25 | CO14: 0.71 | CP14: Falta valor MNT | CQ14: Falta valor cenizas
A15: 14 | B15: Cebada gérmenes | C15: =IF(Valoración!$A$9=$A15,IF(Valoración!C$9>0,Valoración!C$9,""),"") ->  | D15: =IF(Valoración!$A$9=$A15,IF(Valoración!D$9>0,Valoración!D$9,""),"") ->  | E15: =IF(Valoración!$A$9=$A15,IF(Valoración!E$9>0,Valoración!E$9,""),"") ->  | F15: 1.8 | G15: =IF(Valoración!$A$9=$A15,IF(Valoración!F$9>0,Valoración!F$9,""),"") ->  | H15: =IF(Valoración!$A$9=$A15,IF(Valoración!G$9>0,Valoración!G$9,""),"") ->  | I15: =IF(Valoración!$A$9=$A15,IF(Valoración!H$9>0,Valoración!H$9,""),"") ->  | J15: 18 | K15: Falta valor fibra | L15: Falta valor fibra | M15: Falta valor fibra | N15: =IF(Valoración!$A$9=$A15,IF(Valoración!I$9>0,Valoración!I$9,""),"") ->  | O15: Falta valor fibra | P15: =IF(Valoración!$A$9=$A15,IF(Valoración!J$9>0,Valoración!J$9,""),"") ->  | Q15: =IF(Valoración!$A$9=$A15,IF(Valoración!K$9>0,Valoración!K$9,""),"") ->  | R15: Falta valor cenizas | S15: Falta valor cenizas | T15: Falta valor MNT | U15: Falta valor cenizas | V15: Falta valor fibra | W15: Falta valor fibra | X15: Falta valor fibra | Y15: Falta valor fibra | Z15: =IF(Valoración!$A$9=$A15,IF(Valoración!M$9>0,Valoración!M$9,""),"") ->  | AA15: =IF(K15="Falta valor fibra",K15,IF(D15="","Falta valor MNT",(93.1-0.145*K15-0.015*D15*10+2.1)/100)) -> Falta valor fibra | AC15: Falta valor fibra | AD15: 0.68 | AE15: 0.68 | AF15: Falta valor cenizas | AG15: 0.71 | AH15: Falta valor MNT | AI15: =IF(Valoración!$A$9=$A15,IF(Valoración!L$9>0,Valoración!L$9,""),"") ->  | AK15: 0.71 | AL15: Falta valor cenizas | AM15: Falta valor cenizas | AO15: =IF(D15="","Falta valor MNT",IF(J15="Falta valor EE",J15,IF(K15="Falta valor fibra",K15,IF(P15="","Falta valor cenizas",4134+1.473*D15*10+5.239*J15+0.925*K15-4.46*P15*10+AN15)))) -> Falta valor MNT | AP15: Falta valor MNT | AQ15: Falta valor cenizas | AR15: Falta valor MNT | AS15: Falta valor MNT | AT15: Falta valor MNT | AU15: Falta valor MNT | AV15: Falta valor MNT | AW15: Falta valor MNT | AX15: Falta valor MNT | AY15: Falta valor MNT | AZ15: Falta valor MNT | BA15: 0.62 | BB15: Cebada gérmenes | BD15: Falta valor MNT | BE15: Falta valor MNT | BF15: Falta valor MNT | BG15: Falta valor MNT | BH15: Falta valor MNT | BI15: Falta valor MNT | BJ15: 0.2959 | BM15: 2 | BN15: Falta valor fibra | BO15: Falta valor cenizas | BP15: 18 | BQ15: Falta valor fibra | BR15: Falta valor fibra | BS15: Falta valor fibra | BT15: Falta valor fibra | BU15: Falta valor cenizas | CN15: =BP15*0.45 -> 8.1 | CO15: 0.71 | CP15: Falta valor MNT | CQ15: Falta valor cenizas
A16: 15 | B16: Cebada bagazo | C16: =IF(Valoración!$A$9=$A16,IF(Valoración!C$9>0,Valoración!C$9,""),"") ->  | D16: =IF(Valoración!$A$9=$A16,IF(Valoración!D$9>0,Valoración!D$9,""),"") ->  | E16: =IF(Valoración!$A$9=$A16,IF(Valoración!E$9>0,Valoración!E$9,""),"") ->  | F16: 8.6 | G16: =IF(Valoración!$A$9=$A16,IF(Valoración!F$9>0,Valoración!F$9,""),"") ->  | H16: =IF(Valoración!$A$9=$A16,IF(Valoración!G$9>0,Valoración!G$9,""),"") ->  | I16: =IF(Valoración!$A$9=$A16,IF(Valoración!H$9>0,Valoración!H$9,""),"") ->  | J16: 86 | K16: Falta valor fibra | L16: Falta valor fibra | M16: Falta valor fibra | N16: =IF(Valoración!$A$9=$A16,IF(Valoración!I$9>0,Valoración!I$9,""),"") ->  | O16: Falta valor fibra | P16: =IF(Valoración!$A$9=$A16,IF(Valoración!J$9>0,Valoración!J$9,""),"") ->  | Q16: =IF(Valoración!$A$9=$A16,IF(Valoración!K$9>0,Valoración!K$9,""),"") ->  | R16: Falta valor cenizas | S16: Falta valor cenizas | T16: Falta valor MNT | U16: Falta valor cenizas | V16: Falta valor fibra | W16: Falta valor fibra | X16: Falta valor fibra | Y16: Falta valor fibra | Z16: =IF(Valoración!$A$9=$A16,IF(Valoración!M$9>0,Valoración!M$9,""),"") ->  | AA16: =IF(K16="Falta valor fibra",K16,IF(D16="","Falta valor MNT",(93.1-0.145*K16-0.015*D16*10-3)/100)) -> Falta valor fibra | AC16: Falta valor fibra | AD16: 0.61 | AE16: 0.61 | AF16: Falta valor cenizas | AG16: 0.45 | AH16: Falta valor MNT | AI16: =IF(Valoración!$A$9=$A16,IF(Valoración!L$9>0,Valoración!L$9,""),"") ->  | AK16: 0.45 | AL16: Falta valor cenizas | AM16: Falta valor cenizas | AN16: 138 | AO16: Falta valor MNT | AP16: Falta valor MNT | AQ16: Falta valor cenizas | AR16: Falta valor MNT | AS16: Falta valor MNT | AT16: Falta valor MNT | AU16: Falta valor MNT | AV16: Falta valor MNT | AW16: Falta valor MNT | AX16: Falta valor MNT | AY16: Falta valor MNT | AZ16: Falta valor MNT | BA16: 0.38 | BB16: Cebada bagazo | BD16: Falta valor MNT | BE16: Falta valor MNT | BF16: Falta valor MNT | BG16: Falta valor MNT | BH16: Falta valor MNT | BI16: Falta valor MNT | BJ16: 0.4951 | BM16: 2 | BN16: Falta valor fibra | BO16: Falta valor cenizas | BP16: 86 | BQ16: Falta valor fibra | BR16: Falta valor fibra | BS16: Falta valor fibra | BT16: Falta valor fibra | BU16: Falta valor cenizas | CN16: =BP16*0.45 -> 38.7 | CO16: 0.45 | CP16: Falta valor MNT | CQ16: Falta valor cenizas
A17: 16 | B17: Cebada otros derivados | C17: =IF(Valoración!$A$9=$A17,IF(Valoración!C$9>0,Valoración!C$9,""),"") ->  | D17: =IF(Valoración!$A$9=$A17,IF(Valoración!D$9>0,Valoración!D$9,""),"") ->  | E17: =IF(Valoración!$A$9=$A17,IF(Valoración!E$9>0,Valoración!E$9,""),"") ->  | G17: =IF(Valoración!$A$9=$A17,IF(Valoración!F$9>0,Valoración!F$9,""),"") ->  | H17: =IF(Valoración!$A$9=$A17,IF(Valoración!G$9>0,Valoración!G$9,""),"") ->  | I17: =IF(Valoración!$A$9=$A17,IF(Valoración!H$9>0,Valoración!H$9,""),"") ->  | J17: Falta valor EE | K17: Falta valor fibra | L17: Falta valor fibra | M17: Falta valor fibra | N17: =IF(Valoración!$A$9=$A17,IF(Valoración!I$9>0,Valoración!I$9,""),"") ->  | O17: Falta valor fibra | P17: =IF(Valoración!$A$9=$A17,IF(Valoración!J$9>0,Valoración!J$9,""),"") ->  | Q17: =IF(Valoración!$A$9=$A17,IF(Valoración!K$9>0,Valoración!K$9,""),"") ->  | R17: Falta valor cenizas | S17: Falta valor cenizas | T17: Falta valor MNT | U17: Falta valor EE | V17: Falta valor fibra | W17: Falta valor fibra | X17: Falta valor fibra | Y17: Falta valor fibra | Z17: =IF(Valoración!$A$9=$A17,IF(Valoración!M$9>0,Valoración!M$9,""),"") ->  | AA17: =IF(K17="Falta valor fibra",K17,IF(D17="","Falta valor MNT",IF(P17="","Falta valor cenizas",(92.2-0.149*K17+0.0074*D17*10-0.05*P17*10)/100))) -> Falta valor fibra | AC17: Falta valor fibra | AE17: Falta valor fibra | AF17: Falta valor cenizas | AG17: 0.72 | AH17: Falta valor MNT | AI17: =IF(Valoración!$A$9=$A17,IF(Valoración!L$9>0,Valoración!L$9,""),"") ->  | AK17: 0.72 | AL17: Falta valor cenizas | AM17: Falta valor cenizas | AO17: Falta valor MNT | AP17: Falta valor MNT | AQ17: Falta valor cenizas | AR17: Falta valor MNT | AS17: Falta valor MNT | AT17: Falta valor MNT | AU17: Falta valor MNT | AV17: Falta valor MNT | AW17: Falta valor MNT | AX17: Falta valor MNT | AY17: Falta valor MNT | AZ17: Falta valor MNT | BB17: Cebada otros derivados | BD17: Falta valor MNT | BE17: Falta valor MNT | BF17: Falta valor MNT | BG17: Falta valor MNT | BH17: Falta valor MNT | BI17: Falta valor MNT | BJ17: Falta valor fibra | BM17: 2 | BN17: Falta valor fibra | BO17: Falta valor cenizas | BP17: Falta valor EE | BQ17: Falta valor fibra | BR17: Falta valor fibra | BS17: Falta valor fibra | BT17: Falta valor fibra | BU17: Falta valor cenizas | CO17: 0.72 | CP17: Falta valor MNT | CQ17: Falta valor cenizas
A18: 17 | B18: Arroz | C18: =IF(Valoración!$A$9=$A18,IF(Valoración!C$9>0,Valoración!C$9,""),"") ->  | D18: =IF(Valoración!$A$9=$A18,IF(Valoración!D$9>0,Valoración!D$9,""),"") ->  | E18: =IF(Valoración!$A$9=$A18,IF(Valoración!E$9>0,Valoración!E$9,""),"") ->  | F18: 2.1 | G18: =IF(Valoración!$A$9=$A18,IF(Valoración!F$9>0,Valoración!F$9,""),"") ->  | H18: =IF(Valoración!$A$9=$A18,IF(Valoración!G$9>0,Valoración!G$9,""),"") ->  | I18: =IF(Valoración!$A$9=$A18,IF(Valoración!H$9>0,Valoración!H$9,""),"") ->  | J18: 21 | K18: Falta valor fibra | L18: Falta valor fibra | M18: Falta valor fibra | N18: =IF(Valoración!$A$9=$A18,IF(Valoración!I$9>0,Valoración!I$9,""),"") ->  | O18: Falta valor fibra | P18: =IF(Valoración!$A$9=$A18,IF(Valoración!J$9>0,Valoración!J$9,""),"") ->  | Q18: =IF(Valoración!$A$9=$A18,IF(Valoración!K$9>0,Valoración!K$9,""),"") ->  | R18: Falta valor cenizas | S18: Falta valor cenizas | T18: Falta valor MNT | U18: Falta valor cenizas | V18: Falta valor fibra | W18: Falta valor fibra | X18: Falta valor fibra | Y18: Falta valor fibra | Z18: =IF(Valoración!$A$9=$A18,IF(Valoración!M$9>0,Valoración!M$9,""),"") ->  | AA18: =IF(K18="Falta valor fibra",K18,IF(D18="","Falta valor MNT",(102-0.153*K18-0.104*D18*10)/100)) -> Falta valor fibra | AC18: Falta valor fibra | AD18: 0.88 | AE18: 0.88 | AF18: Falta valor cenizas | AG18: 0.69 | AH18: Falta valor MNT | AI18: =IF(Valoración!$A$9=$A18,IF(Valoración!L$9>0,Valoración!L$9,""),"") ->  | AK18: 0.69 | AL18: Falta valor cenizas | AM18: Falta valor cenizas | AO18: Falta valor MNT | AP18: Falta valor MNT | AQ18: Falta valor cenizas | AR18: Falta valor MNT | AS18: Falta valor MNT | AT18: Falta valor MNT | AU18: Falta valor MNT | AV18: Falta valor MNT | AW18: Falta valor MNT | AX18: Falta valor MNT | AY18: Falta valor MNT | AZ18: Falta valor MNT | BA18: 0.66 | BB18: Arroz | BD18: Falta valor MNT | BE18: Falta valor MNT | BF18: Falta valor MNT | BG18: Falta valor MNT | BH18: Falta valor MNT | BI18: Falta valor MNT | BJ18: 0.2627 | BM18: 2 | BN18: Falta valor fibra | BO18: Falta valor cenizas | BP18: 21 | BQ18: Falta valor fibra | BR18: Falta valor fibra | BS18: Falta valor fibra | BT18: Falta valor fibra | BU18: Falta valor cenizas | CO18: 0.69 | CP18: Falta valor MNT | CQ18: Falta valor cenizas
A19: 18 | B19: Arroz derivados | C19: =IF(Valoración!$A$9=$A19,IF(Valoración!C$9>0,Valoración!C$9,""),"") ->  | D19: =IF(Valoración!$A$9=$A19,IF(Valoración!D$9>0,Valoración!D$9,""),"") ->  | E19: =IF(Valoración!$A$9=$A19,IF(Valoración!E$9>0,Valoración!E$9,""),"") ->  | G19: =IF(Valoración!$A$9=$A19,IF(Valoración!F$9>0,Valoración!F$9,""),"") ->  | H19: =IF(Valoración!$A$9=$A19,IF(Valoración!G$9>0,Valoración!G$9,""),"") ->  | I19: =IF(Valoración!$A$9=$A19,IF(Valoración!H$9>0,Valoración!H$9,""),"") ->  | J19: Falta valor EE | K19: Falta valor fibra | L19: Falta valor fibra | M19: Falta valor fibra | N19: =IF(Valoración!$A$9=$A19,IF(Valoración!I$9>0,Valoración!I$9,""),"") ->  | O19: Falta valor fibra | P19: =IF(Valoración!$A$9=$A19,IF(Valoración!J$9>0,Valoración!J$9,""),"") ->  | Q19: =IF(Valoración!$A$9=$A19,IF(Valoración!K$9>0,Valoración!K$9,""),"") ->  | R19: Falta valor cenizas | S19: Falta valor cenizas | T19: Falta valor MNT | U19: Falta valor EE | V19: Falta valor fibra | W19: Falta valor fibra | X19: Falta valor fibra | Y19: Falta valor fibra | Z19: =IF(Valoración!$A$9=$A19,IF(Valoración!M$9>0,Valoración!M$9,""),"") ->  | AA19: =IF(K19="Falta valor fibra",K19,IF(D19="","Falta valor MNT",IF(P19="","Falta valor cenizas",(92.2-0.149*K19+0.0074*D19*10-0.05*P19*10)/100))) -> Falta valor fibra | AC19: Falta valor fibra | AE19: Falta valor fibra | AF19: Falta valor cenizas | AG19: 0.57 | AH19: Falta valor MNT | AI19: =IF(Valoración!$A$9=$A19,IF(Valoración!L$9>0,Valoración!L$9,""),"") ->  | AK19: 0.57 | AL19: Falta valor cenizas | AM19: Falta valor cenizas | AN19: 138 | AO19: Falta valor MNT | AP19: Falta valor MNT | AQ19: Falta valor cenizas | AR19: Falta valor MNT | AS19: Falta valor MNT | AT19: Falta valor MNT | AU19: Falta valor MNT | AV19: Falta valor MNT | AW19: Falta valor MNT | AX19: Falta valor MNT | AY19: Falta valor MNT | AZ19: Falta valor MNT | BB19: Arroz derivados | BD19: Falta valor MNT | BE19: Falta valor MNT | BF19: Falta valor MNT | BG19: Falta valor MNT | BH19: Falta valor MNT | BI19: Falta valor MNT | BJ19: Falta valor fibra | BM19: 2 | BN19: Falta valor fibra | BO19: Falta valor cenizas | BP19: Falta valor EE | BQ19: Falta valor fibra | BR19: Falta valor fibra | BS19: Falta valor fibra | BT19: Falta valor fibra | BU19: Falta valor cenizas | CO19: 0.57 | CP19: Falta valor MNT | CQ19: Falta valor cenizas
A20: 19 | B20: Otros cereales y derivados | C20: =IF(Valoración!$A$9=$A20,IF(Valoración!C$9>0,Valoración!C$9,""),"") ->  | D20: =IF(Valoración!$A$9=$A20,IF(Valoración!D$9>0,Valoración!D$9,""),"") ->  | E20: =IF(Valoración!$A$9=$A20,IF(Valoración!E$9>0,Valoración!E$9,""),"") ->  | G20: =IF(Valoración!$A$9=$A20,IF(Valoración!F$9>0,Valoración!F$9,""),"") ->  | H20: =IF(Valoración!$A$9=$A20,IF(Valoración!G$9>0,Valoración!G$9,""),"") ->  | I20: =IF(Valoración!$A$9=$A20,IF(Valoración!H$9>0,Valoración!H$9,""),"") ->  | J20: Falta valor EE | K20: Falta valor fibra | L20: Falta valor fibra | M20: Falta valor fibra | N20: =IF(Valoración!$A$9=$A20,IF(Valoración!I$9>0,Valoración!I$9,""),"") ->  | O20: Falta valor fibra | P20: =IF(Valoración!$A$9=$A20,IF(Valoración!J$9>0,Valoración!J$9,""),"") ->  | Q20: =IF(Valoración!$A$9=$A20,IF(Valoración!K$9>0,Valoración!K$9,""),"") ->  | R20: Falta valor cenizas | S20: Falta valor cenizas | T20: Falta valor MNT | U20: Falta valor EE | V20: Falta valor fibra | W20: Falta valor fibra | X20: Falta valor fibra | Y20: Falta valor fibra | Z20: =IF(Valoración!$A$9=$A20,IF(Valoración!M$9>0,Valoración!M$9,""),"") ->  | AA20: =IF(K20="Falta valor fibra",K20,IF(D20="","Falta valor MNT",IF(P20="","Falta valor cenizas",(92.2-0.149*K20+0.0074*D20*10-0.05*P20*10)/100))) -> Falta valor fibra | AC20: Falta valor fibra | AE20: Falta valor fibra | AF20: Falta valor cenizas | AG20: 0.66 | AH20: Falta valor MNT | AI20: =IF(Valoración!$A$9=$A20,IF(Valoración!L$9>0,Valoración!L$9,""),"") ->  | AK20: 0.66 | AL20: Falta valor cenizas | AM20: Falta valor cenizas | AO20: Falta valor MNT | AP20: Falta valor MNT | AQ20: Falta valor cenizas | AR20: Falta valor MNT | AS20: Falta valor MNT | AT20: Falta valor MNT | AU20: Falta valor MNT | AV20: Falta valor MNT | AW20: Falta valor MNT | AX20: Falta valor MNT | AY20: Falta valor MNT | AZ20: Falta valor MNT | BA20: 0.72 | BB20: Otros cereales y derivados | BD20: Falta valor MNT | BE20: Falta valor MNT | BF20: Falta valor MNT | BG20: Falta valor MNT | BH20: Falta valor MNT | BI20: Falta valor MNT | BJ20: 0.2129 | BM20: 2 | BN20: Falta valor fibra | BO20: Falta valor cenizas | BP20: Falta valor EE | BQ20: Falta valor fibra | BR20: Falta valor fibra | BS20: Falta valor fibra | BT20: Falta valor fibra | BU20: Falta valor cenizas | CO20: 0.66 | CP20: Falta valor MNT | CQ20: Falta valor cenizas
A21: 20 | B21: Soja, grano extrusionado | C21: =IF(Valoración!$A$9=$A21,IF(Valoración!C$9>0,Valoración!C$9,""),"") ->  | D21: =IF(Valoración!$A$9=$A21,IF(Valoración!D$9>0,Valoración!D$9,""),"") ->  | E21: =IF(Valoración!$A$9=$A21,IF(Valoración!E$9>0,Valoración!E$9,""),"") ->  | F21: 21.6 | G21: =IF(Valoración!$A$9=$A21,IF(Valoración!F$9>0,Valoración!F$9,""),"") ->  | H21: =IF(Valoración!$A$9=$A21,IF(Valoración!G$9>0,Valoración!G$9,""),"") ->  | I21: =IF(Valoración!$A$9=$A21,IF(Valoración!H$9>0,Valoración!H$9,""),"") ->  | J21: 216 | K21: Falta valor fibra | L21: Falta valor fibra | M21: Falta valor fibra | N21: =IF(Valoración!$A$9=$A21,IF(Valoración!I$9>0,Valoración!I$9,""),"") ->  | O21: Falta valor fibra | P21: =IF(Valoración!$A$9=$A21,IF(Valoración!J$9>0,Valoración!J$9,""),"") ->  | Q21: =IF(Valoración!$A$9=$A21,IF(Valoración!K$9>0,Valoración!K$9,""),"") ->  | R21: Falta valor cenizas | S21: Falta valor cenizas | T21: Falta valor MNT | U21: Falta valor cenizas | V21: Falta valor fibra | W21: Falta valor fibra | X21: Falta valor fibra | Y21: Falta valor fibra | Z21: =IF(Valoración!$A$9=$A21,IF(Valoración!M$9>0,Valoración!M$9,""),"") ->  | AA21: =IF(K21="Falta valor fibra",K21,IF(J21="Falta valor EE",J21,(93-0.027*K21+0.029*J21)/100)) -> Falta valor fibra | AC21: Falta valor fibra | AD21: 0.86 | AE21: 0.86 | AF21: Falta valor cenizas | AG21: 0.5 | AH21: Falta valor MNT | AI21: =IF(Valoración!$A$9=$A21,IF(Valoración!L$9>0,Valoración!L$9,""),"") ->  | AJ21: =IF(AI21="",AI21,(47.9+0.36*AI21*100+15.4)/100) ->  | AK21: 0.5 | AL21: Falta valor cenizas | AM21: Falta valor cenizas | AN21: -46 | AO21: Falta valor MNT | AP21: Falta valor MNT | AQ21: Falta valor cenizas | AR21: Falta valor MNT | AS21: Falta valor MNT | AT21: Falta valor MNT | AU21: Falta valor MNT | AV21: Falta valor MNT | AW21: Falta valor MNT | AX21: Falta valor MNT | AY21: Falta valor MNT | AZ21: Falta valor MNT | BA21: 0.59 | BB21: Soja, grano extrusionado | BD21: Falta valor MNT | BE21: Falta valor MNT | BF21: Falta valor MNT | BG21: Falta valor MNT | BH21: Falta valor MNT | BI21: Falta valor MNT | BJ21: 0.3208 | BM21: 2 | BN21: Falta valor fibra | BO21: Falta valor cenizas | BP21: 216 | BQ21: Falta valor fibra | BR21: Falta valor fibra | BS21: Falta valor fibra | BT21: Falta valor fibra | BU21: Falta valor cenizas | CN21: =BP21*0.95 -> 205.2 | CO21: 0.5 | CP21: Falta valor MNT | CQ21: Falta valor cenizas
A22: 21 | B22: Soja, grano copos | C22: =IF(Valoración!$A$9=$A22,IF(Valoración!C$9>0,Valoración!C$9,""),"") ->  | D22: =IF(Valoración!$A$9=$A22,IF(Valoración!D$9>0,Valoración!D$9,""),"") ->  | E22: =IF(Valoración!$A$9=$A22,IF(Valoración!E$9>0,Valoración!E$9,""),"") ->  | F22: 20 | G22: =IF(Valoración!$A$9=$A22,IF(Valoración!F$9>0,Valoración!F$9,""),"") ->  | H22: =IF(Valoración!$A$9=$A22,IF(Valoración!G$9>0,Valoración!G$9,""),"") ->  | I22: =IF(Valoración!$A$9=$A22,IF(Valoración!H$9>0,Valoración!H$9,""),"") ->  | J22: 200 | K22: Falta valor fibra | L22: Falta valor fibra | M22: Falta valor fibra | N22: =IF(Valoración!$A$9=$A22,IF(Valoración!I$9>0,Valoración!I$9,""),"") ->  | O22: Falta valor fibra | P22: =IF(Valoración!$A$9=$A22,IF(Valoración!J$9>0,Valoración!J$9,""),"") ->  | Q22: =IF(Valoración!$A$9=$A22,IF(Valoración!K$9>0,Valoración!K$9,""),"") ->  | R22: Falta valor cenizas | S22: Falta valor cenizas | T22: Falta valor MNT | U22: Falta valor cenizas | V22: Falta valor fibra | W22: Falta valor fibra | X22: Falta valor fibra | Y22: Falta valor fibra | Z22: =IF(Valoración!$A$9=$A22,IF(Valoración!M$9>0,Valoración!M$9,""),"") ->  | AA22: =IF(K22="Falta valor fibra",K22,IF(J22="","Falta valor EE",(93-0.027*K22+0.029*J22)/100)) -> Falta valor fibra | AC22: Falta valor fibra | AD22: 0.86 | AE22: 0.86 | AF22: Falta valor cenizas | AG22: 0.7 | AH22: Falta valor MNT | AK22: 0.7 | AL22: Falta valor cenizas | AM22: Falta valor cenizas | AN22: -46 | AO22: Falta valor MNT | AP22: Falta valor MNT | AQ22: Falta valor cenizas | AR22: Falta valor MNT | AS22: Falta valor MNT | AT22: Falta valor MNT | AU22: Falta valor MNT | AV22: Falta valor MNT | AW22: Falta valor MNT | AX22: Falta valor MNT | AY22: Falta valor MNT | AZ22: Falta valor MNT | BA22: 0.81 | BB22: Soja, grano copos | BD22: Falta valor MNT | BE22: Falta valor MNT | BF22: Falta valor MNT | BG22: Falta valor MNT | BH22: Falta valor MNT | BI22: Falta valor MNT | BJ22: 0.1382 | BM22: 2 | BN22: Falta valor fibra | BO22: Falta valor cenizas | BP22: 200 | BQ22: Falta valor fibra | BR22: Falta valor fibra | BS22: Falta valor fibra | BT22: Falta valor fibra | BU22: Falta valor cenizas | CO22: 0.7 | CP22: Falta valor MNT | CQ22: Falta valor cenizas
A23: 22 | B23: Soja, grano tostado | C23: =IF(Valoración!$A$9=$A23,IF(Valoración!C$9>0,Valoración!C$9,""),"") ->  | D23: =IF(Valoración!$A$9=$A23,IF(Valoración!D$9>0,Valoración!D$9,""),"") ->  | E23: =IF(Valoración!$A$9=$A23,IF(Valoración!E$9>0,Valoración!E$9,""),"") ->  | F23: 21.8 | G23: =IF(Valoración!$A$9=$A23,IF(Valoración!F$9>0,Valoración!F$9,""),"") ->  | H23: =IF(Valoración!$A$9=$A23,IF(Valoración!G$9>0,Valoración!G$9,""),"") ->  | I23: =IF(Valoración!$A$9=$A23,IF(Valoración!H$9>0,Valoración!H$9,""),"") ->  | J23: =IF(E23="",IF(F23="","Falta valor EE",F23*10),E23*10) -> 218 | K23: =IF(G23="",IF(H23="","Falta valor fibra",0.4793*H23*10-20.98),G23*10) -> Falta valor fibra | L23: =IF(H23="",IF(G23="","Falta valor fibra",1.4419*G23*10+131.71),H23*10) -> Falta valor fibra | M23: =IF(I23="",IF(G23="","Falta valor fibra",1.2552*G23*10+10.808),I23*10) -> Falta valor fibra | N23: =IF(Valoración!$A$9=$A23,IF(Valoración!I$9>0,Valoración!I$9,""),"") ->  | O23: =IF(N23="",IF(K23="Falta valor fibra",K23,0.1649*K23^1.1136),N23*10) -> Falta valor fibra | P23: =IF(Valoración!$A$9=$A23,IF(Valoración!J$9>0,Valoración!J$9,""),"") ->  | Q23: =IF(Valoración!$A$9=$A23,IF(Valoración!K$9>0,Valoración!K$9,""),"") ->  | R23: Falta valor cenizas | S23: Falta valor cenizas | T23: Falta valor MNT | U23: Falta valor cenizas | V23: Falta valor fibra | W23: Falta valor fibra | X23: Falta valor fibra | Y23: Falta valor fibra | Z23: =IF(Valoración!$A$9=$A23,IF(Valoración!M$9>0,Valoración!M$9,""),"") ->  | AA23: =IF(K23="Falta valor fibra",K23,IF(J23="","Falta valor EE",(93-0.027*K23+0.029*J23)/100)) -> Falta valor fibra | AC23: =IF(Z23="",IF(K23="Falta valor fibra",K23,AA23),AB23) -> Falta valor fibra | AD23: 0.86 | AE23: 0.86 | AF23: Falta valor cenizas | AG23: 0.64 | AH23: Falta valor MNT | AK23: 0.64 | AL23: Falta valor cenizas | AM23: Falta valor cenizas | AN23: -46 | AO23: Falta valor MNT | AP23: Falta valor MNT | AQ23: Falta valor cenizas | AR23: Falta valor MNT | AS23: Falta valor MNT | AT23: Falta valor MNT | AU23: Falta valor MNT | AV23: Falta valor MNT | AW23: Falta valor MNT | AX23: Falta valor MNT | AY23: Falta valor MNT | AZ23: Falta valor MNT | BA23: 0.62 | BB23: =B23 -> Soja, grano tostado | BC23: =IF(C23="","",C23) ->  | BD23: Falta valor MNT | BE23: Falta valor MNT | BF23: =IF(D23="","Falta valor MNT",D23*10) -> Falta valor MNT | BG23: Falta valor MNT | BH23: Falta valor MNT | BI23: Falta valor MNT | BJ23: 0.2959 | BM23: 2 | BN23: =AC23 -> Falta valor fibra | BO23: =AF23 -> Falta valor cenizas | BP23: =J23 -> 218 | BQ23: Falta valor fibra | BR23: Falta valor fibra | BS23: Falta valor fibra | BT23: =O23 -> Falta valor fibra | BU23: Falta valor cenizas | CN23: =BP23*0.95 -> 207.1 | CO23: 0.64 | CP23: Falta valor MNT | CQ23: Falta valor cenizas
A24: 23 | B24: Soja, turtó curtido | C24: =IF(Valoración!$A$9=$A24,IF(Valoración!C$9>0,Valoración!C$9,""),"") ->  | D24: =IF(Valoración!$A$9=$A24,IF(Valoración!D$9>0,Valoración!D$9,""),"") ->  | E24: =IF(Valoración!$A$9=$A24,IF(Valoración!E$9>0,Valoración!E$9,""),"") ->  | F24: 21.6 | G24: =IF(Valoración!$A$9=$A24,IF(Valoración!F$9>0,Valoración!F$9,""),"") ->  | H24: =IF(Valoración!$A$9=$A24,IF(Valoración!G$9>0,Valoración!G$9,""),"") ->  | I24: =IF(Valoración!$A$9=$A24,IF(Valoración!H$9>0,Valoración!H$9,""),"") ->  | J24: 216 | K24: Falta valor fibra | L24: Falta valor fibra | M24: Falta valor fibra | N24: =IF(Valoración!$A$9=$A24,IF(Valoración!I$9>0,Valoración!I$9,""),"") ->  | O24: Falta valor fibra | P24: =IF(Valoración!$A$9=$A24,IF(Valoración!J$9>0,Valoración!J$9,""),"") ->  | Q24: =IF(Valoración!$A$9=$A24,IF(Valoración!K$9>0,Valoración!K$9,""),"") ->  | R24: Falta valor cenizas | S24: Falta valor cenizas | T24: Falta valor MNT | U24: Falta valor cenizas | V24: Falta valor fibra | W24: Falta valor fibra | X24: Falta valor fibra | Y24: Falta valor fibra | Z24: =IF(Valoración!$A$9=$A24,IF(Valoración!M$9>0,Valoración!M$9,""),"") ->  | AA24: =IF(K24="Falta valor fibra",K24,IF(D24="","Falta valor MNT",IF(P24="","Falta valor cenizas",(89.6-0.106*K24+0.0088*D24*10-0.003*P24)/100))) -> Falta valor fibra | AC24: Falta valor fibra | AE24: Falta valor fibra | AF24: Falta valor cenizas | AG24: 0.62 | AH24: Falta valor MNT | AI24: =IF(Valoración!$A$9=$A24,IF(Valoración!L$9>0,Valoración!L$9,""),"") ->  | AJ24: =IF(AI24="",AI24,(47.9+0.36*AI24*100-16.6)/100) ->  | AK24: 0.62 | AL24: Falta valor cenizas | AM24: Falta valor cenizas | AN24: -46 | AO24: Falta valor MNT | AP24: Falta valor MNT | AQ24: Falta valor cenizas | AR24: Falta valor MNT | AS24: Falta valor MNT | AT24: Falta valor MNT | AU24: Falta valor MNT | AV24: Falta valor MNT | AW24: Falta valor MNT | AX24: Falta valor MNT | AY24: Falta valor MNT | AZ24: Falta valor MNT | BA24: 0.47 | BB24: Soja, turtó curtido | BD24: Falta valor MNT | BE24: Falta valor MNT | BF24: Falta valor MNT | BG24: Falta valor MNT | BH24: Falta valor MNT | BI24: Falta valor MNT | BJ24: 0.4204 | BM24: 2 | BN24: Falta valor fibra | BO24: Falta valor cenizas | BP24: 216 | BQ24: Falta valor fibra | BR24: Falta valor fibra | BS24: Falta valor fibra | BT24: Falta valor fibra | BU24: Falta valor cenizas | CN24: =BP24*0.66 -> 142.56 | CO24: 0.62 | CP24: Falta valor MNT | CQ24: Falta valor cenizas
A25: 24 | B25: Soja otros derivados | C25: =IF(Valoración!$A$9=$A25,IF(Valoración!C$9>0,Valoración!C$9,""),"") ->  | D25: =IF(Valoración!$A$9=$A25,IF(Valoración!D$9>0,Valoración!D$9,""),"") ->  | E25: =IF(Valoración!$A$9=$A25,IF(Valoración!E$9>0,Valoración!E$9,""),"") ->  | G25: =IF(Valoración!$A$9=$A25,IF(Valoración!F$9>0,Valoración!F$9,""),"") ->  | H25: =IF(Valoración!$A$9=$A25,IF(Valoración!G$9>0,Valoración!G$9,""),"") ->  | I25: =IF(Valoración!$A$9=$A25,IF(Valoración!H$9>0,Valoración!H$9,""),"") ->  | J25: Falta valor EE | K25: Falta valor fibra | L25: Falta valor fibra | M25: Falta valor fibra | N25: =IF(Valoración!$A$9=$A25,IF(Valoración!I$9>0,Valoración!I$9,""),"") ->  | O25: Falta valor fibra | P25: =IF(Valoración!$A$9=$A25,IF(Valoración!J$9>0,Valoración!J$9,""),"") ->  | Q25: =IF(Valoración!$A$9=$A25,IF(Valoración!K$9>0,Valoración!K$9,""),"") ->  | R25: Falta valor cenizas | S25: Falta valor cenizas | T25: Falta valor MNT | U25: Falta valor EE | V25: Falta valor fibra | W25: Falta valor fibra | X25: Falta valor fibra | Y25: Falta valor fibra | Z25: =IF(Valoración!$A$9=$A25,IF(Valoración!M$9>0,Valoración!M$9,""),"") ->  | AA25: =IF(K25="Falta valor fibra",K25,IF(D25="","Falta valor MNT",IF(P25="","Falta valor cenizas",(89.6-0.106*K25+0.0088*D25*10-0.003*P25)/100))) -> Falta valor fibra | AC25: Falta valor fibra | AE25: Falta valor fibra | AF25: Falta valor cenizas | AG25: 0.65 | AH25: Falta valor MNT | AI25: =IF(Valoración!$A$9=$A25,IF(Valoración!L$9>0,Valoración!L$9,""),"") ->  | AJ25: =IF(AI25="",AI25,(47.9+0.36*AI25*100+3.6)/100) ->  | AK25: 0.65 | AL25: Falta valor cenizas | AM25: Falta valor cenizas | AN25: -46 | AO25: Falta valor MNT | AP25: Falta valor MNT | AQ25: Falta valor cenizas | AR25: Falta valor MNT | AS25: Falta valor MNT | AT25: Falta valor MNT | AU25: Falta valor MNT | AV25: Falta valor MNT | AW25: Falta valor MNT | AX25: Falta valor MNT | AY25: Falta valor MNT | AZ25: Falta valor MNT | BB25: Soja otros derivados | BD25: Falta valor MNT | BE25: Falta valor MNT | BF25: Falta valor MNT | BG25: Falta valor MNT | BH25: Falta valor MNT | BI25: Falta valor MNT | BJ25: Falta valor fibra | BM25: 2 | BN25: Falta valor fibra | BO25: Falta valor cenizas | BP25: Falta valor EE | BQ25: Falta valor fibra | BR25: Falta valor fibra | BS25: Falta valor fibra | BT25: Falta valor fibra | BU25: Falta valor cenizas | CN25: =BP25*0.75 ->  | CO25: 0.65 | CP25: Falta valor MNT | CQ25: Falta valor cenizas
A26: 25 | B26: Colza, grano | C26: =IF(Valoración!$A$9=$A26,IF(Valoración!C$9>0,Valoración!C$9,""),"") ->  | D26: =IF(Valoración!$A$9=$A26,IF(Valoración!D$9>0,Valoración!D$9,""),"") ->  | E26: =IF(Valoración!$A$9=$A26,IF(Valoración!E$9>0,Valoración!E$9,""),"") ->  | F26: 47.6 | G26: =IF(Valoración!$A$9=$A26,IF(Valoración!F$9>0,Valoración!F$9,""),"") ->  | H26: =IF(Valoración!$A$9=$A26,IF(Valoración!G$9>0,Valoración!G$9,""),"") ->  | I26: =IF(Valoración!$A$9=$A26,IF(Valoración!H$9>0,Valoración!H$9,""),"") ->  | J26: 476 | K26: Falta valor fibra | L26: Falta valor fibra | M26: Falta valor fibra | N26: =IF(Valoración!$A$9=$A26,IF(Valoración!I$9>0,Valoración!I$9,""),"") ->  | O26: Falta valor fibra | P26: =IF(Valoración!$A$9=$A26,IF(Valoración!J$9>0,Valoración!J$9,""),"") ->  | Q26: =IF(Valoración!$A$9=$A26,IF(Valoración!K$9>0,Valoración!K$9,""),"") ->  | R26: Falta valor cenizas | S26: Falta valor cenizas | T26: Falta valor MNT | U26: Falta valor cenizas | V26: Falta valor fibra | W26: Falta valor fibra | X26: Falta valor fibra | Y26: Falta valor fibra | Z26: =IF(Valoración!$A$9=$A26,IF(Valoración!M$9>0,Valoración!M$9,""),"") ->  | AA26: =IF(K26="Falta valor fibra",K26,(92.7-0.119*K26)/100) -> Falta valor fibra | AC26: Falta valor fibra | AD26: 0.86 | AE26: 0.86 | AF26: Falta valor cenizas | AG26: 0.77 | AH26: Falta valor MNT | AI26: =IF(Valoración!$A$9=$A26,IF(Valoración!L$9>0,Valoración!L$9,""),"") ->  | AJ26: =IF(AI26="",AI26,(21.1+1.48*AI26*100-0.0076*(AI26*100)^2/100)) ->  | AK26: 0.77 | AL26: Falta valor cenizas | AM26: Falta valor cenizas | AN26: 116 | AO26: Falta valor MNT | AP26: Falta valor MNT | AQ26: Falta valor cenizas | AR26: Falta valor MNT | AS26: Falta valor MNT | AT26: Falta valor MNT | AU26: Falta valor MNT | AV26: Falta valor MNT | AW26: Falta valor MNT | AX26: Falta valor MNT | AY26: Falta valor MNT | AZ26: Falta valor MNT | BA26: 0.62 | BB26: Colza, grano | BD26: Falta valor MNT | BE26: Falta valor MNT | BF26: Falta valor MNT | BG26: Falta valor MNT | BH26: Falta valor MNT | BI26: Falta valor MNT | BJ26: 0.2959 | BM26: 2 | BN26: Falta valor fibra | BO26: Falta valor cenizas | BP26: 476 | BQ26: Falta valor fibra | BR26: Falta valor fibra | BS26: Falta valor fibra | BT26: Falta valor fibra | BU26: Falta valor cenizas | CN26: 404.6 | CO26: 0.77 | CP26: Falta valor MNT | CQ26: Falta valor cenizas
A27: 26 | B27: Colza, grano tratado | C27: =IF(Valoración!$A$9=$A27,IF(Valoración!C$9>0,Valoración!C$9,""),"") ->  | D27: =IF(Valoración!$A$9=$A27,IF(Valoración!D$9>0,Valoración!D$9,""),"") ->  | E27: =IF(Valoración!$A$9=$A27,IF(Valoración!E$9>0,Valoración!E$9,""),"") ->  | F27: 47.6 | G27: =IF(Valoración!$A$9=$A27,IF(Valoración!F$9>0,Valoración!F$9,""),"") ->  | H27: =IF(Valoración!$A$9=$A27,IF(Valoración!G$9>0,Valoración!G$9,""),"") ->  | I27: =IF(Valoración!$A$9=$A27,IF(Valoración!H$9>0,Valoración!H$9,""),"") ->  | J27: 476 | K27: Falta valor fibra | L27: Falta valor fibra | M27: Falta valor fibra | N27: =IF(Valoración!$A$9=$A27,IF(Valoración!I$9>0,Valoración!I$9,""),"") ->  | O27: Falta valor fibra | P27: =IF(Valoración!$A$9=$A27,IF(Valoración!J$9>0,Valoración!J$9,""),"") ->  | Q27: =IF(Valoración!$A$9=$A27,IF(Valoración!K$9>0,Valoración!K$9,""),"") ->  | R27: Falta valor cenizas | S27: Falta valor cenizas | T27: Falta valor MNT | U27: Falta valor cenizas | V27: Falta valor fibra | W27: Falta valor fibra | X27: Falta valor fibra | Y27: Falta valor fibra | Z27: =IF(Valoración!$A$9=$A27,IF(Valoración!M$9>0,Valoración!M$9,""),"") ->  | AA27: =IF(K27="Falta valor fibra",K27,(92.7-0.119*K27)/100) -> Falta valor fibra | AC27: Falta valor fibra | AD27: 0.86 | AE27: 0.86 | AF27: Falta valor cenizas | AG27: 0.54 | AH27: Falta valor MNT | AI27: =IF(Valoración!$A$9=$A27,IF(Valoración!L$9>0,Valoración!L$9,""),"") ->  | AJ27: =IF(AI27="",AI27,(21.1+1.48*AI27*100-0.0076*(AI27*100)^2/100)) ->  | AK27: 0.54 | AL27: Falta valor cenizas | AM27: Falta valor cenizas | AO27: Falta valor MNT | AP27: Falta valor MNT | AQ27: Falta valor cenizas | AR27: Falta valor MNT | AS27: Falta valor MNT | AT27: Falta valor MNT | AU27: Falta valor MNT | AV27: Falta valor MNT | AW27: Falta valor MNT | AX27: Falta valor MNT | AY27: Falta valor MNT | AZ27: Falta valor MNT | BA27: 0.57 | BB27: Colza, grano tratado | BD27: Falta valor MNT | BE27: Falta valor MNT | BF27: Falta valor MNT | BG27: Falta valor MNT | BH27: Falta valor MNT | BI27: Falta valor MNT | BJ27: 0.3374 | BM27: 2 | BN27: Falta valor fibra | BO27: Falta valor cenizas | BP27: 476 | BQ27: Falta valor fibra | BR27: Falta valor fibra | BS27: Falta valor fibra | BT27: Falta valor fibra | BU27: Falta valor cenizas | CN27: =BP27*0.79 -> 376.04 | CO27: 0.54 | CP27: Falta valor MNT | CQ27: Falta valor cenizas
A28: 27 | B28: Colza, turtó | C28: =IF(Valoración!$A$9=$A28,IF(Valoración!C$9>0,Valoración!C$9,""),"") ->  | D28: =IF(Valoración!$A$9=$A28,IF(Valoración!D$9>0,Valoración!D$9,""),"") ->  | E28: =IF(Valoración!$A$9=$A28,IF(Valoración!E$9>0,Valoración!E$9,""),"") ->  | F28: 2.4 | G28: =IF(Valoración!$A$9=$A28,IF(Valoración!F$9>0,Valoración!F$9,""),"") ->  | H28: =IF(Valoración!$A$9=$A28,IF(Valoración!G$9>0,Valoración!G$9,""),"") ->  | I28: =IF(Valoración!$A$9=$A28,IF(Valoración!H$9>0,Valoración!H$9,""),"") ->  | J28: 24 | K28: Falta valor fibra | L28: Falta valor fibra | M28: Falta valor fibra | N28: =IF(Valoración!$A$9=$A28,IF(Valoración!I$9>0,Valoración!I$9,""),"") ->  | O28: Falta valor fibra | P28: =IF(Valoración!$A$9=$A28,IF(Valoración!J$9>0,Valoración!J$9,""),"") ->  | Q28: =IF(Valoración!$A$9=$A28,IF(Valoración!K$9>0,Valoración!K$9,""),"") ->  | R28: Falta valor cenizas | S28: Falta valor cenizas | T28: Falta valor MNT | U28: Falta valor cenizas | V28: Falta valor fibra | W28: Falta valor fibra | X28: Falta valor fibra | Y28: Falta valor fibra | Z28: =IF(Valoración!$A$9=$A28,IF(Valoración!M$9>0,Valoración!M$9,""),"") ->  | AA28: =IF(K28="Falta valor fibra",K28,(92.7-0.119*K28)/100) -> Falta valor fibra | AC28: Falta valor fibra | AD28: 0.74 | AE28: 0.74 | AF28: Falta valor cenizas | AG28: 0.69 | AH28: Falta valor MNT | AI28: =IF(Valoración!$A$9=$A28,IF(Valoración!L$9>0,Valoración!L$9,""),"") ->  | AJ28: =IF(AI28="",AI28,(47.9+0.36*AI28*100)/100) ->  | AK28: 0.69 | AL28: Falta valor cenizas | AM28: Falta valor cenizas | AO28: Falta valor MNT | AP28: Falta valor MNT | AQ28: Falta valor cenizas | AR28: Falta valor MNT | AS28: Falta valor MNT | AT28: Falta valor MNT | AU28: Falta valor MNT | AV28: Falta valor MNT | AW28: Falta valor MNT | AX28: Falta valor MNT | AY28: Falta valor MNT | AZ28: Falta valor MNT | BA28: 0.6 | BB28: Colza, turtó | BD28: Falta valor MNT | BE28: Falta valor MNT | BF28: Falta valor MNT | BG28: Falta valor MNT | BH28: Falta valor MNT | BI28: Falta valor MNT | BJ28: 0.3125 | BM28: 2 | BN28: Falta valor fibra | BO28: Falta valor cenizas | BP28: 24 | BQ28: Falta valor fibra | BR28: Falta valor fibra | BS28: Falta valor fibra | BT28: Falta valor fibra | BU28: Falta valor cenizas | CN28: =BP28*0.8 -> 19.2 | CO28: 0.69 | CP28: Falta valor MNT | CQ28: Falta valor cenizas
A29: 28 | B29: Colza otros derivados | C29: =IF(Valoración!$A$9=$A29,IF(Valoración!C$9>0,Valoración!C$9,""),"") ->  | D29: =IF(Valoración!$A$9=$A29,IF(Valoración!D$9>0,Valoración!D$9,""),"") ->  | E29: =IF(Valoración!$A$9=$A29,IF(Valoración!E$9>0,Valoración!E$9,""),"") ->  | G29: =IF(Valoración!$A$9=$A29,IF(Valoración!F$9>0,Valoración!F$9,""),"") ->  | H29: =IF(Valoración!$A$9=$A29,IF(Valoración!G$9>0,Valoración!G$9,""),"") ->  | I29: =IF(Valoración!$A$9=$A29,IF(Valoración!H$9>0,Valoración!H$9,""),"") ->  | J29: Falta valor EE | K29: Falta valor fibra | L29: Falta valor fibra | M29: Falta valor fibra | N29: =IF(Valoración!$A$9=$A29,IF(Valoración!I$9>0,Valoración!I$9,""),"") ->  | O29: Falta valor fibra | P29: =IF(Valoración!$A$9=$A29,IF(Valoración!J$9>0,Valoración!J$9,""),"") ->  | Q29: =IF(Valoración!$A$9=$A29,IF(Valoración!K$9>0,Valoración!K$9,""),"") ->  | R29: Falta valor cenizas | S29: Falta valor cenizas | T29: Falta valor MNT | U29: Falta valor EE | V29: Falta valor fibra | W29: Falta valor fibra | X29: Falta valor fibra | Y29: Falta valor fibra | Z29: =IF(Valoración!$A$9=$A29,IF(Valoración!M$9>0,Valoración!M$9,""),"") ->  | AA29: =IF(K29="Falta valor fibra",K29,IF(D29="","Falta valor MNT",IF(P29="","Falta valor cenizas",(89.6-0.106*K29+0.0088*D29*10-0.003*P29)/100))) -> Falta valor fibra | AC29: Falta valor fibra | AE29: Falta valor fibra | AF29: Falta valor cenizas | AG29: 0.69 | AH29: Falta valor MNT | AI29: =IF(Valoración!$A$9=$A29,IF(Valoración!L$9>0,Valoración!L$9,""),"") ->  | AJ29: =IF(AI29="",AI29,(47.9+0.36*AI29*100)/100) ->  | AK29: 0.69 | AL29: Falta valor cenizas | AM29: Falta valor cenizas | AO29: Falta valor MNT | AP29: Falta valor MNT | AQ29: Falta valor cenizas | AR29: Falta valor MNT | AS29: Falta valor MNT | AT29: Falta valor MNT | AU29: Falta valor MNT | AV29: Falta valor MNT | AW29: Falta valor MNT | AX29: Falta valor MNT | AY29: Falta valor MNT | AZ29: Falta valor MNT | BB29: Colza otros derivados | BD29: Falta valor MNT | BE29: Falta valor MNT | BF29: Falta valor MNT | BG29: Falta valor MNT | BH29: Falta valor MNT | BI29: Falta valor MNT | BJ29: Falta valor fibra | BM29: 2 | BN29: Falta valor fibra | BO29: Falta valor cenizas | BP29: Falta valor EE | BQ29: Falta valor fibra | BR29: Falta valor fibra | BS29: Falta valor fibra | BT29: Falta valor fibra | BU29: Falta valor cenizas | CO29: 0.69 | CP29: Falta valor MNT | CQ29: Falta valor cenizas
A30: 29 | B30: Girasol, grano | C30: =IF(Valoración!$A$9=$A30,IF(Valoración!C$9>0,Valoración!C$9,""),"") ->  | D30: =IF(Valoración!$A$9=$A30,IF(Valoración!D$9>0,Valoración!D$9,""),"") ->  | E30: =IF(Valoración!$A$9=$A30,IF(Valoración!E$9>0,Valoración!E$9,""),"") ->  | F30: 48 | G30: =IF(Valoración!$A$9=$A30,IF(Valoración!F$9>0,Valoración!F$9,""),"") ->  | H30: =IF(Valoración!$A$9=$A30,IF(Valoración!G$9>0,Valoración!G$9,""),"") ->  | I30: =IF(Valoración!$A$9=$A30,IF(Valoración!H$9>0,Valoración!H$9,""),"") ->  | J30: 480 | K30: Falta valor fibra | L30: Falta valor fibra | M30: Falta valor fibra | N30: =IF(Valoración!$A$9=$A30,IF(Valoración!I$9>0,Valoración!I$9,""),"") ->  | O30: Falta valor fibra | P30: =IF(Valoración!$A$9=$A30,IF(Valoración!J$9>0,Valoración!J$9,""),"") ->  | Q30: =IF(Valoración!$A$9=$A30,IF(Valoración!K$9>0,Valoración!K$9,""),"") ->  | R30: Falta valor cenizas | S30: Falta valor cenizas | T30: Falta valor MNT | U30: Falta valor cenizas | V30: Falta valor fibra | W30: Falta valor fibra | X30: Falta valor fibra | Y30: Falta valor fibra | Z30: =IF(Valoración!$A$9=$A30,IF(Valoración!M$9>0,Valoración!M$9,""),"") ->  | AA30: =IF(K30="Falta valor fibra",K30,(97.6-0.142*K30)/100) -> Falta valor fibra | AC30: Falta valor fibra | AD30: 0.76 | AE30: 0.76 | AF30: Falta valor cenizas | AG30: 0.82 | AH30: Falta valor MNT | AI30: =IF(Valoración!$A$9=$A30,IF(Valoración!L$9>0,Valoración!L$9,""),"") ->  | AJ30: =IF(AI30="",AI30,(21.1+1.48*AI30*100-0.0076*(AI30*100)^2/100)) ->  | AK30: 0.82 | AL30: Falta valor cenizas | AM30: Falta valor cenizas | AN30: -46 | AO30: Falta valor MNT | AP30: Falta valor MNT | AQ30: Falta valor cenizas | AR30: Falta valor MNT | AS30: Falta valor MNT | AT30: Falta valor MNT | AU30: Falta valor MNT | AV30: Falta valor MNT | AW30: Falta valor MNT | AX30: Falta valor MNT | AY30: Falta valor MNT | AZ30: Falta valor MNT | BA30: 0.66 | BB30: Girasol, grano | BD30: Falta valor MNT | BE30: Falta valor MNT | BF30: Falta valor MNT | BG30: Falta valor MNT | BH30: Falta valor MNT | BI30: Falta valor MNT | BJ30: 0.2627 | BM30: 2 | BN30: Falta valor fibra | BO30: Falta valor cenizas | BP30: 480 | BQ30: Falta valor fibra | BR30: Falta valor fibra | BS30: Falta valor fibra | BT30: Falta valor fibra | BU30: Falta valor cenizas | CN30: =BP30*0.95 -> 456 | CO30: 0.82 | CP30: Falta valor MNT | CQ30: Falta valor cenizas
A31: 30 | B31: Girasol derivados decorticados | C31: =IF(Valoración!$A$9=$A31,IF(Valoración!C$9>0,Valoración!C$9,""),"") ->  | D31: =IF(Valoración!$A$9=$A31,IF(Valoración!D$9>0,Valoración!D$9,""),"") ->  | E31: =IF(Valoración!$A$9=$A31,IF(Valoración!E$9>0,Valoración!E$9,""),"") ->  | G31: =IF(Valoración!$A$9=$A31,IF(Valoración!F$9>0,Valoración!F$9,""),"") ->  | H31: =IF(Valoración!$A$9=$A31,IF(Valoración!G$9>0,Valoración!G$9,""),"") ->  | I31: =IF(Valoración!$A$9=$A31,IF(Valoración!H$9>0,Valoración!H$9,""),"") ->  | J31: Falta valor EE | K31: Falta valor fibra | L31: Falta valor fibra | M31: Falta valor fibra | N31: =IF(Valoración!$A$9=$A31,IF(Valoración!I$9>0,Valoración!I$9,""),"") ->  | O31: Falta valor fibra | P31: =IF(Valoración!$A$9=$A31,IF(Valoración!J$9>0,Valoración!J$9,""),"") ->  | Q31: =IF(Valoración!$A$9=$A31,IF(Valoración!K$9>0,Valoración!K$9,""),"") ->  | R31: Falta valor cenizas | S31: Falta valor cenizas | T31: Falta valor MNT | U31: Falta valor EE | V31: Falta valor fibra | W31: Falta valor fibra | X31: Falta valor fibra | Y31: Falta valor fibra | Z31: =IF(Valoración!$A$9=$A31,IF(Valoración!M$9>0,Valoración!M$9,""),"") ->  | AA31: =IF(K31="Falta valor fibra",K31,IF(D31="","Falta valor MNT",IF(P31="","Falta valor cenizas",(89.6-0.106*K31+0.0088*D31*10-0.003*P31)/100))) -> Falta valor fibra | AC31: Falta valor fibra | AE31: Falta valor fibra | AF31: Falta valor cenizas | AG31: 0.76 | AH31: Falta valor MNT | AI31: =IF(Valoración!$A$9=$A31,IF(Valoración!L$9>0,Valoración!L$9,""),"") ->  | AJ31: =IF(AI31="",AI31,(47.9+0.36*AI31*100+8.5)/100) ->  | AK31: 0.76 | AL31: Falta valor cenizas | AM31: Falta valor cenizas | AN31: -46 | AO31: Falta valor MNT | AP31: Falta valor MNT | AQ31: Falta valor cenizas | AR31: Falta valor MNT | AS31: Falta valor MNT | AT31: Falta valor MNT | AU31: Falta valor MNT | AV31: Falta valor MNT | AW31: Falta valor MNT | AX31: Falta valor MNT | AY31: Falta valor MNT | AZ31: Falta valor MNT | BA31: 0.59 | BB31: Girasol derivados decorticados | BD31: Falta valor MNT | BE31: Falta valor MNT | BF31: Falta valor MNT | BG31: Falta valor MNT | BH31: Falta valor MNT | BI31: Falta valor MNT | BJ31: 0.3208 | BM31: 2 | BN31: Falta valor fibra | BO31: Falta valor cenizas | BP31: Falta valor EE | BQ31: Falta valor fibra | BR31: Falta valor fibra | BS31: Falta valor fibra | BT31: Falta valor fibra | BU31: Falta valor cenizas | CN31: =BP31*0.75 ->  | CO31: 0.76 | CP31: Falta valor MNT | CQ31: Falta valor cenizas
A32: 31 | B32: Coco torta | C32: =IF(Valoración!$A$9=$A32,IF(Valoración!C$9>0,Valoración!C$9,""),"") ->  | D32: =IF(Valoración!$A$9=$A32,IF(Valoración!D$9>0,Valoración!D$9,""),"") ->  | E32: =IF(Valoración!$A$9=$A32,IF(Valoración!E$9>0,Valoración!E$9,""),"") ->  | F32: 3.6 | G32: =IF(Valoración!$A$9=$A32,IF(Valoración!F$9>0,Valoración!F$9,""),"") ->  | H32: =IF(Valoración!$A$9=$A32,IF(Valoración!G$9>0,Valoración!G$9,""),"") ->  | I32: =IF(Valoración!$A$9=$A32,IF(Valoración!H$9>0,Valoración!H$9,""),"") ->  | J32: 36 | K32: Falta valor fibra | L32: Falta valor fibra | M32: Falta valor fibra | N32: =IF(Valoración!$A$9=$A32,IF(Valoración!I$9>0,Valoración!I$9,""),"") ->  | O32: Falta valor fibra | P32: =IF(Valoración!$A$9=$A32,IF(Valoración!J$9>0,Valoración!J$9,""),"") ->  | Q32: =IF(Valoración!$A$9=$A32,IF(Valoración!K$9>0,Valoración!K$9,""),"") ->  | R32: Falta valor cenizas | S32: Falta valor cenizas | T32: Falta valor MNT | U32: Falta valor cenizas | V32: Falta valor fibra | W32: Falta valor fibra | X32: Falta valor fibra | Y32: Falta valor fibra | Z32: =IF(Valoración!$A$9=$A32,IF(Valoración!M$9>0,Valoración!M$9,""),"") ->  | AA32: =IF(K32="Falta valor fibra",K32,(95.1-0.132*K32)/100) -> Falta valor fibra | AC32: Falta valor fibra | AD32: 0.73 | AE32: 0.73 | AF32: Falta valor cenizas | AG32: 0.52 | AH32: Falta valor MNT | AI32: =IF(Valoración!$A$9=$A32,IF(Valoración!L$9>0,Valoración!L$9,""),"") ->  | AJ32: =IF(AI32="",AI32,(21.1+1.48*AI32*100-0.0076*(AI32*100)^2/100)) ->  | AK32: 0.52 | AL32: Falta valor cenizas | AM32: Falta valor cenizas | AO32: Falta valor MNT | AP32: Falta valor MNT | AQ32: Falta valor cenizas | AR32: Falta valor MNT | AS32: Falta valor MNT | AT32: Falta valor MNT | AU32: Falta valor MNT | AV32: Falta valor MNT | AW32: Falta valor MNT | AX32: Falta valor MNT | AY32: Falta valor MNT | AZ32: Falta valor MNT | BA32: 0.63 | BB32: Coco torta | BD32: Falta valor MNT | BE32: Falta valor MNT | BF32: Falta valor MNT | BG32: Falta valor MNT | BH32: Falta valor MNT | BI32: Falta valor MNT | BJ32: 0.2876 | BM32: 2 | BN32: Falta valor fibra | BO32: Falta valor cenizas | BP32: 36 | BQ32: Falta valor fibra | BR32: Falta valor fibra | BS32: Falta valor fibra | BT32: Falta valor fibra | BU32: Falta valor cenizas | CN32: =BP32*0.9 -> 32.4 | CO32: 0.52 | CP32: Falta valor MNT | CQ32: Falta valor cenizas
A33: 32 | B33: Palmito torta (palmiste) | C33: =IF(Valoración!$A$9=$A33,IF(Valoración!C$9>0,Valoración!C$9,""),"") ->  | D33: =IF(Valoración!$A$9=$A33,IF(Valoración!D$9>0,Valoración!D$9,""),"") ->  | E33: =IF(Valoración!$A$9=$A33,IF(Valoración!E$9>0,Valoración!E$9,""),"") ->  | F33: 3.4 | G33: =IF(Valoración!$A$9=$A33,IF(Valoración!F$9>0,Valoración!F$9,""),"") ->  | H33: =IF(Valoración!$A$9=$A33,IF(Valoración!G$9>0,Valoración!G$9,""),"") ->  | I33: =IF(Valoración!$A$9=$A33,IF(Valoración!H$9>0,Valoración!H$9,""),"") ->  | J33: 34 | K33: Falta valor fibra | L33: Falta valor fibra | M33: Falta valor fibra | N33: =IF(Valoración!$A$9=$A33,IF(Valoración!I$9>0,Valoración!I$9,""),"") ->  | O33: Falta valor fibra | P33: =IF(Valoración!$A$9=$A33,IF(Valoración!J$9>0,Valoración!J$9,""),"") ->  | Q33: =IF(Valoración!$A$9=$A33,IF(Valoración!K$9>0,Valoración!K$9,""),"") ->  | R33: Falta valor cenizas | S33: Falta valor cenizas | T33: Falta valor MNT | U33: Falta valor cenizas | V33: Falta valor fibra | W33: Falta valor fibra | X33: Falta valor fibra | Y33: Falta valor fibra | Z33: =IF(Valoración!$A$9=$A33,IF(Valoración!M$9>0,Valoración!M$9,""),"") ->  | AA33: =IF(K33="Falta valor fibra",K33,(95.1-0.132*K33)/100) -> Falta valor fibra | AC33: Falta valor fibra | AD33: 0.65 | AE33: 0.65 | AF33: Falta valor cenizas | AG33: 0.45 | AH33: Falta valor MNT | AI33: =IF(Valoración!$A$9=$A33,IF(Valoración!L$9>0,Valoración!L$9,""),"") ->  | AJ33: =IF(AI33="",AI33,(21.1+1.48*AI33*100-0.0076*(AI33*100)^2/100)) ->  | AK33: 0.45 | AL33: Falta valor cenizas | AM33: Falta valor cenizas | AN33: -46 | AO33: Falta valor MNT | AP33: Falta valor MNT | AQ33: Falta valor cenizas | AR33: Falta valor MNT | AS33: Falta valor MNT | AT33: Falta valor MNT | AU33: Falta valor MNT | AV33: Falta valor MNT | AW33: Falta valor MNT | AX33: Falta valor MNT | AY33: Falta valor MNT | AZ33: Falta valor MNT | BA33: 0.46 | BB33: Palmito torta (palmiste) | BD33: Falta valor MNT | BE33: Falta valor MNT | BF33: Falta valor MNT | BG33: Falta valor MNT | BH33: Falta valor MNT | BI33: Falta valor MNT | BJ33: 0.4287 | BM33: 2 | BN33: Falta valor fibra | BO33: Falta valor cenizas | BP33: 34 | BQ33: Falta valor fibra | BR33: Falta valor fibra | BS33: Falta valor fibra | BT33: Falta valor fibra | BU33: Falta valor cenizas | CN33: =BP33*0.9 -> 30.6 | CO33: 0.45 | CP33: Falta valor MNT | CQ33: Falta valor cenizas
A34: 33 | B34: Algodón, grano | C34: =IF(Valoración!$A$9=$A34,IF(Valoración!C$9>0,Valoración!C$9,""),"") -> 92 | D34: =IF(Valoración!$A$9=$A34,IF(Valoración!D$9>0,Valoración!D$9,""),"") -> 22 | E34: =IF(Valoración!$A$9=$A34,IF(Valoración!E$9>0,Valoración!E$9,""),"") -> 19.8 | F34: 19.8 | G34: =IF(Valoración!$A$9=$A34,IF(Valoración!F$9>0,Valoración!F$9,""),"") -> 27.6 | H34: =IF(Valoración!$A$9=$A34,IF(Valoración!G$9>0,Valoración!G$9,""),"") -> 45.6 | I34: =IF(Valoración!$A$9=$A34,IF(Valoración!H$9>0,Valoración!H$9,""),"") -> 35.4 | J34: 198 | K34: 276 | L34: 456 | M34: 354 | N34: =IF(Valoración!$A$9=$A34,IF(Valoración!I$9>0,Valoración!I$9,""),"") -> 10.5 | O34: 105 | P34: =IF(Valoración!$A$9=$A34,IF(Valoración!J$9>0,Valoración!J$9,""),"") -> 4.3 | Q34: =IF(Valoración!$A$9=$A34,IF(Valoración!K$9>0,Valoración!K$9,""),"") ->  | R34: 95.7 | S34: 88.044 | T34: 229.8850575 | U34: 206.8965517 | V34: 288.4012539 | W34: 476.4890282 | X34: 369.9059561 | Y34: 109.7178683 | Z34: =IF(Valoración!$A$9=$A34,IF(Valoración!M$9>0,Valoración!M$9,""),"") ->  | AA34: =IF(K34="Falta valor fibra",K34,(84.8-0.073*K34)/100) -> 0.64652 | AC34: 0.64652 | AD34: 0.65 | AE34: 0.65 | AF34: 618.71964 | AG34: 0.69 | AH34: 0.7150212473 | AI34: =IF(Valoración!$A$9=$A34,IF(Valoración!L$9>0,Valoración!L$9,""),"") ->  | AK34: 0.69 | AL34: 352.51964 | AM34: 42.89034375 | AN34: 116 | AO34: 5674.902 | AP34: 3688.6863 | AQ34: 271.4632421 | AR34: 323.469414 | AS34: 3093.753644 | AT34: 0.5451642414 | AU34: 0.7104621373 | AV34: 0.4312281083 | AW34: 0.5843365793 | AX34: 0.6290455676 | AY34: 1946.112017 | AZ34: 1807.793422 | BA34: 0.37 | BB34: Algodón, grano | BC34: 92 | BD34: 1.105745464 | BE34: 1.027155353 | BF34: 220 | BG34: 48.76444907 | BH34: 91.65479282 | BI34: 70.58383788 | BJ34: 0.5034 | BM34: 2 | BN34: 0.64652 | BO34: 618.71964 | BP34: 198 | BQ34: 276 | BR34: 456 | BS34: 354 | BT34: 105 | BU34: 43 | CN34: =BP34*0.75 -> 148.5 | CO34: 0.69 | CP34: 0.7150212473 | CQ34: 352.51964
A35: 34 | B35: Algodón otros derivados | C35: =IF(Valoración!$A$9=$A35,IF(Valoración!C$9>0,Valoración!C$9,""),"") ->  | D35: =IF(Valoración!$A$9=$A35,IF(Valoración!D$9>0,Valoración!D$9,""),"") ->  | E35: =IF(Valoración!$A$9=$A35,IF(Valoración!E$9>0,Valoración!E$9,""),"") ->  | G35: =IF(Valoración!$A$9=$A35,IF(Valoración!F$9>0,Valoración!F$9,""),"") ->  | H35: =IF(Valoración!$A$9=$A35,IF(Valoración!G$9>0,Valoración!G$9,""),"") ->  | I35: =IF(Valoración!$A$9=$A35,IF(Valoración!H$9>0,Valoración!H$9,""),"") ->  | J35: Falta valor EE | K35: Falta valor fibra | L35: Falta valor fibra | M35: Falta valor fibra | N35: =IF(Valoración!$A$9=$A35,IF(Valoración!I$9>0,Valoración!I$9,""),"") ->  | O35: Falta valor fibra | P35: =IF(Valoración!$A$9=$A35,IF(Valoración!J$9>0,Valoración!J$9,""),"") ->  | Q35: =IF(Valoración!$A$9=$A35,IF(Valoración!K$9>0,Valoración!K$9,""),"") ->  | R35: =IF(P35="","Falta valor cenizas",100-P35) -> Falta valor cenizas | S35: =IF(R35="Falta valor cenizas",R35,R35*C35/100) -> Falta valor cenizas | T35: =IF(D35="","Falta valor MNT",IF(P35="","Falta valor cenizas",C35*D35*10/S35)) -> Falta valor MNT | U35: =IF(J35="Falta valor EE",J35,IF(P35="","Falta valor cenizas",J35*C35/S35)) -> Falta valor EE | V35: =IF(K35="Falta valor fibra",K35,IF(P35="","Falta valor cenizas",K35*C35/S35)) -> Falta valor fibra | W35: =IF(L35="Falta valor fibra",L35,IF(P35="","Falta valor cenizas",L35*C35/S35)) -> Falta valor fibra | X35: =IF(M35="Falta valor fibra",M35,IF(P35="","Falta valor cenizas",M35*C35/S35)) -> Falta valor fibra | Y35: =IF(O35="Falta valor fibra",O35,IF(P35="","Falta valor cenizas",O35*C35/S35)) -> Falta valor fibra | Z35: =IF(Valoración!$A$9=$A35,IF(Valoración!M$9>0,Valoración!M$9,""),"") ->  | AA35: =IF(K35="Falta valor fibra",K35,IF(D35="","Falta valor MNT",IF(P35="","Falta valor cenizas",(89.6-0.106*K35+0.0088*D35*10-0.003*P35)/100))) -> Falta valor fibra | AC35: Falta valor fibra | AE35: Falta valor fibra | AF35: =IF(S35="Falta valor cenizas",S35,IF($AC35="Falta valor fibra",AC35,IF(AC35="Falta valor MNT", AC35,$R35*AC35*10))) -> Falta valor cenizas | AG35: 0.6 | AH35: Falta valor MNT | AI35: =IF(Valoración!$A$9=$A35,IF(Valoración!L$9>0,Valoración!L$9,""),"") ->  | AK35: =IF(AJ35="",IF(AG35="","Falta degradabilidad proteínas",AG35),(6.92+0.945*AJ35*100-0.000811*(AJ35^2))/100) -> 0.6 | AL35: Falta valor cenizas | AM35: Falta valor cenizas | AN35: 116 | AO35: Falta valor MNT | AP35: Falta valor MNT | AQ35: Falta valor cenizas | AR35: =IF(AO35="Falta valor MNT",AO35,IF(AO35="Falta valor EE",AO35,IF(AO35="Falta valor fibra",AO35,IF(AO35="Falta valor cenizas",AO35,(2.9+0.017*D35*10-0.47*2)*AO35*0.01)))) -> Falta valor MNT | AS35: Falta valor MNT | AT35: Falta valor MNT | AU35: Falta valor MNT | AV35: Falta valor MNT | AW35: Falta valor MNT | AX35: Falta valor MNT | AY35: Falta valor MNT | AZ35: Falta valor MNT | BB35: Algodón otros derivados | BD35: Falta valor MNT | BE35: Falta valor MNT | BF35: Falta valor MNT | BG35: =IF(BF35="Falta valor MNT",BF35,IF(AK35="Falta degradabilidad proteínas",AK35,IF(AH35="Falta valor fibra",AH35,IF(AH35="Falta valor cenizas",AH35,BF35*(1-AK35)*AH35)))) -> Falta valor MNT | BH35: Falta valor MNT | BI35: Falta valor MNT | BJ35: Falta valor fibra | BM35: 2 | BN35: Falta valor fibra | BO35: Falta valor cenizas | BP35: Falta valor EE | BQ35: Falta valor fibra | BR35: Falta valor fibra | BS35: Falta valor fibra | BT35: Falta valor fibra | BU35: =IF(P35="","Falta valor cenizas",P35*10) -> Falta valor cenizas | CN35: =BP35*0.75 ->  | CO35: 0.6 | CP35: Falta valor MNT | CQ35: Falta valor cenizas
A36: 35 | B36: Cacahuete, torta | C36: =IF(Valoración!$A$9=$A36,IF(Valoración!C$9>0,Valoración!C$9,""),"") ->  | D36: =IF(Valoración!$A$9=$A36,IF(Valoración!D$9>0,Valoración!D$9,""),"") ->  | E36: =IF(Valoración!$A$9=$A36,IF(Valoración!E$9>0,Valoración!E$9,""),"") ->  | F36: 2.6 | G36: =IF(Valoración!$A$9=$A36,IF(Valoración!F$9>0,Valoración!F$9,""),"") ->  | H36: =IF(Valoración!$A$9=$A36,IF(Valoración!G$9>0,Valoración!G$9,""),"") ->  | I36: =IF(Valoración!$A$9=$A36,IF(Valoración!H$9>0,Valoración!H$9,""),"") ->  | J36: 26 | K36: Falta valor fibra | L36: Falta valor fibra | M36: Falta valor fibra | N36: =IF(Valoración!$A$9=$A36,IF(Valoración!I$9>0,Valoración!I$9,""),"") ->  | O36: Falta valor fibra | P36: =IF(Valoración!$A$9=$A36,IF(Valoración!J$9>0,Valoración!J$9,""),"") ->  | Q36: =IF(Valoración!$A$9=$A36,IF(Valoración!K$9>0,Valoración!K$9,""),"") ->  | R36: Falta valor cenizas | S36: Falta valor cenizas | T36: Falta valor MNT | U36: Falta valor cenizas | V36: Falta valor fibra | W36: Falta valor fibra | X36: Falta valor fibra | Y36: Falta valor fibra | Z36: =IF(Valoración!$A$9=$A36,IF(Valoración!M$9>0,Valoración!M$9,""),"") ->  | AA36: =IF(K36="Falta valor fibra",K36,(93-0.112*K36)/100) -> Falta valor fibra | AC36: Falta valor fibra | AE36: Falta valor fibra | AF36: Falta valor cenizas | AG36: 0.69 | AH36: Falta valor MNT | AI36: =IF(Valoración!$A$9=$A36,IF(Valoración!L$9>0,Valoración!L$9,""),"") ->  | AK36: 0.69 | AL36: Falta valor cenizas | AM36: Falta valor cenizas | AO36: Falta valor MNT | AP36: Falta valor MNT | AQ36: Falta valor cenizas | AR36: Falta valor MNT | AS36: Falta valor MNT | AT36: Falta valor MNT | AU36: Falta valor MNT | AV36: Falta valor MNT | AW36: Falta valor MNT | AX36: Falta valor MNT | AY36: Falta valor MNT | AZ36: Falta valor MNT | BA36: 0.63 | BB36: Cacahuete, torta | BD36: Falta valor MNT | BE36: Falta valor MNT | BF36: Falta valor MNT | BG36: Falta valor MNT | BH36: Falta valor MNT | BI36: Falta valor MNT | BJ36: 0.2876 | BM36: 2 | BN36: Falta valor fibra | BO36: Falta valor cenizas | BP36: 26 | BQ36: Falta valor fibra | BR36: Falta valor fibra | BS36: Falta valor fibra | BT36: Falta valor fibra | BU36: Falta valor cenizas | CN36: =BP36*0.75 -> 19.5 | CO36: 0.69 | CP36: Falta valor MNT | CQ36: Falta valor cenizas
A37: 36 | B37: Lino, grano | C37: =IF(Valoración!$A$9=$A37,IF(Valoración!C$9>0,Valoración!C$9,""),"") ->  | D37: =IF(Valoración!$A$9=$A37,IF(Valoración!D$9>0,Valoración!D$9,""),"") ->  | E37: =IF(Valoración!$A$9=$A37,IF(Valoración!E$9>0,Valoración!E$9,""),"") ->  | F37: 37.3 | G37: =IF(Valoración!$A$9=$A37,IF(Valoración!F$9>0,Valoración!F$9,""),"") ->  | H37: =IF(Valoración!$A$9=$A37,IF(Valoración!G$9>0,Valoración!G$9,""),"") ->  | I37: =IF(Valoración!$A$9=$A37,IF(Valoración!H$9>0,Valoración!H$9,""),"") ->  | J37: 373 | K37: Falta valor fibra | L37: Falta valor fibra | M37: Falta valor fibra | N37: =IF(Valoración!$A$9=$A37,IF(Valoración!I$9>0,Valoración!I$9,""),"") ->  | O37: Falta valor fibra | P37: =IF(Valoración!$A$9=$A37,IF(Valoración!J$9>0,Valoración!J$9,""),"") ->  | Q37: =IF(Valoración!$A$9=$A37,IF(Valoración!K$9>0,Valoración!K$9,""),"") ->  | R37: Falta valor cenizas | S37: Falta valor cenizas | T37: Falta valor MNT | U37: Falta valor cenizas | V37: Falta valor fibra | W37: Falta valor fibra | X37: Falta valor fibra | Y37: Falta valor fibra | Z37: =IF(Valoración!$A$9=$A37,IF(Valoración!M$9>0,Valoración!M$9,""),"") ->  | AA37: =IF(K37="Falta valor fibra",K37,(86-0.078*K37)/100) -> Falta valor fibra | AC37: Falta valor fibra | AD37: 0.8 | AE37: 0.8 | AF37: Falta valor cenizas | AG37: 0.75 | AH37: Falta valor MNT | AI37: =IF(Valoración!$A$9=$A37,IF(Valoración!L$9>0,Valoración!L$9,""),"") ->  | AK37: 0.75 | AL37: Falta valor cenizas | AM37: Falta valor cenizas | AN37: 116 | AO37: Falta valor MNT | AP37: Falta valor MNT | AQ37: Falta valor cenizas | AR37: Falta valor MNT | AS37: Falta valor MNT | AT37: Falta valor MNT | AU37: Falta valor MNT | AV37: Falta valor MNT | AW37: Falta valor MNT | AX37: Falta valor MNT | AY37: Falta valor MNT | AZ37: Falta valor MNT | BA37: 0.59 | BB37: Lino, grano | BD37: Falta valor MNT | BE37: Falta valor MNT | BF37: Falta valor MNT | BG37: Falta valor MNT | BH37: Falta valor MNT | BI37: Falta valor MNT | BJ37: 0.3208 | BM37: 2 | BN37: Falta valor fibra | BO37: Falta valor cenizas | BP37: 373 | BQ37: Falta valor fibra | BR37: Falta valor fibra | BS37: Falta valor fibra | BT37: Falta valor fibra | BU37: Falta valor cenizas | CN37: =BP37*0.95 -> 354.35 | CO37: 0.75 | CP37: Falta valor MNT | CQ37: Falta valor cenizas
A38: 37 | B38: Lino otros derivados | C38: =IF(Valoración!$A$9=$A38,IF(Valoración!C$9>0,Valoración!C$9,""),"") ->  | D38: =IF(Valoración!$A$9=$A38,IF(Valoración!D$9>0,Valoración!D$9,""),"") ->  | E38: =IF(Valoración!$A$9=$A38,IF(Valoración!E$9>0,Valoración!E$9,""),"") ->  | G38: =IF(Valoración!$A$9=$A38,IF(Valoración!F$9>0,Valoración!F$9,""),"") ->  | H38: =IF(Valoración!$A$9=$A38,IF(Valoración!G$9>0,Valoración!G$9,""),"") ->  | I38: =IF(Valoración!$A$9=$A38,IF(Valoración!H$9>0,Valoración!H$9,""),"") ->  | J38: Falta valor EE | K38: Falta valor fibra | L38: Falta valor fibra | M38: Falta valor fibra | N38: =IF(Valoración!$A$9=$A38,IF(Valoración!I$9>0,Valoración!I$9,""),"") ->  | O38: Falta valor fibra | P38: =IF(Valoración!$A$9=$A38,IF(Valoración!J$9>0,Valoración!J$9,""),"") ->  | Q38: =IF(Valoración!$A$9=$A38,IF(Valoración!K$9>0,Valoración!K$9,""),"") ->  | R38: Falta valor cenizas | S38: Falta valor cenizas | T38: Falta valor MNT | U38: Falta valor EE | V38: Falta valor fibra | W38: Falta valor fibra | X38: Falta valor fibra | Y38: Falta valor fibra | Z38: =IF(Valoración!$A$9=$A38,IF(Valoración!M$9>0,Valoración!M$9,""),"") ->  | AA38: =IF(K38="Falta valor fibra",K38,IF(D38="","Falta valor MNT",IF(P38="","Falta valor cenizas",(89.6-0.106*K38+0.0088*D38*10-0.003*P38)/100))) -> Falta valor fibra | AC38: Falta valor fibra | AE38: Falta valor fibra | AF38: Falta valor cenizas | AG38: 0.57 | AH38: Falta valor MNT | AI38: =IF(Valoración!$A$9=$A38,IF(Valoración!L$9>0,Valoración!L$9,""),"") ->  | AK38: 0.57 | AL38: Falta valor cenizas | AM38: Falta valor cenizas | AN38: -46 | AO38: Falta valor MNT | AP38: Falta valor MNT | AQ38: Falta valor cenizas | AR38: Falta valor MNT | AS38: Falta valor MNT | AT38: Falta valor MNT | AU38: Falta valor MNT | AV38: Falta valor MNT | AW38: Falta valor MNT | AX38: Falta valor MNT | AY38: Falta valor MNT | AZ38: Falta valor MNT | BB38: Lino otros derivados | BD38: Falta valor MNT | BE38: Falta valor MNT | BF38: Falta valor MNT | BG38: Falta valor MNT | BH38: Falta valor MNT | BI38: Falta valor MNT | BJ38: Falta valor fibra | BM38: 2 | BN38: Falta valor fibra | BO38: Falta valor cenizas | BP38: Falta valor EE | BQ38: Falta valor fibra | BR38: Falta valor fibra | BS38: Falta valor fibra | BT38: Falta valor fibra | BU38: Falta valor cenizas | CN38: =BP38*0.75 ->  | CO38: 0.57 | CP38: Falta valor MNT | CQ38: Falta valor cenizas
A39: 38 | B39: Otros oleaginosas y derivados | C39: =IF(Valoración!$A$9=$A39,IF(Valoración!C$9>0,Valoración!C$9,""),"") ->  | D39: =IF(Valoración!$A$9=$A39,IF(Valoración!D$9>0,Valoración!D$9,""),"") ->  | E39: =IF(Valoración!$A$9=$A39,IF(Valoración!E$9>0,Valoración!E$9,""),"") ->  | G39: =IF(Valoración!$A$9=$A39,IF(Valoración!F$9>0,Valoración!F$9,""),"") ->  | H39: =IF(Valoración!$A$9=$A39,IF(Valoración!G$9>0,Valoración!G$9,""),"") ->  | I39: =IF(Valoración!$A$9=$A39,IF(Valoración!H$9>0,Valoración!H$9,""),"") ->  | J39: Falta valor EE | K39: Falta valor fibra | L39: Falta valor fibra | M39: Falta valor fibra | N39: =IF(Valoración!$A$9=$A39,IF(Valoración!I$9>0,Valoración!I$9,""),"") ->  | O39: Falta valor fibra | P39: =IF(Valoración!$A$9=$A39,IF(Valoración!J$9>0,Valoración!J$9,""),"") ->  | Q39: =IF(Valoración!$A$9=$A39,IF(Valoración!K$9>0,Valoración!K$9,""),"") ->  | R39: Falta valor cenizas | S39: Falta valor cenizas | T39: Falta valor MNT | U39: Falta valor EE | V39: Falta valor fibra | W39: Falta valor fibra | X39: Falta valor fibra | Y39: Falta valor fibra | Z39: =IF(Valoración!$A$9=$A39,IF(Valoración!M$9>0,Valoración!M$9,""),"") ->  | AA39: =IF(K39="Falta valor fibra",K39,IF(D39="","Falta valor MNT",IF(P39="","Falta valor cenizas",(89.6-0.106*K39+0.0088*D39*10-0.003*P39)/100))) -> Falta valor fibra | AC39: Falta valor fibra | AE39: Falta valor fibra | AF39: Falta valor cenizas | AG39: =IF(Valoración!$A$9=$A39,IF(Valoración!N$9>0,Valoración!N$9,""),"") ->  | AH39: Falta valor MNT | AI39: =IF(Valoración!$A$9=$A39,IF(Valoración!L$9>0,Valoración!L$9,""),"") ->  | AK39: Falta degradabilidad proteínas | AL39: Falta valor cenizas | AM39: Falta valor cenizas | AO39: Falta valor MNT | AP39: Falta valor MNT | AQ39: Falta valor cenizas | AR39: Falta valor MNT | AS39: Falta valor MNT | AT39: Falta valor MNT | AU39: Falta valor MNT | AV39: Falta valor MNT | AW39: Falta valor MNT | AX39: Falta valor MNT | AY39: Falta valor MNT | AZ39: Falta valor MNT | BB39: Otros oleaginosas y derivados | BD39: Falta valor MNT | BE39: Falta valor MNT | BF39: Falta valor MNT | BG39: Falta valor MNT | BH39: Falta valor MNT | BI39: Falta valor MNT | BJ39: Falta valor fibra | BM39: 2 | BN39: Falta valor fibra | BO39: Falta valor cenizas | BP39: Falta valor EE | BQ39: Falta valor fibra | BR39: Falta valor fibra | BS39: Falta valor fibra | BT39: Falta valor fibra | BU39: Falta valor cenizas | CO39: Falta degradabilidad proteínas | CP39: Falta valor MNT | CQ39: Falta valor cenizas
A40: 39 | B40: Leguminosas (guisante, judía, lenteja, altramuz, etc.) | C40: =IF(Valoración!$A$9=$A40,IF(Valoración!C$9>0,Valoración!C$9,""),"") ->  | D40: =IF(Valoración!$A$9=$A40,IF(Valoración!D$9>0,Valoración!D$9,""),"") ->  | E40: =IF(Valoración!$A$9=$A40,IF(Valoración!E$9>0,Valoración!E$9,""),"") ->  | G40: =IF(Valoración!$A$9=$A40,IF(Valoración!F$9>0,Valoración!F$9,""),"") ->  | H40: =IF(Valoración!$A$9=$A40,IF(Valoración!G$9>0,Valoración!G$9,""),"") ->  | I40: =IF(Valoración!$A$9=$A40,IF(Valoración!H$9>0,Valoración!H$9,""),"") ->  | J40: Falta valor EE | K40: Falta valor fibra | L40: Falta valor fibra | M40: Falta valor fibra | N40: =IF(Valoración!$A$9=$A40,IF(Valoración!I$9>0,Valoración!I$9,""),"") ->  | O40: Falta valor fibra | P40: =IF(Valoración!$A$9=$A40,IF(Valoración!J$9>0,Valoración!J$9,""),"") ->  | Q40: =IF(Valoración!$A$9=$A40,IF(Valoración!K$9>0,Valoración!K$9,""),"") ->  | R40: Falta valor cenizas | S40: Falta valor cenizas | T40: Falta valor MNT | U40: Falta valor EE | V40: Falta valor fibra | W40: Falta valor fibra | X40: Falta valor fibra | Y40: Falta valor fibra | Z40: =IF(Valoración!$A$9=$A40,IF(Valoración!M$9>0,Valoración!M$9,""),"") ->  | AA40: =IF(K40="Falta valor fibra",K40,(92.6-0.013*K40)/100) -> Falta valor fibra | AC40: Falta valor fibra | AE40: Falta valor fibra | AF40: Falta valor cenizas | AG40: 0.81 | AH40: Falta valor MNT | AI40: =IF(Valoración!$A$9=$A40,IF(Valoración!L$9>0,Valoración!L$9,""),"") ->  | AJ40: =IF(AI40="",AI40,(47.9+0.36*AI40*100+15.4)/100) ->  | AK40: 0.81 | AL40: Falta valor cenizas | AM40: Falta valor cenizas | AN40: -87 | AO40: Falta valor MNT | AP40: Falta valor MNT | AQ40: Falta valor cenizas | AR40: Falta valor MNT | AS40: Falta valor MNT | AT40: Falta valor MNT | AU40: Falta valor MNT | AV40: Falta valor MNT | AW40: Falta valor MNT | AX40: Falta valor MNT | AY40: Falta valor MNT | AZ40: Falta valor MNT | BA40: 0.77 | BB40: Leguminosas (guisante, judía, lenteja, altramuz, etc.) | BD40: Falta valor MNT | BE40: Falta valor MNT | BF40: Falta valor MNT | BG40: Falta valor MNT | BH40: Falta valor MNT | BI40: Falta valor MNT | BJ40: 0.1714 | BM40: 2 | BN40: Falta valor fibra | BO40: Falta valor cenizas | BP40: Falta valor EE | BQ40: Falta valor fibra | BR40: Falta valor fibra | BS40: Falta valor fibra | BT40: Falta valor fibra | BU40: Falta valor cenizas | CN40: =BP40*0.85 ->  | CO40: 0.81 | CP40: Falta valor MNT | CQ40: Falta valor cenizas
A41: 40 | B41: leguminosas extrussionades | C41: =IF(Valoración!$A$9=$A41,IF(Valoración!C$9>0,Valoración!C$9,""),"") ->  | D41: =IF(Valoración!$A$9=$A41,IF(Valoración!D$9>0,Valoración!D$9,""),"") ->  | E41: =IF(Valoración!$A$9=$A41,IF(Valoración!E$9>0,Valoración!E$9,""),"") ->  | G41: =IF(Valoración!$A$9=$A41,IF(Valoración!F$9>0,Valoración!F$9,""),"") ->  | H41: =IF(Valoración!$A$9=$A41,IF(Valoración!G$9>0,Valoración!G$9,""),"") ->  | I41: =IF(Valoración!$A$9=$A41,IF(Valoración!H$9>0,Valoración!H$9,""),"") ->  | J41: Falta valor EE | K41: Falta valor fibra | L41: Falta valor fibra | M41: Falta valor fibra | N41: =IF(Valoración!$A$9=$A41,IF(Valoración!I$9>0,Valoración!I$9,""),"") ->  | O41: Falta valor fibra | P41: =IF(Valoración!$A$9=$A41,IF(Valoración!J$9>0,Valoración!J$9,""),"") ->  | Q41: =IF(Valoración!$A$9=$A41,IF(Valoración!K$9>0,Valoración!K$9,""),"") ->  | R41: Falta valor cenizas | S41: Falta valor cenizas | T41: Falta valor MNT | U41: Falta valor EE | V41: Falta valor fibra | W41: Falta valor fibra | X41: Falta valor fibra | Y41: Falta valor fibra | Z41: =IF(Valoración!$A$9=$A41,IF(Valoración!M$9>0,Valoración!M$9,""),"") ->  | AA41: =IF(K41="Falta valor fibra",K41,(92.6-0.013*K41)/100) -> Falta valor fibra | AC41: Falta valor fibra | AE41: Falta valor fibra | AF41: Falta valor cenizas | AG41: =IF(Valoración!$A$9=$A41,IF(Valoración!N$9>0,Valoración!N$9,""),"") ->  | AH41: Falta valor MNT | AI41: =IF(Valoración!$A$9=$A41,IF(Valoración!L$9>0,Valoración!L$9,""),"") ->  | AJ41: =IF(AI41="",AI41,(47.9+0.36*AI41*100+5.7)/100) ->  | AK41: Falta degradabilidad proteínas | AL41: Falta valor cenizas | AM41: Falta valor cenizas | AO41: Falta valor MNT | AP41: Falta valor MNT | AQ41: Falta valor cenizas | AR41: Falta valor MNT | AS41: Falta valor MNT | AT41: Falta valor MNT | AU41: Falta valor MNT | AV41: Falta valor MNT | AW41: Falta valor MNT | AX41: Falta valor MNT | AY41: Falta valor MNT | AZ41: Falta valor MNT | BB41: leguminosas extrussionades | BD41: Falta valor MNT | BE41: Falta valor MNT | BF41: Falta valor MNT | BG41: Falta valor MNT | BH41: Falta valor MNT | BI41: Falta valor MNT | BJ41: Falta valor fibra | BM41: 2 | BN41: Falta valor fibra | BO41: Falta valor cenizas | BP41: Falta valor EE | BQ41: Falta valor fibra | BR41: Falta valor fibra | BS41: Falta valor fibra | BT41: Falta valor fibra | BU41: Falta valor cenizas | CO41: Falta degradabilidad proteínas | CP41: Falta valor MNT | CQ41: Falta valor cenizas
A42: =A41+1 -> 41 | B42: Pulpas (remolacha) | C42: =IF(Valoración!$A$9=$A42,IF(Valoración!C$9>0,Valoración!C$9,""),"") ->  | D42: =IF(Valoración!$A$9=$A42,IF(Valoración!D$9>0,Valoración!D$9,""),"") ->  | E42: =IF(Valoración!$A$9=$A42,IF(Valoración!E$9>0,Valoración!E$9,""),"") ->  | G42: =IF(Valoración!$A$9=$A42,IF(Valoración!F$9>0,Valoración!F$9,""),"") ->  | H42: =IF(Valoración!$A$9=$A42,IF(Valoración!G$9>0,Valoración!G$9,""),"") ->  | I42: =IF(Valoración!$A$9=$A42,IF(Valoración!H$9>0,Valoración!H$9,""),"") ->  | J42: =IF(E42="",IF(F42="","Falta valor EE",F42*10),E42*10) -> Falta valor EE | K42: =IF(G42="",IF(H42="","Falta valor fibra",0.4793*H42*10-20.98),G42*10) -> Falta valor fibra | L42: =IF(H42="",IF(G42="","Falta valor fibra",1.4419*G42*10+131.71),H42*10) -> Falta valor fibra | M42: =IF(I42="",IF(G42="","Falta valor fibra",1.2552*G42*10+10.808),I42*10) -> Falta valor fibra | N42: =IF(Valoración!$A$9=$A42,IF(Valoración!I$9>0,Valoración!I$9,""),"") ->  | O42: =IF(N42="",IF(K42="Falta valor fibra",K42,0.1649*K42^1.1136),N42*10) -> Falta valor fibra | P42: =IF(Valoración!$A$9=$A42,IF(Valoración!J$9>0,Valoración!J$9,""),"") ->  | Q42: =IF(Valoración!$A$9=$A42,IF(Valoración!K$9>0,Valoración!K$9,""),"") ->  | R42: Falta valor cenizas | S42: Falta valor cenizas | T42: Falta valor MNT | U42: Falta valor EE | V42: Falta valor fibra | W42: Falta valor fibra | X42: Falta valor fibra | Y42: Falta valor fibra | Z42: =IF(Valoración!$A$9=$A42,IF(Valoración!M$9>0,Valoración!M$9,""),"") ->  | AA42: =IF(K42="Falta valor fibra",K42,(93-0.037*K42)/100) -> Falta valor fibra | AC42: =IF(Z42="",IF(K42="Falta valor fibra",K42,AA42),AB42) -> Falta valor fibra | AD42: 0.79 | AE42: 0.79 | AF42: Falta valor cenizas | AG42: 0.56 | AH42: Falta valor MNT | AI42: =IF(Valoración!$A$9=$A42,IF(Valoración!L$9>0,Valoración!L$9,""),"") ->  | AJ42: =IF(AI42="",AI42,(47.9+0.36*AI42*100-4.2)/100) ->  | AK42: 0.56 | AL42: Falta valor cenizas | AM42: Falta valor cenizas | AN42: -103 | AO42: Falta valor MNT | AP42: Falta valor MNT | AQ42: Falta valor cenizas | AR42: Falta valor MNT | AS42: Falta valor MNT | AT42: Falta valor MNT | AU42: Falta valor MNT | AV42: Falta valor MNT | AW42: Falta valor MNT | AX42: Falta valor MNT | AY42: Falta valor MNT | AZ42: Falta valor MNT | BA42: 0.63 | BB42: =B42 -> Pulpas (remolacha) | BC42: =IF(C42="","",C42) ->  | BD42: Falta valor MNT | BE42: Falta valor MNT | BF42: =IF(D42="","Falta valor MNT",D42*10) -> Falta valor MNT | BG42: Falta valor MNT | BH42: Falta valor MNT | BI42: Falta valor MNT | BJ42: 0.2876 | BM42: 2 | BN42: =AC42 -> Falta valor fibra | BO42: =AF42 -> Falta valor cenizas | BP42: =J42 -> Falta valor EE | BQ42: Falta valor fibra | BR42: Falta valor fibra | BS42: Falta valor fibra | BT42: =O42 -> Falta valor fibra | BU42: Falta valor cenizas | CN42: =BP42*0.5 ->  | CO42: 0.56 | CP42: Falta valor MNT | CQ42: Falta valor cenizas
A43: =A42+1 -> 42 | B43: Pulpas (cítricos) | C43: =IF(Valoración!$A$9=$A43,IF(Valoración!C$9>0,Valoración!C$9,""),"") ->  | D43: =IF(Valoración!$A$9=$A43,IF(Valoración!D$9>0,Valoración!D$9,""),"") ->  | E43: =IF(Valoración!$A$9=$A43,IF(Valoración!E$9>0,Valoración!E$9,""),"") ->  | G43: =IF(Valoración!$A$9=$A43,IF(Valoración!F$9>0,Valoración!F$9,""),"") ->  | H43: =IF(Valoración!$A$9=$A43,IF(Valoración!G$9>0,Valoración!G$9,""),"") ->  | I43: =IF(Valoración!$A$9=$A43,IF(Valoración!H$9>0,Valoración!H$9,""),"") ->  | J43: =IF(E43="",IF(F43="","Falta valor EE",F43*10),E43*10) -> Falta valor EE | K43: =IF(G43="",IF(H43="","Falta valor fibra",0.4793*H43*10-20.98),G43*10) -> Falta valor fibra | L43: =IF(H43="",IF(G43="","Falta valor fibra",1.4419*G43*10+131.71),H43*10) -> Falta valor fibra | M43: =IF(I43="",IF(G43="","Falta valor fibra",1.2552*G43*10+10.808),I43*10) -> Falta valor fibra | N43: =IF(Valoración!$A$9=$A43,IF(Valoración!I$9>0,Valoración!I$9,""),"") ->  | O43: =IF(N43="",IF(K43="Falta valor fibra",K43,0.1649*K43^1.1136),N43*10) -> Falta valor fibra | P43: =IF(Valoración!$A$9=$A43,IF(Valoración!J$9>0,Valoración!J$9,""),"") ->  | Q43: =IF(Valoración!$A$9=$A43,IF(Valoración!K$9>0,Valoración!K$9,""),"") ->  | R43: Falta valor cenizas | S43: Falta valor cenizas | T43: Falta valor MNT | U43: Falta valor EE | V43: Falta valor fibra | W43: Falta valor fibra | X43: Falta valor fibra | Y43: Falta valor fibra | Z43: =IF(Valoración!$A$9=$A43,IF(Valoración!M$9>0,Valoración!M$9,""),"") ->  | AA43: =IF(K43="Falta valor fibra",K43,(93-0.037*K43)/100) -> Falta valor fibra | AC43: =IF(Z43="",IF(K43="Falta valor fibra",K43,AA43),AB43) -> Falta valor fibra | AD43: 0.82 | AE43: 0.82 | AF43: Falta valor cenizas | AG43: 0.65 | AH43: Falta valor MNT | AI43: =IF(Valoración!$A$9=$A43,IF(Valoración!L$9>0,Valoración!L$9,""),"") ->  | AJ43: =IF(AI43="",AI43,(47.9+0.36*AI43*100-4.2)/100) ->  | AK43: 0.65 | AL43: Falta valor cenizas | AM43: Falta valor cenizas | AN43: -103 | AO43: Falta valor MNT | AP43: Falta valor MNT | AQ43: Falta valor cenizas | AR43: Falta valor MNT | AS43: Falta valor MNT | AT43: Falta valor MNT | AU43: Falta valor MNT | AV43: Falta valor MNT | AW43: Falta valor MNT | AX43: Falta valor MNT | AY43: Falta valor MNT | AZ43: Falta valor MNT | BA43: 0.71 | BB43: =B43 -> Pulpas (cítricos) | BC43: =IF(C43="","",C43) ->  | BD43: Falta valor MNT | BE43: Falta valor MNT | BF43: =IF(D43="","Falta valor MNT",D43*10) -> Falta valor MNT | BG43: Falta valor MNT | BH43: Falta valor MNT | BI43: Falta valor MNT | BJ43: 0.2212 | BM43: 2 | BN43: =AC43 -> Falta valor fibra | BO43: =AF43 -> Falta valor cenizas | BP43: Falta valor EE | BQ43: Falta valor fibra | BR43: Falta valor fibra | BS43: Falta valor fibra | BT43: =O43 -> Falta valor fibra | BU43: Falta valor cenizas | CN43: =BP43*0.6 ->  | CO43: 0.65 | CP43: Falta valor MNT | CQ43: Falta valor cenizas
A44: 43 | B44: Residuos de frutas (manzanas, tomate, plátanos, calabaza, etc.) | C44: =IF(Valoración!$A$9=$A44,IF(Valoración!C$9>0,Valoración!C$9,""),"") ->  | D44: =IF(Valoración!$A$9=$A44,IF(Valoración!D$9>0,Valoración!D$9,""),"") ->  | E44: =IF(Valoración!$A$9=$A44,IF(Valoración!E$9>0,Valoración!E$9,""),"") ->  | G44: =IF(Valoración!$A$9=$A44,IF(Valoración!F$9>0,Valoración!F$9,""),"") ->  | H44: =IF(Valoración!$A$9=$A44,IF(Valoración!G$9>0,Valoración!G$9,""),"") ->  | I44: =IF(Valoración!$A$9=$A44,IF(Valoración!H$9>0,Valoración!H$9,""),"") ->  | J44: Falta valor EE | K44: Falta valor fibra | L44: Falta valor fibra | M44: Falta valor fibra | N44: =IF(Valoración!$A$9=$A44,IF(Valoración!I$9>0,Valoración!I$9,""),"") ->  | O44: Falta valor fibra | P44: =IF(Valoración!$A$9=$A44,IF(Valoración!J$9>0,Valoración!J$9,""),"") ->  | Q44: =IF(Valoración!$A$9=$A44,IF(Valoración!K$9>0,Valoración!K$9,""),"") ->  | R44: Falta valor cenizas | S44: Falta valor cenizas | T44: Falta valor MNT | U44: Falta valor EE | V44: Falta valor fibra | W44: Falta valor fibra | X44: Falta valor fibra | Y44: Falta valor fibra | Z44: =IF(Valoración!$A$9=$A44,IF(Valoración!M$9>0,Valoración!M$9,""),"") ->  | AA44: =IF(K44="Falta valor fibra",K44,(89.3-0.094*K44)/100) -> Falta valor fibra | AC44: Falta valor fibra | AE44: Falta valor fibra | AF44: Falta valor cenizas | AG44: 0.53 | AH44: Falta valor MNT | AI44: =IF(Valoración!$A$9=$A44,IF(Valoración!L$9>0,Valoración!L$9,""),"") ->  | AJ44: =IF(AI44="",AI44,(21.1+1.48*AI44*100-0.0076*(AI44*100)^2/100)) ->  | AK44: 0.53 | AL44: Falta valor cenizas | AM44: Falta valor cenizas | AO44: Falta valor MNT | AP44: Falta valor MNT | AQ44: Falta valor cenizas | AR44: Falta valor MNT | AS44: Falta valor MNT | AT44: Falta valor MNT | AU44: Falta valor MNT | AV44: Falta valor MNT | AW44: Falta valor MNT | AX44: Falta valor MNT | AY44: Falta valor MNT | AZ44: Falta valor MNT | BA44: 0.39 | BB44: Residuos de frutas (manzanas, tomate, plátanos, calabaza, etc.) | BD44: Falta valor MNT | BE44: Falta valor MNT | BF44: Falta valor MNT | BG44: Falta valor MNT | BH44: Falta valor MNT | BI44: Falta valor MNT | BJ44: 0.4868 | BM44: 2 | BN44: Falta valor fibra | BO44: Falta valor cenizas | BP44: Falta valor EE | BQ44: Falta valor fibra | BR44: Falta valor fibra | BS44: Falta valor fibra | BT44: Falta valor fibra | BU44: Falta valor cenizas | CO44: 0.53 | CP44: Falta valor MNT | CQ44: Falta valor cenizas
A45: =A44+1 -> 44 | B45: Mandioca, patatas | C45: =IF(Valoración!$A$9=$A45,IF(Valoración!C$9>0,Valoración!C$9,""),"") ->  | D45: =IF(Valoración!$A$9=$A45,IF(Valoración!D$9>0,Valoración!D$9,""),"") ->  | E45: =IF(Valoración!$A$9=$A45,IF(Valoración!E$9>0,Valoración!E$9,""),"") ->  | G45: =IF(Valoración!$A$9=$A45,IF(Valoración!F$9>0,Valoración!F$9,""),"") ->  | H45: =IF(Valoración!$A$9=$A45,IF(Valoración!G$9>0,Valoración!G$9,""),"") ->  | I45: =IF(Valoración!$A$9=$A45,IF(Valoración!H$9>0,Valoración!H$9,""),"") ->  | J45: Falta valor EE | K45: Falta valor fibra | L45: Falta valor fibra | M45: Falta valor fibra | N45: =IF(Valoración!$A$9=$A45,IF(Valoración!I$9>0,Valoración!I$9,""),"") ->  | O45: Falta valor fibra | P45: =IF(Valoración!$A$9=$A45,IF(Valoración!J$9>0,Valoración!J$9,""),"") ->  | Q45: =IF(Valoración!$A$9=$A45,IF(Valoración!K$9>0,Valoración!K$9,""),"") ->  | R45: Falta valor cenizas | S45: Falta valor cenizas | T45: Falta valor MNT | U45: Falta valor EE | V45: Falta valor fibra | W45: Falta valor fibra | X45: Falta valor fibra | Y45: Falta valor fibra | Z45: =IF(Valoración!$A$9=$A45,IF(Valoración!M$9>0,Valoración!M$9,""),"") ->  | AA45: =IF(K45="Falta valor fibra",K45,(97.81-0.112*K45)/100) -> Falta valor fibra | AC45: Falta valor fibra | AE45: Falta valor fibra | AF45: Falta valor cenizas | AG45: 0.61 | AH45: Falta valor MNT | AI45: =IF(Valoración!$A$9=$A45,IF(Valoración!L$9>0,Valoración!L$9,""),"") ->  | AK45: 0.61 | AL45: Falta valor cenizas | AM45: Falta valor cenizas | AN45: -55 | AO45: Falta valor MNT | AP45: Falta valor MNT | AQ45: Falta valor cenizas | AR45: Falta valor MNT | AS45: Falta valor MNT | AT45: Falta valor MNT | AU45: Falta valor MNT | AV45: Falta valor MNT | AW45: Falta valor MNT | AX45: Falta valor MNT | AY45: Falta valor MNT | AZ45: Falta valor MNT | BA45: 0.83 | BB45: Mandioca, patatas | BD45: Falta valor MNT | BE45: Falta valor MNT | BF45: Falta valor MNT | BG45: Falta valor MNT | BH45: Falta valor MNT | BI45: Falta valor MNT | BJ45: 0.1216 | BM45: 2 | BN45: Falta valor fibra | BO45: Falta valor cenizas | BP45: Falta valor EE | BQ45: Falta valor fibra | BR45: Falta valor fibra | BS45: Falta valor fibra | BT45: Falta valor fibra | BU45: Falta valor cenizas | CN45: =BP45*0.8 ->  | CO45: 0.61 | CP45: Falta valor MNT | CQ45: Falta valor cenizas
A46: =A45+1 -> 45 | B46: vinazas | C46: =IF(Valoración!$A$9=$A46,IF(Valoración!C$9>0,Valoración!C$9,""),"") ->  | D46: =IF(Valoración!$A$9=$A46,IF(Valoración!D$9>0,Valoración!D$9,""),"") ->  | E46: =IF(Valoración!$A$9=$A46,IF(Valoración!E$9>0,Valoración!E$9,""),"") ->  | G46: =IF(Valoración!$A$9=$A46,IF(Valoración!F$9="","",Valoración!F$9)) -> FALSE | H46: =IF(Valoración!$A$9=$A46,IF(Valoración!G$9="","",Valoración!G$9)) -> FALSE | I46: =IF(Valoración!$A$9=$A46,IF(Valoración!H$9="","",Valoración!H$9)) -> FALSE | J46: =IF(E46="",IF(F46="","Falta valor EE",F46*10),E46*10) -> Falta valor EE | K46: =IF(G46="",IF(H46="","Falta valor fibra",0.4793*H46*10-20.98),G46*10) -> 0 | L46: =IF(H46="",IF(G46="","Falta valor fibra",1.4419*G46*10+131.71),H46*10) -> 0 | M46: =IF(I46="",IF(G46="","Falta valor fibra",1.2552*G46*10+10.808),I46*10) -> 0 | N46: =IF(Valoración!$A$9=$A46,IF(Valoración!I$9>0,Valoración!I$9,""),"") ->  | O46: =IF(N46="",IF(K46="Falta valor fibra",K46,0.1649*K46^1.1136),N46*10) -> 0 | P46: =IF(Valoración!$A$9=$A46,IF(Valoración!J$9>0,Valoración!J$9,""),"") ->  | Q46: =IF(Valoración!$A$9=$A46,IF(Valoración!K$9>0,Valoración!K$9,""),"") ->  | R46: Falta valor cenizas | S46: Falta valor cenizas | T46: Falta valor MNT | U46: Falta valor EE | V46: Falta valor cenizas | W46: Falta valor cenizas | X46: Falta valor cenizas | Y46: Falta valor cenizas | Z46: =IF(Valoración!$A$9=$A46,IF(Valoración!M$9>0,Valoración!M$9,""),"") ->  | AA46: =IF(K46="Falta valor fibra",K46,IF(K46=0,"",(97.81-0.112*L46)/100)) ->  | AC46: =IF(Z46="",IF(AA46="",IF(AB46="",0.74),AA46)) -> 0.74 | AE46: =IF(AD46="",IF(AC46="No hi ha equació", AC46,IF(D46="","Falta valor MNT",IF(J46="Falta valor EE",J46,IF(P46="","Falta valor cenizas",(-3.94+AC46*100+0.0104*D46*10+0.0149*J46+0.0022*L46-0.0244*P46*10)/100))))) -> Falta valor MNT | AF46: Falta valor cenizas | AG46: 0.93 | AH46: 1 | AI46: =IF(Valoración!$A$9=$A46,IF(Valoración!L$9>0,Valoración!L$9,""),"") ->  | AK46: 0.93 | AL46: =IF(AF46="No hi ha equació",AF46,IF(D46="","Falta valor MNT",IF(AK46="Falta degradabilidad proteínas",AK46,(AF46-D46*10*(1-AK46)-J46)))) -> Falta valor MNT | AM46: =IF(AL46="No hi ha equació",AL46,IF(AL46="Falta valor MNT",AL46,IF(AL46="Falta degradabilidad proteínas",AL46,IF(AL46="Falta valor EE",AL46,(41.67+AL46*71.9*10^-3)*0.8*0.8)))) -> Falta valor MNT | AN46: -54 | AO46: =IF(D46="","Falta valor MNT",IF(P46="","Falta valor cenizas",4134+1.473*D46*10+5.239*J46+0.925*K46-4.46*P46*10+AN46)) -> Falta valor MNT | AP46: =IF(AE46="No hi ha equació",AE46,IF(AO46="Falta valor MNT",AO46,IF(AO46="Falta valor fibra",AO46,IF(AO46="Falta valor cenizas",AO46,IF(AO46="Falta valor EE",AO46,AO46*AE46))))) -> Falta valor MNT | AQ46: =IF(AF46="No hi ha equació",AF46,IF(AF46="Falta valor fibra",AF46,IF(AF46="Falta valor cenizas",AF46,IF(AF46="Falta valor MNT",AF46,((45.42-6.66*2+0.75*2^2)*AF46*12.5*(10^-3)))))) -> Falta valor cenizas | AR46: Falta valor MNT | AS46: =IF(AP46="No hi ha equació",AP46,IF(AP46="Falta valor MNT",AP46,IF(AP46="Falta valor fibra",AP46,IF(AP46="Falta valor cenizas",AP46,IF(AP46="Falta valor EE",AP46,AP46-AQ46-AR46))))) -> Falta valor MNT | AT46: =IF(AS46="No hi ha equació",AS46,IF(AS46="Falta valor MNT",AS46,IF(AS46="Falta valor fibra",AS46,IF(AS46="Falta valor cenizas",AS46,IF(AS46="Falta valor EE",AS46,AS46/AO46))))) -> Falta valor MNT | AU46: =IF(AT46="No hi ha equació",AT46,IF(AT46="Falta valor MNT",AT46,IF(AT46="Falta valor fibra",AT46,IF(AT46="Falta valor cenizas",AT46,IF(AT46="Falta valor EE",AT46,0.287*AT46+0.554))))) -> Falta valor MNT | AV46: =IF(AT46="No hi ha equació",AT46,IF(AT46="Falta valor MNT",AT46,IF(AT46="Falta valor fibra",AT46,IF(AT46="Falta valor cenizas",AT46,IF(AT46="Falta valor EE",AT46,0.78*AT46+0.006))))) -> Falta valor MNT | AW46: =IF(AV46="No hi ha equació",AV46,IF(AU46="Falta valor MNT",AU46,IF(AU46="Falta valor fibra",AU46,IF(AU46="Falta valor cenizas",AU46,IF(AU46="Falta valor EE",AU46,(AU46*AV46*1.5)/(AV46+0.5*AU46)))))) -> Falta valor MNT | AX46: =IF(AT46="No hi ha equació",AT46,IF(AT46="Falta valor MNT",AT46,IF(AT46="Falta valor fibra",AT46,IF(AT46="Falta valor cenizas",AT46,IF(AT46="Falta valor EE",AT46,0.65+0.247*(AT46-0.63)))))) -> Falta valor MNT | AY46: =IF(AS46="No hi ha equació",AS46,IF(AS46="Falta valor MNT",AS46,IF(AS46="Falta valor fibra",AS46,IF(AS46="Falta valor cenizas",AS46,IF(AS46="Falta valor EE",AS46,AS46*AX46))))) -> Falta valor MNT | AZ46: =IF(AS46="No hi ha equació",AS46,IF(AS46="Falta valor MNT",AS46,IF(AS46="Falta valor fibra",AS46,IF(AS46="Falta valor cenizas",AS46,IF(AS46="Falta valor EE",AS46,AS46*AW46))))) -> Falta valor MNT | BA46: 0.83 | BB46: =B46 -> vinazas | BC46: =IF(C46="","",C46) ->  | BD46: =IF(AY46="No hi ha equació",AY46,IF(AY46="Falta valor MNT",AY46,IF(AY46="Falta valor fibra",AY46,IF(AY46="Falta valor cenizas",AY46,IF(AY46="Falta valor EE",AY46,AY46/1760))))) -> Falta valor MNT | BE46: Falta valor MNT | BF46: =IF(D46="","Falta valor MNT",D46*10) -> Falta valor MNT | BG46: Falta valor MNT | BH46: =IF(AM46="No hi ha equació",AM46,IF(BG46="Falta valor MNT",BG46,IF(BG46="Falta degradabilidad proteínas",BG46,IF(BG46="Falta valor fibra",BG46,IF(BG46="Falta valor cenizas",BG46,BG46+AM46))))) -> Falta valor MNT | BI46: =IF(AL46="No hi ha equació",AL46,IF(D46="","Falta valor MNT",IF(J46="Falta valor EE",J46,IF(P46="","Falta valor cenizas",IF(AK46="Falta degradabilidad proteínas",AK46,IF(AK46="Revisar componentes",AK46,BF46*AK46-(41.67+AL46*71.9*(10^-3))-14.2)))))) -> Falta valor MNT | BJ46: 0.1216 | BM46: 2 | BN46: =AC46 -> 0.74 | BO46: =AF46 -> Falta valor cenizas | BP46: =J46 -> Falta valor EE | BQ46: =K46 -> 0 | BR46: =L46 -> 0 | BS46: =M46 -> 0 | BT46: =O46 -> 0 | BU46: Falta valor cenizas | CO46: 0.93 | CP46: 1 | CQ46: Falta valor MNT
A47: 46 | B47: melaza remolacha | C47: =IF(Valoración!$A$9=$A47,IF(Valoración!C$9>0,Valoración!C$9,""),"") ->  | D47: =IF(Valoración!$A$9=$A47,IF(Valoración!D$9>0,Valoración!D$9,""),"") ->  | E47: =IF(Valoración!$A$9=$A47,IF(Valoración!E$9>0,Valoración!E$9,""),"") ->  | G47: =IF(Valoración!$A$9=$A47,Valoración!F$9,"") ->  | H47: =IF(Valoración!$A$9=$A47,Valoración!G$9,"") ->  | I47: =IF(Valoración!$A$9=$A47,Valoración!H$9,"") ->  | J47: =IF(E47="",IF(F47="","Falta valor EE",F47*10),E47*10) -> Falta valor EE | K47: =IF(G47="",IF(H47="","Falta valor fibra",0.4793*H47*10-20.98),G47*10) -> Falta valor fibra | L47: =IF(H47="",IF(G47="","Falta valor fibra",1.4419*G47*10+131.71),H47*10) -> Falta valor fibra | M47: =IF(I47="",IF(G47="","Falta valor fibra",1.2552*G47*10+10.808),I47*10) -> Falta valor fibra | N47: =IF(Valoración!$A$9=$A47,IF(Valoración!I$9>0,Valoración!I$9,""),"") ->  | O47: =IF(N47="",IF(K47="Falta valor fibra",K47,0.1649*K47^1.1136),N47*10) -> Falta valor fibra | P47: =IF(Valoración!$A$9=$A47,IF(Valoración!J$9>0,Valoración!J$9,""),"") ->  | Q47: =IF(Valoración!$A$9=$A47,IF(Valoración!K$9>0,Valoración!K$9,""),"") ->  | R47: Falta valor cenizas | S47: Falta valor cenizas | T47: Falta valor MNT | U47: Falta valor EE | V47: Falta valor fibra | W47: Falta valor fibra | X47: Falta valor fibra | Y47: Falta valor fibra | Z47: =IF(Valoración!$A$9=$A47,IF(Valoración!M$9>0,Valoración!M$9,""),"") ->  | AA47: =IF(K47="Falta valor fibra",K47,IF(K47=0,"",(97.81-0.112*L47)/100)) -> Falta valor fibra | AC47: =IF(Z47="",IF(AA47="",IF(AB47="",0.74),AA47)) -> Falta valor fibra | AE47: =IF(AD47="",IF(AC47="No hi ha equació", AC47,IF(D47="","Falta valor MNT",IF(J47="Falta valor EE",J47,IF(P47="","Falta valor cenizas",(-3.94+AC47*100+0.0104*D47*10+0.0149*J47+0.0022*L47-0.0244*P47*10)/100))))) -> Falta valor MNT | AF47: Falta valor cenizas | AG47: 0.93 | AH47: 1 | AI47: =IF(Valoración!$A$9=$A47,IF(Valoración!L$9>0,Valoración!L$9,""),"") ->  | AK47: 0.93 | AL47: =IF(AF47="No hi ha equació",AF47,IF(D47="","Falta valor MNT",IF(AK47="Falta degradabilidad proteínas",AK47,(AF47-D47*10*(1-AK47)-J47)))) -> Falta valor MNT | AM47: =IF(AL47="No hi ha equació",AL47,IF(AL47="Falta valor MNT",AL47,IF(AL47="Falta degradabilidad proteínas",AL47,IF(AL47="Falta valor EE",AL47,(41.67+AL47*71.9*10^-3)*0.8*0.8)))) -> Falta valor MNT | AN47: -53 | AO47: =IF(D47="","Falta valor MNT",IF(P47="","Falta valor cenizas",4134+1.473*D47*10+5.239*J47+0.925*K47-4.46*P47*10+AN47)) -> Falta valor MNT | AP47: =IF(AE47="No hi ha equació",AE47,IF(AO47="Falta valor MNT",AO47,IF(AO47="Falta valor fibra",AO47,IF(AO47="Falta valor cenizas",AO47,IF(AO47="Falta valor EE",AO47,AO47*AE47))))) -> Falta valor MNT | AQ47: =IF(AF47="No hi ha equació",AF47,IF(AF47="Falta valor fibra",AF47,IF(AF47="Falta valor cenizas",AF47,IF(AF47="Falta valor MNT",AF47,((45.42-6.66*2+0.75*2^2)*AF47*12.5*(10^-3)))))) -> Falta valor cenizas | AR47: Falta valor MNT | AS47: =IF(AP47="No hi ha equació",AP47,IF(AP47="Falta valor MNT",AP47,IF(AP47="Falta valor fibra",AP47,IF(AP47="Falta valor cenizas",AP47,IF(AP47="Falta valor EE",AP47,AP47-AQ47-AR47))))) -> Falta valor MNT | AT47: =IF(AS47="No hi ha equació",AS47,IF(AS47="Falta valor MNT",AS47,IF(AS47="Falta valor fibra",AS47,IF(AS47="Falta valor cenizas",AS47,IF(AS47="Falta valor EE",AS47,AS47/AO47))))) -> Falta valor MNT | AU47: =IF(AT47="No hi ha equació",AT47,IF(AT47="Falta valor MNT",AT47,IF(AT47="Falta valor fibra",AT47,IF(AT47="Falta valor cenizas",AT47,IF(AT47="Falta valor EE",AT47,0.287*AT47+0.554))))) -> Falta valor MNT | AV47: =IF(AT47="No hi ha equació",AT47,IF(AT47="Falta valor MNT",AT47,IF(AT47="Falta valor fibra",AT47,IF(AT47="Falta valor cenizas",AT47,IF(AT47="Falta valor EE",AT47,0.78*AT47+0.006))))) -> Falta valor MNT | AW47: =IF(AV47="No hi ha equació",AV47,IF(AU47="Falta valor MNT",AU47,IF(AU47="Falta valor fibra",AU47,IF(AU47="Falta valor cenizas",AU47,IF(AU47="Falta valor EE",AU47,(AU47*AV47*1.5)/(AV47+0.5*AU47)))))) -> Falta valor MNT | AX47: =IF(AT47="No hi ha equació",AT47,IF(AT47="Falta valor MNT",AT47,IF(AT47="Falta valor fibra",AT47,IF(AT47="Falta valor cenizas",AT47,IF(AT47="Falta valor EE",AT47,0.65+0.247*(AT47-0.63)))))) -> Falta valor MNT | AY47: =IF(AS47="No hi ha equació",AS47,IF(AS47="Falta valor MNT",AS47,IF(AS47="Falta valor fibra",AS47,IF(AS47="Falta valor cenizas",AS47,IF(AS47="Falta valor EE",AS47,AS47*AX47))))) -> Falta valor MNT | AZ47: =IF(AS47="No hi ha equació",AS47,IF(AS47="Falta valor MNT",AS47,IF(AS47="Falta valor fibra",AS47,IF(AS47="Falta valor cenizas",AS47,IF(AS47="Falta valor EE",AS47,AS47*AW47))))) -> Falta valor MNT | BA47: 1.83 | BB47: =B47 -> melaza remolacha | BC47: =IF(C47="","",C47) ->  | BD47: Falta valor MNT | BE47: Falta valor MNT | BF47: =IF(D47="","Falta valor MNT",D47*10) -> Falta valor MNT | BG47: Falta valor MNT | BH47: =IF(AM47="No hi ha equació",AM47,IF(BG47="Falta valor MNT",BG47,IF(BG47="Falta degradabilidad proteínas",BG47,IF(BG47="Falta valor fibra",BG47,IF(BG47="Falta valor cenizas",BG47,BG47+AM47))))) -> Falta valor MNT | BI47: =IF(AL47="No hi ha equació",AL47,IF(D47="","Falta valor MNT",IF(J47="Falta valor EE",J47,IF(P47="","Falta valor cenizas",IF(AK47="Falta degradabilidad proteínas",AK47,IF(AK47="Revisar componentes",AK47,BF47*AK47-(41.67+AL47*71.9*(10^-3))-14.2)))))) -> Falta valor MNT | BJ47: =IF(BA47="",IF(Q47="",IF(M47="Falta valor fibra",M47,0.2127+0.0006289*M47),0.222-0.000082*Q47*10+0.000236*M47+0.328*(1-AC47)),0.8105-0.0083*BA47*100) -> -0.7084 | BM47: 3 | BN47: =AC47 -> Falta valor fibra | BO47: =AF47 -> Falta valor cenizas | BP47: =J47 -> Falta valor EE | BQ47: =K47 -> Falta valor fibra | BR47: =L47 -> Falta valor fibra | BS47: =M47 -> Falta valor fibra | BT47: =O47 -> Falta valor fibra | BU47: Falta valor cenizas | CN47: 2 | CO47: 0.93 | CP47: 1 | CQ47: Falta valor MNT
A48: 47 | B48: melaza caña | C48: =IF(Valoración!$A$9=$A48,IF(Valoración!C$9>0,Valoración!C$9,""),"") ->  | D48: =IF(Valoración!$A$9=$A48,IF(Valoración!D$9>0,Valoración!D$9,""),"") ->  | E48: =IF(Valoración!$A$9=$A48,IF(Valoración!E$9>0,Valoración!E$9,""),"") ->  | G48: =IF(Valoración!$A$9=$A48,Valoración!F$9,"") ->  | H48: =IF(Valoración!$A$9=$A48,Valoración!G$9,"") ->  | I48: =IF(Valoración!$A$9=$A48,Valoración!H$9,"") ->  | J48: =IF(E48="",IF(F48="","Falta valor EE",F48*10),E48*10) -> Falta valor EE | K48: =IF(G48="",IF(H48="","Falta valor fibra",0.4793*H48*10-20.98),G48*10) -> Falta valor fibra | L48: =IF(H48="",IF(G48="","Falta valor fibra",1.4419*G48*10+131.71),H48*10) -> Falta valor fibra | M48: =IF(I48="",IF(G48="","Falta valor fibra",1.2552*G48*10+10.808),I48*10) -> Falta valor fibra | N48: =IF(Valoración!$A$9=$A48,IF(Valoración!I$9>0,Valoración!I$9,""),"") ->  | O48: =IF(N48="",IF(K48="Falta valor fibra",K48,0.1649*K48^1.1136),N48*10) -> Falta valor fibra | P48: =IF(Valoración!$A$9=$A48,IF(Valoración!J$9>0,Valoración!J$9,""),"") ->  | Q48: =IF(Valoración!$A$9=$A48,IF(Valoración!K$9>0,Valoración!K$9,""),"") ->  | R48: Falta valor cenizas | S48: Falta valor cenizas | T48: Falta valor MNT | U48: Falta valor EE | V48: Falta valor fibra | W48: Falta valor fibra | X48: Falta valor fibra | Y48: Falta valor fibra | Z48: =IF(Valoración!$A$9=$A48,IF(Valoración!M$9>0,Valoración!M$9,""),"") ->  | AA48: Falta valor fibra | AC48: Falta valor fibra | AE48: =IF(AD48="",IF(AC48="No hi ha equació", AC48,IF(D48="","Falta valor MNT",IF(J48="Falta valor EE",J48,IF(P48="","Falta valor cenizas",(-3.94+AC48*100+0.0104*D48*10+0.0149*J48+0.0022*L48-0.0244*P48*10)/100))))) -> Falta valor MNT | AF48: Falta valor cenizas | AG48: 0.93 | AH48: 1 | AI48: =IF(Valoración!$A$9=$A48,IF(Valoración!L$9>0,Valoración!L$9,""),"") ->  | AK48: 0.93 | AL48: =IF(AF48="No hi ha equació",AF48,IF(D48="","Falta valor MNT",IF(AK48="Falta degradabilidad proteínas",AK48,(AF48-D48*10*(1-AK48)-J48)))) -> Falta valor MNT | AM48: =IF(AL48="No hi ha equació",AL48,IF(AL48="Falta valor MNT",AL48,IF(AL48="Falta degradabilidad proteínas",AL48,IF(AL48="Falta valor EE",AL48,(41.67+AL48*71.9*10^-3)*0.8*0.8)))) -> Falta valor MNT | AN48: -52 | AO48: =IF(D48="","Falta valor MNT",IF(P48="","Falta valor cenizas",4134+1.473*D48*10+5.239*J48+0.925*K48-4.46*P48*10+AN48)) -> Falta valor MNT | AP48: =IF(AE48="No hi ha equació",AE48,IF(AO48="Falta valor MNT",AO48,IF(AO48="Falta valor fibra",AO48,IF(AO48="Falta valor cenizas",AO48,IF(AO48="Falta valor EE",AO48,AO48*AE48))))) -> Falta valor MNT | AQ48: =IF(AF48="No hi ha equació",AF48,IF(AF48="Falta valor fibra",AF48,IF(AF48="Falta valor cenizas",AF48,IF(AF48="Falta valor MNT",AF48,((45.42-6.66*2+0.75*2^2)*AF48*12.5*(10^-3)))))) -> Falta valor cenizas | AR48: Falta valor MNT | AS48: =IF(AP48="No hi ha equació",AP48,IF(AP48="Falta valor MNT",AP48,IF(AP48="Falta valor fibra",AP48,IF(AP48="Falta valor cenizas",AP48,IF(AP48="Falta valor EE",AP48,AP48-AQ48-AR48))))) -> Falta valor MNT | AT48: =IF(AS48="No hi ha equació",AS48,IF(AS48="Falta valor MNT",AS48,IF(AS48="Falta valor fibra",AS48,IF(AS48="Falta valor cenizas",AS48,IF(AS48="Falta valor EE",AS48,AS48/AO48))))) -> Falta valor MNT | AU48: =IF(AT48="No hi ha equació",AT48,IF(AT48="Falta valor MNT",AT48,IF(AT48="Falta valor fibra",AT48,IF(AT48="Falta valor cenizas",AT48,IF(AT48="Falta valor EE",AT48,0.287*AT48+0.554))))) -> Falta valor MNT | AV48: =IF(AT48="No hi ha equació",AT48,IF(AT48="Falta valor MNT",AT48,IF(AT48="Falta valor fibra",AT48,IF(AT48="Falta valor cenizas",AT48,IF(AT48="Falta valor EE",AT48,0.78*AT48+0.006))))) -> Falta valor MNT | AW48: =IF(AV48="No hi ha equació",AV48,IF(AU48="Falta valor MNT",AU48,IF(AU48="Falta valor fibra",AU48,IF(AU48="Falta valor cenizas",AU48,IF(AU48="Falta valor EE",AU48,(AU48*AV48*1.5)/(AV48+0.5*AU48)))))) -> Falta valor MNT | AX48: =IF(AT48="No hi ha equació",AT48,IF(AT48="Falta valor MNT",AT48,IF(AT48="Falta valor fibra",AT48,IF(AT48="Falta valor cenizas",AT48,IF(AT48="Falta valor EE",AT48,0.65+0.247*(AT48-0.63)))))) -> Falta valor MNT | AY48: =IF(AS48="No hi ha equació",AS48,IF(AS48="Falta valor MNT",AS48,IF(AS48="Falta valor fibra",AS48,IF(AS48="Falta valor cenizas",AS48,IF(AS48="Falta valor EE",AS48,AS48*AX48))))) -> Falta valor MNT | AZ48: =IF(AS48="No hi ha equació",AS48,IF(AS48="Falta valor MNT",AS48,IF(AS48="Falta valor fibra",AS48,IF(AS48="Falta valor cenizas",AS48,IF(AS48="Falta valor EE",AS48,AS48*AW48))))) -> Falta valor MNT | BA48: 2.83 | BB48: =B48 -> melaza caña | BC48: =IF(C48="","",C48) ->  | BD48: Falta valor MNT | BE48: Falta valor MNT | BF48: =IF(D48="","Falta valor MNT",D48*10) -> Falta valor MNT | BG48: Falta valor MNT | BH48: =IF(AM48="No hi ha equació",AM48,IF(BG48="Falta valor MNT",BG48,IF(BG48="Falta degradabilidad proteínas",BG48,IF(BG48="Falta valor fibra",BG48,IF(BG48="Falta valor cenizas",BG48,BG48+AM48))))) -> Falta valor MNT | BI48: =IF(AL48="No hi ha equació",AL48,IF(D48="","Falta valor MNT",IF(J48="Falta valor EE",J48,IF(P48="","Falta valor cenizas",IF(AK48="Falta degradabilidad proteínas",AK48,IF(AK48="Revisar componentes",AK48,BF48*AK48-(41.67+AL48*71.9*(10^-3))-14.2)))))) -> Falta valor MNT | BJ48: =IF(BA48="",IF(Q48="",IF(M48="Falta valor fibra",M48,0.2127+0.0006289*M48),0.222-0.000082*Q48*10+0.000236*M48+0.328*(1-AC48)),0.8105-0.0083*BA48*100) -> -1.5384 | BM48: 4 | BN48: =AC48 -> Falta valor fibra | BO48: =AF48 -> Falta valor cenizas | BP48: =J48 -> Falta valor EE | BQ48: =K48 -> Falta valor fibra | BR48: =L48 -> Falta valor fibra | BS48: =M48 -> Falta valor fibra | BT48: =O48 -> Falta valor fibra | BU48: Falta valor cenizas | CN48: 12 | CO48: 0.93 | CP48: 1 | CQ48: Falta valor MNT
A49: 48 | B49: Otros productos (uva y oliva) | C49: =IF(Valoración!$A$9=$A49,IF(Valoración!C$9>0,Valoración!C$9,""),"") ->  | D49: =IF(Valoración!$A$9=$A49,IF(Valoración!D$9>0,Valoración!D$9,""),"") ->  | E49: =IF(Valoración!$A$9=$A49,IF(Valoración!E$9>0,Valoración!E$9,""),"") ->  | G49: =IF(Valoración!$A$9=$A49,IF(Valoración!F$9>0,Valoración!F$9,""),"") ->  | H49: =IF(Valoración!$A$9=$A49,IF(Valoración!G$9>0,Valoración!G$9,""),"") ->  | I49: =IF(Valoración!$A$9=$A49,IF(Valoración!H$9>0,Valoración!H$9,""),"") ->  | J49: Falta valor EE | K49: Falta valor fibra | L49: Falta valor fibra | M49: Falta valor fibra | N49: =IF(Valoración!$A$9=$A49,IF(Valoración!I$9>0,Valoración!I$9,""),"") ->  | O49: Falta valor fibra | P49: =IF(Valoración!$A$9=$A49,IF(Valoración!J$9>0,Valoración!J$9,""),"") ->  | Q49: =IF(Valoración!$A$9=$A49,IF(Valoración!K$9>0,Valoración!K$9,""),"") ->  | R49: Falta valor cenizas | S49: Falta valor cenizas | T49: Falta valor MNT | U49: Falta valor EE | V49: Falta valor fibra | W49: Falta valor fibra | X49: Falta valor fibra | Y49: Falta valor fibra | Z49: =IF(Valoración!$A$9=$A49,IF(Valoración!M$9>0,Valoración!M$9,""),"") ->  | AA49: =IF(K49="Falta valor fibra",K49,(63.6-0.089*K49)/100) -> Falta valor fibra | AC49: Falta valor fibra | AE49: =IF(AD49="",IF(AC49="Falta valor fibra", AC49,IF(D49="","Falta valor MNT",IF(J49="Falta valor EE",J49,IF(P49="","Falta valor cenizas",(-3.94+AC49*100+0.0104*D49*10+0.0149*J49+0.0022*L49-0.0244*P49*10)/100)))),AD49) -> Falta valor fibra | AF49: Falta valor cenizas | AG49: 0.42 | AH49: =IF(D49="","Falta valor MNT",IF(O49="Falta valor fibra",O49,IF(AF49="Falta valor fibra",AF49,IF(P49="","Falta valor cenizas",(88.3+0.0371*D49*10-3.7*(10^-5)*(D49*10)^2-0.107*O49-0.0313*(1000-AF49))/100)))) -> Falta valor MNT | AI49: =IF(Valoración!$A$9=$A49,IF(Valoración!L$9>0,Valoración!L$9,""),"") ->  | AK49: 0.42 | AL49: =IF(AF49="Falta valor cenizas",AF49,IF(D49="","Falta valor MNT",IF(AK49="Falta degradabilidad proteínas",AK49,IF(J49="Falta valor EE",J49,(AF49-D49*10*(1-AK49)-J49))))) -> Falta valor cenizas | AM49: =IF(AL49="Falta valor cenizas",AL49,IF(AL49="Falta valor MNT",AL49,IF(AL49="Falta degradabilidad proteínas",AL49,IF(AL49="Falta valor EE",AL49,(41.67+AL49*71.9*10^-3)*0.8*0.8)))) -> Falta valor cenizas | AO49: =IF(D49="","Falta valor MNT",IF(J49="Falta valor EE",J49,IF(K49="Falta valor fibra",K49,IF(P49="","Falta valor cenizas",4134+1.473*D49*10+5.239*J49+0.925*K49-4.46*P49*10+AN49)))) -> Falta valor MNT | AP49: =IF(AO49="Falta valor MNT",AO49,IF(AO49="Falta valor fibra",AO49,IF(AO49="Falta valor cenizas",AO49,IF(AO49="Falta valor EE",AO49,AO49*AE49)))) -> Falta valor MNT | AQ49: =IF(AF49="Falta valor fibra",AF49,IF(AF49="Falta valor cenizas",AF49,IF(AF49="Falta valor MNT",AF49,((45.42-6.66*2+0.75*2^2)*AF49*12.5*(10^-3))))) -> Falta valor cenizas | AR49: Falta valor MNT | AS49: =IF(AP49="Falta valor MNT",AP49,IF(AP49="Falta valor fibra",AP49,IF(AP49="Falta valor cenizas",AP49,IF(AP49="Falta valor EE",AP49,AP49-AQ49-AR49)))) -> Falta valor MNT | AT49: =IF(AS49="Falta valor MNT",AS49,IF(AS49="Falta valor fibra",AS49,IF(AS49="Falta valor cenizas",AS49,IF(AS49="Falta valor EE",AS49,AS49/AO49)))) -> Falta valor MNT | AU49: =IF(AT49="Falta valor MNT",AT49,IF(AT49="Falta valor fibra",AT49,IF(AT49="Falta valor cenizas",AT49,IF(AT49="Falta valor EE",AT49,0.287*AT49+0.554)))) -> Falta valor MNT | AV49: =IF(AT49="Falta valor MNT",AT49,IF(AT49="Falta valor fibra",AT49,IF(AT49="Falta valor cenizas",AT49,IF(AT49="Falta valor EE",AT49,0.78*AT49+0.006)))) -> Falta valor MNT | AW49: =IF(AU49="Falta valor MNT",AU49,IF(AU49="Falta valor fibra",AU49,IF(AU49="Falta valor cenizas",AU49,IF(AU49="Falta valor EE",AU49,(AU49*AV49*1.5)/(AV49+0.5*AU49))))) -> Falta valor MNT | AX49: =IF(AT49="Falta valor MNT",AT49,IF(AT49="Falta valor fibra",AT49,IF(AT49="Falta valor cenizas",AT49,IF(AT49="Falta valor EE",AT49,0.65+0.247*(AT49-0.63))))) -> Falta valor MNT | AY49: =IF(AS49="Falta valor MNT",AS49,IF(AS49="Falta valor fibra",AS49,IF(AS49="Falta valor cenizas",AS49,IF(AS49="Falta valor EE",AS49,AS49*AX49)))) -> Falta valor MNT | AZ49: =IF(AS49="Falta valor MNT",AS49,IF(AS49="Falta valor fibra",AS49,IF(AS49="Falta valor cenizas",AS49,IF(AS49="Falta valor EE",AS49,AS49*AW49)))) -> Falta valor MNT | BA49: 0.27 | BB49: Otros productos (uva y oliva) | BD49: =IF(AY49="Falta valor MNT",AY49,IF(AY49="Falta valor fibra",AY49,IF(AY49="Falta valor cenizas",AY49,IF(AY49="Falta valor EE",AY49,AY49/1760)))) -> Falta valor MNT | BE49: Falta valor MNT | BF49: Falta valor MNT | BG49: Falta valor MNT | BH49: =IF(BG49="Falta valor MNT",BG49,IF(BG49="Falta degradabilidad proteínas",BG49,IF(BG49="Falta valor fibra",BG49,IF(BG49="Falta valor cenizas",BG49,BG49+AM49)))) -> Falta valor MNT | BI49: =IF(D49="","Falta valor MNT",IF(J49="Falta valor EE",J49,IF(P49="","Falta valor cenizas",IF(AK49="Falta degradabilidad proteínas",AK49,IF(AK49="Revisar componentes",AK49,BF49*AK49-(41.67+AL49*71.9*(10^-3))-14.2))))) -> Falta valor MNT | BJ49: 0.5864 | BM49: 2 | BN49: Falta valor fibra | BO49: Falta valor cenizas | BP49: Falta valor EE | BQ49: Falta valor fibra | BR49: Falta valor fibra | BS49: Falta valor fibra | BT49: Falta valor fibra | BU49: Falta valor cenizas | CO49: 0.42 | CP49: Falta valor MNT | CQ49: Falta valor cenizas
A50: 49 | B50: Alimentos concentrados COMPUESTOS | C50: =IF(Valoración!$A$9=$A50,IF(Valoración!C$9>0,Valoración!C$9,""),"") ->  | D50: =IF(Valoración!$A$9=$A50,IF(Valoración!D$9>0,Valoración!D$9,""),"") ->  | E50: =IF(Valoración!$A$9=$A50,IF(Valoración!E$9>0,Valoración!E$9,""),"") ->  | G50: =IF(Valoración!$A$9=$A50,IF(Valoración!F$9>0,Valoración!F$9,""),"") ->  | H50: =IF(Valoración!$A$9=$A50,IF(Valoración!G$9>0,Valoración!G$9,""),"") ->  | I50: =IF(Valoración!$A$9=$A50,IF(Valoración!H$9>0,Valoración!H$9,""),"") ->  | J50: Falta valor EE | K50: Falta valor fibra | L50: Falta valor fibra | M50: Falta valor fibra | N50: =IF(Valoración!$A$9=$A50,IF(Valoración!I$9>0,Valoración!I$9,""),"") ->  | O50: Falta valor fibra | P50: =IF(Valoración!$A$9=$A50,IF(Valoración!J$9>0,Valoración!J$9,""),"") ->  | Q50: =IF(Valoración!$A$9=$A50,IF(Valoración!K$9>0,Valoración!K$9,""),"") ->  | R50: Falta valor cenizas | S50: Falta valor cenizas | T50: Falta valor MNT | U50: Falta valor EE | V50: Falta valor fibra | W50: Falta valor fibra | X50: Falta valor fibra | Y50: Falta valor fibra | Z50: =IF(Valoración!$A$9=$A50,IF(Valoración!M$9>0,Valoración!M$9,""),"") ->  | AA50: =IF(O50="Falta valor fibra",O50,IF(P50="","Falta valor cenizas",(86.53-0.258*Y50)/100)) -> Falta valor fibra | AB50: =IF(Z50="",Z50,IF(P50="","Falta valor cenizas",(25.13+0.648*Z50*10000/R50)/100)) ->  | AC50: Falta valor fibra | AE50: =IF(AD50="",IF(AC50="Falta valor fibra", AC50,IF(D50="","Falta valor MNT",IF(J50="Falta valor EE",J50,IF(P50="","Falta valor cenizas",(-3.94+AC50*100+0.0104*D50*10+0.0149*J50+0.0022*L50-0.0244*P50*10)/100)))),AD50) -> Falta valor fibra | AF50: Falta valor cenizas | AG50: =IF(Valoración!$A$9=$A50,IF(Valoración!N$9>0,Valoración!N$9,""),"") ->  | AH50: =IF(D50="","Falta valor MNT",IF(O50="Falta valor fibra",O50,IF(AF50="Falta valor fibra",AF50,IF(P50="","Falta valor cenizas",(88.3+0.0371*D50*10-3.7*(10^-5)*(D50*10)^2-0.107*O50-0.0313*(1000-AF50))/100)))) -> Falta valor MNT | AI50: =IF(Valoración!$A$9=$A50,IF(Valoración!L$9>0,Valoración!L$9,""),"") ->  | AJ50: =IF(AI50="",AI50,(34.4+0.87*AI50*100)/100) ->  | AK50: Falta degradabilidad proteínas | AL50: =IF(AF50="Falta valor cenizas",AF50,IF(D50="","Falta valor MNT",IF(AK50="Falta degradabilidad proteínas",AK50,IF(J50="Falta valor EE",J50,IF(AK50="Revisar componentes",AK50,(AF50-D50*10*(1-AK50)-J50)))))) -> Falta valor cenizas | AM50: =IF(AL50="Falta valor cenizas",AL50,IF(AL50="Falta valor MNT",AL50,IF(AL50="Falta degradabilidad proteínas",AL50,IF(AL50="Falta valor EE",AL50,IF(AL50="Revisar componentes",AL50,(41.67+AL50*71.9*10^-3)*0.8*0.8))))) -> Falta valor cenizas | AO50: =IF(T50="Falta valor MNT",T50,IF(U50="Falta valor EE",U50,IF(S50="Falta valor cenizas",S50,(5.7*T50+9.57*U50+4.24*(R50*10-T50-U50))*S50/100))) -> Falta valor MNT | AP50: =IF(AO50="Falta valor MNT",AO50,IF(AO50="Falta valor fibra",AO50,IF(AO50="Falta valor cenizas",AO50,IF(AO50="Falta valor EE",AO50,AO50*AE50)))) -> Falta valor MNT | AQ50: =IF(AF50="Falta valor fibra",AF50,IF(AF50="Falta valor cenizas",AF50,IF(AF50="Falta valor MNT",AF50,((45.42-6.66*2+0.75*2^2)*AF50*12.5*(10^-3))))) -> Falta valor cenizas | AR50: Falta valor MNT | AS50: =IF(AP50="Falta valor MNT",AP50,IF(AP50="Falta valor fibra",AP50,IF(AP50="Falta valor cenizas",AP50,IF(AP50="Falta valor EE",AP50,AP50-AQ50-AR50)))) -> Falta valor MNT | AT50: =IF(AS50="Falta valor MNT",AS50,IF(AS50="Falta valor fibra",AS50,IF(AS50="Falta valor cenizas",AS50,IF(AS50="Falta valor EE",AS50,AS50/AO50)))) -> Falta valor MNT | AU50: =IF(AT50="Falta valor MNT",AT50,IF(AT50="Falta valor fibra",AT50,IF(AT50="Falta valor cenizas",AT50,IF(AT50="Falta valor EE",AT50,0.287*AT50+0.554)))) -> Falta valor MNT | AV50: =IF(AT50="Falta valor MNT",AT50,IF(AT50="Falta valor fibra",AT50,IF(AT50="Falta valor cenizas",AT50,IF(AT50="Falta valor EE",AT50,0.78*AT50+0.006)))) -> Falta valor MNT | AW50: =IF(AU50="Falta valor MNT",AU50,IF(AU50="Falta valor fibra",AU50,IF(AU50="Falta valor cenizas",AU50,IF(AU50="Falta valor EE",AU50,(AU50*AV50*1.5)/(AV50+0.5*AU50))))) -> Falta valor MNT | AX50: =IF(AT50="Falta valor MNT",AT50,IF(AT50="Falta valor fibra",AT50,IF(AT50="Falta valor cenizas",AT50,IF(AT50="Falta valor EE",AT50,0.65+0.247*(AT50-0.63))))) -> Falta valor MNT | AY50: =IF(AS50="Falta valor MNT",AS50,IF(AS50="Falta valor fibra",AS50,IF(AS50="Falta valor cenizas",AS50,IF(AS50="Falta valor EE",AS50,AS50*AX50)))) -> Falta valor MNT | AZ50: =IF(AS50="Falta valor MNT",AS50,IF(AS50="Falta valor fibra",AS50,IF(AS50="Falta valor cenizas",AS50,IF(AS50="Falta valor EE",AS50,AS50*AW50)))) -> Falta valor MNT | BB50: Alimentos concentrados COMPUESTOS | BD50: Falta valor MNT | BE50: Falta valor MNT | BF50: Falta valor MNT | BG50: Falta valor MNT | BH50: =IF(BG50="Falta valor MNT",BG50,IF(BG50="Falta degradabilidad proteínas",BG50,IF(BG50="Falta valor fibra",BG50,IF(BG50="Falta valor cenizas",BG50,IF(BG50="Revisar componentes",BG50,BG50+AM50))))) -> Falta valor MNT | BI50: =IF(D50="","Falta valor MNT",IF(J50="Falta valor EE",J50,IF(P50="","Falta valor cenizas",IF(AK50="Falta degradabilidad proteínas",AK50,IF(AK50="Revisar componentes",AK50,BF50*AK50-(41.67+AL50*71.9*(10^-3))-14.2))))) -> Falta valor MNT | BJ50: Falta valor fibra | BM50: 2 | BN50: Falta valor fibra | BO50: Falta valor cenizas | BP50: Falta valor EE | BQ50: Falta valor fibra | BR50: Falta valor fibra | BS50: Falta valor fibra | BT50: Falta valor fibra | BU50: Falta valor cenizas | CO50: Falta degradabilidad proteínas | CP50: Falta valor MNT | CQ50: Falta valor cenizas
A51: 50 | B51: Alfalfa deshidratada y aglomerados | C51: =IF(Valoración!$A$9=$A51,IF(Valoración!C$9>0,Valoración!C$9,""),"") ->  | D51: =IF(Valoración!$A$9=$A51,IF(Valoración!D$9>0,Valoración!D$9,""),"") ->  | E51: =IF(Valoración!$A$9=$A51,IF(Valoración!E$9>0,Valoración!E$9,""),"") ->  | G51: =IF(Valoración!$A$9=$A51,IF(Valoración!F$9>0,Valoración!F$9,""),"") ->  | H51: =IF(Valoración!$A$9=$A51,IF(Valoración!G$9>0,Valoración!G$9,""),"") ->  | I51: =IF(Valoración!$A$9=$A51,IF(Valoración!H$9>0,Valoración!H$9,""),"") ->  | J51: Falta valor EE | K51: =IF(G51="",IF(H51="",IF(I51="","Falta valor fibra",-209+1.572*I51*10),(H51*10-320)/0.645),G51*10) -> Falta valor fibra | L51: =IF(H51="",IF(K51="Falta valor fibra",K51,(260+1.14*K51)),H51*10) -> Falta valor fibra | M51: =IF(I51="",IF(K51="Falta valor fibra",K51,40+0.95*K51),I51*10) -> Falta valor fibra | N51: =IF(Valoración!$A$9=$A51,IF(Valoración!I$9>0,Valoración!I$9,""),"") ->  | O51: Falta valor fibra | P51: =IF(Valoración!$A$9=$A51,IF(Valoración!J$9>0,Valoración!J$9,""),"") ->  | Q51: =IF(Valoración!$A$9=$A51,IF(Valoración!K$9>0,Valoración!K$9,""),"") ->  | R51: Falta valor cenizas | S51: Falta valor cenizas | T51: Falta valor MNT | U51: Falta valor EE | V51: Falta valor fibra | W51: Falta valor fibra | X51: Falta valor fibra | Y51: Falta valor fibra | Z51: =IF(Valoración!$A$9=$A51,IF(Valoración!M$9>0,Valoración!M$9,""),"") ->  | AA51: =IF(M51="Falta valor fibra",M51,(98.5-0.114*M51)/100) -> Falta valor fibra | AB51: =IF(Z51="",Z51,(-2.36+0.896*Z51*100)/100) ->  | AC51: Falta valor fibra | AE51: =IF(AD51="",IF(AC51="Falta valor fibra", AC51,IF(D51="","Falta valor MNT",IF(J51="Falta valor EE",J51,IF(P51="","Falta valor cenizas",(-3+1.003*AC51*100)/100)))),AD51) -> Falta valor fibra | AF51: Falta valor cenizas | AG51: 0.6 | AH51: =IF(D51="","Falta valor MNT",IF(O51="Falta valor fibra",O51,IF(AF51="Falta valor fibra",AF51,IF(P51="","Falta valor cenizas",(88.3+0.0371*D51*10-3.7*(10^-5)*(D51*10)^2-0.107*O51-0.0313*(1000-AF51))/100)))) -> Falta valor MNT | AI51: =IF(Valoración!$A$9=$A51,IF(Valoración!L$9>0,Valoración!L$9,""),"") ->  | AJ51: =IF(AI51="",AI51,(47.9+0.36*AI51*100+2.6)/100) ->  | AK51: 0.6 | AL51: =IF(AF51="Falta valor cenizas",AF51,IF(D51="","Falta valor MNT",IF(AK51="Falta degradabilidad proteínas",AK51,IF(J51="Falta valor EE",J51,(AF51-D51*10*(1-AK51)-J51))))) -> Falta valor cenizas | AM51: =IF(AL51="Falta valor cenizas",AL51,IF(AL51="Falta valor MNT",AL51,IF(AL51="Falta degradabilidad proteínas",AL51,IF(AL51="Falta valor EE",AL51,(41.67+AL51*71.9*10^-3)*0.8*0.8)))) -> Falta valor cenizas | AO51: =IF(T51="Falta valor MNT",T51,IF(T51="Falta valor cenizas",T51,(4618+2.051*T51)*S51/100)) -> Falta valor MNT | AP51: =IF(AO51="Falta valor MNT",AO51,IF(AO51="Falta valor fibra",AO51,IF(AO51="Falta valor cenizas",AO51,IF(AO51="Falta valor EE",AO51,AO51*AE51)))) -> Falta valor MNT | AQ51: =IF(AF51="Falta valor fibra",AF51,IF(AF51="Falta valor cenizas",AF51,IF(AF51="Falta valor MNT",AF51,((45.42-6.66*2+0.75*2^2)*AF51*12.5*(10^-3))))) -> Falta valor cenizas | AR51: Falta valor MNT | AS51: =IF(AP51="Falta valor MNT",AP51,IF(AP51="Falta valor fibra",AP51,IF(AP51="Falta valor cenizas",AP51,IF(AP51="Falta valor EE",AP51,AP51-AQ51-AR51)))) -> Falta valor MNT | AT51: =IF(AS51="Falta valor MNT",AS51,IF(AS51="Falta valor fibra",AS51,IF(AS51="Falta valor cenizas",AS51,IF(AS51="Falta valor EE",AS51,AS51/AO51)))) -> Falta valor MNT | AU51: =IF(AT51="Falta valor MNT",AT51,IF(AT51="Falta valor fibra",AT51,IF(AT51="Falta valor cenizas",AT51,IF(AT51="Falta valor EE",AT51,0.287*AT51+0.554)))) -> Falta valor MNT | AV51: =IF(AT51="Falta valor MNT",AT51,IF(AT51="Falta valor fibra",AT51,IF(AT51="Falta valor cenizas",AT51,IF(AT51="Falta valor EE",AT51,0.78*AT51+0.006)))) -> Falta valor MNT | AW51: =IF(AU51="Falta valor MNT",AU51,IF(AU51="Falta valor fibra",AU51,IF(AU51="Falta valor cenizas",AU51,IF(AU51="Falta valor EE",AU51,(AU51*AV51*1.5)/(AV51+0.5*AU51))))) -> Falta valor MNT | AX51: =IF(AT51="Falta valor MNT",AT51,IF(AT51="Falta valor fibra",AT51,IF(AT51="Falta valor cenizas",AT51,IF(AT51="Falta valor EE",AT51,0.65+0.247*(AT51-0.63))))) -> Falta valor MNT | AY51: =IF(AS51="Falta valor MNT",AS51,IF(AS51="Falta valor fibra",AS51,IF(AS51="Falta valor cenizas",AS51,IF(AS51="Falta valor EE",AS51,AS51*AX51)))) -> Falta valor MNT | AZ51: =IF(AS51="Falta valor MNT",AS51,IF(AS51="Falta valor fibra",AS51,IF(AS51="Falta valor cenizas",AS51,IF(AS51="Falta valor EE",AS51,AS51*AW51)))) -> Falta valor MNT | BA51: 0.52 | BB51: Alfalfa deshidratada y aglomerados | BD51: Falta valor MNT | BE51: Falta valor MNT | BF51: Falta valor MNT | BG51: Falta valor MNT | BH51: =IF(BG51="Falta valor MNT",BG51,IF(BG51="Falta degradabilidad proteínas",BG51,IF(BG51="Falta valor fibra",BG51,IF(BG51="Falta valor cenizas",BG51,BG51+AM51)))) -> Falta valor MNT | BI51: =IF(D51="","Falta valor MNT",IF(J51="Falta valor EE",J51,IF(P51="","Falta valor cenizas",IF(AK51="Falta degradabilidad proteínas",AK51,IF(AK51="Revisar componentes",AK51,BF51*AK51-(41.67+AL51*71.9*(10^-3))-14.2))))) -> Falta valor MNT | BJ51: 0.3789 | BM51: 2 | BN51: Falta valor fibra | BO51: Falta valor cenizas | BP51: Falta valor EE | BQ51: Falta valor fibra | BR51: Falta valor fibra | BS51: Falta valor fibra | BT51: Falta valor fibra | BU51: Falta valor cenizas | CN51: =BP51*0.5 ->  | CO51: 0.6 | CP51: Falta valor MNT | CQ51: Falta valor cenizas
A52: 51 | B52: Gramíneas deshidratadas y aglomeradas | C52: =IF(Valoración!$A$9=$A52,IF(Valoración!C$9>0,Valoración!C$9,""),"") ->  | D52: =IF(Valoración!$A$9=$A52,IF(Valoración!D$9>0,Valoración!D$9,""),"") ->  | E52: =IF(Valoración!$A$9=$A52,IF(Valoración!E$9>0,Valoración!E$9,""),"") ->  | G52: =IF(Valoración!$A$9=$A52,IF(Valoración!F$9>0,Valoración!F$9,""),"") ->  | H52: =IF(Valoración!$A$9=$A52,IF(Valoración!G$9>0,Valoración!G$9,""),"") ->  | I52: =IF(Valoración!$A$9=$A52,IF(Valoración!H$9>0,Valoración!H$9,""),"") ->  | J52: =IF(E52="",IF(F52="","Falta valor EE",F52*10),E52*10) -> Falta valor EE | K52: =IF(G52="",IF(H52="",IF(I52="","Falta valor fibra",-19+0.98*I52*10),(H52*10-260)/1.21),G52*10) -> Falta valor fibra | L52: Falta valor fibra | M52: Falta valor fibra | N52: =IF(Valoración!$A$9=$A52,IF(Valoración!I$9>0,Valoración!I$9,""),"") ->  | O52: =IF(N52="",IF(K52="Falta valor fibra",K52,0.1649*K52^1.1136),N52*10) -> Falta valor fibra | P52: =IF(Valoración!$A$9=$A52,IF(Valoración!J$9>0,Valoración!J$9,""),"") ->  | Q52: =IF(Valoración!$A$9=$A52,IF(Valoración!K$9>0,Valoración!K$9,""),"") ->  | R52: Falta valor cenizas | S52: Falta valor cenizas | T52: Falta valor MNT | U52: Falta valor EE | V52: Falta valor fibra | W52: Falta valor fibra | X52: Falta valor fibra | Y52: Falta valor fibra | Z52: =IF(Valoración!$A$9=$A52,IF(Valoración!M$9>0,Valoración!M$9,""),"") ->  | AA52: =IF(M52="Falta valor fibra",M52,(104.9-0.127*M52+0.014*D52*10)/100) -> Falta valor fibra | AB52: =IF(Z52="",Z52,(-2.36+0.896*Z52*100)/100) ->  | AC52: =IF(Z52="",IF(K52="Falta valor fibra",K52,AA52),AB52) -> Falta valor fibra | AE52: =IF(AD52="",IF(AC52="Falta valor fibra", AC52,IF(D52="","Falta valor MNT",IF(J52="Falta valor EE",J52,IF(P52="","Falta valor cenizas",(-2.556+0.985*AA52*100)/100)))),AD52) -> Falta valor fibra | AF52: Falta valor cenizas | AG52: 0.65 | AH52: =IF(D52="","Falta valor MNT",IF(O52="Falta valor fibra",O52,IF(AF52="Falta valor fibra",AF52,IF(P52="","Falta valor cenizas",(88.3+0.0371*D52*10-3.7*(10^-5)*(D52*10)^2-0.107*O52-0.0313*(1000-AF52))/100)))) -> Falta valor MNT | AI52: =IF(Valoración!$A$9=$A52,IF(Valoración!L$9>0,Valoración!L$9,""),"") ->  | AJ52: =IF(AI52="",AI52,(47.9+0.36*AI52*100+2.6)/100) ->  | AK52: 0.65 | AL52: =IF(AF52="Falta valor cenizas",AF52,IF(D52="","Falta valor MNT",IF(AK52="Falta degradabilidad proteínas",AK52,IF(J52="Falta valor EE",J52,(AF52-D52*10*(1-AK52)-J52))))) -> Falta valor cenizas | AM52: =IF(AL52="Falta valor cenizas",AL52,IF(AL52="Falta valor MNT",AL52,IF(AL52="Falta degradabilidad proteínas",AL52,IF(AL52="Falta valor EE",AL52,(41.67+AL52*71.9*10^-3)*0.8*0.8)))) -> Falta valor cenizas | AO52: =IF(T52="Falta valor MNT",T52,IF(T52="Falta valor cenizas",T52,(4618+2.051*T52)*S52/100)) -> Falta valor MNT | AP52: =IF(AO52="Falta valor MNT",AO52,IF(AO52="Falta valor fibra",AO52,IF(AO52="Falta valor cenizas",AO52,IF(AO52="Falta valor EE",AO52,AO52*AE52)))) -> Falta valor MNT | AQ52: =IF(AF52="Falta valor fibra",AF52,IF(AF52="Falta valor cenizas",AF52,IF(AF52="Falta valor MNT",AF52,((45.42-6.66*2+0.75*2^2)*AF52*12.5*(10^-3))))) -> Falta valor cenizas | AR52: Falta valor MNT | AS52: =IF(AP52="Falta valor MNT",AP52,IF(AP52="Falta valor fibra",AP52,IF(AP52="Falta valor cenizas",AP52,IF(AP52="Falta valor EE",AP52,AP52-AQ52-AR52)))) -> Falta valor MNT | AT52: =IF(AS52="Falta valor MNT",AS52,IF(AS52="Falta valor fibra",AS52,IF(AS52="Falta valor cenizas",AS52,IF(AS52="Falta valor EE",AS52,AS52/AO52)))) -> Falta valor MNT | AU52: =IF(AT52="Falta valor MNT",AT52,IF(AT52="Falta valor fibra",AT52,IF(AT52="Falta valor cenizas",AT52,IF(AT52="Falta valor EE",AT52,0.287*AT52+0.554)))) -> Falta valor MNT | AV52: =IF(AT52="Falta valor MNT",AT52,IF(AT52="Falta valor fibra",AT52,IF(AT52="Falta valor cenizas",AT52,IF(AT52="Falta valor EE",AT52,0.78*AT52+0.006)))) -> Falta valor MNT | AW52: =IF(AU52="Falta valor MNT",AU52,IF(AU52="Falta valor fibra",AU52,IF(AU52="Falta valor cenizas",AU52,IF(AU52="Falta valor EE",AU52,(AU52*AV52*1.5)/(AV52+0.5*AU52))))) -> Falta valor MNT | AX52: =IF(AT52="Falta valor MNT",AT52,IF(AT52="Falta valor fibra",AT52,IF(AT52="Falta valor cenizas",AT52,IF(AT52="Falta valor EE",AT52,0.65+0.247*(AT52-0.63))))) -> Falta valor MNT | AY52: =IF(AS52="Falta valor MNT",AS52,IF(AS52="Falta valor fibra",AS52,IF(AS52="Falta valor cenizas",AS52,IF(AS52="Falta valor EE",AS52,AS52*AX52)))) -> Falta valor MNT | AZ52: =IF(AS52="Falta valor MNT",AS52,IF(AS52="Falta valor fibra",AS52,IF(AS52="Falta valor cenizas",AS52,IF(AS52="Falta valor EE",AS52,AS52*AW52)))) -> Falta valor MNT | BB52: =B52 -> Gramíneas deshidratadas y aglomeradas | BC52: =IF(C52="","",C52) ->  | BD52: Falta valor MNT | BE52: Falta valor MNT | BF52: =IF(D52="","Falta valor MNT",D52*10) -> Falta valor MNT | BG52: Falta valor MNT | BH52: =IF(BG52="Falta valor MNT",BG52,IF(BG52="Falta degradabilidad proteínas",BG52,IF(BG52="Falta valor fibra",BG52,IF(BG52="Falta valor cenizas",BG52,BG52+AM52)))) -> Falta valor MNT | BI52: =IF(D52="","Falta valor MNT",IF(J52="Falta valor EE",J52,IF(P52="","Falta valor cenizas",IF(AK52="Falta degradabilidad proteínas",AK52,IF(AK52="Revisar componentes",AK52,BF52*AK52-(41.67+AL52*71.9*(10^-3))-14.2))))) -> Falta valor MNT | BJ52: =IF(BA52="",IF(Q52="",IF(M52="Falta valor fibra",M52,0.2127+0.0006289*M52),0.222-0.000082*Q52*10+0.000236*M52+0.328*(1-AC52)),0.8105-0.0083*BA52*100) -> Falta valor fibra | BM52: 2 | BN52: =AC52 -> Falta valor fibra | BO52: =AF52 -> Falta valor cenizas | BP52: =J52 -> Falta valor EE | BQ52: =K52 -> Falta valor fibra | BR52: =L52 -> Falta valor fibra | BS52: =M52 -> Falta valor fibra | BT52: =O52 -> Falta valor fibra | BU52: Falta valor cenizas | CN52: =BP52*0.5 ->  | CO52: 0.65 | CP52: Falta valor MNT | CQ52: Falta valor cenizas
W56: 1

Sheet Verde (hidden)
A1: 0 | C1: MS % | D1: MNT_PB | E1: EE | F1: EE | G1: FB | H1: NDF | I1: ADF | J1: EE | K1: FB | L1: NDF | M1: ADF | N1: Lignina | O1: cenizas | P1: MO % | Q1: MO s/Total | R1: MNTO | S1: EEO | T1: FBO | U1: NDFO | V1: ADFO | W1: LigninaO | X1: dMO Tablas INRA/NRC | Y1: dMO a partir análisis | Z1: dCs Dig enzimática | AA1: dMO | AB1: dE | AC1: MOD | AD1: Degradabilidad DT (proteínas) teórica | AE1: Digestibilidad dr (proteínas) real | AF1: DT6_Ami | AG1: DT_Ami | AH1: NDFND | AI1: PDIA | AJ1: AmiD_int | AK1: NDFD_int | AL1: AGD_int | AM1: MOF fermentescible | AN1: PDIM | AO1: c constante para EB | AP1: EB Kcal/kg MS | AQ1: ED Kcal/kg MS | AR1: MSVIm g/kg peso metabólico | AS1: MSVIl/kg peso metabólico | AT1: MSVIb g/kg peso metabólico | AU1: NIref | AV1: Emetano | AW1: Eorina | AX1: EM Kcal/kg MS | AY1: q | AZ1: km | BA1: kf | BB1: kmf | BC1: kl | BD1: ENl | BE1: ENmant i carn | BF1: Nom | BG1: MS % | BH1: UFL | BI1: UFV | BJ1: MNT_PB | BK1: PDIA | BL1: PDI | BM1: BPR | BN1: UEL | BO1: UEB | BP1: UEM | BQ1: NI ref | BR1: dMO | BS1: MOD_TDN | BT1: EE | BU1: FB | BV1: NDF | BW1: ADF | BX1: Lignina | BY1: cenizas | BZ1: Ca | CA1: P | CB1: Mg | CC1: Cl | CD1: K | CE1: Na | CF1: S | CG1: Co | CH1: Cu | CI1: Mo | CJ1: Iode | CK1: Fe | CL1: Mn | CM1: Se | CN1: Zn | CO1: Vit A | CP1: Vit D | CQ1: Vit E | CR1: AG | CS1: DT_N | CT1: PF | CU1: MOF | CV1: C16:0 | CW1: C18:0 | CX1: C18:1 | CY1: C18:2 | CZ1: C18:3
A2: =A1+1 -> 1 | B2: --
A3: 2 | B3: Bromo Espiga a 10 cm, Verde | C3: =IF(Valoración!$A$3=$A3,IF(Valoración!C$3>0,Valoración!C$3,""),"") ->  | D3: =IF(Valoración!$A$3=$A3,IF(Valoración!D$3>0,Valoración!D$3,""),"") ->  | E3: =IF(Valoración!$A$3=$A3,IF(Valoración!E$3>0,Valoración!E$3,""),"") ->  | F3: 4.1 | G3: =IF(Valoración!$A$3=$A3,IF(Valoración!F$3>0,Valoración!F$3,""),"") ->  | H3: =IF(Valoración!$A$3=$A3,IF(Valoración!G$3>0,Valoración!G$3,""),"") ->  | I3: =IF(Valoración!$A$3=$A3,IF(Valoración!H$3>0,Valoración!H$3,""),"") ->  | J3: =IF(E3="",IF(F3="","Falta valor EE",F3*10),E3*10) -> 41 | K3: =IF(G3="",IF(H3="",IF(I3="","Falta valor fibra",-19+0.98*I3*10),(H3*10-260)/1.14),G3*10) -> Falta valor fibra | L3: =IF(H3="",IF(K3="Falta valor fibra",K3,(260+1.14*K3)),H3*10) -> Falta valor fibra | M3: =IF(I3="",IF(K3="Falta valor fibra",K3,40+0.95*K3),I3*10) -> Falta valor fibra | N3: =IF(Valoración!$A$3=$A3,IF(Valoración!I$3>0,Valoración!I$3,""),"") ->  | O3: =IF(Valoración!$A$3=$A3,IF(Valoración!J$3>0,Valoración!J$3,""),"") ->  | P3: =IF(O3="","Falta valor cenizas",100-O3) -> Falta valor cenizas | Q3: =IF(P3="Falta valor cenizas",P3,P3*C3/100) -> Falta valor cenizas | R3: =IF(D3="","Falta valor MNT",IF(Q3="Falta valor cenizas",Q3,D3*10*C3/Q3)) -> Falta valor MNT | S3: =IF(Q3="Falta valor cenizas",Q3,$J3*$C3/$Q3) -> Falta valor cenizas | T3: =IF(K3="Falta valor fibra",K3,IF(Q3="Falta valor cenizas",Q3,K3*C3/Q3)) -> Falta valor fibra | U3: =IF(L3="Falta valor fibra",L3,IF(Q3="Falta valor cenizas",Q3,L3*C3/Q3)) -> Falta valor fibra | V3: =IF(M3="Falta valor fibra",M3,IF(Q3="Falta valor cenizas",Q3,M3*C3/Q3)) -> Falta valor fibra | W3: =IF(N3="",N3,IF(Q3="Falta valor cenizas",Q3,N3*10*C3/Q3)) ->  | X3: 0.8099652375 | Y3: =IF(K3="Falta valor fibra",K3,IF(D3="","Falta valor MNT",(90.8-0.091*K3+0.035*D3*10)/100)) -> Falta valor fibra | Z3: =IF(Valoración!$A$3=A3,IF(Valoración!$K$3>0,Valoración!K$3,""),"") ->  | AA3: =IF($Z3="",IF(Y3="Falta valor MNT",X3,IF(Y3="Falta valor fibra",X3,Y3)),(29.7+0.63*Z3*100)/100) -> 0.8099652375 | AB3: =IF(AA3="Falta valor fibra",AA3,0.957*AA3-0.00068) -> 0.7744567323 | AC3: =IF($AA3="Falta valor fibra",AA3,IF(P3="Falta valor cenizas",P3,$P3*10*$AA3)) -> Falta valor cenizas | AD3: 0.76 | AE3: 0.75 | AH3: =785-8.62*AA3*100 -> 86.80996524 | AI3: =IF(D3="","Falta valor MNT",IF(AD3="","Falta degradabilidad proteínas",IF(AE3="","Falta digestibilidad proteínas",D3*10*(1-AD3)*AE3))) -> Falta valor MNT | AK3: =11.4+1.08*AH3-AH3 -> 18.34479722 | AL3: =IF(CR3="Falta valor MNT",CR3,6+0.599*(9.7+0.75*CR3)) -> Falta valor MNT | AM3: =IF(AC3="Falta valor cenizas",AC3,IF(AI3="Falta valor MNT",AI3,AC3-AI3-AJ3-AK3-AL3)) -> Falta valor cenizas | AN3: =IF(AM3="Falta valor cenizas",AM3,IF(AM3="Falta valor MNT",AM3,(41.67+71.9*10^-3*AM3)*0.8*0.8)) -> Falta valor cenizas | AO3: -71 | AP3: =IF(R3="Falta valor MNT",R3,IF(P3="Falta valor cenizas",P3,(4531+1.735*$R3+$AO3)*P3/100)) -> Falta valor MNT | AQ3: =IF($AP3="Falta valor MNT",AP3,IF(AP3="Falta valor cenizas",AP3,$AP3*$AB3)) -> Falta valor MNT | AR3: =IF(D3="","Falta valor MNT",(-16+0.806*AA3*100+0.115*10*D3+0.686*BG3-1.7)) -> Falta valor MNT | AS3: =IF(AR3="Falta valor MNT",AR3,78+0.826*AR3) -> Falta valor MNT | AT3: =IF(AR3="Falta valor MNT",AR3,IF(AR3="Falta valor fibra",AR3,22.4+0.969*AR3)) -> Falta valor MNT | AU3: =IF(AR3="Falta valor MNT",AR3,IF(AR3="Falta valor fibra",AR3,(AR3*(60^0.75)/60)/10)) -> Falta valor MNT | AV3: =IF(AU3="Falta valor MNT",AU3,IF(AU3="Falta valor fibra",AU3,IF(AC3="Falta valor cenizas",AC3,((45.42-6.66*AU3+0.75*AU3^2)*AC3*12.5*(10^-3))))) -> Falta valor MNT | AW3: =IF(AU3="Falta valor MNT",AU3,IF(AU3="Falta valor fibra",AU3,(2.9+0.017*D3-0.47*AU3)*AP3*0.01)) -> Falta valor MNT | AX3: =IF(AQ3="Falta valor MNT",AQ3,IF(AQ3="Falta valor fibra",AQ3,AQ3-AV3-AW3)) -> Falta valor MNT | AY3: =IF(AX3="Falta valor MNT",AX3,IF(AX3="Falta valor fibra",AX3,IF(AX3="Falta valor cenizas",AX3,IF(AX3="Falta valor EE",AR3,AX3/AP3)))) -> Falta valor MNT | AZ3: =IF(AY3="Falta valor MNT",AY3,IF(AY3="Falta valor fibra",AY3,IF(AY3="Falta valor cenizas",AY3,IF(AY3="Falta valor EE",AY3,0.287*AY3+0.554)))) -> Falta valor MNT | BA3: =IF(AY3="Falta valor MNT",AY3,IF(AY3="Falta valor fibra",AY3,IF(AY3="Falta valor cenizas",AY3,IF(AY3="Falta valor EE",AY3,0.78*AY3+0.006)))) -> Falta valor MNT | BB3: =IF(AZ3="Falta valor MNT",AZ3,IF(AZ3="Falta valor fibra",AZ3,IF(AZ3="Falta valor cenizas",AZ3,IF(AZ3="Falta valor EE",AZ3,(AZ3*BA3*1.5)/(BA3+0.5*AZ3))))) -> Falta valor MNT | BC3: =IF(AY3="Falta valor MNT",AY3,IF(AY3="Falta valor fibra",AY3,IF(AY3="Falta valor cenizas",AY3,IF(AY3="Falta valor EE",AY3,0.65+0.247*(AY3-0.63))))) -> Falta valor MNT | BD3: =IF(AX3="Falta valor MNT",AX3,IF(AX3="Falta valor fibra",AX3,IF(AX3="Falta valor cenizas",AX3,IF(AX3="Falta valor EE",AX3,AX3*BC3)))) -> Falta valor MNT | BE3: =IF(AX3="Falta valor MNT",AX3,IF(AX3="Falta valor fibra",AX3,IF(AX3="Falta valor cenizas",AX3,IF(AX3="Falta valor EE",AX3,AX3*BB3)))) -> Falta valor MNT | BF3: =B3 -> Bromo Espiga a 10 cm, Verde | BG3: =IF(C3="","",C3) ->  | BH3: =IF(BD3="Falta valor MNT",BD3,IF(BD3="Falta valor fibra",BD3,IF(BD3="Falta valor cenizas",BD3,IF(BD3="Falta valor EE",BD3,BD3/1760)))) -> Falta valor MNT | BI3: =IF(BE3="Falta valor MNT",BE3,IF(BE3="Falta valor fibra",BE3,IF(BE3="Falta valor cenizas",BE3,IF(BE3="Falta valor EE",BE3,BE3/1760)))) -> Falta valor MNT | BJ3: =IF(D3="","Falta valor MNT",D3*10) -> Falta valor MNT | BK3: =AI3 -> Falta valor MNT | BL3: =IF(BK3="Falta valor MNT",BK3,IF(BK3="Falta degradabilidad proteínas",BK3,IF(BK3="Falta valor fibra",BK3,IF(BK3="Falta valor cenizas",BK3,IF(AN3="Falta valor fibra",AN3,BK3+AN3))))) -> Falta valor MNT | BM3: =IF(D3="","Falta valor MNT",IF(O3="","Falta valor cenizas",BJ3*AD3-(41.67+AM3*71.9*(10^-3))-14.2)) -> Falta valor MNT | BN3: =IF(AS3="Falta valor MNT",AS3,IF(AS3="Falta valor fibra",AS3,140/AS3)) -> Falta valor MNT | BO3: =IF(AT3="Falta valor MNT",AT3,IF(AT3="Falta valor fibra",AT3,95/AT3)) -> Falta valor MNT | BP3: =IF(AR3="Falta valor MNT",AR3,IF(AR3="Falta valor fibra",AR3,75/AR3)) -> Falta valor MNT | BQ3: =AU3 -> Falta valor MNT | BR3: =AA3 -> 0.8099652375 | BS3: =AC3 -> Falta valor cenizas | BT3: =J3 -> 41 | BU3: =IF(K3="","",K3) -> Falta valor fibra | BV3: =IF(L3="","",L3) -> Falta valor fibra | BW3: =IF(M3="","",M3) -> Falta valor fibra | BX3: =IF(N3="","",N3*10) ->  | BY3: =IF(O3="","",O3*10) ->  | CR3: =IF(BJ3="Falta valor MNT",BJ3,1.78+0.105*BJ3+5.45) -> Falta valor MNT | CS3: =AD3 -> 0.76 | CU3: =AM3 -> Falta valor cenizas | CV3: =IF(CR3="Falta valor MNT",CR3,23.24-0.445*CR3+0.005*CR3^2+1.44) -> Falta valor MNT | CW3: =IF(CR3="Falta valor MNT",CR3,2.92-0.027*CR3-0.57) -> Falta valor MNT | CX3: =IF(CR3="Falta valor MNT",CR3,5.23-0.052*CR3-1.19) -> Falta valor MNT | CY3: =IF(CR3="Falta valor MNT",CR3,20.59-0.16*CR3-1.81) -> Falta valor MNT | CZ3: =IF(CR3="Falta valor MNT",CR3,35.47+1.107*CR3-0.012*CR3^2+3.44) -> Falta valor MNT
A4: 3 | B4: Bromo 1 semana antes inicio espigado, Verde | C4: =IF(Valoración!$A$3=$A4,IF(Valoración!C$3>0,Valoración!C$3,""),"") ->  | D4: =IF(Valoración!$A$3=$A4,IF(Valoración!D$3>0,Valoración!D$3,""),"") ->  | E4: =IF(Valoración!$A$3=$A4,IF(Valoración!E$3>0,Valoración!E$3,""),"") ->  | F4: 3.7 | G4: =IF(Valoración!$A$3=$A4,IF(Valoración!F$3>0,Valoración!F$3,""),"") ->  | H4: =IF(Valoración!$A$3=$A4,IF(Valoración!G$3>0,Valoración!G$3,""),"") ->  | I4: =IF(Valoración!$A$3=$A4,IF(Valoración!H$3>0,Valoración!H$3,""),"") ->  | J4: =IF(E4="",IF(F4="","Falta valor EE",F4*10),E4*10) -> 37 | K4: =IF(G4="",IF(H4="",IF(I4="","Falta valor fibra",-19+0.98*I4*10),(H4*10-260)/1.14),G4*10) -> Falta valor fibra | L4: =IF(H4="",IF(K4="Falta valor fibra",K4,(260+1.14*K4)),H4*10) -> Falta valor fibra | M4: =IF(I4="",IF(K4="Falta valor fibra",K4,40+0.95*K4),I4*10) -> Falta valor fibra | N4: =IF(Valoración!$A$3=$A4,IF(Valoración!I$3>0,Valoración!I$3,""),"") ->  | O4: =IF(Valoración!$A$3=$A4,IF(Valoración!J$3>0,Valoración!J$3,""),"") ->  | P4: Falta valor cenizas | Q4: Falta valor cenizas | R4: Falta valor MNT | S4: Falta valor cenizas | T4: Falta valor fibra | U4: Falta valor fibra | V4: Falta valor fibra | X4: 0.7904328018 | Y4: Falta valor fibra | Z4: =IF(Valoración!$A$3=A4,IF(Valoración!$K$3>0,Valoración!K$3,""),"") ->  | AA4: =IF($Z4="",IF(Y4="Falta valor MNT",X4,IF(Y4="Falta valor fibra",X4,Y4)),(29.7+0.63*Z4*100)/100) -> 0.7904328018 | AB4: =IF(AA4="Falta valor fibra",AA4,0.957*AA4-0.00068) -> 0.7557641913 | AC4: Falta valor cenizas | AD4: 0.75 | AE4: 0.75 | AH4: =785-8.62*AA4*100 -> 103.6469248 | AI4: Falta valor MNT | AK4: =11.4+1.08*AH4-AH4 -> 19.69175399 | AL4: =IF(CR4="Falta valor MNT",CR4,6+0.599*(9.7+0.75*CR4)) -> Falta valor MNT | AM4: Falta valor cenizas | AN4: Falta valor cenizas | AO4: -71 | AP4: Falta valor MNT | AQ4: Falta valor MNT | AR4: Falta valor MNT | AS4: =IF(AR4="Falta valor MNT",AR4,78+0.826*AR4) -> Falta valor MNT | AT4: =IF(AR4="Falta valor MNT",AR4,IF(AR4="Falta valor fibra",AR4,22.4+0.969*AR4)) -> Falta valor MNT | AU4: =IF(AR4="Falta valor MNT",AR4,IF(AR4="Falta valor fibra",AR4,(AR4*(60^0.75)/60)/10)) -> Falta valor MNT | AV4: Falta valor MNT | AW4: Falta valor MNT | AX4: =IF(AQ4="Falta valor MNT",AQ4,IF(AQ4="Falta valor fibra",AQ4,AQ4-AV4-AW4)) -> Falta valor MNT | AY4: Falta valor MNT | AZ4: Falta valor MNT | BA4: Falta valor MNT | BB4: Falta valor MNT | BC4: Falta valor MNT | BD4: Falta valor MNT | BE4: Falta valor MNT | BF4: Bromo 1 semana antes inicio espigado, Verde | BH4: Falta valor MNT | BI4: Falta valor MNT | BJ4: =IF(D4="","Falta valor MNT",D4*10) -> Falta valor MNT | BK4: Falta valor MNT | BL4: Falta valor MNT | BM4: Falta valor MNT | BN4: =IF(AS4="Falta valor MNT",AS4,IF(AS4="Falta valor fibra",AS4,140/AS4)) -> Falta valor MNT | BO4: =IF(AT4="Falta valor MNT",AT4,IF(AT4="Falta valor fibra",AT4,95/AT4)) -> Falta valor MNT | BP4: =IF(AR4="Falta valor MNT",AR4,IF(AR4="Falta valor fibra",AR4,75/AR4)) -> Falta valor MNT | BQ4: =AU4 -> Falta valor MNT | BR4: 0.7904328018 | BS4: Falta valor cenizas | BT4: =J4 -> 37 | BU4: Falta valor fibra | BV4: Falta valor fibra | BW4: Falta valor fibra | CR4: =IF(BJ4="Falta valor MNT",BJ4,1.78+0.105*BJ4+5.45) -> Falta valor MNT | CS4: =AD4 -> 0.75 | CU4: =AM4 -> Falta valor cenizas | CV4: =IF(CR4="Falta valor MNT",CR4,23.24-0.445*CR4+0.005*CR4^2+1.44) -> Falta valor MNT | CW4: =IF(CR4="Falta valor MNT",CR4,2.92-0.027*CR4-0.57) -> Falta valor MNT | CX4: =IF(CR4="Falta valor MNT",CR4,5.23-0.052*CR4-1.19) -> Falta valor MNT | CY4: =IF(CR4="Falta valor MNT",CR4,20.59-0.16*CR4-1.81) -> Falta valor MNT | CZ4: =IF(CR4="Falta valor MNT",CR4,35.47+1.107*CR4-0.012*CR4^2+3.44) -> Falta valor MNT
A5: 4 | B5: Bromo Inicio espigado, Verde | C5: =IF(Valoración!$A$3=$A5,IF(Valoración!C$3>0,Valoración!C$3,""),"") ->  | D5: =IF(Valoración!$A$3=$A5,IF(Valoración!D$3>0,Valoración!D$3,""),"") ->  | E5: =IF(Valoración!$A$3=$A5,IF(Valoración!E$3>0,Valoración!E$3,""),"") ->  | F5: 3.5 | G5: =IF(Valoración!$A$3=$A5,IF(Valoración!F$3>0,Valoración!F$3,""),"") ->  | H5: =IF(Valoración!$A$3=$A5,IF(Valoración!G$3>0,Valoración!G$3,""),"") ->  | I5: =IF(Valoración!$A$3=$A5,IF(Valoración!H$3>0,Valoración!H$3,""),"") ->  | J5: 35 | K5: Falta valor fibra | L5: Falta valor fibra | M5: Falta valor fibra | N5: =IF(Valoración!$A$3=$A5,IF(Valoración!I$3>0,Valoración!I$3,""),"") ->  | O5: =IF(Valoración!$A$3=$A5,IF(Valoración!J$3>0,Valoración!J$3,""),"") ->  | P5: Falta valor cenizas | Q5: Falta valor cenizas | R5: Falta valor MNT | S5: Falta valor cenizas | T5: Falta valor fibra | U5: Falta valor fibra | V5: Falta valor fibra | X5: 0.74 | Y5: Falta valor fibra | Z5: =IF(Valoración!$A$3=A5,IF(Valoración!$K$3>0,Valoración!K$3,""),"") ->  | AA5: 0.74 | AB5: 0.7075 | AC5: Falta valor cenizas | AD5: 0.74 | AE5: 0.75 | AH5: 147.12 | AI5: Falta valor MNT | AK5: 23.1696 | AL5: Falta valor MNT | AM5: Falta valor cenizas | AN5: Falta valor cenizas | AO5: -71 | AP5: Falta valor MNT | AQ5: Falta valor MNT | AR5: Falta valor MNT | AS5: Falta valor MNT | AT5: Falta valor MNT | AU5: Falta valor MNT | AV5: Falta valor MNT | AW5: Falta valor MNT | AX5: Falta valor MNT | AY5: Falta valor MNT | AZ5: Falta valor MNT | BA5: Falta valor MNT | BB5: Falta valor MNT | BC5: Falta valor MNT | BD5: Falta valor MNT | BE5: Falta valor MNT | BF5: Bromo Inicio espigado, Verde | BH5: Falta valor MNT | BI5: Falta valor MNT | BJ5: Falta valor MNT | BK5: Falta valor MNT | BL5: Falta valor MNT | BM5: Falta valor MNT | BN5: Falta valor MNT | BO5: Falta valor MNT | BP5: Falta valor MNT | BQ5: Falta valor MNT | BR5: 0.74 | BS5: Falta valor cenizas | BT5: 35 | BU5: Falta valor fibra | BV5: Falta valor fibra | BW5: Falta valor fibra | CR5: Falta valor MNT | CS5: 0.74 | CU5: Falta valor cenizas | CV5: Falta valor MNT | CW5: Falta valor MNT | CX5: Falta valor MNT | CY5: Falta valor MNT | CZ5: Falta valor MNT
A6: =A5+1 -> 5 | B6: Bromo Espigado, Verde | C6: =IF(Valoración!$A$3=$A6,IF(Valoración!C$3>0,Valoración!C$3,""),"") ->  | D6: =IF(Valoración!$A$3=$A6,IF(Valoración!D$3>0,Valoración!D$3,""),"") ->  | E6: =IF(Valoración!$A$3=$A6,IF(Valoración!E$3>0,Valoración!E$3,""),"") ->  | F6: 3.2 | G6: =IF(Valoración!$A$3=$A6,IF(Valoración!F$3>0,Valoración!F$3,""),"") ->  | H6: =IF(Valoración!$A$3=$A6,IF(Valoración!G$3>0,Valoración!G$3,""),"") ->  | I6: =IF(Valoración!$A$3=$A6,IF(Valoración!H$3>0,Valoración!H$3,""),"") ->  | J6: 32 | K6: Falta valor fibra | L6: Falta valor fibra | M6: Falta valor fibra | N6: =IF(Valoración!$A$3=$A6,IF(Valoración!I$3>0,Valoración!I$3,""),"") ->  | O6: =IF(Valoración!$A$3=$A6,IF(Valoración!J$3>0,Valoración!J$3,""),"") ->  | P6: Falta valor cenizas | Q6: Falta valor cenizas | R6: Falta valor MNT | S6: Falta valor cenizas | T6: Falta valor fibra | U6: Falta valor fibra | V6: Falta valor fibra | X6: 0.7303867403 | Y6: Falta valor fibra | Z6: =IF(Valoración!$A$3=A6,IF(Valoración!$K$3>0,Valoración!K$3,""),"") ->  | AA6: 0.7303867403 | AB6: 0.6983001105 | AC6: Falta valor cenizas | AD6: 0.74 | AE6: 0.75 | AH6: 155.4066298 | AI6: Falta valor MNT | AK6: 23.83253039 | AL6: Falta valor MNT | AM6: Falta valor cenizas | AN6: Falta valor cenizas | AO6: -71 | AP6: Falta valor MNT | AQ6: Falta valor MNT | AR6: Falta valor MNT | AS6: Falta valor MNT | AT6: Falta valor MNT | AU6: Falta valor MNT | AV6: Falta valor MNT | AW6: Falta valor MNT | AX6: Falta valor MNT | AY6: Falta valor MNT | AZ6: Falta valor MNT | BA6: Falta valor MNT | BB6: Falta valor MNT | BC6: Falta valor MNT | BD6: Falta valor MNT | BE6: Falta valor MNT | BF6: Bromo Espigado, Verde | BH6: Falta valor MNT | BI6: Falta valor MNT | BJ6: Falta valor MNT | BK6: Falta valor MNT | BL6: Falta valor MNT | BM6: Falta valor MNT | BN6: Falta valor MNT | BO6: Falta valor MNT | BP6: Falta valor MNT | BQ6: Falta valor MNT | BR6: 0.7303867403 | BS6: Falta valor cenizas | BT6: 32 | BU6: Falta valor fibra | BV6: Falta valor fibra | BW6: Falta valor fibra | CR6: Falta valor MNT | CS6: 0.74 | CU6: Falta valor cenizas | CV6: Falta valor MNT | CW6: Falta valor MNT | CX6: Falta valor MNT | CY6: Falta valor MNT | CZ6: Falta valor MNT
A7: 6 | B7: Bromo Rebrotes de espigado con tallos, Verde | C7: =IF(Valoración!$A$3=$A7,IF(Valoración!C$3>0,Valoración!C$3,""),"") ->  | D7: =IF(Valoración!$A$3=$A7,IF(Valoración!D$3>0,Valoración!D$3,""),"") ->  | E7: =IF(Valoración!$A$3=$A7,IF(Valoración!E$3>0,Valoración!E$3,""),"") ->  | F7: 3.3 | G7: =IF(Valoración!$A$3=$A7,IF(Valoración!F$3>0,Valoración!F$3,""),"") ->  | H7: =IF(Valoración!$A$3=$A7,IF(Valoración!G$3>0,Valoración!G$3,""),"") ->  | I7: =IF(Valoración!$A$3=$A7,IF(Valoración!H$3>0,Valoración!H$3,""),"") ->  | J7: 33 | K7: Falta valor fibra | L7: Falta valor fibra | M7: Falta valor fibra | N7: =IF(Valoración!$A$3=$A7,IF(Valoración!I$3>0,Valoración!I$3,""),"") ->  | O7: =IF(Valoración!$A$3=$A7,IF(Valoración!J$3>0,Valoración!J$3,""),"") ->  | P7: Falta valor cenizas | Q7: Falta valor cenizas | R7: Falta valor MNT | S7: Falta valor cenizas | T7: Falta valor fibra | U7: Falta valor fibra | V7: Falta valor fibra | X7: 0.7199100112 | Y7: Falta valor fibra | Z7: =IF(Valoración!$A$3=A7,IF(Valoración!$K$3>0,Valoración!K$3,""),"") ->  | AA7: 0.7199100112 | AB7: 0.6882738808 | AC7: Falta valor cenizas | AD7: 0.7 | AE7: 0.75 | AH7: 164.4375703 | AI7: Falta valor MNT | AK7: 24.55500562 | AL7: Falta valor MNT | AM7: Falta valor cenizas | AN7: Falta valor cenizas | AO7: -71 | AP7: Falta valor MNT | AQ7: Falta valor MNT | AR7: Falta valor MNT | AS7: Falta valor MNT | AT7: Falta valor MNT | AU7: Falta valor MNT | AV7: Falta valor MNT | AW7: Falta valor MNT | AX7: Falta valor MNT | AY7: Falta valor MNT | AZ7: Falta valor MNT | BA7: Falta valor MNT | BB7: Falta valor MNT | BC7: Falta valor MNT | BD7: Falta valor MNT | BE7: Falta valor MNT | BF7: Bromo Rebrotes de espigado con tallos, Verde | BH7: Falta valor MNT | BI7: Falta valor MNT | BJ7: Falta valor MNT | BK7: Falta valor MNT | BL7: Falta valor MNT | BM7: Falta valor MNT | BN7: Falta valor MNT | BO7: Falta valor MNT | BP7: Falta valor MNT | BQ7: Falta valor MNT | BR7: 0.7199100112 | BS7: Falta valor cenizas | BT7: 33 | BU7: Falta valor fibra | BV7: Falta valor fibra | BW7: Falta valor fibra | CR7: Falta valor MNT | CS7: 0.7 | CU7: Falta valor cenizas | CV7: Falta valor MNT | CW7: Falta valor MNT | CX7: Falta valor MNT | CY7: Falta valor MNT | CZ7: Falta valor MNT
A8: 7 | B8: Bromo Rebrotes de espigado con hojas, Verde | C8: =IF(Valoración!$A$3=$A8,IF(Valoración!C$3>0,Valoración!C$3,""),"") ->  | D8: =IF(Valoración!$A$3=$A8,IF(Valoración!D$3>0,Valoración!D$3,""),"") ->  | E8: =IF(Valoración!$A$3=$A8,IF(Valoración!E$3>0,Valoración!E$3,""),"") ->  | F8: 4 | G8: =IF(Valoración!$A$3=$A8,IF(Valoración!F$3>0,Valoración!F$3,""),"") ->  | H8: =IF(Valoración!$A$3=$A8,IF(Valoración!G$3>0,Valoración!G$3,""),"") ->  | I8: =IF(Valoración!$A$3=$A8,IF(Valoración!H$3>0,Valoración!H$3,""),"") ->  | J8: 40 | K8: Falta valor fibra | L8: Falta valor fibra | M8: Falta valor fibra | N8: =IF(Valoración!$A$3=$A8,IF(Valoración!I$3>0,Valoración!I$3,""),"") ->  | O8: =IF(Valoración!$A$3=$A8,IF(Valoración!J$3>0,Valoración!J$3,""),"") ->  | P8: Falta valor cenizas | Q8: Falta valor cenizas | R8: Falta valor MNT | S8: Falta valor cenizas | T8: Falta valor fibra | U8: Falta valor fibra | V8: Falta valor fibra | X8: 0.7600472813 | Y8: Falta valor fibra | Z8: =IF(Valoración!$A$3=A8,IF(Valoración!$K$3>0,Valoración!K$3,""),"") ->  | AA8: 0.7600472813 | AB8: 0.7266852482 | AC8: Falta valor cenizas | AD8: 0.74 | AE8: 0.75 | AH8: 129.8392435 | AI8: Falta valor MNT | AK8: 21.78713948 | AL8: Falta valor MNT | AM8: Falta valor cenizas | AN8: Falta valor cenizas | AO8: -71 | AP8: Falta valor MNT | AQ8: Falta valor MNT | AR8: Falta valor MNT | AS8: Falta valor MNT | AT8: Falta valor MNT | AU8: Falta valor MNT | AV8: Falta valor MNT | AW8: Falta valor MNT | AX8: Falta valor MNT | AY8: Falta valor MNT | AZ8: Falta valor MNT | BA8: Falta valor MNT | BB8: Falta valor MNT | BC8: Falta valor MNT | BD8: Falta valor MNT | BE8: Falta valor MNT | BF8: Bromo Rebrotes de espigado con hojas, Verde | BH8: Falta valor MNT | BI8: Falta valor MNT | BJ8: Falta valor MNT | BK8: Falta valor MNT | BL8: Falta valor MNT | BM8: Falta valor MNT | BN8: Falta valor MNT | BO8: Falta valor MNT | BP8: Falta valor MNT | BQ8: Falta valor MNT | BR8: 0.7600472813 | BS8: Falta valor cenizas | BT8: 40 | BU8: Falta valor fibra | BV8: Falta valor fibra | BW8: Falta valor fibra | CR8: Falta valor MNT | CS8: 0.74 | CU8: Falta valor cenizas | CV8: Falta valor MNT | CW8: Falta valor MNT | CX8: Falta valor MNT | CY8: Falta valor MNT | CZ8: Falta valor MNT
A9: 8 | B9: Bromo Final espigado, Verde | C9: =IF(Valoración!$A$3=$A9,IF(Valoración!C$3>0,Valoración!C$3,""),"") ->  | D9: =IF(Valoración!$A$3=$A9,IF(Valoración!D$3>0,Valoración!D$3,""),"") ->  | E9: =IF(Valoración!$A$3=$A9,IF(Valoración!E$3>0,Valoración!E$3,""),"") ->  | F9: 3.1 | G9: =IF(Valoración!$A$3=$A9,IF(Valoración!F$3>0,Valoración!F$3,""),"") ->  | H9: =IF(Valoración!$A$3=$A9,IF(Valoración!G$3>0,Valoración!G$3,""),"") ->  | I9: =IF(Valoración!$A$3=$A9,IF(Valoración!H$3>0,Valoración!H$3,""),"") ->  | J9: 31 | K9: Falta valor fibra | L9: Falta valor fibra | M9: Falta valor fibra | N9: =IF(Valoración!$A$3=$A9,IF(Valoración!I$3>0,Valoración!I$3,""),"") ->  | O9: =IF(Valoración!$A$3=$A9,IF(Valoración!J$3>0,Valoración!J$3,""),"") ->  | P9: Falta valor cenizas | Q9: Falta valor cenizas | R9: Falta valor MNT | S9: Falta valor cenizas | T9: Falta valor fibra | U9: Falta valor fibra | V9: Falta valor fibra | X9: 0.6900328587 | Y9: Falta valor fibra | Z9: =IF(Valoración!$A$3=A9,IF(Valoración!$K$3>0,Valoración!K$3,""),"") ->  | AA9: 0.6900328587 | AB9: 0.6596814458 | AC9: Falta valor cenizas | AD9: 0.74 | AE9: 0.75 | AH9: 190.1916758 | AI9: Falta valor MNT | AK9: 26.61533406 | AL9: Falta valor MNT | AM9: Falta valor cenizas | AN9: Falta valor cenizas | AO9: -71 | AP9: Falta valor MNT | AQ9: Falta valor MNT | AR9: Falta valor MNT | AS9: Falta valor MNT | AT9: Falta valor MNT | AU9: Falta valor MNT | AV9: Falta valor MNT | AW9: Falta valor MNT | AX9: Falta valor MNT | AY9: Falta valor MNT | AZ9: Falta valor MNT | BA9: Falta valor MNT | BB9: Falta valor MNT | BC9: Falta valor MNT | BD9: Falta valor MNT | BE9: Falta valor MNT | BF9: Bromo Final espigado, Verde | BH9: Falta valor MNT | BI9: Falta valor MNT | BJ9: Falta valor MNT | BK9: Falta valor MNT | BL9: Falta valor MNT | BM9: Falta valor MNT | BN9: Falta valor MNT | BO9: Falta valor MNT | BP9: Falta valor MNT | BQ9: Falta valor MNT | BR9: 0.6900328587 | BS9: Falta valor cenizas | BT9: 31 | BU9: Falta valor fibra | BV9: Falta valor fibra | BW9: Falta valor fibra | CR9: Falta valor MNT | CS9: 0.74 | CU9: Falta valor cenizas | CV9: Falta valor MNT | CW9: Falta valor MNT | CX9: Falta valor MNT | CY9: Falta valor MNT | CZ9: Falta valor MNT
A10: 9 | B10: Bromo Inicio floración, Verde | C10: =IF(Valoración!$A$3=$A10,IF(Valoración!C$3>0,Valoración!C$3,""),"") ->  | D10: =IF(Valoración!$A$3=$A10,IF(Valoración!D$3>0,Valoración!D$3,""),"") ->  | E10: =IF(Valoración!$A$3=$A10,IF(Valoración!E$3>0,Valoración!E$3,""),"") ->  | F10: 2.9 | G10: =IF(Valoración!$A$3=$A10,IF(Valoración!F$3>0,Valoración!F$3,""),"") ->  | H10: =IF(Valoración!$A$3=$A10,IF(Valoración!G$3>0,Valoración!G$3,""),"") ->  | I10: =IF(Valoración!$A$3=$A10,IF(Valoración!H$3>0,Valoración!H$3,""),"") ->  | J10: 29 | K10: Falta valor fibra | L10: Falta valor fibra | M10: Falta valor fibra | N10: =IF(Valoración!$A$3=$A10,IF(Valoración!I$3>0,Valoración!I$3,""),"") ->  | O10: =IF(Valoración!$A$3=$A10,IF(Valoración!J$3>0,Valoración!J$3,""),"") ->  | P10: Falta valor cenizas | Q10: Falta valor cenizas | R10: Falta valor MNT | S10: Falta valor cenizas | T10: Falta valor fibra | U10: Falta valor fibra | V10: Falta valor fibra | X10: 0.6699346405 | Y10: Falta valor fibra | Z10: =IF(Valoración!$A$3=A10,IF(Valoración!$K$3>0,Valoración!K$3,""),"") ->  | AA10: 0.6699346405 | AB10: 0.640447451 | AC10: Falta valor cenizas | AD10: 0.73 | AE10: 0.75 | AH10: 207.5163399 | AI10: Falta valor MNT | AK10: 28.00130719 | AL10: Falta valor MNT | AM10: Falta valor cenizas | AN10: Falta valor cenizas | AO10: -71 | AP10: Falta valor MNT | AQ10: Falta valor MNT | AR10: Falta valor MNT | AS10: Falta valor MNT | AT10: Falta valor MNT | AU10: Falta valor MNT | AV10: Falta valor MNT | AW10: Falta valor MNT | AX10: Falta valor MNT | AY10: Falta valor MNT | AZ10: Falta valor MNT | BA10: Falta valor MNT | BB10: Falta valor MNT | BC10: Falta valor MNT | BD10: Falta valor MNT | BE10: Falta valor MNT | BF10: Bromo Inicio floración, Verde | BH10: Falta valor MNT | BI10: Falta valor MNT | BJ10: Falta valor MNT | BK10: Falta valor MNT | BL10: Falta valor MNT | BM10: Falta valor MNT | BN10: Falta valor MNT | BO10: Falta valor MNT | BP10: Falta valor MNT | BQ10: Falta valor MNT | BR10: 0.6699346405 | BS10: Falta valor cenizas | BT10: 29 | BU10: Falta valor fibra | BV10: Falta valor fibra | BW10: Falta valor fibra | CR10: Falta valor MNT | CS10: 0.73 | CU10: Falta valor cenizas | CV10: Falta valor MNT | CW10: Falta valor MNT | CX10: Falta valor MNT | CY10: Falta valor MNT | CZ10: Falta valor MNT
A11: 10 | B11: Bromo Final floración, Verde | C11: =IF(Valoración!$A$3=$A11,IF(Valoración!C$3>0,Valoración!C$3,""),"") ->  | D11: =IF(Valoración!$A$3=$A11,IF(Valoración!D$3>0,Valoración!D$3,""),"") ->  | E11: =IF(Valoración!$A$3=$A11,IF(Valoración!E$3>0,Valoración!E$3,""),"") ->  | F11: 1.5 | G11: =IF(Valoración!$A$3=$A11,IF(Valoración!F$3>0,Valoración!F$3,""),"") ->  | H11: =IF(Valoración!$A$3=$A11,IF(Valoración!G$3>0,Valoración!G$3,""),"") ->  | I11: =IF(Valoración!$A$3=$A11,IF(Valoración!H$3>0,Valoración!H$3,""),"") ->  | J11: 15 | K11: Falta valor fibra | L11: Falta valor fibra | M11: Falta valor fibra | N11: =IF(Valoración!$A$3=$A11,IF(Valoración!I$3>0,Valoración!I$3,""),"") ->  | O11: =IF(Valoración!$A$3=$A11,IF(Valoración!J$3>0,Valoración!J$3,""),"") ->  | P11: Falta valor cenizas | Q11: Falta valor cenizas | R11: Falta valor MNT | S11: Falta valor cenizas | T11: Falta valor fibra | U11: Falta valor fibra | V11: Falta valor fibra | X11: 0.6333333333 | Y11: =IF(K11="Falta valor fibra",K11,IF(D11="","Falta valor MNT",(90.8-0.091*K11+0.035*D11*10)/100)) -> Falta valor fibra | Z11: =IF(Valoración!$A$3=A11,IF(Valoración!$K$3>0,Valoración!K$3,""),"") ->  | AA11: 0.6333333333 | AB11: 0.60542 | AC11: Falta valor cenizas | AD11: 0.73 | AE11: 0.75 | AH11: 239.0666667 | AI11: Falta valor MNT | AK11: 30.52533333 | AL11: Falta valor MNT | AM11: Falta valor cenizas | AN11: Falta valor cenizas | AO11: -71 | AP11: Falta valor MNT | AQ11: Falta valor MNT | AR11: Falta valor MNT | AS11: Falta valor MNT | AT11: Falta valor MNT | AU11: Falta valor MNT | AV11: Falta valor MNT | AW11: Falta valor MNT | AX11: Falta valor MNT | AY11: Falta valor MNT | AZ11: Falta valor MNT | BA11: Falta valor MNT | BB11: Falta valor MNT | BC11: Falta valor MNT | BD11: Falta valor MNT | BE11: Falta valor MNT | BF11: Bromo Final floración, Verde | BH11: Falta valor MNT | BI11: Falta valor MNT | BJ11: Falta valor MNT | BK11: Falta valor MNT | BL11: Falta valor MNT | BM11: Falta valor MNT | BN11: Falta valor MNT | BO11: Falta valor MNT | BP11: Falta valor MNT | BQ11: Falta valor MNT | BR11: 0.6333333333 | BS11: Falta valor cenizas | BT11: 15 | BU11: Falta valor fibra | BV11: Falta valor fibra | BW11: Falta valor fibra | CR11: Falta valor MNT | CS11: 0.73 | CU11: Falta valor cenizas | CV11: Falta valor MNT | CW11: Falta valor MNT | CX11: Falta valor MNT | CY11: Falta valor MNT | CZ11: Falta valor MNT
A12: 11 | B12: Dáctilo Hoja otoño / invierno, Verde | C12: =IF(Valoración!$A$3=$A12,IF(Valoración!C$3>0,Valoración!C$3,""),"") ->  | D12: =IF(Valoración!$A$3=$A12,IF(Valoración!D$3>0,Valoración!D$3,""),"") ->  | E12: =IF(Valoración!$A$3=$A12,IF(Valoración!E$3>0,Valoración!E$3,""),"") ->  | F12: 4.5 | G12: =IF(Valoración!$A$3=$A12,IF(Valoración!F$3>0,Valoración!F$3,""),"") ->  | H12: =IF(Valoración!$A$3=$A12,IF(Valoración!G$3>0,Valoración!G$3,""),"") ->  | I12: =IF(Valoración!$A$3=$A12,IF(Valoración!H$3>0,Valoración!H$3,""),"") ->  | J12: 45 | K12: Falta valor fibra | L12: Falta valor fibra | M12: Falta valor fibra | N12: =IF(Valoración!$A$3=$A12,IF(Valoración!I$3>0,Valoración!I$3,""),"") ->  | O12: =IF(Valoración!$A$3=$A12,IF(Valoración!J$3>0,Valoración!J$3,""),"") ->  | P12: Falta valor cenizas | Q12: Falta valor cenizas | R12: Falta valor MNT | S12: Falta valor cenizas | T12: Falta valor fibra | U12: Falta valor fibra | V12: Falta valor fibra | X12: 0.7494199536 | Y12: Falta valor fibra | Z12: =IF(Valoración!$A$3=A12,IF(Valoración!$K$3>0,Valoración!K$3,""),"") ->  | AA12: 0.7494199536 | AB12: 0.7165148956 | AC12: Falta valor cenizas | AD12: 0.79 | AE12: 0.75 | AH12: 139 | AI12: Falta valor MNT | AK12: 22.52 | AL12: Falta valor MNT | AM12: Falta valor cenizas | AN12: Falta valor cenizas | AO12: -71 | AP12: Falta valor MNT | AQ12: Falta valor MNT | AR12: Falta valor MNT | AS12: Falta valor MNT | AT12: Falta valor MNT | AU12: Falta valor MNT | AV12: Falta valor MNT | AW12: Falta valor MNT | AX12: Falta valor MNT | AY12: Falta valor MNT | AZ12: Falta valor MNT | BA12: Falta valor MNT | BB12: Falta valor MNT | BC12: Falta valor MNT | BD12: Falta valor MNT | BE12: Falta valor MNT | BF12: Dáctilo Hoja otoño / invierno, Verde | BH12: Falta valor MNT | BI12: Falta valor MNT | BJ12: Falta valor MNT | BK12: Falta valor MNT | BL12: Falta valor MNT | BM12: Falta valor MNT | BN12: Falta valor MNT | BO12: Falta valor MNT | BP12: Falta valor MNT | BQ12: Falta valor MNT | BR12: 0.7494199536 | BS12: Falta valor cenizas | BT12: 45 | BU12: Falta valor fibra | BV12: Falta valor fibra | BW12: Falta valor fibra | CR12: Falta valor MNT | CS12: 0.79 | CU12: Falta valor cenizas | CV12: Falta valor MNT | CW12: Falta valor MNT | CX12: Falta valor MNT | CY12: Falta valor MNT | CZ12: Falta valor MNT
A13: 12 | B13: Dáctilo Hoja primavera, Verde | C13: =IF(Valoración!$A$3=$A13,IF(Valoración!C$3>0,Valoración!C$3,""),"") ->  | D13: =IF(Valoración!$A$3=$A13,IF(Valoración!D$3>0,Valoración!D$3,""),"") ->  | E13: =IF(Valoración!$A$3=$A13,IF(Valoración!E$3>0,Valoración!E$3,""),"") ->  | F13: 4.3 | G13: =IF(Valoración!$A$3=$A13,IF(Valoración!F$3>0,Valoración!F$3,""),"") ->  | H13: =IF(Valoración!$A$3=$A13,IF(Valoración!G$3>0,Valoración!G$3,""),"") ->  | I13: =IF(Valoración!$A$3=$A13,IF(Valoración!H$3>0,Valoración!H$3,""),"") ->  | J13: 43 | K13: Falta valor fibra | L13: Falta valor fibra | M13: Falta valor fibra | N13: =IF(Valoración!$A$3=$A13,IF(Valoración!I$3>0,Valoración!I$3,""),"") ->  | O13: =IF(Valoración!$A$3=$A13,IF(Valoración!J$3>0,Valoración!J$3,""),"") ->  | P13: Falta valor cenizas | Q13: Falta valor cenizas | R13: Falta valor MNT | S13: Falta valor cenizas | T13: Falta valor fibra | U13: Falta valor fibra | V13: Falta valor fibra | X13: 0.7800224467 | Y13: Falta valor fibra | Z13: =IF(Valoración!$A$3=A13,IF(Valoración!$K$3>0,Valoración!K$3,""),"") ->  | AA13: 0.7800224467 | AB13: 0.7458014815 | AC13: Falta valor cenizas | AD13: 0.78 | AE13: 0.75 | AH13: 112.620651 | AI13: Falta valor MNT | AK13: 20.40965208 | AL13: Falta valor MNT | AM13: Falta valor cenizas | AN13: Falta valor cenizas | AO13: -71 | AP13: Falta valor MNT | AQ13: Falta valor MNT | AR13: Falta valor MNT | AS13: Falta valor MNT | AT13: Falta valor MNT | AU13: Falta valor MNT | AV13: Falta valor MNT | AW13: Falta valor MNT | AX13: Falta valor MNT | AY13: Falta valor MNT | AZ13: Falta valor MNT | BA13: Falta valor MNT | BB13: Falta valor MNT | BC13: Falta valor MNT | BD13: Falta valor MNT | BE13: Falta valor MNT | BF13: Dáctilo Hoja primavera, Verde | BH13: Falta valor MNT | BI13: Falta valor MNT | BJ13: Falta valor MNT | BK13: Falta valor MNT | BL13: Falta valor MNT | BM13: Falta valor MNT | BN13: Falta valor MNT | BO13: Falta valor MNT | BP13: Falta valor MNT | BQ13: Falta valor MNT | BR13: 0.7800224467 | BS13: Falta valor cenizas | BT13: 43 | BU13: Falta valor fibra | BV13: Falta valor fibra | BW13: Falta valor fibra | CR13: Falta valor MNT | CS13: 0.78 | CU13: Falta valor cenizas | CV13: Falta valor MNT | CW13: Falta valor MNT | CX13: Falta valor MNT | CY13: Falta valor MNT | CZ13: Falta valor MNT
A14: 13 | B14: Dáctilo Espiga a 10 cm, Verde | C14: =IF(Valoración!$A$3=$A14,IF(Valoración!C$3>0,Valoración!C$3,""),"") ->  | D14: =IF(Valoración!$A$3=$A14,IF(Valoración!D$3>0,Valoración!D$3,""),"") ->  | E14: =IF(Valoración!$A$3=$A14,IF(Valoración!E$3>0,Valoración!E$3,""),"") ->  | F14: 4.4 | G14: =IF(Valoración!$A$3=$A14,IF(Valoración!F$3>0,Valoración!F$3,""),"") ->  | H14: =IF(Valoración!$A$3=$A14,IF(Valoración!G$3>0,Valoración!G$3,""),"") ->  | I14: =IF(Valoración!$A$3=$A14,IF(Valoración!H$3>0,Valoración!H$3,""),"") ->  | J14: 44 | K14: Falta valor fibra | L14: Falta valor fibra | M14: Falta valor fibra | N14: =IF(Valoración!$A$3=$A14,IF(Valoración!I$3>0,Valoración!I$3,""),"") ->  | O14: =IF(Valoración!$A$3=$A14,IF(Valoración!J$3>0,Valoración!J$3,""),"") ->  | P14: Falta valor cenizas | Q14: Falta valor cenizas | R14: Falta valor MNT | S14: Falta valor cenizas | T14: Falta valor fibra | U14: Falta valor fibra | V14: Falta valor fibra | X14: 0.7691428571 | Y14: Falta valor fibra | Z14: =IF(Valoración!$A$3=A14,IF(Valoración!$K$3>0,Valoración!K$3,""),"") ->  | AA14: 0.7691428571 | AB14: 0.7353897143 | AC14: Falta valor cenizas | AD14: 0.78 | AE14: 0.75 | AH14: 121.9988571 | AI14: Falta valor MNT | AK14: 21.15990857 | AL14: Falta valor MNT | AM14: Falta valor cenizas | AN14: Falta valor cenizas | AO14: -71 | AP14: Falta valor MNT | AQ14: Falta valor MNT | AR14: Falta valor MNT | AS14: Falta valor MNT | AT14: Falta valor MNT | AU14: Falta valor MNT | AV14: Falta valor MNT | AW14: Falta valor MNT | AX14: Falta valor MNT | AY14: Falta valor MNT | AZ14: Falta valor MNT | BA14: Falta valor MNT | BB14: Falta valor MNT | BC14: Falta valor MNT | BD14: Falta valor MNT | BE14: Falta valor MNT | BF14: Dáctilo Espiga a 10 cm, Verde | BH14: Falta valor MNT | BI14: Falta valor MNT | BJ14: Falta valor MNT | BK14: Falta valor MNT | BL14: Falta valor MNT | BM14: Falta valor MNT | BN14: Falta valor MNT | BO14: Falta valor MNT | BP14: Falta valor MNT | BQ14: Falta valor MNT | BR14: 0.7691428571 | BS14: Falta valor cenizas | BT14: 44 | BU14: Falta valor fibra | BV14: Falta valor fibra | BW14: Falta valor fibra | CR14: Falta valor MNT | CS14: 0.78 | CU14: Falta valor cenizas | CV14: Falta valor MNT | CW14: Falta valor MNT | CX14: Falta valor MNT | CY14: Falta valor MNT | CZ14: Falta valor MNT
A15: 14 | B15: Dáctilo Espiga a 10 cm, rebrotes de espigado con tallos, Verde | C15: =IF(Valoración!$A$3=$A15,IF(Valoración!C$3>0,Valoración!C$3,""),"") ->  | D15: =IF(Valoración!$A$3=$A15,IF(Valoración!D$3>0,Valoración!D$3,""),"") ->  | E15: =IF(Valoración!$A$3=$A15,IF(Valoración!E$3>0,Valoración!E$3,""),"") ->  | F15: 2.5 | G15: =IF(Valoración!$A$3=$A15,IF(Valoración!F$3>0,Valoración!F$3,""),"") ->  | H15: =IF(Valoración!$A$3=$A15,IF(Valoración!G$3>0,Valoración!G$3,""),"") ->  | I15: =IF(Valoración!$A$3=$A15,IF(Valoración!H$3>0,Valoración!H$3,""),"") ->  | J15: 25 | K15: Falta valor fibra | L15: Falta valor fibra | M15: Falta valor fibra | N15: =IF(Valoración!$A$3=$A15,IF(Valoración!I$3>0,Valoración!I$3,""),"") ->  | O15: =IF(Valoración!$A$3=$A15,IF(Valoración!J$3>0,Valoración!J$3,""),"") ->  | P15: Falta valor cenizas | Q15: Falta valor cenizas | R15: Falta valor MNT | S15: Falta valor cenizas | T15: Falta valor fibra | U15: Falta valor fibra | V15: Falta valor fibra | X15: 0.5197368421 | Y15: Falta valor fibra | Z15: =IF(Valoración!$A$3=A15,IF(Valoración!$K$3>0,Valoración!K$3,""),"") ->  | AA15: 0.5197368421 | AB15: 0.4967081579 | AC15: Falta valor cenizas | AD15: 0.69 | AE15: 0.75 | AH15: 336.9868421 | AI15: Falta valor MNT | AK15: 38.35894737 | AL15: Falta valor MNT | AM15: Falta valor cenizas | AN15: Falta valor cenizas | AO15: -71 | AP15: Falta valor MNT | AQ15: Falta valor MNT | AR15: Falta valor MNT | AS15: Falta valor MNT | AT15: Falta valor MNT | AU15: Falta valor MNT | AV15: Falta valor MNT | AW15: Falta valor MNT | AX15: Falta valor MNT | AY15: Falta valor MNT | AZ15: Falta valor MNT | BA15: Falta valor MNT | BB15: Falta valor MNT | BC15: Falta valor MNT | BD15: Falta valor MNT | BE15: Falta valor MNT | BF15: Dáctilo Espiga a 10 cm, rebrotes de espigado con tallos, Verde | BH15: Falta valor MNT | BI15: Falta valor MNT | BJ15: Falta valor MNT | BK15: Falta valor MNT | BL15: Falta valor MNT | BM15: Falta valor MNT | BN15: Falta valor MNT | BO15: Falta valor MNT | BP15: Falta valor MNT | BQ15: Falta valor MNT | BR15: 0.5197368421 | BS15: Falta valor cenizas | BT15: 25 | BU15: Falta valor fibra | BV15: Falta valor fibra | BW15: Falta valor fibra | CR15: Falta valor MNT | CS15: 0.69 | CU15: Falta valor cenizas | CV15: Falta valor MNT | CW15: Falta valor MNT | CX15: Falta valor MNT | CY15: Falta valor MNT | CZ15: Falta valor MNT
A16: 15 | B16: Dáctilo 1 semana antes inicio espigado, Verde | C16: =IF(Valoración!$A$3=$A16,IF(Valoración!C$3>0,Valoración!C$3,""),"") ->  | D16: =IF(Valoración!$A$3=$A16,IF(Valoración!D$3>0,Valoración!D$3,""),"") ->  | E16: =IF(Valoración!$A$3=$A16,IF(Valoración!E$3>0,Valoración!E$3,""),"") ->  | F16: 4.2 | G16: =IF(Valoración!$A$3=$A16,IF(Valoración!F$3>0,Valoración!F$3,""),"") ->  | H16: =IF(Valoración!$A$3=$A16,IF(Valoración!G$3>0,Valoración!G$3,""),"") ->  | I16: =IF(Valoración!$A$3=$A16,IF(Valoración!H$3>0,Valoración!H$3,""),"") ->  | J16: 42 | K16: Falta valor fibra | L16: Falta valor fibra | M16: Falta valor fibra | N16: =IF(Valoración!$A$3=$A16,IF(Valoración!I$3>0,Valoración!I$3,""),"") ->  | O16: =IF(Valoración!$A$3=$A16,IF(Valoración!J$3>0,Valoración!J$3,""),"") ->  | P16: Falta valor cenizas | Q16: Falta valor cenizas | R16: Falta valor MNT | S16: Falta valor cenizas | T16: Falta valor fibra | U16: Falta valor fibra | V16: Falta valor fibra | X16: 0.7596371882 | Y16: Falta valor fibra | Z16: =IF(Valoración!$A$3=A16,IF(Valoración!$K$3>0,Valoración!K$3,""),"") ->  | AA16: 0.7596371882 | AB16: 0.7262927891 | AC16: Falta valor cenizas | AD16: 0.77 | AE16: 0.75 | AH16: 130.1927438 | AI16: Falta valor MNT | AK16: 21.8154195 | AL16: Falta valor MNT | AM16: Falta valor cenizas | AN16: Falta valor cenizas | AO16: -71 | AP16: Falta valor MNT | AQ16: Falta valor MNT | AR16: Falta valor MNT | AS16: Falta valor MNT | AT16: Falta valor MNT | AU16: Falta valor MNT | AV16: Falta valor MNT | AW16: Falta valor MNT | AX16: Falta valor MNT | AY16: Falta valor MNT | AZ16: Falta valor MNT | BA16: Falta valor MNT | BB16: Falta valor MNT | BC16: Falta valor MNT | BD16: Falta valor MNT | BE16: Falta valor MNT | BF16: Dáctilo 1 semana antes inicio espigado, Verde | BH16: Falta valor MNT | BI16: Falta valor MNT | BJ16: Falta valor MNT | BK16: Falta valor MNT | BL16: Falta valor MNT | BM16: Falta valor MNT | BN16: Falta valor MNT | BO16: Falta valor MNT | BP16: Falta valor MNT | BQ16: Falta valor MNT | BR16: 0.7596371882 | BS16: Falta valor cenizas | BT16: 42 | BU16: Falta valor fibra | BV16: Falta valor fibra | BW16: Falta valor fibra | CR16: Falta valor MNT | CS16: 0.77 | CU16: Falta valor cenizas | CV16: Falta valor MNT | CW16: Falta valor MNT | CX16: Falta valor MNT | CY16: Falta valor MNT | CZ16: Falta valor MNT
A17: 16 | B17: Dáctilo Inicio espigado, Verde | C17: =IF(Valoración!$A$3=$A17,IF(Valoración!C$3>0,Valoración!C$3,""),"") ->  | D17: =IF(Valoración!$A$3=$A17,IF(Valoración!D$3>0,Valoración!D$3,""),"") ->  | E17: =IF(Valoración!$A$3=$A17,IF(Valoración!E$3>0,Valoración!E$3,""),"") ->  | F17: 3.8 | G17: =IF(Valoración!$A$3=$A17,IF(Valoración!F$3>0,Valoración!F$3,""),"") ->  | H17: =IF(Valoración!$A$3=$A17,IF(Valoración!G$3>0,Valoración!G$3,""),"") ->  | I17: =IF(Valoración!$A$3=$A17,IF(Valoración!H$3>0,Valoración!H$3,""),"") ->  | J17: 38 | K17: Falta valor fibra | L17: Falta valor fibra | M17: Falta valor fibra | N17: =IF(Valoración!$A$3=$A17,IF(Valoración!I$3>0,Valoración!I$3,""),"") ->  | O17: =IF(Valoración!$A$3=$A17,IF(Valoración!J$3>0,Valoración!J$3,""),"") ->  | P17: Falta valor cenizas | Q17: Falta valor cenizas | R17: Falta valor MNT | S17: Falta valor cenizas | T17: Falta valor fibra | U17: Falta valor fibra | V17: Falta valor fibra | X17: 0.7403189066 | Y17: Falta valor fibra | Z17: =IF(Valoración!$A$3=A17,IF(Valoración!$K$3>0,Valoración!K$3,""),"") ->  | AA17: 0.7403189066 | AB17: 0.7078051936 | AC17: Falta valor cenizas | AD17: 0.76 | AE17: 0.75 | AH17: 146.8451025 | AI17: Falta valor MNT | AK17: 23.1476082 | AL17: Falta valor MNT | AM17: Falta valor cenizas | AN17: Falta valor cenizas | AO17: -71 | AP17: Falta valor MNT | AQ17: Falta valor MNT | AR17: Falta valor MNT | AS17: Falta valor MNT | AT17: Falta valor MNT | AU17: Falta valor MNT | AV17: Falta valor MNT | AW17: Falta valor MNT | AX17: Falta valor MNT | AY17: Falta valor MNT | AZ17: Falta valor MNT | BA17: Falta valor MNT | BB17: Falta valor MNT | BC17: Falta valor MNT | BD17: Falta valor MNT | BE17: Falta valor MNT | BF17: Dáctilo Inicio espigado, Verde | BH17: Falta valor MNT | BI17: Falta valor MNT | BJ17: Falta valor MNT | BK17: Falta valor MNT | BL17: Falta valor MNT | BM17: Falta valor MNT | BN17: Falta valor MNT | BO17: Falta valor MNT | BP17: Falta valor MNT | BQ17: Falta valor MNT | BR17: 0.7403189066 | BS17: Falta valor cenizas | BT17: 38 | BU17: Falta valor fibra | BV17: Falta valor fibra | BW17: Falta valor fibra | CR17: Falta valor MNT | CS17: 0.76 | CU17: Falta valor cenizas | CV17: Falta valor MNT | CW17: Falta valor MNT | CX17: Falta valor MNT | CY17: Falta valor MNT | CZ17: Falta valor MNT
A18: 17 | B18: Dáctilo Espigado, Verde | C18: =IF(Valoración!$A$3=$A18,IF(Valoración!C$3>0,Valoración!C$3,""),"") ->  | D18: =IF(Valoración!$A$3=$A18,IF(Valoración!D$3>0,Valoración!D$3,""),"") ->  | E18: =IF(Valoración!$A$3=$A18,IF(Valoración!E$3>0,Valoración!E$3,""),"") ->  | F18: 3.7 | G18: =IF(Valoración!$A$3=$A18,IF(Valoración!F$3>0,Valoración!F$3,""),"") ->  | H18: =IF(Valoración!$A$3=$A18,IF(Valoración!G$3>0,Valoración!G$3,""),"") ->  | I18: =IF(Valoración!$A$3=$A18,IF(Valoración!H$3>0,Valoración!H$3,""),"") ->  | J18: 37 | K18: Falta valor fibra | L18: Falta valor fibra | M18: Falta valor fibra | N18: =IF(Valoración!$A$3=$A18,IF(Valoración!I$3>0,Valoración!I$3,""),"") ->  | O18: =IF(Valoración!$A$3=$A18,IF(Valoración!J$3>0,Valoración!J$3,""),"") ->  | P18: Falta valor cenizas | Q18: Falta valor cenizas | R18: Falta valor MNT | S18: Falta valor cenizas | T18: Falta valor fibra | U18: Falta valor fibra | V18: Falta valor fibra | X18: 0.7195945946 | Y18: Falta valor fibra | Z18: =IF(Valoración!$A$3=A18,IF(Valoración!$K$3>0,Valoración!K$3,""),"") ->  | AA18: 0.7195945946 | AB18: 0.687972027 | AC18: Falta valor cenizas | AD18: 0.76 | AE18: 0.75 | AH18: 164.7094595 | AI18: Falta valor MNT | AK18: 24.57675676 | AL18: Falta valor MNT | AM18: Falta valor cenizas | AN18: Falta valor cenizas | AO18: -71 | AP18: Falta valor MNT | AQ18: Falta valor MNT | AR18: Falta valor MNT | AS18: Falta valor MNT | AT18: Falta valor MNT | AU18: Falta valor MNT | AV18: Falta valor MNT | AW18: Falta valor MNT | AX18: Falta valor MNT | AY18: Falta valor MNT | AZ18: Falta valor MNT | BA18: Falta valor MNT | BB18: Falta valor MNT | BC18: Falta valor MNT | BD18: Falta valor MNT | BE18: Falta valor MNT | BF18: Dáctilo Espigado, Verde | BH18: Falta valor MNT | BI18: Falta valor MNT | BJ18: Falta valor MNT | BK18: Falta valor MNT | BL18: Falta valor MNT | BM18: Falta valor MNT | BN18: Falta valor MNT | BO18: Falta valor MNT | BP18: Falta valor MNT | BQ18: Falta valor MNT | BR18: 0.7195945946 | BS18: Falta valor cenizas | BT18: 37 | BU18: Falta valor fibra | BV18: Falta valor fibra | BW18: Falta valor fibra | CR18: Falta valor MNT | CS18: 0.76 | CU18: Falta valor cenizas | CV18: Falta valor MNT | CW18: Falta valor MNT | CX18: Falta valor MNT | CY18: Falta valor MNT | CZ18: Falta valor MNT
A19: 18 | B19: Dáctilo Espigado, Verde rebrotes de espigado con hojas | C19: =IF(Valoración!$A$3=$A19,IF(Valoración!C$3>0,Valoración!C$3,""),"") ->  | D19: =IF(Valoración!$A$3=$A19,IF(Valoración!D$3>0,Valoración!D$3,""),"") ->  | E19: =IF(Valoración!$A$3=$A19,IF(Valoración!E$3>0,Valoración!E$3,""),"") ->  | F19: 3.9 | G19: =IF(Valoración!$A$3=$A19,IF(Valoración!F$3>0,Valoración!F$3,""),"") ->  | H19: =IF(Valoración!$A$3=$A19,IF(Valoración!G$3>0,Valoración!G$3,""),"") ->  | I19: =IF(Valoración!$A$3=$A19,IF(Valoración!H$3>0,Valoración!H$3,""),"") ->  | J19: 39 | K19: Falta valor fibra | L19: Falta valor fibra | M19: Falta valor fibra | N19: =IF(Valoración!$A$3=$A19,IF(Valoración!I$3>0,Valoración!I$3,""),"") ->  | O19: =IF(Valoración!$A$3=$A19,IF(Valoración!J$3>0,Valoración!J$3,""),"") ->  | P19: Falta valor cenizas | Q19: Falta valor cenizas | R19: Falta valor MNT | S19: Falta valor cenizas | T19: Falta valor fibra | U19: Falta valor fibra | V19: Falta valor fibra | X19: 0.6842105263 | Y19: Falta valor fibra | Z19: =IF(Valoración!$A$3=A19,IF(Valoración!$K$3>0,Valoración!K$3,""),"") ->  | AA19: 0.6842105263 | AB19: 0.6541094737 | AC19: Falta valor cenizas | AD19: 0.73 | AE19: 0.75 | AH19: 195.2105263 | AI19: Falta valor MNT | AK19: 27.01684211 | AL19: Falta valor MNT | AM19: Falta valor cenizas | AN19: Falta valor cenizas | AO19: -71 | AP19: Falta valor MNT | AQ19: Falta valor MNT | AR19: Falta valor MNT | AS19: Falta valor MNT | AT19: Falta valor MNT | AU19: Falta valor MNT | AV19: Falta valor MNT | AW19: Falta valor MNT | AX19: Falta valor MNT | AY19: Falta valor MNT | AZ19: Falta valor MNT | BA19: Falta valor MNT | BB19: Falta valor MNT | BC19: Falta valor MNT | BD19: Falta valor MNT | BE19: Falta valor MNT | BF19: Dáctilo Espigado, Verde rebrotes de espigado con hojas | BH19: Falta valor MNT | BI19: Falta valor MNT | BJ19: Falta valor MNT | BK19: Falta valor MNT | BL19: Falta valor MNT | BM19: Falta valor MNT | BN19: Falta valor MNT | BO19: Falta valor MNT | BP19: Falta valor MNT | BQ19: Falta valor MNT | BR19: 0.6842105263 | BS19: Falta valor cenizas | BT19: 39 | BU19: Falta valor fibra | BV19: Falta valor fibra | BW19: Falta valor fibra | CR19: Falta valor MNT | CS19: 0.73 | CU19: Falta valor cenizas | CV19: Falta valor MNT | CW19: Falta valor MNT | CX19: Falta valor MNT | CY19: Falta valor MNT | CZ19: Falta valor MNT
A20: 19 | B20: Dáctilo Final espigado, Verde | C20: =IF(Valoración!$A$3=$A20,IF(Valoración!C$3>0,Valoración!C$3,""),"") ->  | D20: =IF(Valoración!$A$3=$A20,IF(Valoración!D$3>0,Valoración!D$3,""),"") ->  | E20: =IF(Valoración!$A$3=$A20,IF(Valoración!E$3>0,Valoración!E$3,""),"") ->  | F20: 3.4 | G20: =IF(Valoración!$A$3=$A20,IF(Valoración!F$3>0,Valoración!F$3,""),"") ->  | H20: =IF(Valoración!$A$3=$A20,IF(Valoración!G$3>0,Valoración!G$3,""),"") ->  | I20: =IF(Valoración!$A$3=$A20,IF(Valoración!H$3>0,Valoración!H$3,""),"") ->  | J20: 34 | K20: Falta valor fibra | L20: Falta valor fibra | M20: Falta valor fibra | N20: =IF(Valoración!$A$3=$A20,IF(Valoración!I$3>0,Valoración!I$3,""),"") ->  | O20: =IF(Valoración!$A$3=$A20,IF(Valoración!J$3>0,Valoración!J$3,""),"") ->  | P20: Falta valor cenizas | Q20: Falta valor cenizas | R20: Falta valor MNT | S20: Falta valor cenizas | T20: Falta valor fibra | U20: Falta valor fibra | V20: Falta valor fibra | X20: 0.6696329255 | Y20: Falta valor fibra | Z20: =IF(Valoración!$A$3=A20,IF(Valoración!$K$3>0,Valoración!K$3,""),"") ->  | AA20: 0.6696329255 | AB20: 0.6401587097 | AC20: Falta valor cenizas | AD20: 0.76 | AE20: 0.75 | AH20: 207.7764182 | AI20: Falta valor MNT | AK20: 28.02211346 | AL20: Falta valor MNT | AM20: Falta valor cenizas | AN20: Falta valor cenizas | AO20: -71 | AP20: Falta valor MNT | AQ20: Falta valor MNT | AR20: Falta valor MNT | AS20: Falta valor MNT | AT20: Falta valor MNT | AU20: Falta valor MNT | AV20: Falta valor MNT | AW20: Falta valor MNT | AX20: Falta valor MNT | AY20: Falta valor MNT | AZ20: Falta valor MNT | BA20: Falta valor MNT | BB20: Falta valor MNT | BC20: Falta valor MNT | BD20: Falta valor MNT | BE20: Falta valor MNT | BF20: Dáctilo Final espigado, Verde | BH20: Falta valor MNT | BI20: Falta valor MNT | BJ20: Falta valor MNT | BK20: Falta valor MNT | BL20: Falta valor MNT | BM20: Falta valor MNT | BN20: Falta valor MNT | BO20: Falta valor MNT | BP20: Falta valor MNT | BQ20: Falta valor MNT | BR20: 0.6696329255 | BS20: Falta valor cenizas | BT20: 34 | BU20: Falta valor fibra | BV20: Falta valor fibra | BW20: Falta valor fibra | CR20: Falta valor MNT | CS20: 0.76 | CU20: Falta valor cenizas | CV20: Falta valor MNT | CW20: Falta valor MNT | CX20: Falta valor MNT | CY20: Falta valor MNT | CZ20: Falta valor MNT
A21: 20 | B21: Dáctilo Inicio floración, Verde | C21: =IF(Valoración!$A$3=$A21,IF(Valoración!C$3>0,Valoración!C$3,""),"") ->  | D21: =IF(Valoración!$A$3=$A21,IF(Valoración!D$3>0,Valoración!D$3,""),"") ->  | E21: =IF(Valoración!$A$3=$A21,IF(Valoración!E$3>0,Valoración!E$3,""),"") ->  | F21: 3.3 | G21: =IF(Valoración!$A$3=$A21,IF(Valoración!F$3>0,Valoración!F$3,""),"") ->  | H21: =IF(Valoración!$A$3=$A21,IF(Valoración!G$3>0,Valoración!G$3,""),"") ->  | I21: =IF(Valoración!$A$3=$A21,IF(Valoración!H$3>0,Valoración!H$3,""),"") ->  | J21: 33 | K21: Falta valor fibra | L21: Falta valor fibra | M21: Falta valor fibra | N21: =IF(Valoración!$A$3=$A21,IF(Valoración!I$3>0,Valoración!I$3,""),"") ->  | O21: =IF(Valoración!$A$3=$A21,IF(Valoración!J$3>0,Valoración!J$3,""),"") ->  | P21: Falta valor cenizas | Q21: Falta valor cenizas | R21: Falta valor MNT | S21: Falta valor cenizas | T21: Falta valor fibra | U21: Falta valor fibra | V21: Falta valor fibra | X21: 0.6395604396 | Y21: Falta valor fibra | Z21: =IF(Valoración!$A$3=A21,IF(Valoración!$K$3>0,Valoración!K$3,""),"") ->  | AA21: 0.6395604396 | AB21: 0.6113793407 | AC21: Falta valor cenizas | AD21: 0.74 | AE21: 0.75 | AH21: 233.6989011 | AI21: Falta valor MNT | AK21: 30.09591209 | AL21: Falta valor MNT | AM21: Falta valor cenizas | AN21: Falta valor cenizas | AO21: -71 | AP21: Falta valor MNT | AQ21: Falta valor MNT | AR21: Falta valor MNT | AS21: Falta valor MNT | AT21: Falta valor MNT | AU21: Falta valor MNT | AV21: Falta valor MNT | AW21: Falta valor MNT | AX21: Falta valor MNT | AY21: Falta valor MNT | AZ21: Falta valor MNT | BA21: Falta valor MNT | BB21: Falta valor MNT | BC21: Falta valor MNT | BD21: Falta valor MNT | BE21: Falta valor MNT | BF21: Dáctilo Inicio floración, Verde | BH21: Falta valor MNT | BI21: Falta valor MNT | BJ21: Falta valor MNT | BK21: Falta valor MNT | BL21: Falta valor MNT | BM21: Falta valor MNT | BN21: Falta valor MNT | BO21: Falta valor MNT | BP21: Falta valor MNT | BQ21: Falta valor MNT | BR21: 0.6395604396 | BS21: Falta valor cenizas | BT21: 33 | BU21: Falta valor fibra | BV21: Falta valor fibra | BW21: Falta valor fibra | CR21: Falta valor MNT | CS21: 0.74 | CU21: Falta valor cenizas | CV21: Falta valor MNT | CW21: Falta valor MNT | CX21: Falta valor MNT | CY21: Falta valor MNT | CZ21: Falta valor MNT
A22: 21 | B22: Dáctilo Floración, Verde | C22: =IF(Valoración!$A$3=$A22,IF(Valoración!C$3>0,Valoración!C$3,""),"") ->  | D22: =IF(Valoración!$A$3=$A22,IF(Valoración!D$3>0,Valoración!D$3,""),"") ->  | E22: =IF(Valoración!$A$3=$A22,IF(Valoración!E$3>0,Valoración!E$3,""),"") ->  | F22: 3.1 | G22: =IF(Valoración!$A$3=$A22,IF(Valoración!F$3>0,Valoración!F$3,""),"") ->  | H22: =IF(Valoración!$A$3=$A22,IF(Valoración!G$3>0,Valoración!G$3,""),"") ->  | I22: =IF(Valoración!$A$3=$A22,IF(Valoración!H$3>0,Valoración!H$3,""),"") ->  | J22: 31 | K22: Falta valor fibra | L22: Falta valor fibra | M22: Falta valor fibra | N22: =IF(Valoración!$A$3=$A22,IF(Valoración!I$3>0,Valoración!I$3,""),"") ->  | O22: =IF(Valoración!$A$3=$A22,IF(Valoración!J$3>0,Valoración!J$3,""),"") ->  | P22: Falta valor cenizas | Q22: Falta valor cenizas | R22: Falta valor MNT | S22: Falta valor cenizas | T22: Falta valor fibra | U22: Falta valor fibra | V22: Falta valor fibra | X22: 0.5901098901 | Y22: Falta valor fibra | Z22: =IF(Valoración!$A$3=A22,IF(Valoración!$K$3>0,Valoración!K$3,""),"") ->  | AA22: 0.5901098901 | AB22: 0.5640551648 | AC22: Falta valor cenizas | AD22: 0.74 | AE22: 0.75 | AH22: 276.3252747 | AI22: Falta valor MNT | AK22: 33.50602198 | AL22: Falta valor MNT | AM22: Falta valor cenizas | AN22: Falta valor cenizas | AO22: -71 | AP22: Falta valor MNT | AQ22: Falta valor MNT | AR22: Falta valor MNT | AS22: Falta valor MNT | AT22: Falta valor MNT | AU22: Falta valor MNT | AV22: Falta valor MNT | AW22: Falta valor MNT | AX22: Falta valor MNT | AY22: Falta valor MNT | AZ22: Falta valor MNT | BA22: Falta valor MNT | BB22: Falta valor MNT | BC22: Falta valor MNT | BD22: Falta valor MNT | BE22: Falta valor MNT | BF22: Dáctilo Floración, Verde | BH22: Falta valor MNT | BI22: Falta valor MNT | BJ22: Falta valor MNT | BK22: Falta valor MNT | BL22: Falta valor MNT | BM22: Falta valor MNT | BN22: Falta valor MNT | BO22: Falta valor MNT | BP22: Falta valor MNT | BQ22: Falta valor MNT | BR22: 0.5901098901 | BS22: Falta valor cenizas | BT22: 31 | BU22: Falta valor fibra | BV22: Falta valor fibra | BW22: Falta valor fibra | CR22: Falta valor MNT | CS22: 0.74 | CU22: Falta valor cenizas | CV22: Falta valor MNT | CW22: Falta valor MNT | CX22: Falta valor MNT | CY22: Falta valor MNT | CZ22: Falta valor MNT
A23: 22 | B23: Dáctilo Final floración, Verde | C23: =IF(Valoración!$A$3=$A23,IF(Valoración!C$3>0,Valoración!C$3,""),"") ->  | D23: =IF(Valoración!$A$3=$A23,IF(Valoración!D$3>0,Valoración!D$3,""),"") ->  | E23: =IF(Valoración!$A$3=$A23,IF(Valoración!E$3>0,Valoración!E$3,""),"") ->  | F23: 3.1 | G23: =IF(Valoración!$A$3=$A23,IF(Valoración!F$3>0,Valoración!F$3,""),"") ->  | H23: =IF(Valoración!$A$3=$A23,IF(Valoración!G$3>0,Valoración!G$3,""),"") ->  | I23: =IF(Valoración!$A$3=$A23,IF(Valoración!H$3>0,Valoración!H$3,""),"") ->  | J23: 31 | K23: Falta valor fibra | L23: Falta valor fibra | M23: Falta valor fibra | N23: =IF(Valoración!$A$3=$A23,IF(Valoración!I$3>0,Valoración!I$3,""),"") ->  | O23: =IF(Valoración!$A$3=$A23,IF(Valoración!J$3>0,Valoración!J$3,""),"") ->  | P23: Falta valor cenizas | Q23: Falta valor cenizas | R23: Falta valor MNT | S23: Falta valor cenizas | T23: Falta valor fibra | U23: Falta valor fibra | V23: Falta valor fibra | X23: 0.5697167756 | Y23: Falta valor fibra | Z23: =IF(Valoración!$A$3=A23,IF(Valoración!$K$3>0,Valoración!K$3,""),"") ->  | AA23: 0.5697167756 | AB23: 0.5445389542 | AC23: Falta valor cenizas | AD23: 0.74 | AE23: 0.75 | AH23: 293.9041394 | AI23: Falta valor MNT | AK23: 34.91233115 | AL23: Falta valor MNT | AM23: Falta valor cenizas | AN23: Falta valor cenizas | AO23: -71 | AP23: Falta valor MNT | AQ23: Falta valor MNT | AR23: Falta valor MNT | AS23: Falta valor MNT | AT23: Falta valor MNT | AU23: Falta valor MNT | AV23: Falta valor MNT | AW23: Falta valor MNT | AX23: Falta valor MNT | AY23: Falta valor MNT | AZ23: Falta valor MNT | BA23: Falta valor MNT | BB23: Falta valor MNT | BC23: Falta valor MNT | BD23: Falta valor MNT | BE23: Falta valor MNT | BF23: Dáctilo Final floración, Verde | BH23: Falta valor MNT | BI23: Falta valor MNT | BJ23: Falta valor MNT | BK23: Falta valor MNT | BL23: Falta valor MNT | BM23: Falta valor MNT | BN23: Falta valor MNT | BO23: Falta valor MNT | BP23: Falta valor MNT | BQ23: Falta valor MNT | BR23: 0.5697167756 | BS23: Falta valor cenizas | BT23: 31 | BU23: Falta valor fibra | BV23: Falta valor fibra | BW23: Falta valor fibra | CR23: Falta valor MNT | CS23: 0.74 | CU23: Falta valor cenizas | CV23: Falta valor MNT | CW23: Falta valor MNT | CX23: Falta valor MNT | CY23: Falta valor MNT | CZ23: Falta valor MNT
A24: 23 | B24: Festuca prados Hoja primavera, Verde | C24: =IF(Valoración!$A$3=$A24,IF(Valoración!C$3>0,Valoración!C$3,""),"") ->  | D24: =IF(Valoración!$A$3=$A24,IF(Valoración!D$3>0,Valoración!D$3,""),"") ->  | E24: =IF(Valoración!$A$3=$A24,IF(Valoración!E$3>0,Valoración!E$3,""),"") ->  | F24: 4.5 | G24: =IF(Valoración!$A$3=$A24,IF(Valoración!F$3>0,Valoración!F$3,""),"") ->  | H24: =IF(Valoración!$A$3=$A24,IF(Valoración!G$3>0,Valoración!G$3,""),"") ->  | I24: =IF(Valoración!$A$3=$A24,IF(Valoración!H$3>0,Valoración!H$3,""),"") ->  | J24: 45 | K24: Falta valor fibra | L24: Falta valor fibra | M24: Falta valor fibra | N24: =IF(Valoración!$A$3=$A24,IF(Valoración!I$3>0,Valoración!I$3,""),"") ->  | O24: =IF(Valoración!$A$3=$A24,IF(Valoración!J$3>0,Valoración!J$3,""),"") ->  | P24: Falta valor cenizas | Q24: Falta valor cenizas | R24: Falta valor MNT | S24: Falta valor cenizas | T24: Falta valor fibra | U24: Falta valor fibra | V24: Falta valor fibra | X24: 0.8204545455 | Y24: Falta valor fibra | Z24: =IF(Valoración!$A$3=A24,IF(Valoración!$K$3>0,Valoración!K$3,""),"") ->  | AA24: 0.8204545455 | AB24: 0.784495 | AC24: Falta valor cenizas | AD24: 0.78 | AE24: 0.75 | AH24: 77.76818182 | AI24: Falta valor MNT | AK24: 17.62145455 | AL24: Falta valor MNT | AM24: Falta valor cenizas | AN24: Falta valor cenizas | AO24: -71 | AP24: Falta valor MNT | AQ24: Falta valor MNT | AR24: Falta valor MNT | AS24: Falta valor MNT | AT24: Falta valor MNT | AU24: Falta valor MNT | AV24: Falta valor MNT | AW24: Falta valor MNT | AX24: Falta valor MNT | AY24: Falta valor MNT | AZ24: Falta valor MNT | BA24: Falta valor MNT | BB24: Falta valor MNT | BC24: Falta valor MNT | BD24: Falta valor MNT | BE24: Falta valor MNT | BF24: Festuca prados Hoja primavera, Verde | BH24: Falta valor MNT | BI24: Falta valor MNT | BJ24: Falta valor MNT | BK24: Falta valor MNT | BL24: Falta valor MNT | BM24: Falta valor MNT | BN24: Falta valor MNT | BO24: Falta valor MNT | BP24: Falta valor MNT | BQ24: Falta valor MNT | BR24: 0.8204545455 | BS24: Falta valor cenizas | BT24: 45 | BU24: Falta valor fibra | BV24: Falta valor fibra | BW24: Falta valor fibra | CR24: Falta valor MNT | CS24: 0.78 | CU24: Falta valor cenizas | CV24: Falta valor MNT | CW24: Falta valor MNT | CX24: Falta valor MNT | CY24: Falta valor MNT | CZ24: Falta valor MNT
A25: 24 | B25: Festuca prados Espiga a 10 cm, Verde | C25: =IF(Valoración!$A$3=$A25,IF(Valoración!C$3>0,Valoración!C$3,""),"") ->  | D25: =IF(Valoración!$A$3=$A25,IF(Valoración!D$3>0,Valoración!D$3,""),"") ->  | E25: =IF(Valoración!$A$3=$A25,IF(Valoración!E$3>0,Valoración!E$3,""),"") ->  | F25: 4.4 | G25: =IF(Valoración!$A$3=$A25,IF(Valoración!F$3>0,Valoración!F$3,""),"") ->  | H25: =IF(Valoración!$A$3=$A25,IF(Valoración!G$3>0,Valoración!G$3,""),"") ->  | I25: =IF(Valoración!$A$3=$A25,IF(Valoración!H$3>0,Valoración!H$3,""),"") ->  | J25: 44 | K25: Falta valor fibra | L25: Falta valor fibra | M25: Falta valor fibra | N25: =IF(Valoración!$A$3=$A25,IF(Valoración!I$3>0,Valoración!I$3,""),"") ->  | O25: =IF(Valoración!$A$3=$A25,IF(Valoración!J$3>0,Valoración!J$3,""),"") ->  | P25: Falta valor cenizas | Q25: Falta valor cenizas | R25: Falta valor MNT | S25: Falta valor cenizas | T25: Falta valor fibra | U25: Falta valor fibra | V25: Falta valor fibra | X25: 0.8101123596 | Y25: Falta valor fibra | Z25: =IF(Valoración!$A$3=A25,IF(Valoración!$K$3>0,Valoración!K$3,""),"") ->  | AA25: 0.8101123596 | AB25: 0.7745975281 | AC25: Falta valor cenizas | AD25: 0.78 | AE25: 0.75 | AH25: 86.68314607 | AI25: Falta valor MNT | AK25: 18.33465169 | AL25: Falta valor MNT | AM25: Falta valor cenizas | AN25: Falta valor cenizas | AO25: -71 | AP25: Falta valor MNT | AQ25: Falta valor MNT | AR25: Falta valor MNT | AS25: Falta valor MNT | AT25: Falta valor MNT | AU25: Falta valor MNT | AV25: Falta valor MNT | AW25: Falta valor MNT | AX25: Falta valor MNT | AY25: Falta valor MNT | AZ25: Falta valor MNT | BA25: Falta valor MNT | BB25: Falta valor MNT | BC25: Falta valor MNT | BD25: Falta valor MNT | BE25: Falta valor MNT | BF25: Festuca prados Espiga a 10 cm, Verde | BH25: Falta valor MNT | BI25: Falta valor MNT | BJ25: Falta valor MNT | BK25: Falta valor MNT | BL25: Falta valor MNT | BM25: Falta valor MNT | BN25: Falta valor MNT | BO25: Falta valor MNT | BP25: Falta valor MNT | BQ25: Falta valor MNT | BR25: 0.8101123596 | BS25: Falta valor cenizas | BT25: 44 | BU25: Falta valor fibra | BV25: Falta valor fibra | BW25: Falta valor fibra | CR25: Falta valor MNT | CS25: 0.78 | CU25: Falta valor cenizas | CV25: Falta valor MNT | CW25: Falta valor MNT | CX25: Falta valor MNT | CY25: Falta valor MNT | CZ25: Falta valor MNT
A26: 25 | B26: Festuca prados Espiga a 10 cm, Verde rebrotes con tallos | C26: =IF(Valoración!$A$3=$A26,IF(Valoración!C$3>0,Valoración!C$3,""),"") ->  | D26: =IF(Valoración!$A$3=$A26,IF(Valoración!D$3>0,Valoración!D$3,""),"") ->  | E26: =IF(Valoración!$A$3=$A26,IF(Valoración!E$3>0,Valoración!E$3,""),"") ->  | F26: 2.5 | G26: =IF(Valoración!$A$3=$A26,IF(Valoración!F$3>0,Valoración!F$3,""),"") ->  | H26: =IF(Valoración!$A$3=$A26,IF(Valoración!G$3>0,Valoración!G$3,""),"") ->  | I26: =IF(Valoración!$A$3=$A26,IF(Valoración!H$3>0,Valoración!H$3,""),"") ->  | J26: 25 | K26: Falta valor fibra | L26: Falta valor fibra | M26: Falta valor fibra | N26: =IF(Valoración!$A$3=$A26,IF(Valoración!I$3>0,Valoración!I$3,""),"") ->  | O26: =IF(Valoración!$A$3=$A26,IF(Valoración!J$3>0,Valoración!J$3,""),"") ->  | P26: Falta valor cenizas | Q26: Falta valor cenizas | R26: Falta valor MNT | S26: Falta valor cenizas | T26: Falta valor fibra | U26: Falta valor fibra | V26: Falta valor fibra | X26: 0.7097130243 | Y26: Falta valor fibra | Z26: =IF(Valoración!$A$3=A26,IF(Valoración!$K$3>0,Valoración!K$3,""),"") ->  | AA26: 0.7097130243 | AB26: 0.6785153642 | AC26: Falta valor cenizas | AD26: 0.72 | AE26: 0.75 | AH26: 173.2273731 | AI26: Falta valor MNT | AK26: 25.25818985 | AL26: Falta valor MNT | AM26: Falta valor cenizas | AN26: Falta valor cenizas | AO26: -71 | AP26: Falta valor MNT | AQ26: Falta valor MNT | AR26: Falta valor MNT | AS26: Falta valor MNT | AT26: Falta valor MNT | AU26: Falta valor MNT | AV26: Falta valor MNT | AW26: Falta valor MNT | AX26: Falta valor MNT | AY26: Falta valor MNT | AZ26: Falta valor MNT | BA26: Falta valor MNT | BB26: Falta valor MNT | BC26: Falta valor MNT | BD26: Falta valor MNT | BE26: Falta valor MNT | BF26: Festuca prados Espiga a 10 cm, Verde rebrotes con tallos | BH26: Falta valor MNT | BI26: Falta valor MNT | BJ26: Falta valor MNT | BK26: Falta valor MNT | BL26: Falta valor MNT | BM26: Falta valor MNT | BN26: Falta valor MNT | BO26: Falta valor MNT | BP26: Falta valor MNT | BQ26: Falta valor MNT | BR26: 0.7097130243 | BS26: Falta valor cenizas | BT26: 25 | BU26: Falta valor fibra | BV26: Falta valor fibra | BW26: Falta valor fibra | CR26: Falta valor MNT | CS26: 0.72 | CU26: Falta valor cenizas | CV26: Falta valor MNT | CW26: Falta valor MNT | CX26: Falta valor MNT | CY26: Falta valor MNT | CZ26: Falta valor MNT
A27: 26 | B27: Festuca Prados 1 semana antes inicio espigado, Verde | C27: =IF(Valoración!$A$3=$A27,IF(Valoración!C$3>0,Valoración!C$3,""),"") ->  | D27: =IF(Valoración!$A$3=$A27,IF(Valoración!D$3>0,Valoración!D$3,""),"") ->  | E27: =IF(Valoración!$A$3=$A27,IF(Valoración!E$3>0,Valoración!E$3,""),"") ->  | F27: 3.8 | G27: =IF(Valoración!$A$3=$A27,IF(Valoración!F$3>0,Valoración!F$3,""),"") ->  | H27: =IF(Valoración!$A$3=$A27,IF(Valoración!G$3>0,Valoración!G$3,""),"") ->  | I27: =IF(Valoración!$A$3=$A27,IF(Valoración!H$3>0,Valoración!H$3,""),"") ->  | J27: 38 | K27: Falta valor fibra | L27: Falta valor fibra | M27: Falta valor fibra | N27: =IF(Valoración!$A$3=$A27,IF(Valoración!I$3>0,Valoración!I$3,""),"") ->  | O27: =IF(Valoración!$A$3=$A27,IF(Valoración!J$3>0,Valoración!J$3,""),"") ->  | P27: Falta valor cenizas | Q27: Falta valor cenizas | R27: Falta valor MNT | S27: Falta valor cenizas | T27: Falta valor fibra | U27: Falta valor fibra | V27: Falta valor fibra | X27: 0.7897664071 | Y27: Falta valor fibra | Z27: =IF(Valoración!$A$3=A27,IF(Valoración!$K$3>0,Valoración!K$3,""),"") ->  | AA27: 0.7897664071 | AB27: 0.7551264516 | AC27: Falta valor cenizas | AD27: 0.75 | AE27: 0.75 | AH27: 104.2213571 | AI27: Falta valor MNT | AK27: 19.73770857 | AL27: Falta valor MNT | AM27: Falta valor cenizas | AN27: Falta valor cenizas | AO27: -71 | AP27: Falta valor MNT | AQ27: Falta valor MNT | AR27: Falta valor MNT | AS27: Falta valor MNT | AT27: Falta valor MNT | AU27: Falta valor MNT | AV27: Falta valor MNT | AW27: Falta valor MNT | AX27: Falta valor MNT | AY27: Falta valor MNT | AZ27: Falta valor MNT | BA27: Falta valor MNT | BB27: Falta valor MNT | BC27: Falta valor MNT | BD27: Falta valor MNT | BE27: Falta valor MNT | BF27: Festuca Prados 1 semana antes inicio espigado, Verde | BH27: Falta valor MNT | BI27: Falta valor MNT | BJ27: Falta valor MNT | BK27: Falta valor MNT | BL27: Falta valor MNT | BM27: Falta valor MNT | BN27: Falta valor MNT | BO27: Falta valor MNT | BP27: Falta valor MNT | BQ27: Falta valor MNT | BR27: 0.7897664071 | BS27: Falta valor cenizas | BT27: 38 | BU27: Falta valor fibra | BV27: Falta valor fibra | BW27: Falta valor fibra | CR27: Falta valor MNT | CS27: 0.75 | CU27: Falta valor cenizas | CV27: Falta valor MNT | CW27: Falta valor MNT | CX27: Falta valor MNT | CY27: Falta valor MNT | CZ27: Falta valor MNT
A28: 27 | B28: Festuca prados Inicio espigado, Verde | C28: =IF(Valoración!$A$3=$A28,IF(Valoración!C$3>0,Valoración!C$3,""),"") ->  | D28: =IF(Valoración!$A$3=$A28,IF(Valoración!D$3>0,Valoración!D$3,""),"") ->  | E28: =IF(Valoración!$A$3=$A28,IF(Valoración!E$3>0,Valoración!E$3,""),"") ->  | F28: 3.6 | G28: =IF(Valoración!$A$3=$A28,IF(Valoración!F$3>0,Valoración!F$3,""),"") ->  | H28: =IF(Valoración!$A$3=$A28,IF(Valoración!G$3>0,Valoración!G$3,""),"") ->  | I28: =IF(Valoración!$A$3=$A28,IF(Valoración!H$3>0,Valoración!H$3,""),"") ->  | J28: 36 | K28: Falta valor fibra | L28: Falta valor fibra | M28: Falta valor fibra | N28: =IF(Valoración!$A$3=$A28,IF(Valoración!I$3>0,Valoración!I$3,""),"") ->  | O28: =IF(Valoración!$A$3=$A28,IF(Valoración!J$3>0,Valoración!J$3,""),"") ->  | P28: Falta valor cenizas | Q28: Falta valor cenizas | R28: Falta valor MNT | S28: Falta valor cenizas | T28: Falta valor fibra | U28: Falta valor fibra | V28: Falta valor fibra | X28: 0.7598684211 | Y28: Falta valor fibra | Z28: =IF(Valoración!$A$3=A28,IF(Valoración!$K$3>0,Valoración!K$3,""),"") ->  | AA28: 0.7598684211 | AB28: 0.7265140789 | AC28: Falta valor cenizas | AD28: 0.75 | AE28: 0.75 | AH28: 129.9934211 | AI28: Falta valor MNT | AK28: 21.79947368 | AL28: Falta valor MNT | AM28: Falta valor cenizas | AN28: Falta valor cenizas | AO28: -71 | AP28: Falta valor MNT | AQ28: Falta valor MNT | AR28: Falta valor MNT | AS28: Falta valor MNT | AT28: Falta valor MNT | AU28: Falta valor MNT | AV28: Falta valor MNT | AW28: Falta valor MNT | AX28: Falta valor MNT | AY28: Falta valor MNT | AZ28: Falta valor MNT | BA28: Falta valor MNT | BB28: Falta valor MNT | BC28: Falta valor MNT | BD28: Falta valor MNT | BE28: Falta valor MNT | BF28: Festuca prados Inicio espigado, Verde | BH28: Falta valor MNT | BI28: Falta valor MNT | BJ28: Falta valor MNT | BK28: Falta valor MNT | BL28: Falta valor MNT | BM28: Falta valor MNT | BN28: Falta valor MNT | BO28: Falta valor MNT | BP28: Falta valor MNT | BQ28: Falta valor MNT | BR28: 0.7598684211 | BS28: Falta valor cenizas | BT28: 36 | BU28: Falta valor fibra | BV28: Falta valor fibra | BW28: Falta valor fibra | CR28: Falta valor MNT | CS28: 0.75 | CU28: Falta valor cenizas | CV28: Falta valor MNT | CW28: Falta valor MNT | CX28: Falta valor MNT | CY28: Falta valor MNT | CZ28: Falta valor MNT
A29: 28 | B29: Festuca prados Espigado, Verde | C29: =IF(Valoración!$A$3=$A29,IF(Valoración!C$3>0,Valoración!C$3,""),"") ->  | D29: =IF(Valoración!$A$3=$A29,IF(Valoración!D$3>0,Valoración!D$3,""),"") ->  | E29: =IF(Valoración!$A$3=$A29,IF(Valoración!E$3>0,Valoración!E$3,""),"") ->  | F29: 3.4 | G29: =IF(Valoración!$A$3=$A29,IF(Valoración!F$3>0,Valoración!F$3,""),"") ->  | H29: =IF(Valoración!$A$3=$A29,IF(Valoración!G$3>0,Valoración!G$3,""),"") ->  | I29: =IF(Valoración!$A$3=$A29,IF(Valoración!H$3>0,Valoración!H$3,""),"") ->  | J29: 34 | K29: Falta valor fibra | L29: Falta valor fibra | M29: Falta valor fibra | N29: =IF(Valoración!$A$3=$A29,IF(Valoración!I$3>0,Valoración!I$3,""),"") ->  | O29: =IF(Valoración!$A$3=$A29,IF(Valoración!J$3>0,Valoración!J$3,""),"") ->  | P29: Falta valor cenizas | Q29: Falta valor cenizas | R29: Falta valor MNT | S29: Falta valor cenizas | T29: Falta valor fibra | U29: Falta valor fibra | V29: Falta valor fibra | X29: 0.7202185792 | Y29: Falta valor fibra | Z29: =IF(Valoración!$A$3=A29,IF(Valoración!$K$3>0,Valoración!K$3,""),"") ->  | AA29: 0.7202185792 | AB29: 0.6885691803 | AC29: Falta valor cenizas | AD29: 0.74 | AE29: 0.75 | AH29: 164.1715847 | AI29: Falta valor MNT | AK29: 24.53372678 | AL29: Falta valor MNT | AM29: Falta valor cenizas | AN29: Falta valor cenizas | AO29: -71 | AP29: Falta valor MNT | AQ29: Falta valor MNT | AR29: Falta valor MNT | AS29: Falta valor MNT | AT29: Falta valor MNT | AU29: Falta valor MNT | AV29: Falta valor MNT | AW29: Falta valor MNT | AX29: Falta valor MNT | AY29: Falta valor MNT | AZ29: Falta valor MNT | BA29: Falta valor MNT | BB29: Falta valor MNT | BC29: Falta valor MNT | BD29: Falta valor MNT | BE29: Falta valor MNT | BF29: Festuca prados Espigado, Verde | BH29: Falta valor MNT | BI29: Falta valor MNT | BJ29: Falta valor MNT | BK29: Falta valor MNT | BL29: Falta valor MNT | BM29: Falta valor MNT | BN29: Falta valor MNT | BO29: Falta valor MNT | BP29: Falta valor MNT | BQ29: Falta valor MNT | BR29: 0.7202185792 | BS29: Falta valor cenizas | BT29: 34 | BU29: Falta valor fibra | BV29: Falta valor fibra | BW29: Falta valor fibra | CR29: Falta valor MNT | CS29: 0.74 | CU29: Falta valor cenizas | CV29: Falta valor MNT | CW29: Falta valor MNT | CX29: Falta valor MNT | CY29: Falta valor MNT | CZ29: Falta valor MNT
A30: 29 | B30: Festuca prados Espigado, Verde rebrotes hoja | C30: =IF(Valoración!$A$3=$A30,IF(Valoración!C$3>0,Valoración!C$3,""),"") ->  | D30: =IF(Valoración!$A$3=$A30,IF(Valoración!D$3>0,Valoración!D$3,""),"") ->  | E30: =IF(Valoración!$A$3=$A30,IF(Valoración!E$3>0,Valoración!E$3,""),"") ->  | F30: 4.1 | G30: =IF(Valoración!$A$3=$A30,IF(Valoración!F$3>0,Valoración!F$3,""),"") ->  | H30: =IF(Valoración!$A$3=$A30,IF(Valoración!G$3>0,Valoración!G$3,""),"") ->  | I30: =IF(Valoración!$A$3=$A30,IF(Valoración!H$3>0,Valoración!H$3,""),"") ->  | J30: 41 | K30: Falta valor fibra | L30: Falta valor fibra | M30: Falta valor fibra | N30: =IF(Valoración!$A$3=$A30,IF(Valoración!I$3>0,Valoración!I$3,""),"") ->  | O30: =IF(Valoración!$A$3=$A30,IF(Valoración!J$3>0,Valoración!J$3,""),"") ->  | P30: Falta valor cenizas | Q30: Falta valor cenizas | R30: Falta valor MNT | S30: Falta valor cenizas | T30: Falta valor fibra | U30: Falta valor fibra | V30: Falta valor fibra | X30: 0.7394678492 | Y30: Falta valor fibra | Z30: =IF(Valoración!$A$3=A30,IF(Valoración!$K$3>0,Valoración!K$3,""),"") ->  | AA30: 0.7394678492 | AB30: 0.7069907317 | AC30: Falta valor cenizas | AD30: 0.73 | AE30: 0.75 | AH30: 147.578714 | AI30: Falta valor MNT | AK30: 23.20629712 | AL30: Falta valor MNT | AM30: Falta valor cenizas | AN30: Falta valor cenizas | AO30: -71 | AP30: Falta valor MNT | AQ30: Falta valor MNT | AR30: Falta valor MNT | AS30: Falta valor MNT | AT30: Falta valor MNT | AU30: Falta valor MNT | AV30: Falta valor MNT | AW30: Falta valor MNT | AX30: Falta valor MNT | AY30: Falta valor MNT | AZ30: Falta valor MNT | BA30: Falta valor MNT | BB30: Falta valor MNT | BC30: Falta valor MNT | BD30: Falta valor MNT | BE30: Falta valor MNT | BF30: Festuca prados Espigado, Verde rebrotes hoja | BH30: Falta valor MNT | BI30: Falta valor MNT | BJ30: Falta valor MNT | BK30: Falta valor MNT | BL30: Falta valor MNT | BM30: Falta valor MNT | BN30: Falta valor MNT | BO30: Falta valor MNT | BP30: Falta valor MNT | BQ30: Falta valor MNT | BR30: 0.7394678492 | BS30: Falta valor cenizas | BT30: 41 | BU30: Falta valor fibra | BV30: Falta valor fibra | BW30: Falta valor fibra | CR30: Falta valor MNT | CS30: 0.73 | CU30: Falta valor cenizas | CV30: Falta valor MNT | CW30: Falta valor MNT | CX30: Falta valor MNT | CY30: Falta valor MNT | CZ30: Falta valor MNT
A31: 30 | B31: Festuca prados Inicio floración, Verde | C31: =IF(Valoración!$A$3=$A31,IF(Valoración!C$3>0,Valoración!C$3,""),"") ->  | D31: =IF(Valoración!$A$3=$A31,IF(Valoración!D$3>0,Valoración!D$3,""),"") ->  | E31: =IF(Valoración!$A$3=$A31,IF(Valoración!E$3>0,Valoración!E$3,""),"") ->  | F31: 3.3 | G31: =IF(Valoración!$A$3=$A31,IF(Valoración!F$3>0,Valoración!F$3,""),"") ->  | H31: =IF(Valoración!$A$3=$A31,IF(Valoración!G$3>0,Valoración!G$3,""),"") ->  | I31: =IF(Valoración!$A$3=$A31,IF(Valoración!H$3>0,Valoración!H$3,""),"") ->  | J31: 33 | K31: Falta valor fibra | L31: Falta valor fibra | M31: Falta valor fibra | N31: =IF(Valoración!$A$3=$A31,IF(Valoración!I$3>0,Valoración!I$3,""),"") ->  | O31: =IF(Valoración!$A$3=$A31,IF(Valoración!J$3>0,Valoración!J$3,""),"") ->  | P31: Falta valor cenizas | Q31: Falta valor cenizas | R31: Falta valor MNT | S31: Falta valor cenizas | T31: Falta valor fibra | U31: Falta valor fibra | V31: Falta valor fibra | X31: 0.65 | Y31: Falta valor fibra | Z31: =IF(Valoración!$A$3=A31,IF(Valoración!$K$3>0,Valoración!K$3,""),"") ->  | AA31: 0.65 | AB31: 0.62137 | AC31: Falta valor cenizas | AD31: 0.75 | AE31: 0.75 | AH31: 224.7 | AI31: Falta valor MNT | AK31: 29.376 | AL31: Falta valor MNT | AM31: Falta valor cenizas | AN31: Falta valor cenizas | AO31: -71 | AP31: Falta valor MNT | AQ31: Falta valor MNT | AR31: Falta valor MNT | AS31: Falta valor MNT | AT31: Falta valor MNT | AU31: Falta valor MNT | AV31: Falta valor MNT | AW31: Falta valor MNT | AX31: Falta valor MNT | AY31: Falta valor MNT | AZ31: Falta valor MNT | BA31: Falta valor MNT | BB31: Falta valor MNT | BC31: Falta valor MNT | BD31: Falta valor MNT | BE31: Falta valor MNT | BF31: Festuca prados Inicio floración, Verde | BH31: Falta valor MNT | BI31: Falta valor MNT | BJ31: Falta valor MNT | BK31: Falta valor MNT | BL31: Falta valor MNT | BM31: Falta valor MNT | BN31: Falta valor MNT | BO31: Falta valor MNT | BP31: Falta valor MNT | BQ31: Falta valor MNT | BR31: 0.65 | BS31: Falta valor cenizas | BT31: 33 | BU31: Falta valor fibra | BV31: Falta valor fibra | BW31: Falta valor fibra | CR31: Falta valor MNT | CS31: 0.75 | CU31: Falta valor cenizas | CV31: Falta valor MNT | CW31: Falta valor MNT | CX31: Falta valor MNT | CY31: Falta valor MNT | CZ31: Falta valor MNT
A32: 31 | B32: Festuca Alta Hoja otoño / invierno, Verde | C32: =IF(Valoración!$A$3=$A32,IF(Valoración!C$3>0,Valoración!C$3,""),"") ->  | D32: =IF(Valoración!$A$3=$A32,IF(Valoración!D$3>0,Valoración!D$3,""),"") ->  | E32: =IF(Valoración!$A$3=$A32,IF(Valoración!E$3>0,Valoración!E$3,""),"") ->  | F32: 4.2 | G32: =IF(Valoración!$A$3=$A32,IF(Valoración!F$3>0,Valoración!F$3,""),"") ->  | H32: =IF(Valoración!$A$3=$A32,IF(Valoración!G$3>0,Valoración!G$3,""),"") ->  | I32: =IF(Valoración!$A$3=$A32,IF(Valoración!H$3>0,Valoración!H$3,""),"") ->  | J32: 42 | K32: Falta valor fibra | L32: Falta valor fibra | M32: Falta valor fibra | N32: =IF(Valoración!$A$3=$A32,IF(Valoración!I$3>0,Valoración!I$3,""),"") ->  | O32: =IF(Valoración!$A$3=$A32,IF(Valoración!J$3>0,Valoración!J$3,""),"") ->  | P32: Falta valor cenizas | Q32: Falta valor cenizas | R32: Falta valor MNT | S32: Falta valor cenizas | T32: Falta valor fibra | U32: Falta valor fibra | V32: Falta valor fibra | X32: 0.6996547756 | Y32: Falta valor fibra | Z32: =IF(Valoración!$A$3=A32,IF(Valoración!$K$3>0,Valoración!K$3,""),"") ->  | AA32: 0.6996547756 | AB32: 0.6688896203 | AC32: Falta valor cenizas | AD32: 0.78 | AE32: 0.75 | AH32: 181.8975834 | AI32: Falta valor MNT | AK32: 25.95180667 | AL32: Falta valor MNT | AM32: Falta valor cenizas | AN32: Falta valor cenizas | AO32: -71 | AP32: Falta valor MNT | AQ32: Falta valor MNT | AR32: Falta valor MNT | AS32: Falta valor MNT | AT32: Falta valor MNT | AU32: Falta valor MNT | AV32: Falta valor MNT | AW32: Falta valor MNT | AX32: Falta valor MNT | AY32: Falta valor MNT | AZ32: Falta valor MNT | BA32: Falta valor MNT | BB32: Falta valor MNT | BC32: Falta valor MNT | BD32: Falta valor MNT | BE32: Falta valor MNT | BF32: Festuca Alta Hoja otoño / invierno, Verde | BH32: Falta valor MNT | BI32: Falta valor MNT | BJ32: Falta valor MNT | BK32: Falta valor MNT | BL32: Falta valor MNT | BM32: Falta valor MNT | BN32: Falta valor MNT | BO32: Falta valor MNT | BP32: Falta valor MNT | BQ32: Falta valor MNT | BR32: 0.6996547756 | BS32: Falta valor cenizas | BT32: 42 | BU32: Falta valor fibra | BV32: Falta valor fibra | BW32: Falta valor fibra | CR32: Falta valor MNT | CS32: 0.78 | CU32: Falta valor cenizas | CV32: Falta valor MNT | CW32: Falta valor MNT | CX32: Falta valor MNT | CY32: Falta valor MNT | CZ32: Falta valor MNT
A33: 32 | B33: Festuca Alta Hoja primavera, Verde | C33: =IF(Valoración!$A$3=$A33,IF(Valoración!C$3>0,Valoración!C$3,""),"") ->  | D33: =IF(Valoración!$A$3=$A33,IF(Valoración!D$3>0,Valoración!D$3,""),"") ->  | E33: =IF(Valoración!$A$3=$A33,IF(Valoración!E$3>0,Valoración!E$3,""),"") ->  | F33: 4.3 | G33: =IF(Valoración!$A$3=$A33,IF(Valoración!F$3>0,Valoración!F$3,""),"") ->  | H33: =IF(Valoración!$A$3=$A33,IF(Valoración!G$3>0,Valoración!G$3,""),"") ->  | I33: =IF(Valoración!$A$3=$A33,IF(Valoración!H$3>0,Valoración!H$3,""),"") ->  | J33: 43 | K33: Falta valor fibra | L33: Falta valor fibra | M33: Falta valor fibra | N33: =IF(Valoración!$A$3=$A33,IF(Valoración!I$3>0,Valoración!I$3,""),"") ->  | O33: =IF(Valoración!$A$3=$A33,IF(Valoración!J$3>0,Valoración!J$3,""),"") ->  | P33: Falta valor cenizas | Q33: Falta valor cenizas | R33: Falta valor MNT | S33: Falta valor cenizas | T33: Falta valor fibra | U33: Falta valor fibra | V33: Falta valor fibra | X33: 0.739789965 | Y33: Falta valor fibra | Z33: =IF(Valoración!$A$3=A33,IF(Valoración!$K$3>0,Valoración!K$3,""),"") ->  | AA33: 0.739789965 | AB33: 0.7072989965 | AC33: Falta valor cenizas | AD33: 0.73 | AE33: 0.75 | AH33: 147.3010502 | AI33: Falta valor MNT | AK33: 23.18408401 | AL33: Falta valor MNT | AM33: Falta valor cenizas | AN33: Falta valor cenizas | AO33: -71 | AP33: Falta valor MNT | AQ33: Falta valor MNT | AR33: Falta valor MNT | AS33: Falta valor MNT | AT33: Falta valor MNT | AU33: Falta valor MNT | AV33: Falta valor MNT | AW33: Falta valor MNT | AX33: Falta valor MNT | AY33: Falta valor MNT | AZ33: Falta valor MNT | BA33: Falta valor MNT | BB33: Falta valor MNT | BC33: Falta valor MNT | BD33: Falta valor MNT | BE33: Falta valor MNT | BF33: Festuca Alta Hoja primavera, Verde | BH33: Falta valor MNT | BI33: Falta valor MNT | BJ33: Falta valor MNT | BK33: Falta valor MNT | BL33: Falta valor MNT | BM33: Falta valor MNT | BN33: Falta valor MNT | BO33: Falta valor MNT | BP33: Falta valor MNT | BQ33: Falta valor MNT | BR33: 0.739789965 | BS33: Falta valor cenizas | BT33: 43 | BU33: Falta valor fibra | BV33: Falta valor fibra | BW33: Falta valor fibra | CR33: Falta valor MNT | CS33: 0.73 | CU33: Falta valor cenizas | CV33: Falta valor MNT | CW33: Falta valor MNT | CX33: Falta valor MNT | CY33: Falta valor MNT | CZ33: Falta valor MNT
A34: 33 | B34: Festuca Alta Espiga a 10 cm, Verde | C34: =IF(Valoración!$A$3=$A34,IF(Valoración!C$3>0,Valoración!C$3,""),"") ->  | D34: =IF(Valoración!$A$3=$A34,IF(Valoración!D$3>0,Valoración!D$3,""),"") ->  | E34: =IF(Valoración!$A$3=$A34,IF(Valoración!E$3>0,Valoración!E$3,""),"") ->  | F34: 3.9 | G34: =IF(Valoración!$A$3=$A34,IF(Valoración!F$3>0,Valoración!F$3,""),"") ->  | H34: =IF(Valoración!$A$3=$A34,IF(Valoración!G$3>0,Valoración!G$3,""),"") ->  | I34: =IF(Valoración!$A$3=$A34,IF(Valoración!H$3>0,Valoración!H$3,""),"") ->  | J34: 39 | K34: Falta valor fibra | L34: Falta valor fibra | M34: Falta valor fibra | N34: =IF(Valoración!$A$3=$A34,IF(Valoración!I$3>0,Valoración!I$3,""),"") ->  | O34: =IF(Valoración!$A$3=$A34,IF(Valoración!J$3>0,Valoración!J$3,""),"") ->  | P34: Falta valor cenizas | Q34: Falta valor cenizas | R34: Falta valor MNT | S34: Falta valor cenizas | T34: Falta valor fibra | U34: Falta valor fibra | V34: Falta valor fibra | X34: 0.7203682394 | Y34: Falta valor fibra | Z34: =IF(Valoración!$A$3=A34,IF(Valoración!$K$3>0,Valoración!K$3,""),"") ->  | AA34: 0.7203682394 | AB34: 0.6887124051 | AC34: Falta valor cenizas | AD34: 0.76 | AE34: 0.75 | AH34: 164.0425777 | AI34: Falta valor MNT | AK34: 24.52340621 | AL34: Falta valor MNT | AM34: Falta valor cenizas | AN34: Falta valor cenizas | AO34: -71 | AP34: Falta valor MNT | AQ34: Falta valor MNT | AR34: Falta valor MNT | AS34: Falta valor MNT | AT34: Falta valor MNT | AU34: Falta valor MNT | AV34: Falta valor MNT | AW34: Falta valor MNT | AX34: Falta valor MNT | AY34: Falta valor MNT | AZ34: Falta valor MNT | BA34: Falta valor MNT | BB34: Falta valor MNT | BC34: Falta valor MNT | BD34: Falta valor MNT | BE34: Falta valor MNT | BF34: Festuca Alta Espiga a 10 cm, Verde | BH34: Falta valor MNT | BI34: Falta valor MNT | BJ34: Falta valor MNT | BK34: Falta valor MNT | BL34: Falta valor MNT | BM34: Falta valor MNT | BN34: Falta valor MNT | BO34: Falta valor MNT | BP34: Falta valor MNT | BQ34: Falta valor MNT | BR34: 0.7203682394 | BS34: Falta valor cenizas | BT34: 39 | BU34: Falta valor fibra | BV34: Falta valor fibra | BW34: Falta valor fibra | CR34: Falta valor MNT | CS34: 0.76 | CU34: Falta valor cenizas | CV34: Falta valor MNT | CW34: Falta valor MNT | CX34: Falta valor MNT | CY34: Falta valor MNT | CZ34: Falta valor MNT
A35: 34 | B35: Festuca Alta Espiga a 10 cm, Verde rebrotes con tallos | C35: =IF(Valoración!$A$3=$A35,IF(Valoración!C$3>0,Valoración!C$3,""),"") ->  | D35: =IF(Valoración!$A$3=$A35,IF(Valoración!D$3>0,Valoración!D$3,""),"") ->  | E35: =IF(Valoración!$A$3=$A35,IF(Valoración!E$3>0,Valoración!E$3,""),"") ->  | F35: 3.6 | G35: =IF(Valoración!$A$3=$A35,IF(Valoración!F$3>0,Valoración!F$3,""),"") ->  | H35: =IF(Valoración!$A$3=$A35,IF(Valoración!G$3>0,Valoración!G$3,""),"") ->  | I35: =IF(Valoración!$A$3=$A35,IF(Valoración!H$3>0,Valoración!H$3,""),"") ->  | J35: 36 | K35: Falta valor fibra | L35: Falta valor fibra | M35: Falta valor fibra | N35: =IF(Valoración!$A$3=$A35,IF(Valoración!I$3>0,Valoración!I$3,""),"") ->  | O35: =IF(Valoración!$A$3=$A35,IF(Valoración!J$3>0,Valoración!J$3,""),"") ->  | P35: Falta valor cenizas | Q35: Falta valor cenizas | R35: Falta valor MNT | S35: Falta valor cenizas | T35: Falta valor fibra | U35: Falta valor fibra | V35: Falta valor fibra | X35: 0.6800472255 | Y35: Falta valor fibra | Z35: =IF(Valoración!$A$3=A35,IF(Valoración!$K$3>0,Valoración!K$3,""),"") ->  | AA35: 0.6800472255 | AB35: 0.6501251948 | AC35: Falta valor cenizas | AD35: 0.72 | AE35: 0.75 | AH35: 198.7992916 | AI35: Falta valor MNT | AK35: 27.30394333 | AL35: Falta valor MNT | AM35: =IF(AC35="Falta valor cenizas",AC35,IF(AI35="Falta valor MNT",AI35,AC35-AI35-AJ35-AK35-AL35)) -> Falta valor cenizas | AN35: =IF(AM35="Falta valor cenizas",AM35,IF(AM35="Falta valor MNT",AM35,(41.67+71.9*10^-3*AM35)*0.8*0.8)) -> Falta valor cenizas | AO35: -71 | AP35: =IF(R35="Falta valor MNT",R35,IF(P35="Falta valor cenizas",P35,(4531+1.735*$R35+$AO35)*P35/100)) -> Falta valor MNT | AQ35: =IF($AP35="Falta valor MNT",AP35,IF(AP35="Falta valor cenizas",AP35,$AP35*$AB35)) -> Falta valor MNT | AR35: =IF(D35="","Falta valor MNT",(-16+0.806*AA35*100+0.115*10*D35+0.686*BG35-1.7)) -> Falta valor MNT | AS35: Falta valor MNT | AT35: Falta valor MNT | AU35: Falta valor MNT | AV35: Falta valor MNT | AW35: Falta valor MNT | AX35: Falta valor MNT | AY35: Falta valor MNT | AZ35: Falta valor MNT | BA35: Falta valor MNT | BB35: Falta valor MNT | BC35: Falta valor MNT | BD35: Falta valor MNT | BE35: Falta valor MNT | BF35: Festuca Alta Espiga a 10 cm, Verde rebrotes con tallos | BH35: Falta valor MNT | BI35: Falta valor MNT | BJ35: Falta valor MNT | BK35: Falta valor MNT | BL35: Falta valor MNT | BM35: =IF(D35="","Falta valor MNT",IF(O35="","Falta valor cenizas",BJ35*AD35-(41.67+AM35*71.9*(10^-3))-14.2)) -> Falta valor MNT | BN35: Falta valor MNT | BO35: Falta valor MNT | BP35: Falta valor MNT | BQ35: Falta valor MNT | BR35: 0.6800472255 | BS35: Falta valor cenizas | BT35: 36 | BU35: Falta valor fibra | BV35: Falta valor fibra | BW35: Falta valor fibra | CR35: Falta valor MNT | CS35: 0.72 | CU35: Falta valor cenizas | CV35: Falta valor MNT | CW35: Falta valor MNT | CX35: Falta valor MNT | CY35: Falta valor MNT | CZ35: Falta valor MNT
A36: 35 | B36: Festuca Alta 1 semana antes inicio espigado, Verde | C36: =IF(Valoración!$A$3=$A36,IF(Valoración!C$3>0,Valoración!C$3,""),"") ->  | D36: =IF(Valoración!$A$3=$A36,IF(Valoración!D$3>0,Valoración!D$3,""),"") ->  | E36: =IF(Valoración!$A$3=$A36,IF(Valoración!E$3>0,Valoración!E$3,""),"") ->  | F36: 3.6 | G36: =IF(Valoración!$A$3=$A36,IF(Valoración!F$3>0,Valoración!F$3,""),"") ->  | H36: =IF(Valoración!$A$3=$A36,IF(Valoración!G$3>0,Valoración!G$3,""),"") ->  | I36: =IF(Valoración!$A$3=$A36,IF(Valoración!H$3>0,Valoración!H$3,""),"") ->  | J36: 36 | K36: Falta valor fibra | L36: Falta valor fibra | M36: Falta valor fibra | N36: =IF(Valoración!$A$3=$A36,IF(Valoración!I$3>0,Valoración!I$3,""),"") ->  | O36: =IF(Valoración!$A$3=$A36,IF(Valoración!J$3>0,Valoración!J$3,""),"") ->  | P36: Falta valor cenizas | Q36: Falta valor cenizas | R36: Falta valor MNT | S36: Falta valor cenizas | T36: Falta valor fibra | U36: Falta valor fibra | V36: Falta valor fibra | X36: 0.6996547756 | Y36: Falta valor fibra | Z36: =IF(Valoración!$A$3=A36,IF(Valoración!$K$3>0,Valoración!K$3,""),"") ->  | AA36: 0.6996547756 | AB36: 0.6688896203 | AC36: Falta valor cenizas | AD36: 0.75 | AE36: 0.75 | AH36: 181.8975834 | AI36: Falta valor MNT | AK36: 25.95180667 | AL36: Falta valor MNT | AM36: Falta valor cenizas | AN36: Falta valor cenizas | AO36: -71 | AP36: Falta valor MNT | AQ36: Falta valor MNT | AR36: Falta valor MNT | AS36: Falta valor MNT | AT36: Falta valor MNT | AU36: Falta valor MNT | AV36: Falta valor MNT | AW36: Falta valor MNT | AX36: Falta valor MNT | AY36: Falta valor MNT | AZ36: Falta valor MNT | BA36: Falta valor MNT | BB36: Falta valor MNT | BC36: Falta valor MNT | BD36: Falta valor MNT | BE36: Falta valor MNT | BF36: Festuca Alta 1 semana antes inicio espigado, Verde | BH36: Falta valor MNT | BI36: Falta valor MNT | BJ36: Falta valor MNT | BK36: Falta valor MNT | BL36: Falta valor MNT | BM36: Falta valor MNT | BN36: Falta valor MNT | BO36: Falta valor MNT | BP36: Falta valor MNT | BQ36: Falta valor MNT | BR36: 0.6996547756 | BS36: Falta valor cenizas | BT36: 36 | BU36: Falta valor fibra | BV36: Falta valor fibra | BW36: Falta valor fibra | CR36: Falta valor MNT | CS36: 0.75 | CU36: Falta valor cenizas | CV36: Falta valor MNT | CW36: Falta valor MNT | CX36: Falta valor MNT | CY36: Falta valor MNT | CZ36: Falta valor MNT
A37: 36 | B37: Festuca Alta Inicio espigado, Verde | C37: =IF(Valoración!$A$3=$A37,IF(Valoración!C$3>0,Valoración!C$3,""),"") ->  | D37: =IF(Valoración!$A$3=$A37,IF(Valoración!D$3>0,Valoración!D$3,""),"") ->  | E37: =IF(Valoración!$A$3=$A37,IF(Valoración!E$3>0,Valoración!E$3,""),"") ->  | F37: 3.5 | G37: =IF(Valoración!$A$3=$A37,IF(Valoración!F$3>0,Valoración!F$3,""),"") ->  | H37: =IF(Valoración!$A$3=$A37,IF(Valoración!G$3>0,Valoración!G$3,""),"") ->  | I37: =IF(Valoración!$A$3=$A37,IF(Valoración!H$3>0,Valoración!H$3,""),"") ->  | J37: 35 | K37: Falta valor fibra | L37: Falta valor fibra | M37: Falta valor fibra | N37: =IF(Valoración!$A$3=$A37,IF(Valoración!I$3>0,Valoración!I$3,""),"") ->  | O37: =IF(Valoración!$A$3=$A37,IF(Valoración!J$3>0,Valoración!J$3,""),"") ->  | P37: Falta valor cenizas | Q37: Falta valor cenizas | R37: Falta valor MNT | S37: Falta valor cenizas | T37: Falta valor fibra | U37: Falta valor fibra | V37: Falta valor fibra | X37: 0.6796338673 | Y37: Falta valor fibra | Z37: =IF(Valoración!$A$3=A37,IF(Valoración!$K$3>0,Valoración!K$3,""),"") ->  | AA37: 0.6796338673 | AB37: 0.649729611 | AC37: Falta valor cenizas | AD37: 0.74 | AE37: 0.75 | AH37: 199.1556064 | AI37: Falta valor MNT | AK37: 27.33244851 | AL37: Falta valor MNT | AM37: Falta valor cenizas | AN37: Falta valor cenizas | AO37: -71 | AP37: Falta valor MNT | AQ37: Falta valor MNT | AR37: Falta valor MNT | AS37: Falta valor MNT | AT37: Falta valor MNT | AU37: Falta valor MNT | AV37: Falta valor MNT | AW37: Falta valor MNT | AX37: Falta valor MNT | AY37: Falta valor MNT | AZ37: Falta valor MNT | BA37: Falta valor MNT | BB37: Falta valor MNT | BC37: Falta valor MNT | BD37: Falta valor MNT | BE37: Falta valor MNT | BF37: Festuca Alta Inicio espigado, Verde | BH37: Falta valor MNT | BI37: Falta valor MNT | BJ37: Falta valor MNT | BK37: Falta valor MNT | BL37: Falta valor MNT | BM37: Falta valor MNT | BN37: Falta valor MNT | BO37: Falta valor MNT | BP37: Falta valor MNT | BQ37: Falta valor MNT | BR37: 0.6796338673 | BS37: Falta valor cenizas | BT37: 35 | BU37: Falta valor fibra | BV37: Falta valor fibra | BW37: Falta valor fibra | CR37: Falta valor MNT | CS37: 0.74 | CU37: Falta valor cenizas | CV37: Falta valor MNT | CW37: Falta valor MNT | CX37: Falta valor MNT | CY37: Falta valor MNT | CZ37: Falta valor MNT
A38: 37 | B38: Festuca Alta Espigado, Verde | C38: =IF(Valoración!$A$3=$A38,IF(Valoración!C$3>0,Valoración!C$3,""),"") ->  | D38: =IF(Valoración!$A$3=$A38,IF(Valoración!D$3>0,Valoración!D$3,""),"") ->  | E38: =IF(Valoración!$A$3=$A38,IF(Valoración!E$3>0,Valoración!E$3,""),"") ->  | F38: 3.3 | G38: =IF(Valoración!$A$3=$A38,IF(Valoración!F$3>0,Valoración!F$3,""),"") ->  | H38: =IF(Valoración!$A$3=$A38,IF(Valoración!G$3>0,Valoración!G$3,""),"") ->  | I38: =IF(Valoración!$A$3=$A38,IF(Valoración!H$3>0,Valoración!H$3,""),"") ->  | J38: 33 | K38: Falta valor fibra | L38: Falta valor fibra | M38: Falta valor fibra | N38: =IF(Valoración!$A$3=$A38,IF(Valoración!I$3>0,Valoración!I$3,""),"") ->  | O38: =IF(Valoración!$A$3=$A38,IF(Valoración!J$3>0,Valoración!J$3,""),"") ->  | P38: Falta valor cenizas | Q38: Falta valor cenizas | R38: Falta valor MNT | S38: Falta valor cenizas | T38: Falta valor fibra | U38: Falta valor fibra | V38: Falta valor fibra | X38: 0.6500566251 | Y38: Falta valor fibra | Z38: =IF(Valoración!$A$3=A38,IF(Valoración!$K$3>0,Valoración!K$3,""),"") ->  | AA38: 0.6500566251 | AB38: 0.6214241903 | AC38: Falta valor cenizas | AD38: 0.73 | AE38: 0.75 | AH38: 224.6511891 | AI38: Falta valor MNT | AK38: 29.37209513 | AL38: Falta valor MNT | AM38: Falta valor cenizas | AN38: Falta valor cenizas | AO38: -71 | AP38: Falta valor MNT | AQ38: Falta valor MNT | AR38: Falta valor MNT | AS38: Falta valor MNT | AT38: Falta valor MNT | AU38: Falta valor MNT | AV38: Falta valor MNT | AW38: Falta valor MNT | AX38: Falta valor MNT | AY38: Falta valor MNT | AZ38: Falta valor MNT | BA38: Falta valor MNT | BB38: Falta valor MNT | BC38: Falta valor MNT | BD38: Falta valor MNT | BE38: Falta valor MNT | BF38: Festuca Alta Espigado, Verde | BH38: Falta valor MNT | BI38: Falta valor MNT | BJ38: Falta valor MNT | BK38: Falta valor MNT | BL38: Falta valor MNT | BM38: Falta valor MNT | BN38: Falta valor MNT | BO38: Falta valor MNT | BP38: Falta valor MNT | BQ38: Falta valor MNT | BR38: 0.6500566251 | BS38: Falta valor cenizas | BT38: 33 | BU38: Falta valor fibra | BV38: Falta valor fibra | BW38: Falta valor fibra | CR38: Falta valor MNT | CS38: 0.73 | CU38: Falta valor cenizas | CV38: Falta valor MNT | CW38: Falta valor MNT | CX38: Falta valor MNT | CY38: Falta valor MNT | CZ38: Falta valor MNT
A39: 38 | B39: Festuca Alta Espigado, Verde rebrotes hoja | C39: =IF(Valoración!$A$3=$A39,IF(Valoración!C$3>0,Valoración!C$3,""),"") ->  | D39: =IF(Valoración!$A$3=$A39,IF(Valoración!D$3>0,Valoración!D$3,""),"") ->  | E39: =IF(Valoración!$A$3=$A39,IF(Valoración!E$3>0,Valoración!E$3,""),"") ->  | F39: 3.9 | G39: =IF(Valoración!$A$3=$A39,IF(Valoración!F$3>0,Valoración!F$3,""),"") ->  | H39: =IF(Valoración!$A$3=$A39,IF(Valoración!G$3>0,Valoración!G$3,""),"") ->  | I39: =IF(Valoración!$A$3=$A39,IF(Valoración!H$3>0,Valoración!H$3,""),"") ->  | J39: 39 | K39: Falta valor fibra | L39: Falta valor fibra | M39: Falta valor fibra | N39: =IF(Valoración!$A$3=$A39,IF(Valoración!I$3>0,Valoración!I$3,""),"") ->  | O39: =IF(Valoración!$A$3=$A39,IF(Valoración!J$3>0,Valoración!J$3,""),"") ->  | P39: Falta valor cenizas | Q39: Falta valor cenizas | R39: Falta valor MNT | S39: Falta valor cenizas | T39: Falta valor fibra | U39: Falta valor fibra | V39: Falta valor fibra | X39: 0.6969001148 | Y39: Falta valor fibra | Z39: =IF(Valoración!$A$3=A39,IF(Valoración!$K$3>0,Valoración!K$3,""),"") ->  | AA39: 0.6969001148 | AB39: 0.6662534099 | AC39: Falta valor cenizas | AD39: 0.73 | AE39: 0.75 | AH39: 184.272101 | AI39: Falta valor MNT | AK39: 26.14176808 | AL39: Falta valor MNT | AM39: Falta valor cenizas | AN39: Falta valor cenizas | AO39: -71 | AP39: Falta valor MNT | AQ39: Falta valor MNT | AR39: Falta valor MNT | AS39: Falta valor MNT | AT39: Falta valor MNT | AU39: Falta valor MNT | AV39: Falta valor MNT | AW39: Falta valor MNT | AX39: Falta valor MNT | AY39: Falta valor MNT | AZ39: Falta valor MNT | BA39: Falta valor MNT | BB39: Falta valor MNT | BC39: Falta valor MNT | BD39: Falta valor MNT | BE39: Falta valor MNT | BF39: Festuca Alta Espigado, Verde rebrotes hoja | BH39: Falta valor MNT | BI39: Falta valor MNT | BJ39: Falta valor MNT | BK39: Falta valor MNT | BL39: Falta valor MNT | BM39: Falta valor MNT | BN39: Falta valor MNT | BO39: Falta valor MNT | BP39: Falta valor MNT | BQ39: Falta valor MNT | BR39: 0.6969001148 | BS39: Falta valor cenizas | BT39: 39 | BU39: Falta valor fibra | BV39: Falta valor fibra | BW39: Falta valor fibra | CR39: Falta valor MNT | CS39: 0.73 | CU39: Falta valor cenizas | CV39: Falta valor MNT | CW39: Falta valor MNT | CX39: Falta valor MNT | CY39: Falta valor MNT | CZ39: Falta valor MNT
A40: 39 | B40: Festuca Alta Final espigado, Verde | C40: =IF(Valoración!$A$3=$A40,IF(Valoración!C$3>0,Valoración!C$3,""),"") ->  | D40: =IF(Valoración!$A$3=$A40,IF(Valoración!D$3>0,Valoración!D$3,""),"") ->  | E40: =IF(Valoración!$A$3=$A40,IF(Valoración!E$3>0,Valoración!E$3,""),"") ->  | F40: 3.2 | G40: =IF(Valoración!$A$3=$A40,IF(Valoración!F$3>0,Valoración!F$3,""),"") ->  | H40: =IF(Valoración!$A$3=$A40,IF(Valoración!G$3>0,Valoración!G$3,""),"") ->  | I40: =IF(Valoración!$A$3=$A40,IF(Valoración!H$3>0,Valoración!H$3,""),"") ->  | J40: 32 | K40: Falta valor fibra | L40: Falta valor fibra | M40: Falta valor fibra | N40: =IF(Valoración!$A$3=$A40,IF(Valoración!I$3>0,Valoración!I$3,""),"") ->  | O40: =IF(Valoración!$A$3=$A40,IF(Valoración!J$3>0,Valoración!J$3,""),"") ->  | P40: Falta valor cenizas | Q40: Falta valor cenizas | R40: Falta valor MNT | S40: Falta valor cenizas | T40: Falta valor fibra | U40: Falta valor fibra | V40: Falta valor fibra | X40: 0.6394557823 | Y40: Falta valor fibra | Z40: =IF(Valoración!$A$3=A40,IF(Valoración!$K$3>0,Valoración!K$3,""),"") ->  | AA40: 0.6394557823 | AB40: 0.6112791837 | AC40: Falta valor cenizas | AD40: 0.73 | AE40: 0.75 | AH40: 233.7891156 | AI40: Falta valor MNT | AK40: 30.10312925 | AL40: Falta valor MNT | AM40: Falta valor cenizas | AN40: Falta valor cenizas | AO40: -71 | AP40: Falta valor MNT | AQ40: Falta valor MNT | AR40: Falta valor MNT | AS40: Falta valor MNT | AT40: Falta valor MNT | AU40: Falta valor MNT | AV40: Falta valor MNT | AW40: Falta valor MNT | AX40: Falta valor MNT | AY40: Falta valor MNT | AZ40: Falta valor MNT | BA40: Falta valor MNT | BB40: Falta valor MNT | BC40: Falta valor MNT | BD40: Falta valor MNT | BE40: Falta valor MNT | BF40: Festuca Alta Final espigado, Verde | BH40: Falta valor MNT | BI40: Falta valor MNT | BJ40: Falta valor MNT | BK40: Falta valor MNT | BL40: Falta valor MNT | BM40: Falta valor MNT | BN40: Falta valor MNT | BO40: Falta valor MNT | BP40: Falta valor MNT | BQ40: Falta valor MNT | BR40: 0.6394557823 | BS40: Falta valor cenizas | BT40: 32 | BU40: Falta valor fibra | BV40: Falta valor fibra | BW40: Falta valor fibra | CR40: Falta valor MNT | CS40: 0.73 | CU40: Falta valor cenizas | CV40: Falta valor MNT | CW40: Falta valor MNT | CX40: Falta valor MNT | CY40: Falta valor MNT | CZ40: Falta valor MNT
A41: 40 | B41: Festuca Alta Inicio floración, Verde | C41: =IF(Valoración!$A$3=$A41,IF(Valoración!C$3>0,Valoración!C$3,""),"") ->  | D41: =IF(Valoración!$A$3=$A41,IF(Valoración!D$3>0,Valoración!D$3,""),"") ->  | E41: =IF(Valoración!$A$3=$A41,IF(Valoración!E$3>0,Valoración!E$3,""),"") ->  | F41: 3.2 | G41: =IF(Valoración!$A$3=$A41,IF(Valoración!F$3>0,Valoración!F$3,""),"") ->  | H41: =IF(Valoración!$A$3=$A41,IF(Valoración!G$3>0,Valoración!G$3,""),"") ->  | I41: =IF(Valoración!$A$3=$A41,IF(Valoración!H$3>0,Valoración!H$3,""),"") ->  | J41: 32 | K41: Falta valor fibra | L41: Falta valor fibra | M41: Falta valor fibra | N41: =IF(Valoración!$A$3=$A41,IF(Valoración!I$3>0,Valoración!I$3,""),"") ->  | O41: =IF(Valoración!$A$3=$A41,IF(Valoración!J$3>0,Valoración!J$3,""),"") ->  | P41: Falta valor cenizas | Q41: Falta valor cenizas | R41: Falta valor MNT | S41: Falta valor cenizas | T41: Falta valor fibra | U41: Falta valor fibra | V41: Falta valor fibra | X41: 0.5904977376 | Y41: Falta valor fibra | Z41: =IF(Valoración!$A$3=A41,IF(Valoración!$K$3>0,Valoración!K$3,""),"") ->  | AA41: 0.5904977376 | AB41: 0.5644263348 | AC41: Falta valor cenizas | AD41: 0.74 | AE41: 0.75 | AH41: 275.9909502 | AI41: Falta valor MNT | AK41: 33.47927602 | AL41: Falta valor MNT | AM41: Falta valor cenizas | AN41: Falta valor cenizas | AO41: -71 | AP41: Falta valor MNT | AQ41: Falta valor MNT | AR41: Falta valor MNT | AS41: Falta valor MNT | AT41: Falta valor MNT | AU41: Falta valor MNT | AV41: Falta valor MNT | AW41: Falta valor MNT | AX41: Falta valor MNT | AY41: Falta valor MNT | AZ41: Falta valor MNT | BA41: Falta valor MNT | BB41: Falta valor MNT | BC41: Falta valor MNT | BD41: Falta valor MNT | BE41: Falta valor MNT | BF41: Festuca Alta Inicio floración, Verde | BH41: Falta valor MNT | BI41: Falta valor MNT | BJ41: Falta valor MNT | BK41: Falta valor MNT | BL41: Falta valor MNT | BM41: Falta valor MNT | BN41: Falta valor MNT | BO41: Falta valor MNT | BP41: Falta valor MNT | BQ41: Falta valor MNT | BR41: 0.5904977376 | BS41: Falta valor cenizas | BT41: 32 | BU41: Falta valor fibra | BV41: Falta valor fibra | BW41: Falta valor fibra | CR41: Falta valor MNT | CS41: 0.74 | CU41: Falta valor cenizas | CV41: Falta valor MNT | CW41: Falta valor MNT | CX41: Falta valor MNT | CY41: Falta valor MNT | CZ41: Falta valor MNT
A42: 41 | B42: Festuca Alta Floración, Verde | C42: =IF(Valoración!$A$3=$A42,IF(Valoración!C$3>0,Valoración!C$3,""),"") ->  | D42: =IF(Valoración!$A$3=$A42,IF(Valoración!D$3>0,Valoración!D$3,""),"") ->  | E42: =IF(Valoración!$A$3=$A42,IF(Valoración!E$3>0,Valoración!E$3,""),"") ->  | F42: 3.1 | G42: =IF(Valoración!$A$3=$A42,IF(Valoración!F$3>0,Valoración!F$3,""),"") ->  | H42: =IF(Valoración!$A$3=$A42,IF(Valoración!G$3>0,Valoración!G$3,""),"") ->  | I42: =IF(Valoración!$A$3=$A42,IF(Valoración!H$3>0,Valoración!H$3,""),"") ->  | J42: 31 | K42: Falta valor fibra | L42: Falta valor fibra | M42: Falta valor fibra | N42: =IF(Valoración!$A$3=$A42,IF(Valoración!I$3>0,Valoración!I$3,""),"") ->  | O42: =IF(Valoración!$A$3=$A42,IF(Valoración!J$3>0,Valoración!J$3,""),"") ->  | P42: Falta valor cenizas | Q42: Falta valor cenizas | R42: Falta valor MNT | S42: Falta valor cenizas | T42: Falta valor fibra | U42: Falta valor fibra | V42: Falta valor fibra | X42: 0.5704622322 | Y42: Falta valor fibra | Z42: =IF(Valoración!$A$3=A42,IF(Valoración!$K$3>0,Valoración!K$3,""),"") ->  | AA42: 0.5704622322 | AB42: 0.5452523563 | AC42: Falta valor cenizas | AD42: 0.74 | AE42: 0.75 | AH42: 293.2615558 | AI42: Falta valor MNT | AK42: 34.86092446 | AL42: Falta valor MNT | AM42: Falta valor cenizas | AN42: Falta valor cenizas | AO42: -71 | AP42: Falta valor MNT | AQ42: Falta valor MNT | AR42: Falta valor MNT | AS42: Falta valor MNT | AT42: Falta valor MNT | AU42: Falta valor MNT | AV42: Falta valor MNT | AW42: Falta valor MNT | AX42: Falta valor MNT | AY42: Falta valor MNT | AZ42: Falta valor MNT | BA42: Falta valor MNT | BB42: Falta valor MNT | BC42: Falta valor MNT | BD42: Falta valor MNT | BE42: Falta valor MNT | BF42: Festuca Alta Floración, Verde | BH42: Falta valor MNT | BI42: Falta valor MNT | BJ42: Falta valor MNT | BK42: Falta valor MNT | BL42: Falta valor MNT | BM42: Falta valor MNT | BN42: Falta valor MNT | BO42: Falta valor MNT | BP42: Falta valor MNT | BQ42: Falta valor MNT | BR42: 0.5704622322 | BS42: Falta valor cenizas | BT42: 31 | BU42: Falta valor fibra | BV42: Falta valor fibra | BW42: Falta valor fibra | CR42: Falta valor MNT | CS42: 0.74 | CU42: Falta valor cenizas | CV42: Falta valor MNT | CW42: Falta valor MNT | CX42: Falta valor MNT | CY42: Falta valor MNT | CZ42: Falta valor MNT
A43: 42 | B43: Fleo Hoja otoño / invierno, Verde | C43: =IF(Valoración!$A$3=$A43,IF(Valoración!C$3>0,Valoración!C$3,""),"") ->  | D43: =IF(Valoración!$A$3=$A43,IF(Valoración!D$3>0,Valoración!D$3,""),"") ->  | E43: =IF(Valoración!$A$3=$A43,IF(Valoración!E$3>0,Valoración!E$3,""),"") ->  | F43: 3.7 | G43: =IF(Valoración!$A$3=$A43,IF(Valoración!F$3>0,Valoración!F$3,""),"") ->  | H43: =IF(Valoración!$A$3=$A43,IF(Valoración!G$3>0,Valoración!G$3,""),"") ->  | I43: =IF(Valoración!$A$3=$A43,IF(Valoración!H$3>0,Valoración!H$3,""),"") ->  | J43: 37 | K43: Falta valor fibra | L43: Falta valor fibra | M43: Falta valor fibra | N43: =IF(Valoración!$A$3=$A43,IF(Valoración!I$3>0,Valoración!I$3,""),"") ->  | O43: =IF(Valoración!$A$3=$A43,IF(Valoración!J$3>0,Valoración!J$3,""),"") ->  | P43: Falta valor cenizas | Q43: Falta valor cenizas | R43: Falta valor MNT | S43: Falta valor cenizas | T43: Falta valor fibra | U43: Falta valor fibra | V43: Falta valor fibra | X43: 0.6604395604 | Y43: Falta valor fibra | Z43: =IF(Valoración!$A$3=A43,IF(Valoración!$K$3>0,Valoración!K$3,""),"") ->  | AA43: 0.6604395604 | AB43: 0.6313606593 | AC43: Falta valor cenizas | AD43: 0.7 | AE43: 0.75 | AH43: 215.7010989 | AI43: Falta valor MNT | AK43: 28.65608791 | AL43: Falta valor MNT | AM43: Falta valor cenizas | AN43: Falta valor cenizas | AO43: -71 | AP43: Falta valor MNT | AQ43: Falta valor MNT | AR43: Falta valor MNT | AS43: Falta valor MNT | AT43: Falta valor MNT | AU43: Falta valor MNT | AV43: Falta valor MNT | AW43: Falta valor MNT | AX43: Falta valor MNT | AY43: Falta valor MNT | AZ43: Falta valor MNT | BA43: Falta valor MNT | BB43: Falta valor MNT | BC43: Falta valor MNT | BD43: Falta valor MNT | BE43: Falta valor MNT | BF43: Fleo Hoja otoño / invierno, Verde | BH43: Falta valor MNT | BI43: Falta valor MNT | BJ43: Falta valor MNT | BK43: Falta valor MNT | BL43: Falta valor MNT | BM43: Falta valor MNT | BN43: Falta valor MNT | BO43: Falta valor MNT | BP43: Falta valor MNT | BQ43: Falta valor MNT | BR43: 0.6604395604 | BS43: Falta valor cenizas | BT43: 37 | BU43: Falta valor fibra | BV43: Falta valor fibra | BW43: Falta valor fibra | CR43: Falta valor MNT | CS43: 0.7 | CU43: Falta valor cenizas | CV43: Falta valor MNT | CW43: Falta valor MNT | CX43: Falta valor MNT | CY43: Falta valor MNT | CZ43: Falta valor MNT
A44: 43 | B44: Fleo Hoja primavera, Verde | C44: =IF(Valoración!$A$3=$A44,IF(Valoración!C$3>0,Valoración!C$3,""),"") ->  | D44: =IF(Valoración!$A$3=$A44,IF(Valoración!D$3>0,Valoración!D$3,""),"") ->  | E44: =IF(Valoración!$A$3=$A44,IF(Valoración!E$3>0,Valoración!E$3,""),"") ->  | F44: 4.3 | G44: =IF(Valoración!$A$3=$A44,IF(Valoración!F$3>0,Valoración!F$3,""),"") ->  | H44: =IF(Valoración!$A$3=$A44,IF(Valoración!G$3>0,Valoración!G$3,""),"") ->  | I44: =IF(Valoración!$A$3=$A44,IF(Valoración!H$3>0,Valoración!H$3,""),"") ->  | J44: 43 | K44: Falta valor fibra | L44: Falta valor fibra | M44: Falta valor fibra | N44: =IF(Valoración!$A$3=$A44,IF(Valoración!I$3>0,Valoración!I$3,""),"") ->  | O44: =IF(Valoración!$A$3=$A44,IF(Valoración!J$3>0,Valoración!J$3,""),"") ->  | P44: Falta valor cenizas | Q44: Falta valor cenizas | R44: Falta valor MNT | S44: Falta valor cenizas | T44: Falta valor fibra | U44: Falta valor fibra | V44: Falta valor fibra | X44: 0.7899441341 | Y44: Falta valor fibra | Z44: =IF(Valoración!$A$3=A44,IF(Valoración!$K$3>0,Valoración!K$3,""),"") ->  | AA44: 0.7899441341 | AB44: 0.7552965363 | AC44: Falta valor cenizas | AD44: 0.78 | AE44: 0.75 | AH44: 104.0681564 | AI44: Falta valor MNT | AK44: 19.72545251 | AL44: Falta valor MNT | AM44: Falta valor cenizas | AN44: Falta valor cenizas | AO44: -71 | AP44: Falta valor MNT | AQ44: Falta valor MNT | AR44: Falta valor MNT | AS44: Falta valor MNT | AT44: Falta valor MNT | AU44: Falta valor MNT | AV44: Falta valor MNT | AW44: Falta valor MNT | AX44: Falta valor MNT | AY44: Falta valor MNT | AZ44: Falta valor MNT | BA44: Falta valor MNT | BB44: Falta valor MNT | BC44: Falta valor MNT | BD44: Falta valor MNT | BE44: Falta valor MNT | BF44: Fleo Hoja primavera, Verde | BH44: Falta valor MNT | BI44: Falta valor MNT | BJ44: Falta valor MNT | BK44: Falta valor MNT | BL44: Falta valor MNT | BM44: Falta valor MNT | BN44: Falta valor MNT | BO44: Falta valor MNT | BP44: Falta valor MNT | BQ44: Falta valor MNT | BR44: 0.7899441341 | BS44: Falta valor cenizas | BT44: 43 | BU44: Falta valor fibra | BV44: Falta valor fibra | BW44: Falta valor fibra | CR44: Falta valor MNT | CS44: 0.78 | CU44: Falta valor cenizas | CV44: Falta valor MNT | CW44: Falta valor MNT | CX44: Falta valor MNT | CY44: Falta valor MNT | CZ44: Falta valor MNT
A45: 44 | B45: Fleo Espiga a 10 cm, Verde | C45: =IF(Valoración!$A$3=$A45,IF(Valoración!C$3>0,Valoración!C$3,""),"") ->  | D45: =IF(Valoración!$A$3=$A45,IF(Valoración!D$3>0,Valoración!D$3,""),"") ->  | E45: =IF(Valoración!$A$3=$A45,IF(Valoración!E$3>0,Valoración!E$3,""),"") ->  | F45: 3.7 | G45: =IF(Valoración!$A$3=$A45,IF(Valoración!F$3>0,Valoración!F$3,""),"") ->  | H45: =IF(Valoración!$A$3=$A45,IF(Valoración!G$3>0,Valoración!G$3,""),"") ->  | I45: =IF(Valoración!$A$3=$A45,IF(Valoración!H$3>0,Valoración!H$3,""),"") ->  | J45: 37 | K45: Falta valor fibra | L45: Falta valor fibra | M45: Falta valor fibra | N45: =IF(Valoración!$A$3=$A45,IF(Valoración!I$3>0,Valoración!I$3,""),"") ->  | O45: =IF(Valoración!$A$3=$A45,IF(Valoración!J$3>0,Valoración!J$3,""),"") ->  | P45: Falta valor cenizas | Q45: Falta valor cenizas | R45: Falta valor MNT | S45: Falta valor cenizas | T45: Falta valor fibra | U45: Falta valor fibra | V45: Falta valor fibra | X45: 0.7801104972 | Y45: Falta valor fibra | Z45: =IF(Valoración!$A$3=A45,IF(Valoración!$K$3>0,Valoración!K$3,""),"") ->  | AA45: 0.7801104972 | AB45: 0.7458857459 | AC45: Falta valor cenizas | AD45: 0.75 | AE45: 0.75 | AH45: 112.5447514 | AI45: Falta valor MNT | AK45: 20.40358011 | AL45: Falta valor MNT | AM45: Falta valor cenizas | AN45: Falta valor cenizas | AO45: -71 | AP45: Falta valor MNT | AQ45: Falta valor MNT | AR45: Falta valor MNT | AS45: Falta valor MNT | AT45: Falta valor MNT | AU45: Falta valor MNT | AV45: Falta valor MNT | AW45: Falta valor MNT | AX45: Falta valor MNT | AY45: Falta valor MNT | AZ45: Falta valor MNT | BA45: Falta valor MNT | BB45: Falta valor MNT | BC45: Falta valor MNT | BD45: Falta valor MNT | BE45: Falta valor MNT | BF45: Fleo Espiga a 10 cm, Verde | BH45: Falta valor MNT | BI45: Falta valor MNT | BJ45: Falta valor MNT | BK45: Falta valor MNT | BL45: Falta valor MNT | BM45: Falta valor MNT | BN45: Falta valor MNT | BO45: Falta valor MNT | BP45: Falta valor MNT | BQ45: Falta valor MNT | BR45: 0.7801104972 | BS45: Falta valor cenizas | BT45: 37 | BU45: Falta valor fibra | BV45: Falta valor fibra | BW45: Falta valor fibra | CR45: Falta valor MNT | CS45: 0.75 | CU45: Falta valor cenizas | CV45: Falta valor MNT | CW45: Falta valor MNT | CX45: Falta valor MNT | CY45: Falta valor MNT | CZ45: Falta valor MNT
A46: 45 | B46: Fleo Espiga a 10 cm, Verde rebrotes con tallos | C46: =IF(Valoración!$A$3=$A46,IF(Valoración!C$3>0,Valoración!C$3,""),"") ->  | D46: =IF(Valoración!$A$3=$A46,IF(Valoración!D$3>0,Valoración!D$3,""),"") ->  | E46: =IF(Valoración!$A$3=$A46,IF(Valoración!E$3>0,Valoración!E$3,""),"") ->  | F46: 3.8 | G46: =IF(Valoración!$A$3=$A46,IF(Valoración!F$3>0,Valoración!F$3,""),"") ->  | H46: =IF(Valoración!$A$3=$A46,IF(Valoración!G$3>0,Valoración!G$3,""),"") ->  | I46: =IF(Valoración!$A$3=$A46,IF(Valoración!H$3>0,Valoración!H$3,""),"") ->  | J46: 38 | K46: Falta valor fibra | L46: Falta valor fibra | M46: Falta valor fibra | N46: =IF(Valoración!$A$3=$A46,IF(Valoración!I$3>0,Valoración!I$3,""),"") ->  | O46: =IF(Valoración!$A$3=$A46,IF(Valoración!J$3>0,Valoración!J$3,""),"") ->  | P46: Falta valor cenizas | Q46: Falta valor cenizas | R46: Falta valor MNT | S46: Falta valor cenizas | T46: Falta valor fibra | U46: Falta valor fibra | V46: Falta valor fibra | X46: 0.6688741722 | Y46: Falta valor fibra | Z46: =IF(Valoración!$A$3=A46,IF(Valoración!$K$3>0,Valoración!K$3,""),"") ->  | AA46: 0.6688741722 | AB46: 0.6394325828 | AC46: Falta valor cenizas | AD46: 0.71 | AE46: 0.75 | AH46: 208.4304636 | AI46: Falta valor MNT | AK46: 28.07443709 | AL46: Falta valor MNT | AM46: Falta valor cenizas | AN46: Falta valor cenizas | AO46: -71 | AP46: Falta valor MNT | AQ46: Falta valor MNT | AR46: Falta valor MNT | AS46: Falta valor MNT | AT46: Falta valor MNT | AU46: Falta valor MNT | AV46: Falta valor MNT | AW46: Falta valor MNT | AX46: Falta valor MNT | AY46: Falta valor MNT | AZ46: Falta valor MNT | BA46: Falta valor MNT | BB46: Falta valor MNT | BC46: Falta valor MNT | BD46: Falta valor MNT | BE46: Falta valor MNT | BF46: Fleo Espiga a 10 cm, Verde rebrotes con tallos | BH46: Falta valor MNT | BI46: Falta valor MNT | BJ46: Falta valor MNT | BK46: Falta valor MNT | BL46: Falta valor MNT | BM46: Falta valor MNT | BN46: Falta valor MNT | BO46: Falta valor MNT | BP46: Falta valor MNT | BQ46: Falta valor MNT | BR46: 0.6688741722 | BS46: Falta valor cenizas | BT46: 38 | BU46: Falta valor fibra | BV46: Falta valor fibra | BW46: Falta valor fibra | CR46: Falta valor MNT | CS46: 0.71 | CU46: Falta valor cenizas | CV46: Falta valor MNT | CW46: Falta valor MNT | CX46: Falta valor MNT | CY46: Falta valor MNT | CZ46: Falta valor MNT
A47: 46 | B47: Fleo 1 semana antes inicio espigado, Verde | C47: =IF(Valoración!$A$3=$A47,IF(Valoración!C$3>0,Valoración!C$3,""),"") ->  | D47: =IF(Valoración!$A$3=$A47,IF(Valoración!D$3>0,Valoración!D$3,""),"") ->  | E47: =IF(Valoración!$A$3=$A47,IF(Valoración!E$3>0,Valoración!E$3,""),"") ->  | F47: 3.2 | G47: =IF(Valoración!$A$3=$A47,IF(Valoración!F$3>0,Valoración!F$3,""),"") ->  | H47: =IF(Valoración!$A$3=$A47,IF(Valoración!G$3>0,Valoración!G$3,""),"") ->  | I47: =IF(Valoración!$A$3=$A47,IF(Valoración!H$3>0,Valoración!H$3,""),"") ->  | J47: 32 | K47: Falta valor fibra | L47: Falta valor fibra | M47: Falta valor fibra | N47: =IF(Valoración!$A$3=$A47,IF(Valoración!I$3>0,Valoración!I$3,""),"") ->  | O47: =IF(Valoración!$A$3=$A47,IF(Valoración!J$3>0,Valoración!J$3,""),"") ->  | P47: Falta valor cenizas | Q47: Falta valor cenizas | R47: Falta valor MNT | S47: Falta valor cenizas | T47: Falta valor fibra | U47: Falta valor fibra | V47: Falta valor fibra | X47: 0.7004357298 | Y47: Falta valor fibra | Z47: =IF(Valoración!$A$3=A47,IF(Valoración!$K$3>0,Valoración!K$3,""),"") ->  | AA47: 0.7004357298 | AB47: 0.6696369935 | AC47: Falta valor cenizas | AD47: 0.73 | AE47: 0.75 | AH47: 181.2244009 | AI47: Falta valor MNT | AK47: 25.89795207 | AL47: Falta valor MNT | AM47: Falta valor cenizas | AN47: Falta valor cenizas | AO47: -71 | AP47: Falta valor MNT | AQ47: Falta valor MNT | AR47: Falta valor MNT | AS47: Falta valor MNT | AT47: Falta valor MNT | AU47: Falta valor MNT | AV47: Falta valor MNT | AW47: Falta valor MNT | AX47: Falta valor MNT | AY47: Falta valor MNT | AZ47: Falta valor MNT | BA47: Falta valor MNT | BB47: Falta valor MNT | BC47: Falta valor MNT | BD47: Falta valor MNT | BE47: Falta valor MNT | BF47: Fleo 1 semana antes inicio espigado, Verde | BH47: Falta valor MNT | BI47: Falta valor MNT | BJ47: Falta valor MNT | BK47: Falta valor MNT | BL47: Falta valor MNT | BM47: Falta valor MNT | BN47: Falta valor MNT | BO47: Falta valor MNT | BP47: Falta valor MNT | BQ47: Falta valor MNT | BR47: 0.7004357298 | BS47: Falta valor cenizas | BT47: 32 | BU47: Falta valor fibra | BV47: Falta valor fibra | BW47: Falta valor fibra | CR47: Falta valor MNT | CS47: 0.73 | CU47: Falta valor cenizas | CV47: Falta valor MNT | CW47: Falta valor MNT | CX47: Falta valor MNT | CY47: Falta valor MNT | CZ47: Falta valor MNT
A48: 47 | B48: Fleo Inicio espigado, Verde | C48: =IF(Valoración!$A$3=$A48,IF(Valoración!C$3>0,Valoración!C$3,""),"") ->  | D48: =IF(Valoración!$A$3=$A48,IF(Valoración!D$3>0,Valoración!D$3,""),"") ->  | E48: =IF(Valoración!$A$3=$A48,IF(Valoración!E$3>0,Valoración!E$3,""),"") ->  | F48: 3.1 | G48: =IF(Valoración!$A$3=$A48,IF(Valoración!F$3>0,Valoración!F$3,""),"") ->  | H48: =IF(Valoración!$A$3=$A48,IF(Valoración!G$3>0,Valoración!G$3,""),"") ->  | I48: =IF(Valoración!$A$3=$A48,IF(Valoración!H$3>0,Valoración!H$3,""),"") ->  | J48: 31 | K48: Falta valor fibra | L48: Falta valor fibra | M48: Falta valor fibra | N48: =IF(Valoración!$A$3=$A48,IF(Valoración!I$3>0,Valoración!I$3,""),"") ->  | O48: =IF(Valoración!$A$3=$A48,IF(Valoración!J$3>0,Valoración!J$3,""),"") ->  | P48: Falta valor cenizas | Q48: Falta valor cenizas | R48: Falta valor MNT | S48: Falta valor cenizas | T48: Falta valor fibra | U48: Falta valor fibra | V48: Falta valor fibra | X48: 0.6702819957 | Y48: Falta valor fibra | Z48: =IF(Valoración!$A$3=A48,IF(Valoración!$K$3>0,Valoración!K$3,""),"") ->  | AA48: 0.6702819957 | AB48: 0.6407798698 | AC48: Falta valor cenizas | AD48: 0.73 | AE48: 0.75 | AH48: 207.2169197 | AI48: Falta valor MNT | AK48: 27.97735358 | AL48: Falta valor MNT | AM48: Falta valor cenizas | AN48: Falta valor cenizas | AO48: -71 | AP48: Falta valor MNT | AQ48: Falta valor MNT | AR48: Falta valor MNT | AS48: Falta valor MNT | AT48: Falta valor MNT | AU48: Falta valor MNT | AV48: Falta valor MNT | AW48: Falta valor MNT | AX48: Falta valor MNT | AY48: Falta valor MNT | AZ48: Falta valor MNT | BA48: Falta valor MNT | BB48: Falta valor MNT | BC48: Falta valor MNT | BD48: Falta valor MNT | BE48: Falta valor MNT | BF48: Fleo Inicio espigado, Verde | BH48: Falta valor MNT | BI48: Falta valor MNT | BJ48: Falta valor MNT | BK48: Falta valor MNT | BL48: Falta valor MNT | BM48: Falta valor MNT | BN48: Falta valor MNT | BO48: Falta valor MNT | BP48: Falta valor MNT | BQ48: Falta valor MNT | BR48: 0.6702819957 | BS48: Falta valor cenizas | BT48: 31 | BU48: Falta valor fibra | BV48: Falta valor fibra | BW48: Falta valor fibra | CR48: Falta valor MNT | CS48: 0.73 | CU48: Falta valor cenizas | CV48: Falta valor MNT | CW48: Falta valor MNT | CX48: Falta valor MNT | CY48: Falta valor MNT | CZ48: Falta valor MNT
A49: 48 | B49: Fleo Espigado, Verde | C49: =IF(Valoración!$A$3=$A49,IF(Valoración!C$3>0,Valoración!C$3,""),"") ->  | D49: =IF(Valoración!$A$3=$A49,IF(Valoración!D$3>0,Valoración!D$3,""),"") ->  | E49: =IF(Valoración!$A$3=$A49,IF(Valoración!E$3>0,Valoración!E$3,""),"") ->  | F49: 3 | G49: =IF(Valoración!$A$3=$A49,IF(Valoración!F$3>0,Valoración!F$3,""),"") ->  | H49: =IF(Valoración!$A$3=$A49,IF(Valoración!G$3>0,Valoración!G$3,""),"") ->  | I49: =IF(Valoración!$A$3=$A49,IF(Valoración!H$3>0,Valoración!H$3,""),"") ->  | J49: 30 | K49: Falta valor fibra | L49: Falta valor fibra | M49: Falta valor fibra | N49: =IF(Valoración!$A$3=$A49,IF(Valoración!I$3>0,Valoración!I$3,""),"") ->  | O49: =IF(Valoración!$A$3=$A49,IF(Valoración!J$3>0,Valoración!J$3,""),"") ->  | P49: Falta valor cenizas | Q49: Falta valor cenizas | R49: Falta valor MNT | S49: Falta valor cenizas | T49: Falta valor fibra | U49: Falta valor fibra | V49: Falta valor fibra | X49: 0.6301518438 | Y49: Falta valor fibra | Z49: =IF(Valoración!$A$3=A49,IF(Valoración!$K$3>0,Valoración!K$3,""),"") ->  | AA49: 0.6301518438 | AB49: 0.6023753145 | AC49: Falta valor cenizas | AD49: 0.73 | AE49: 0.75 | AH49: 241.8091106 | AI49: Falta valor MNT | AK49: 30.74472885 | AL49: Falta valor MNT | AM49: Falta valor cenizas | AN49: Falta valor cenizas | AO49: -71 | AP49: Falta valor MNT | AQ49: Falta valor MNT | AR49: Falta valor MNT | AS49: Falta valor MNT | AT49: Falta valor MNT | AU49: Falta valor MNT | AV49: Falta valor MNT | AW49: Falta valor MNT | AX49: Falta valor MNT | AY49: Falta valor MNT | AZ49: Falta valor MNT | BA49: Falta valor MNT | BB49: Falta valor MNT | BC49: Falta valor MNT | BD49: Falta valor MNT | BE49: Falta valor MNT | BF49: Fleo Espigado, Verde | BH49: Falta valor MNT | BI49: Falta valor MNT | BJ49: Falta valor MNT | BK49: Falta valor MNT | BL49: Falta valor MNT | BM49: Falta valor MNT | BN49: Falta valor MNT | BO49: Falta valor MNT | BP49: Falta valor MNT | BQ49: Falta valor MNT | BR49: 0.6301518438 | BS49: Falta valor cenizas | BT49: 30 | BU49: Falta valor fibra | BV49: Falta valor fibra | BW49: Falta valor fibra | CR49: Falta valor MNT | CS49: 0.73 | CU49: Falta valor cenizas | CV49: Falta valor MNT | CW49: Falta valor MNT | CX49: Falta valor MNT | CY49: Falta valor MNT | CZ49: Falta valor MNT
A50: 49 | B50: Fleo Espigado, Verde rebrotes con tallos | C50: =IF(Valoración!$A$3=$A50,IF(Valoración!C$3>0,Valoración!C$3,""),"") ->  | D50: =IF(Valoración!$A$3=$A50,IF(Valoración!D$3>0,Valoración!D$3,""),"") ->  | E50: =IF(Valoración!$A$3=$A50,IF(Valoración!E$3>0,Valoración!E$3,""),"") ->  | F50: 3.5 | G50: =IF(Valoración!$A$3=$A50,IF(Valoración!F$3>0,Valoración!F$3,""),"") ->  | H50: =IF(Valoración!$A$3=$A50,IF(Valoración!G$3>0,Valoración!G$3,""),"") ->  | I50: =IF(Valoración!$A$3=$A50,IF(Valoración!H$3>0,Valoración!H$3,""),"") ->  | J50: 35 | K50: Falta valor fibra | L50: Falta valor fibra | M50: Falta valor fibra | N50: =IF(Valoración!$A$3=$A50,IF(Valoración!I$3>0,Valoración!I$3,""),"") ->  | O50: =IF(Valoración!$A$3=$A50,IF(Valoración!J$3>0,Valoración!J$3,""),"") ->  | P50: Falta valor cenizas | Q50: Falta valor cenizas | R50: Falta valor MNT | S50: Falta valor cenizas | T50: Falta valor fibra | U50: Falta valor fibra | V50: Falta valor fibra | X50: 0.7057522124 | Y50: Falta valor fibra | Z50: =IF(Valoración!$A$3=A50,IF(Valoración!$K$3>0,Valoración!K$3,""),"") ->  | AA50: 0.7057522124 | AB50: 0.6747248673 | AC50: Falta valor cenizas | AD50: 0.73 | AE50: 0.75 | AH50: 176.6415929 | AI50: Falta valor MNT | AK50: 25.53132743 | AL50: Falta valor MNT | AM50: Falta valor cenizas | AN50: Falta valor cenizas | AO50: -71 | AP50: Falta valor MNT | AQ50: Falta valor MNT | AR50: Falta valor MNT | AS50: Falta valor MNT | AT50: Falta valor MNT | AU50: Falta valor MNT | AV50: Falta valor MNT | AW50: Falta valor MNT | AX50: Falta valor MNT | AY50: Falta valor MNT | AZ50: Falta valor MNT | BA50: Falta valor MNT | BB50: Falta valor MNT | BC50: Falta valor MNT | BD50: Falta valor MNT | BE50: Falta valor MNT | BF50: Fleo Espigado, Verde rebrotes con tallos | BH50: Falta valor MNT | BI50: Falta valor MNT | BJ50: Falta valor MNT | BK50: Falta valor MNT | BL50: Falta valor MNT | BM50: Falta valor MNT | BN50: Falta valor MNT | BO50: Falta valor MNT | BP50: Falta valor MNT | BQ50: Falta valor MNT | BR50: 0.7057522124 | BS50: Falta valor cenizas | BT50: 35 | BU50: Falta valor fibra | BV50: Falta valor fibra | BW50: Falta valor fibra | CR50: Falta valor MNT | CS50: 0.73 | CU50: Falta valor cenizas | CV50: Falta valor MNT | CW50: Falta valor MNT | CX50: Falta valor MNT | CY50: Falta valor MNT | CZ50: Falta valor MNT
A51: 50 | B51: Fleo Espigado, Verde rebrotes hoja | C51: =IF(Valoración!$A$3=$A51,IF(Valoración!C$3>0,Valoración!C$3,""),"") ->  | D51: =IF(Valoración!$A$3=$A51,IF(Valoración!D$3>0,Valoración!D$3,""),"") ->  | E51: =IF(Valoración!$A$3=$A51,IF(Valoración!E$3>0,Valoración!E$3,""),"") ->  | F51: 3.5 | G51: =IF(Valoración!$A$3=$A51,IF(Valoración!F$3>0,Valoración!F$3,""),"") ->  | H51: =IF(Valoración!$A$3=$A51,IF(Valoración!G$3>0,Valoración!G$3,""),"") ->  | I51: =IF(Valoración!$A$3=$A51,IF(Valoración!H$3>0,Valoración!H$3,""),"") ->  | J51: 35 | K51: Falta valor fibra | L51: Falta valor fibra | M51: Falta valor fibra | N51: =IF(Valoración!$A$3=$A51,IF(Valoración!I$3>0,Valoración!I$3,""),"") ->  | O51: =IF(Valoración!$A$3=$A51,IF(Valoración!J$3>0,Valoración!J$3,""),"") ->  | P51: Falta valor cenizas | Q51: Falta valor cenizas | R51: Falta valor MNT | S51: Falta valor cenizas | T51: Falta valor fibra | U51: Falta valor fibra | V51: Falta valor fibra | X51: 0.7537058153 | Y51: Falta valor fibra | Z51: =IF(Valoración!$A$3=A51,IF(Valoración!$K$3>0,Valoración!K$3,""),"") ->  | AA51: 0.7537058153 | AB51: 0.7206164652 | AC51: Falta valor cenizas | AD51: 0.74 | AE51: 0.75 | AH51: 135.3055872 | AI51: Falta valor MNT | AK51: 22.22444698 | AL51: Falta valor MNT | AM51: Falta valor cenizas | AN51: Falta valor cenizas | AO51: -71 | AP51: Falta valor MNT | AQ51: Falta valor MNT | AR51: Falta valor MNT | AS51: Falta valor MNT | AT51: Falta valor MNT | AU51: Falta valor MNT | AV51: Falta valor MNT | AW51: Falta valor MNT | AX51: Falta valor MNT | AY51: Falta valor MNT | AZ51: Falta valor MNT | BA51: Falta valor MNT | BB51: Falta valor MNT | BC51: Falta valor MNT | BD51: Falta valor MNT | BE51: Falta valor MNT | BF51: Fleo Espigado, Verde rebrotes hoja | BH51: Falta valor MNT | BI51: Falta valor MNT | BJ51: Falta valor MNT | BK51: Falta valor MNT | BL51: Falta valor MNT | BM51: Falta valor MNT | BN51: Falta valor MNT | BO51: Falta valor MNT | BP51: Falta valor MNT | BQ51: Falta valor MNT | BR51: 0.7537058153 | BS51: Falta valor cenizas | BT51: 35 | BU51: Falta valor fibra | BV51: Falta valor fibra | BW51: Falta valor fibra | CR51: Falta valor MNT | CS51: 0.74 | CU51: Falta valor cenizas | CV51: Falta valor MNT | CW51: Falta valor MNT | CX51: Falta valor MNT | CY51: Falta valor MNT | CZ51: Falta valor MNT
A52: 51 | B52: Fleo Fleo Final espigado, Verde | C52: =IF(Valoración!$A$3=$A52,IF(Valoración!C$3>0,Valoración!C$3,""),"") ->  | D52: =IF(Valoración!$A$3=$A52,IF(Valoración!D$3>0,Valoración!D$3,""),"") ->  | E52: =IF(Valoración!$A$3=$A52,IF(Valoración!E$3>0,Valoración!E$3,""),"") ->  | F52: 2.9 | G52: =IF(Valoración!$A$3=$A52,IF(Valoración!F$3>0,Valoración!F$3,""),"") ->  | H52: =IF(Valoración!$A$3=$A52,IF(Valoración!G$3>0,Valoración!G$3,""),"") ->  | I52: =IF(Valoración!$A$3=$A52,IF(Valoración!H$3>0,Valoración!H$3,""),"") ->  | J52: 29 | K52: Falta valor fibra | L52: Falta valor fibra | M52: Falta valor fibra | N52: =IF(Valoración!$A$3=$A52,IF(Valoración!I$3>0,Valoración!I$3,""),"") ->  | O52: =IF(Valoración!$A$3=$A52,IF(Valoración!J$3>0,Valoración!J$3,""),"") ->  | P52: Falta valor cenizas | Q52: Falta valor cenizas | R52: Falta valor MNT | S52: Falta valor cenizas | T52: Falta valor fibra | U52: Falta valor fibra | V52: Falta valor fibra | X52: 0.6096774194 | Y52: Falta valor fibra | Z52: =IF(Valoración!$A$3=A52,IF(Valoración!$K$3>0,Valoración!K$3,""),"") ->  | AA52: 0.6096774194 | AB52: 0.5827812903 | AC52: Falta valor cenizas | AD52: 0.73 | AE52: 0.75 | AH52: 259.4580645 | AI52: Falta valor MNT | AK52: 32.15664516 | AL52: Falta valor MNT | AM52: Falta valor cenizas | AN52: Falta valor cenizas | AO52: -71 | AP52: Falta valor MNT | AQ52: Falta valor MNT | AR52: Falta valor MNT | AS52: Falta valor MNT | AT52: Falta valor MNT | AU52: Falta valor MNT | AV52: Falta valor MNT | AW52: Falta valor MNT | AX52: Falta valor MNT | AY52: Falta valor MNT | AZ52: Falta valor MNT | BA52: Falta valor MNT | BB52: Falta valor MNT | BC52: Falta valor MNT | BD52: Falta valor MNT | BE52: Falta valor MNT | BF52: Fleo Fleo Final espigado, Verde | BH52: Falta valor MNT | BI52: Falta valor MNT | BJ52: Falta valor MNT | BK52: Falta valor MNT | BL52: Falta valor MNT | BM52: Falta valor MNT | BN52: Falta valor MNT | BO52: Falta valor MNT | BP52: Falta valor MNT | BQ52: Falta valor MNT | BR52: 0.6096774194 | BS52: Falta valor cenizas | BT52: 29 | BU52: Falta valor fibra | BV52: Falta valor fibra | BW52: Falta valor fibra | CR52: Falta valor MNT | CS52: 0.73 | CU52: Falta valor cenizas | CV52: Falta valor MNT | CW52: Falta valor MNT | CX52: Falta valor MNT | CY52: Falta valor MNT | CZ52: Falta valor MNT
A53: 52 | B53: Fleo Inicio floración, Verde | C53: =IF(Valoración!$A$3=$A53,IF(Valoración!C$3>0,Valoración!C$3,""),"") ->  | D53: =IF(Valoración!$A$3=$A53,IF(Valoración!D$3>0,Valoración!D$3,""),"") ->  | E53: =IF(Valoración!$A$3=$A53,IF(Valoración!E$3>0,Valoración!E$3,""),"") ->  | F53: 2.9 | G53: =IF(Valoración!$A$3=$A53,IF(Valoración!F$3>0,Valoración!F$3,""),"") ->  | H53: =IF(Valoración!$A$3=$A53,IF(Valoración!G$3>0,Valoración!G$3,""),"") ->  | I53: =IF(Valoración!$A$3=$A53,IF(Valoración!H$3>0,Valoración!H$3,""),"") ->  | J53: 29 | K53: Falta valor fibra | L53: Falta valor fibra | M53: Falta valor fibra | N53: =IF(Valoración!$A$3=$A53,IF(Valoración!I$3>0,Valoración!I$3,""),"") ->  | O53: =IF(Valoración!$A$3=$A53,IF(Valoración!J$3>0,Valoración!J$3,""),"") ->  | P53: Falta valor cenizas | Q53: Falta valor cenizas | R53: Falta valor MNT | S53: Falta valor cenizas | T53: Falta valor fibra | U53: Falta valor fibra | V53: Falta valor fibra | X53: 0.560298826 | Y53: Falta valor fibra | Z53: =IF(Valoración!$A$3=A53,IF(Valoración!$K$3>0,Valoración!K$3,""),"") ->  | AA53: 0.560298826 | AB53: 0.5355259765 | AC53: Falta valor cenizas | AD53: 0.73 | AE53: 0.75 | AH53: 302.022412 | AI53: Falta valor MNT | AK53: 35.56179296 | AL53: Falta valor MNT | AM53: Falta valor cenizas | AN53: Falta valor cenizas | AO53: -71 | AP53: Falta valor MNT | AQ53: Falta valor MNT | AR53: Falta valor MNT | AS53: Falta valor MNT | AT53: Falta valor MNT | AU53: Falta valor MNT | AV53: Falta valor MNT | AW53: Falta valor MNT | AX53: Falta valor MNT | AY53: Falta valor MNT | AZ53: Falta valor MNT | BA53: Falta valor MNT | BB53: Falta valor MNT | BC53: Falta valor MNT | BD53: Falta valor MNT | BE53: Falta valor MNT | BF53: Fleo Inicio floración, Verde | BH53: Falta valor MNT | BI53: Falta valor MNT | BJ53: Falta valor MNT | BK53: Falta valor MNT | BL53: Falta valor MNT | BM53: Falta valor MNT | BN53: Falta valor MNT | BO53: Falta valor MNT | BP53: Falta valor MNT | BQ53: Falta valor MNT | BR53: 0.560298826 | BS53: Falta valor cenizas | BT53: 29 | BU53: Falta valor fibra | BV53: Falta valor fibra | BW53: Falta valor fibra | CR53: Falta valor MNT | CS53: 0.73 | CU53: Falta valor cenizas | CV53: Falta valor MNT | CW53: Falta valor MNT | CX53: Falta valor MNT | CY53: Falta valor MNT | CZ53: Falta valor MNT
A54: 53 | B54: Fleo Floración, Verde | C54: =IF(Valoración!$A$3=$A54,IF(Valoración!C$3>0,Valoración!C$3,""),"") ->  | D54: =IF(Valoración!$A$3=$A54,IF(Valoración!D$3>0,Valoración!D$3,""),"") ->  | E54: =IF(Valoración!$A$3=$A54,IF(Valoración!E$3>0,Valoración!E$3,""),"") ->  | F54: 2.8 | G54: =IF(Valoración!$A$3=$A54,IF(Valoración!F$3>0,Valoración!F$3,""),"") ->  | H54: =IF(Valoración!$A$3=$A54,IF(Valoración!G$3>0,Valoración!G$3,""),"") ->  | I54: =IF(Valoración!$A$3=$A54,IF(Valoración!H$3>0,Valoración!H$3,""),"") ->  | J54: 28 | K54: Falta valor fibra | L54: Falta valor fibra | M54: Falta valor fibra | N54: =IF(Valoración!$A$3=$A54,IF(Valoración!I$3>0,Valoración!I$3,""),"") ->  | O54: =IF(Valoración!$A$3=$A54,IF(Valoración!J$3>0,Valoración!J$3,""),"") ->  | P54: Falta valor cenizas | Q54: Falta valor cenizas | R54: Falta valor MNT | S54: Falta valor cenizas | T54: Falta valor fibra | U54: Falta valor fibra | V54: Falta valor fibra | X54: 0.5095541401 | Y54: Falta valor fibra | Z54: =IF(Valoración!$A$3=A54,IF(Valoración!$K$3>0,Valoración!K$3,""),"") ->  | AA54: 0.5095541401 | AB54: 0.4869633121 | AC54: Falta valor cenizas | AD54: 0.73 | AE54: 0.75 | AH54: 345.7643312 | AI54: Falta valor MNT | AK54: 39.0611465 | AL54: Falta valor MNT | AM54: Falta valor cenizas | AN54: Falta valor cenizas | AO54: -71 | AP54: Falta valor MNT | AQ54: Falta valor MNT | AR54: Falta valor MNT | AS54: Falta valor MNT | AT54: Falta valor MNT | AU54: Falta valor MNT | AV54: Falta valor MNT | AW54: Falta valor MNT | AX54: Falta valor MNT | AY54: Falta valor MNT | AZ54: Falta valor MNT | BA54: Falta valor MNT | BB54: Falta valor MNT | BC54: Falta valor MNT | BD54: Falta valor MNT | BE54: Falta valor MNT | BF54: Fleo Floración, Verde | BH54: Falta valor MNT | BI54: Falta valor MNT | BJ54: Falta valor MNT | BK54: Falta valor MNT | BL54: Falta valor MNT | BM54: Falta valor MNT | BN54: Falta valor MNT | BO54: Falta valor MNT | BP54: Falta valor MNT | BQ54: Falta valor MNT | BR54: 0.5095541401 | BS54: Falta valor cenizas | BT54: 28 | BU54: Falta valor fibra | BV54: Falta valor fibra | BW54: Falta valor fibra | CR54: Falta valor MNT | CS54: 0.73 | CU54: Falta valor cenizas | CV54: Falta valor MNT | CW54: Falta valor MNT | CX54: Falta valor MNT | CY54: Falta valor MNT | CZ54: Falta valor MNT
A55: 54 | B55: Raigrás inglés Hoja otoño / invierno, Verde | C55: =IF(Valoración!$A$3=$A55,IF(Valoración!C$3>0,Valoración!C$3,""),"") ->  | D55: =IF(Valoración!$A$3=$A55,IF(Valoración!D$3>0,Valoración!D$3,""),"") ->  | E55: =IF(Valoración!$A$3=$A55,IF(Valoración!E$3>0,Valoración!E$3,""),"") ->  | F55: 4 | G55: =IF(Valoración!$A$3=$A55,IF(Valoración!F$3>0,Valoración!F$3,""),"") ->  | H55: =IF(Valoración!$A$3=$A55,IF(Valoración!G$3>0,Valoración!G$3,""),"") ->  | I55: =IF(Valoración!$A$3=$A55,IF(Valoración!H$3>0,Valoración!H$3,""),"") ->  | J55: 40 | K55: Falta valor fibra | L55: Falta valor fibra | M55: Falta valor fibra | N55: =IF(Valoración!$A$3=$A55,IF(Valoración!I$3>0,Valoración!I$3,""),"") ->  | O55: =IF(Valoración!$A$3=$A55,IF(Valoración!J$3>0,Valoración!J$3,""),"") ->  | P55: Falta valor cenizas | Q55: Falta valor cenizas | R55: Falta valor MNT | S55: Falta valor cenizas | T55: Falta valor fibra | U55: Falta valor fibra | V55: Falta valor fibra | X55: 0.7853881279 | Y55: Falta valor fibra | Z55: =IF(Valoración!$A$3=A55,IF(Valoración!$K$3>0,Valoración!K$3,""),"") ->  | AA55: 0.7853881279 | AB55: 0.7509364384 | AC55: Falta valor cenizas | AD55: 0.74 | AE55: 0.75 | AH55: 107.9954338 | AI55: Falta valor MNT | AK55: 20.0396347 | AL55: Falta valor MNT | AM55: Falta valor cenizas | AN55: Falta valor cenizas | AO55: -71 | AP55: Falta valor MNT | AQ55: Falta valor MNT | AR55: Falta valor MNT | AS55: Falta valor MNT | AT55: Falta valor MNT | AU55: Falta valor MNT | AV55: Falta valor MNT | AW55: Falta valor MNT | AX55: Falta valor MNT | AY55: Falta valor MNT | AZ55: Falta valor MNT | BA55: Falta valor MNT | BB55: Falta valor MNT | BC55: Falta valor MNT | BD55: Falta valor MNT | BE55: Falta valor MNT | BF55: Raigrás inglés Hoja otoño / invierno, Verde | BH55: Falta valor MNT | BI55: Falta valor MNT | BJ55: Falta valor MNT | BK55: Falta valor MNT | BL55: Falta valor MNT | BM55: Falta valor MNT | BN55: Falta valor MNT | BO55: Falta valor MNT | BP55: Falta valor MNT | BQ55: Falta valor MNT | BR55: 0.7853881279 | BS55: Falta valor cenizas | BT55: 40 | BU55: Falta valor fibra | BV55: Falta valor fibra | BW55: Falta valor fibra | CR55: Falta valor MNT | CS55: 0.74 | CU55: Falta valor cenizas | CV55: Falta valor MNT | CW55: Falta valor MNT | CX55: Falta valor MNT | CY55: Falta valor MNT | CZ55: Falta valor MNT
A56: 55 | B56: Raigrás inglés Hoja primavera, Verde | C56: =IF(Valoración!$A$3=$A56,IF(Valoración!C$3>0,Valoración!C$3,""),"") ->  | D56: =IF(Valoración!$A$3=$A56,IF(Valoración!D$3>0,Valoración!D$3,""),"") ->  | E56: =IF(Valoración!$A$3=$A56,IF(Valoración!E$3>0,Valoración!E$3,""),"") ->  | F56: 4.5 | G56: =IF(Valoración!$A$3=$A56,IF(Valoración!F$3>0,Valoración!F$3,""),"") ->  | H56: =IF(Valoración!$A$3=$A56,IF(Valoración!G$3>0,Valoración!G$3,""),"") ->  | I56: =IF(Valoración!$A$3=$A56,IF(Valoración!H$3>0,Valoración!H$3,""),"") ->  | J56: 45 | K56: Falta valor fibra | L56: Falta valor fibra | M56: Falta valor fibra | N56: =IF(Valoración!$A$3=$A56,IF(Valoración!I$3>0,Valoración!I$3,""),"") ->  | O56: =IF(Valoración!$A$3=$A56,IF(Valoración!J$3>0,Valoración!J$3,""),"") ->  | P56: Falta valor cenizas | Q56: Falta valor cenizas | R56: Falta valor MNT | S56: Falta valor cenizas | T56: Falta valor fibra | U56: Falta valor fibra | V56: Falta valor fibra | X56: 0.8203125 | Y56: Falta valor fibra | Z56: =IF(Valoración!$A$3=A56,IF(Valoración!$K$3>0,Valoración!K$3,""),"") ->  | AA56: 0.8203125 | AB56: 0.7843590625 | AC56: Falta valor cenizas | AD56: 0.79 | AE56: 0.75 | AH56: 77.890625 | AI56: Falta valor MNT | AK56: 17.63125 | AL56: Falta valor MNT | AM56: Falta valor cenizas | AN56: Falta valor cenizas | AO56: -71 | AP56: Falta valor MNT | AQ56: Falta valor MNT | AR56: Falta valor MNT | AS56: Falta valor MNT | AT56: Falta valor MNT | AU56: Falta valor MNT | AV56: Falta valor MNT | AW56: Falta valor MNT | AX56: Falta valor MNT | AY56: Falta valor MNT | AZ56: Falta valor MNT | BA56: Falta valor MNT | BB56: Falta valor MNT | BC56: Falta valor MNT | BD56: Falta valor MNT | BE56: Falta valor MNT | BF56: Raigrás inglés Hoja primavera, Verde | BH56: Falta valor MNT | BI56: Falta valor MNT | BJ56: Falta valor MNT | BK56: Falta valor MNT | BL56: Falta valor MNT | BM56: Falta valor MNT | BN56: Falta valor MNT | BO56: Falta valor MNT | BP56: Falta valor MNT | BQ56: Falta valor MNT | BR56: 0.8203125 | BS56: Falta valor cenizas | BT56: 45 | BU56: Falta valor fibra | BV56: Falta valor fibra | BW56: Falta valor fibra | CR56: Falta valor MNT | CS56: 0.79 | CU56: Falta valor cenizas | CV56: Falta valor MNT | CW56: Falta valor MNT | CX56: Falta valor MNT | CY56: Falta valor MNT | CZ56: Falta valor MNT
A57: 56 | B57: Raigrás inglés Espiga a 10 cm, Verde | C57: =IF(Valoración!$A$3=$A57,IF(Valoración!C$3>0,Valoración!C$3,""),"") ->  | D57: =IF(Valoración!$A$3=$A57,IF(Valoración!D$3>0,Valoración!D$3,""),"") ->  | E57: =IF(Valoración!$A$3=$A57,IF(Valoración!E$3>0,Valoración!E$3,""),"") ->  | F57: 4.1 | G57: =IF(Valoración!$A$3=$A57,IF(Valoración!F$3>0,Valoración!F$3,""),"") ->  | H57: =IF(Valoración!$A$3=$A57,IF(Valoración!G$3>0,Valoración!G$3,""),"") ->  | I57: =IF(Valoración!$A$3=$A57,IF(Valoración!H$3>0,Valoración!H$3,""),"") ->  | J57: 41 | K57: Falta valor fibra | L57: Falta valor fibra | M57: Falta valor fibra | N57: =IF(Valoración!$A$3=$A57,IF(Valoración!I$3>0,Valoración!I$3,""),"") ->  | O57: =IF(Valoración!$A$3=$A57,IF(Valoración!J$3>0,Valoración!J$3,""),"") ->  | P57: Falta valor cenizas | Q57: Falta valor cenizas | R57: Falta valor MNT | S57: Falta valor cenizas | T57: Falta valor fibra | U57: Falta valor fibra | V57: Falta valor fibra | X57: 0.8098434004 | Y57: Falta valor fibra | Z57: =IF(Valoración!$A$3=A57,IF(Valoración!$K$3>0,Valoración!K$3,""),"") ->  | AA57: 0.8098434004 | AB57: 0.7743401342 | AC57: Falta valor cenizas | AD57: 0.77 | AE57: 0.75 | AH57: 86.91498881 | AI57: Falta valor MNT | AK57: 18.35319911 | AL57: Falta valor MNT | AM57: Falta valor cenizas | AN57: Falta valor cenizas | AO57: -71 | AP57: Falta valor MNT | AQ57: Falta valor MNT | AR57: Falta valor MNT | AS57: Falta valor MNT | AT57: Falta valor MNT | AU57: Falta valor MNT | AV57: Falta valor MNT | AW57: Falta valor MNT | AX57: Falta valor MNT | AY57: Falta valor MNT | AZ57: Falta valor MNT | BA57: Falta valor MNT | BB57: Falta valor MNT | BC57: Falta valor MNT | BD57: Falta valor MNT | BE57: Falta valor MNT | BF57: Raigrás inglés Espiga a 10 cm, Verde | BH57: Falta valor MNT | BI57: Falta valor MNT | BJ57: Falta valor MNT | BK57: Falta valor MNT | BL57: Falta valor MNT | BM57: Falta valor MNT | BN57: Falta valor MNT | BO57: Falta valor MNT | BP57: Falta valor MNT | BQ57: Falta valor MNT | BR57: 0.8098434004 | BS57: Falta valor cenizas | BT57: 41 | BU57: Falta valor fibra | BV57: Falta valor fibra | BW57: Falta valor fibra | CR57: Falta valor MNT | CS57: 0.77 | CU57: Falta valor cenizas | CV57: Falta valor MNT | CW57: Falta valor MNT | CX57: Falta valor MNT | CY57: Falta valor MNT | CZ57: Falta valor MNT
A58: 57 | B58: Raigrás inglés 1 semana antes inicio espigado, Verde | C58: =IF(Valoración!$A$3=$A58,IF(Valoración!C$3>0,Valoración!C$3,""),"") ->  | D58: =IF(Valoración!$A$3=$A58,IF(Valoración!D$3>0,Valoración!D$3,""),"") ->  | E58: =IF(Valoración!$A$3=$A58,IF(Valoración!E$3>0,Valoración!E$3,""),"") ->  | F58: 3.8 | G58: =IF(Valoración!$A$3=$A58,IF(Valoración!F$3>0,Valoración!F$3,""),"") ->  | H58: =IF(Valoración!$A$3=$A58,IF(Valoración!G$3>0,Valoración!G$3,""),"") ->  | I58: =IF(Valoración!$A$3=$A58,IF(Valoración!H$3>0,Valoración!H$3,""),"") ->  | J58: 38 | K58: Falta valor fibra | L58: Falta valor fibra | M58: Falta valor fibra | N58: =IF(Valoración!$A$3=$A58,IF(Valoración!I$3>0,Valoración!I$3,""),"") ->  | O58: =IF(Valoración!$A$3=$A58,IF(Valoración!J$3>0,Valoración!J$3,""),"") ->  | P58: Falta valor cenizas | Q58: Falta valor cenizas | R58: Falta valor MNT | S58: Falta valor cenizas | T58: Falta valor fibra | U58: Falta valor fibra | V58: Falta valor fibra | X58: 0.7901785714 | Y58: Falta valor fibra | Z58: =IF(Valoración!$A$3=A58,IF(Valoración!$K$3>0,Valoración!K$3,""),"") ->  | AA58: 0.7901785714 | AB58: 0.7555208929 | AC58: Falta valor cenizas | AD58: 0.76 | AE58: 0.75 | AH58: 103.8660714 | AI58: Falta valor MNT | AK58: 19.70928571 | AL58: Falta valor MNT | AM58: Falta valor cenizas | AN58: Falta valor cenizas | AO58: -71 | AP58: Falta valor MNT | AQ58: Falta valor MNT | AR58: Falta valor MNT | AS58: Falta valor MNT | AT58: Falta valor MNT | AU58: Falta valor MNT | AV58: Falta valor MNT | AW58: Falta valor MNT | AX58: Falta valor MNT | AY58: Falta valor MNT | AZ58: Falta valor MNT | BA58: Falta valor MNT | BB58: Falta valor MNT | BC58: Falta valor MNT | BD58: Falta valor MNT | BE58: Falta valor MNT | BF58: Raigrás inglés 1 semana antes inicio espigado, Verde | BH58: Falta valor MNT | BI58: Falta valor MNT | BJ58: Falta valor MNT | BK58: Falta valor MNT | BL58: Falta valor MNT | BM58: Falta valor MNT | BN58: Falta valor MNT | BO58: Falta valor MNT | BP58: Falta valor MNT | BQ58: Falta valor MNT | BR58: 0.7901785714 | BS58: Falta valor cenizas | BT58: 38 | BU58: Falta valor fibra | BV58: Falta valor fibra | BW58: Falta valor fibra | CR58: Falta valor MNT | CS58: 0.76 | CU58: Falta valor cenizas | CV58: Falta valor MNT | CW58: Falta valor MNT | CX58: Falta valor MNT | CY58: Falta valor MNT | CZ58: Falta valor MNT
A59: 58 | B59: Raigrás inglés Inicio espigado, Verde | C59: =IF(Valoración!$A$3=$A59,IF(Valoración!C$3>0,Valoración!C$3,""),"") ->  | D59: =IF(Valoración!$A$3=$A59,IF(Valoración!D$3>0,Valoración!D$3,""),"") ->  | E59: =IF(Valoración!$A$3=$A59,IF(Valoración!E$3>0,Valoración!E$3,""),"") ->  | F59: 3.6 | G59: =IF(Valoración!$A$3=$A59,IF(Valoración!F$3>0,Valoración!F$3,""),"") ->  | H59: =IF(Valoración!$A$3=$A59,IF(Valoración!G$3>0,Valoración!G$3,""),"") ->  | I59: =IF(Valoración!$A$3=$A59,IF(Valoración!H$3>0,Valoración!H$3,""),"") ->  | J59: 36 | K59: Falta valor fibra | L59: Falta valor fibra | M59: Falta valor fibra | N59: =IF(Valoración!$A$3=$A59,IF(Valoración!I$3>0,Valoración!I$3,""),"") ->  | O59: =IF(Valoración!$A$3=$A59,IF(Valoración!J$3>0,Valoración!J$3,""),"") ->  | P59: Falta valor cenizas | Q59: Falta valor cenizas | R59: Falta valor MNT | S59: Falta valor cenizas | T59: Falta valor fibra | U59: Falta valor fibra | V59: Falta valor fibra | X59: 0.770419426 | Y59: Falta valor fibra | Z59: =IF(Valoración!$A$3=A59,IF(Valoración!$K$3>0,Valoración!K$3,""),"") ->  | AA59: 0.770419426 | AB59: 0.7366113907 | AC59: Falta valor cenizas | AD59: 0.75 | AE59: 0.75 | AH59: 120.8984547 | AI59: Falta valor MNT | AK59: 21.07187638 | AL59: Falta valor MNT | AM59: Falta valor cenizas | AN59: Falta valor cenizas | AO59: -71 | AP59: Falta valor MNT | AQ59: Falta valor MNT | AR59: Falta valor MNT | AS59: Falta valor MNT | AT59: Falta valor MNT | AU59: Falta valor MNT | AV59: Falta valor MNT | AW59: Falta valor MNT | AX59: Falta valor MNT | AY59: Falta valor MNT | AZ59: Falta valor MNT | BA59: Falta valor MNT | BB59: Falta valor MNT | BC59: Falta valor MNT | BD59: Falta valor MNT | BE59: Falta valor MNT | BF59: Raigrás inglés Inicio espigado, Verde | BH59: Falta valor MNT | BI59: Falta valor MNT | BJ59: Falta valor MNT | BK59: Falta valor MNT | BL59: Falta valor MNT | BM59: Falta valor MNT | BN59: Falta valor MNT | BO59: Falta valor MNT | BP59: Falta valor MNT | BQ59: Falta valor MNT | BR59: 0.770419426 | BS59: Falta valor cenizas | BT59: 36 | BU59: Falta valor fibra | BV59: Falta valor fibra | BW59: Falta valor fibra | CR59: Falta valor MNT | CS59: 0.75 | CU59: Falta valor cenizas | CV59: Falta valor MNT | CW59: Falta valor MNT | CX59: Falta valor MNT | CY59: Falta valor MNT | CZ59: Falta valor MNT
A60: 59 | B60: Raigrás inglés Espigado, Verde | C60: =IF(Valoración!$A$3=$A60,IF(Valoración!C$3>0,Valoración!C$3,""),"") ->  | D60: =IF(Valoración!$A$3=$A60,IF(Valoración!D$3>0,Valoración!D$3,""),"") ->  | E60: =IF(Valoración!$A$3=$A60,IF(Valoración!E$3>0,Valoración!E$3,""),"") ->  | F60: 3.4 | G60: =IF(Valoración!$A$3=$A60,IF(Valoración!F$3>0,Valoración!F$3,""),"") ->  | H60: =IF(Valoración!$A$3=$A60,IF(Valoración!G$3>0,Valoración!G$3,""),"") ->  | I60: =IF(Valoración!$A$3=$A60,IF(Valoración!H$3>0,Valoración!H$3,""),"") ->  | J60: 34 | K60: Falta valor fibra | L60: Falta valor fibra | M60: Falta valor fibra | N60: =IF(Valoración!$A$3=$A60,IF(Valoración!I$3>0,Valoración!I$3,""),"") ->  | O60: =IF(Valoración!$A$3=$A60,IF(Valoración!J$3>0,Valoración!J$3,""),"") ->  | P60: Falta valor cenizas | Q60: Falta valor cenizas | R60: Falta valor MNT | S60: Falta valor cenizas | T60: Falta valor fibra | U60: Falta valor fibra | V60: Falta valor fibra | X60: 0.7403740374 | Y60: Falta valor fibra | Z60: =IF(Valoración!$A$3=A60,IF(Valoración!$K$3>0,Valoración!K$3,""),"") ->  | AA60: 0.7403740374 | AB60: 0.7078579538 | AC60: Falta valor cenizas | AD60: 0.74 | AE60: 0.75 | AH60: 146.7975798 | AI60: Falta valor MNT | AK60: 23.14380638 | AL60: Falta valor MNT | AM60: Falta valor cenizas | AN60: Falta valor cenizas | AO60: -71 | AP60: Falta valor MNT | AQ60: Falta valor MNT | AR60: Falta valor MNT | AS60: Falta valor MNT | AT60: Falta valor MNT | AU60: Falta valor MNT | AV60: Falta valor MNT | AW60: Falta valor MNT | AX60: Falta valor MNT | AY60: Falta valor MNT | AZ60: Falta valor MNT | BA60: Falta valor MNT | BB60: Falta valor MNT | BC60: Falta valor MNT | BD60: Falta valor MNT | BE60: Falta valor MNT | BF60: Raigrás inglés Espigado, Verde | BH60: Falta valor MNT | BI60: Falta valor MNT | BJ60: Falta valor MNT | BK60: Falta valor MNT | BL60: Falta valor MNT | BM60: Falta valor MNT | BN60: Falta valor MNT | BO60: Falta valor MNT | BP60: Falta valor MNT | BQ60: Falta valor MNT | BR60: 0.7403740374 | BS60: Falta valor cenizas | BT60: 34 | BU60: Falta valor fibra | BV60: Falta valor fibra | BW60: Falta valor fibra | CR60: Falta valor MNT | CS60: 0.74 | CU60: Falta valor cenizas | CV60: Falta valor MNT | CW60: Falta valor MNT | CX60: Falta valor MNT | CY60: Falta valor MNT | CZ60: Falta valor MNT
A61: 60 | B61: Raigrás inglés Espigado, Verde rebrotes de espigado con tallos | C61: =IF(Valoración!$A$3=$A61,IF(Valoración!C$3>0,Valoración!C$3,""),"") ->  | D61: =IF(Valoración!$A$3=$A61,IF(Valoración!D$3>0,Valoración!D$3,""),"") ->  | E61: =IF(Valoración!$A$3=$A61,IF(Valoración!E$3>0,Valoración!E$3,""),"") ->  | F61: 3.6 | G61: =IF(Valoración!$A$3=$A61,IF(Valoración!F$3>0,Valoración!F$3,""),"") ->  | H61: =IF(Valoración!$A$3=$A61,IF(Valoración!G$3>0,Valoración!G$3,""),"") ->  | I61: =IF(Valoración!$A$3=$A61,IF(Valoración!H$3>0,Valoración!H$3,""),"") ->  | J61: 36 | K61: Falta valor fibra | L61: Falta valor fibra | M61: Falta valor fibra | N61: =IF(Valoración!$A$3=$A61,IF(Valoración!I$3>0,Valoración!I$3,""),"") ->  | O61: =IF(Valoración!$A$3=$A61,IF(Valoración!J$3>0,Valoración!J$3,""),"") ->  | P61: Falta valor cenizas | Q61: Falta valor cenizas | R61: Falta valor MNT | S61: Falta valor cenizas | T61: Falta valor fibra | U61: Falta valor fibra | V61: Falta valor fibra | X61: 0.7091722595 | Y61: Falta valor fibra | Z61: =IF(Valoración!$A$3=A61,IF(Valoración!$K$3>0,Valoración!K$3,""),"") ->  | AA61: 0.7091722595 | AB61: 0.6779978523 | AC61: Falta valor cenizas | AD61: 0.73 | AE61: 0.75 | AH61: 173.6935123 | AI61: Falta valor MNT | AK61: 25.29548098 | AL61: Falta valor MNT | AM61: Falta valor cenizas | AN61: Falta valor cenizas | AO61: -71 | AP61: Falta valor MNT | AQ61: Falta valor MNT | AR61: Falta valor MNT | AS61: Falta valor MNT | AT61: Falta valor MNT | AU61: Falta valor MNT | AV61: Falta valor MNT | AW61: Falta valor MNT | AX61: Falta valor MNT | AY61: Falta valor MNT | AZ61: Falta valor MNT | BA61: Falta valor MNT | BB61: Falta valor MNT | BC61: Falta valor MNT | BD61: Falta valor MNT | BE61: Falta valor MNT | BF61: Raigrás inglés Espigado, Verde rebrotes de espigado con tallos | BH61: Falta valor MNT | BI61: Falta valor MNT | BJ61: Falta valor MNT | BK61: Falta valor MNT | BL61: Falta valor MNT | BM61: Falta valor MNT | BN61: Falta valor MNT | BO61: Falta valor MNT | BP61: Falta valor MNT | BQ61: Falta valor MNT | BR61: 0.7091722595 | BS61: Falta valor cenizas | BT61: 36 | BU61: Falta valor fibra | BV61: Falta valor fibra | BW61: Falta valor fibra | CR61: Falta valor MNT | CS61: 0.73 | CU61: Falta valor cenizas | CV61: Falta valor MNT | CW61: Falta valor MNT | CX61: Falta valor MNT | CY61: Falta valor MNT | CZ61: Falta valor MNT
A62: 61 | B62: Raigrás inglés Espigado, Verde rebrotes de espigado con hoja | C62: =IF(Valoración!$A$3=$A62,IF(Valoración!C$3>0,Valoración!C$3,""),"") ->  | D62: =IF(Valoración!$A$3=$A62,IF(Valoración!D$3>0,Valoración!D$3,""),"") ->  | E62: =IF(Valoración!$A$3=$A62,IF(Valoración!E$3>0,Valoración!E$3,""),"") ->  | F62: 4 | G62: =IF(Valoración!$A$3=$A62,IF(Valoración!F$3>0,Valoración!F$3,""),"") ->  | H62: =IF(Valoración!$A$3=$A62,IF(Valoración!G$3>0,Valoración!G$3,""),"") ->  | I62: =IF(Valoración!$A$3=$A62,IF(Valoración!H$3>0,Valoración!H$3,""),"") ->  | J62: 40 | K62: Falta valor fibra | L62: Falta valor fibra | M62: Falta valor fibra | N62: =IF(Valoración!$A$3=$A62,IF(Valoración!I$3>0,Valoración!I$3,""),"") ->  | O62: =IF(Valoración!$A$3=$A62,IF(Valoración!J$3>0,Valoración!J$3,""),"") ->  | P62: Falta valor cenizas | Q62: Falta valor cenizas | R62: Falta valor MNT | S62: Falta valor cenizas | T62: Falta valor fibra | U62: Falta valor fibra | V62: Falta valor fibra | X62: 0.7567264574 | Y62: Falta valor fibra | Z62: =IF(Valoración!$A$3=A62,IF(Valoración!$K$3>0,Valoración!K$3,""),"") ->  | AA62: 0.7567264574 | AB62: 0.7235072197 | AC62: Falta valor cenizas | AD62: 0.74 | AE62: 0.75 | AH62: 132.7017937 | AI62: Falta valor MNT | AK62: 22.0161435 | AL62: Falta valor MNT | AM62: Falta valor cenizas | AN62: Falta valor cenizas | AO62: -71 | AP62: Falta valor MNT | AQ62: Falta valor MNT | AR62: Falta valor MNT | AS62: Falta valor MNT | AT62: Falta valor MNT | AU62: Falta valor MNT | AV62: Falta valor MNT | AW62: Falta valor MNT | AX62: Falta valor MNT | AY62: Falta valor MNT | AZ62: Falta valor MNT | BA62: Falta valor MNT | BB62: Falta valor MNT | BC62: Falta valor MNT | BD62: Falta valor MNT | BE62: Falta valor MNT | BF62: Raigrás inglés Espigado, Verde rebrotes de espigado con hoja | BH62: Falta valor MNT | BI62: Falta valor MNT | BJ62: Falta valor MNT | BK62: Falta valor MNT | BL62: Falta valor MNT | BM62: Falta valor MNT | BN62: Falta valor MNT | BO62: Falta valor MNT | BP62: Falta valor MNT | BQ62: Falta valor MNT | BR62: 0.7567264574 | BS62: Falta valor cenizas | BT62: 40 | BU62: Falta valor fibra | BV62: Falta valor fibra | BW62: Falta valor fibra | CR62: Falta valor MNT | CS62: 0.74 | CU62: Falta valor cenizas | CV62: Falta valor MNT | CW62: Falta valor MNT | CX62: Falta valor MNT | CY62: Falta valor MNT | CZ62: Falta valor MNT
A63: 62 | B63: Raigrás inglés Final espigado, Verde | C63: =IF(Valoración!$A$3=$A63,IF(Valoración!C$3>0,Valoración!C$3,""),"") ->  | D63: =IF(Valoración!$A$3=$A63,IF(Valoración!D$3>0,Valoración!D$3,""),"") ->  | E63: =IF(Valoración!$A$3=$A63,IF(Valoración!E$3>0,Valoración!E$3,""),"") ->  | F63: 3.2 | G63: =IF(Valoración!$A$3=$A63,IF(Valoración!F$3>0,Valoración!F$3,""),"") ->  | H63: =IF(Valoración!$A$3=$A63,IF(Valoración!G$3>0,Valoración!G$3,""),"") ->  | I63: =IF(Valoración!$A$3=$A63,IF(Valoración!H$3>0,Valoración!H$3,""),"") ->  | J63: 32 | K63: Falta valor fibra | L63: Falta valor fibra | M63: Falta valor fibra | N63: =IF(Valoración!$A$3=$A63,IF(Valoración!I$3>0,Valoración!I$3,""),"") ->  | O63: =IF(Valoración!$A$3=$A63,IF(Valoración!J$3>0,Valoración!J$3,""),"") ->  | P63: Falta valor cenizas | Q63: Falta valor cenizas | R63: Falta valor MNT | S63: Falta valor cenizas | T63: Falta valor fibra | U63: Falta valor fibra | V63: Falta valor fibra | X63: 0.699669967 | Y63: Falta valor fibra | Z63: =IF(Valoración!$A$3=A63,IF(Valoración!$K$3>0,Valoración!K$3,""),"") ->  | AA63: 0.699669967 | AB63: 0.6689041584 | AC63: Falta valor cenizas | AD63: 0.74 | AE63: 0.75 | AH63: 181.8844884 | AI63: Falta valor MNT | AK63: 25.95075908 | AL63: Falta valor MNT | AM63: Falta valor cenizas | AN63: Falta valor cenizas | AO63: -71 | AP63: Falta valor MNT | AQ63: Falta valor MNT | AR63: Falta valor MNT | AS63: Falta valor MNT | AT63: Falta valor MNT | AU63: Falta valor MNT | AV63: Falta valor MNT | AW63: Falta valor MNT | AX63: Falta valor MNT | AY63: Falta valor MNT | AZ63: Falta valor MNT | BA63: Falta valor MNT | BB63: Falta valor MNT | BC63: Falta valor MNT | BD63: Falta valor MNT | BE63: Falta valor MNT | BF63: Raigrás inglés Final espigado, Verde | BH63: Falta valor MNT | BI63: Falta valor MNT | BJ63: Falta valor MNT | BK63: Falta valor MNT | BL63: Falta valor MNT | BM63: Falta valor MNT | BN63: Falta valor MNT | BO63: Falta valor MNT | BP63: Falta valor MNT | BQ63: Falta valor MNT | BR63: 0.699669967 | BS63: Falta valor cenizas | BT63: 32 | BU63: Falta valor fibra | BV63: Falta valor fibra | BW63: Falta valor fibra | CR63: Falta valor MNT | CS63: 0.74 | CU63: Falta valor cenizas | CV63: Falta valor MNT | CW63: Falta valor MNT | CX63: Falta valor MNT | CY63: Falta valor MNT | CZ63: Falta valor MNT
